Workbook

Sheet Lotto2 DL560 Gen10 1
A1: IN ROSSO LE OPZIONI 20% | H1: TOTALE CONVENZIONE | I1: =I13 -> 0 | J1: Totale Ulteriori Opzioni | K1: =I11 -> 0
A5: Tecnologie Server1 Lotto2 Base DL560 Gen10
H10: Totale Server e Opzioni | I10: =F17*SRV_A -> 0
A11: Components: Server HPE Proliant DL560 Gen10 (2CPU Intel® Xeon-Gold 5118, 64GB , 2xHDD 300GB 15K RPM SAS 12Gbps 2.5in) | H11: Totale Ulteriori Opzioni | I11: =G17*SRV_A -> 0
H13: TOTALE CONVENZIONE | I13: =I11+I10 -> 0
A15: Proliant DL560 Gen10 | B15: Category: Server | F15: 3864
B16: Quantity: | F16: =SUM(F20:F155) -> 0
F17: =SUM(F15:F16) -> 3864 | G17: =SUM(G20:G155) -> 0
B19: Base
B20: HPE DL560 Gen10 8SFF CTO Server | C20: 1 | E20: 841730-B21
B22: Configurazione dello chassis
B23: HP DL560 Gen9 2SFF Media Bay Kit | C23: 1 | E23: 795090-B21
B25: Processore
B26: HPE DL560 Gen10 Intel® Xeon-Gold 5118 (2.3GHz/12-core/105W) Processor | C26: 1 | E26: 840399-L21
B27: HPE DL560 Gen10 Intel® Xeon-Gold 5118 (2.3GHz/12-core/105W) Processor | C27: 1 | E27: 840399-B21
B29: Processore aggiuntivo
B30: No Additional Processor | C30: =VLOOKUP($B$30, CPU_A, 2, FALSE) -> 0 | D30: =VLOOKUP($B$30, CPU_A, 3, FALSE) ->  | E30: =VLOOKUP($B$30, CPU_A, 5, FALSE) ->  | F30: =VLOOKUP(B30, CPU_A, 12, FALSE) -> 0
B32: Mezz Board Option
B33: =VLOOKUP($B$30, CPU_A, 6, FALSE) ->  | C33: =VLOOKUP($B$30, CPU_A, 7, FALSE) ->  | E33: =VLOOKUP($B$30, CPU_A, 8, FALSE) -> 
B35: Memoria Totale in GB | C35: =IF(F30=2584,IF(B36=64,"ATTENZIONE: AUMENTARE LA RAM",""),"") -> 
B36: 64
B38: Capacità di memoria
B39: =IF($B$30="No Additional Processor",VLOOKUP($B$36, MEM_A1, 8, FALSE),VLOOKUP($B$36, MEM_A2, 8, FALSE)) -> HPE 32GB (1x32GB) Dual Rank x4 DDR4-2666 CAS-19-19-19 Registered Smart Memory Kit | C39: =IF($B$30="No Additional Processor",VLOOKUP($B$36, MEM_A1, 9, FALSE),VLOOKUP($B$36, MEM_A2, 9, FALSE)) -> 2 | E39: =IF($B$30="No Additional Processor",VLOOKUP($B$36, MEM_A1, 10, FALSE),VLOOKUP($B$36, MEM_A2, 10, FALSE)) -> 815100-B21
B41: =IF($B$30="No Additional Processor",VLOOKUP($B$36, MEM_A1, 2, FALSE),VLOOKUP($B$36, MEM_A2, 2, FALSE)) ->  | C41: =IF($B$30="No Additional Processor",VLOOKUP($B$36, MEM_A1, 3, FALSE),VLOOKUP($B$36, MEM_A2, 3, FALSE)) ->  | D41: =IF($B$30="No Additional Processor",VLOOKUP($B$36, MEM_A1, 4, FALSE),VLOOKUP($B$36, MEM_A2, 4, FALSE)) ->  | E41: =IF($B$30="No Additional Processor",VLOOKUP($B$36, MEM_A1, 6, FALSE),VLOOKUP($B$36, MEM_A2, 6, FALSE)) ->  | F41: =IF($B$30="No Additional Processor",VLOOKUP($B$36, MEM_A1, 7, FALSE),VLOOKUP($B$36, MEM_A2, 7, FALSE)) -> 
B43: =IF($B$30="No Additional Processor",VLOOKUP($B$36, MEM_A1, 11, FALSE),VLOOKUP($B$36, MEM_A2, 11, FALSE)) ->  | C43: =IF($B$30="No Additional Processor",VLOOKUP($B$36, MEM_A1, 12, FALSE),VLOOKUP($B$36, MEM_A2, 12, FALSE)) ->  | D43: =IF($B$30="No Additional Processor",VLOOKUP($B$36, MEM_A1, 13, FALSE),VLOOKUP($B$36, MEM_A2, 13, FALSE)) ->  | E43: =IF($B$30="No Additional Processor",VLOOKUP($B$36, MEM_A1, 15, FALSE),VLOOKUP($B$36, MEM_A2, 15, FALSE)) ->  | F43: =IF($B$30="No Additional Processor",VLOOKUP($B$36, MEM_A1, 16, FALSE),VLOOKUP($B$36, MEM_A2, 16, FALSE)) -> 
B45: Sistema operativo preinstallato
B46: No Operating System | C46: =VLOOKUP($B$46, OS_A, 2, FALSE) ->  | D46: =VLOOKUP($B$46, OS_A, 3, FALSE) ->  | E46: =VLOOKUP($B$46, OS_A, 5, FALSE) ->  | F46: =VLOOKUP($B$46, OS_A, 6, FALSE) -> 
B47: =IF($B$30="No Additional Processor",VLOOKUP($B$46, OS_A, 19, FALSE),VLOOKUP($B$46, OS_A2, 19, FALSE)) ->  | C47: =IF($B$30="No Additional Processor",VLOOKUP($B$46, OS_A, 20, FALSE),VLOOKUP($B$46, OS_A2, 20, FALSE)) -> 0 | D47: =IF($B$30="No Additional Processor",VLOOKUP($B$46, OS_A, 21, FALSE),VLOOKUP($B$46, OS_A2, 21, FALSE)) ->  | E47: =IF($B$30="No Additional Processor",VLOOKUP($B$46, OS_A, 23, FALSE),VLOOKUP($B$46, OS_A2, 23, FALSE)) ->  | F47: =IF($B$30="No Additional Processor",VLOOKUP($B$46, OS_A, 24, FALSE)*C47,VLOOKUP($B$46, OS_A2, 24, FALSE)*C47) -> 0 | H47: =IF(D46="TS1L2-WIN1",3,IF(D46="TS1L2-WINDC1",4,0)) -> 0
B48: =IF($B$30="No Additional Processor",VLOOKUP($B$46, OS_A, 25, FALSE),VLOOKUP($B$46, OS_A2, 25, FALSE)) ->  | C48: =IF($B$30="No Additional Processor",VLOOKUP($B$46, OS_A, 26, FALSE),VLOOKUP($B$46, OS_A2, 26, FALSE)) -> 0 | D48: =IF($B$30="No Additional Processor",VLOOKUP($B$46, OS_A, 27, FALSE),VLOOKUP($B$46, OS_A2, 27, FALSE)) ->  | E48: =IF($B$30="No Additional Processor",VLOOKUP($B$46, OS_A, 29, FALSE),VLOOKUP($B$46, OS_A2, 29, FALSE)) ->  | F48: =IF($B$30="No Additional Processor",VLOOKUP($B$46, OS_A, 30, FALSE)*C48,VLOOKUP($B$46, OS_A2, 30, FALSE)*C48) -> 0
B50: Client Access Licenses
B51: =VLOOKUP($B$46, OS_A, 7, FALSE) -> None | D51: =VLOOKUP($B$46, OS_A, 9, FALSE) ->  | E51: =VLOOKUP($B$46, OS_A, 11, FALSE) ->  | F51: =VLOOKUP($B$46, OS_A, 12, FALSE)*C51 -> 0
B53: =VLOOKUP($B$46, OS_A, 13, FALSE) -> None | D53: =VLOOKUP($B$46, OS_A, 15, FALSE) ->  | E53: =VLOOKUP($B$46, OS_A, 17, FALSE) ->  | F53: =VLOOKUP($B$46, OS_A, 18, FALSE)*C53 -> 0
B55: Sistema opertivo SUSE Linux Enterprise Server
B56: None | C56: =IF(D56="",0,(C26+C27+C30)/2) -> 0 | D56: =VLOOKUP($B$56, SUSE, 3, FALSE) ->  | E56: =VLOOKUP($B$56, SUSE, 5, FALSE) ->  | G56: =VLOOKUP($B$56, SUSE, 6, FALSE)*C56 -> 0
B58: HPE OneView Advanced (with HPE iLO Advanced)
B59: None | C59: =VLOOKUP($B$59, OpzOVAdv, 2, FALSE) -> 0 | D59: =VLOOKUP($B$59, OpzOVAdv, 3, FALSE) ->  | E59: =VLOOKUP($B$59, OpzOVAdv, 5, FALSE) ->  | G59: =VLOOKUP($B$59, OpzOVAdv, 6, FALSE) -> 0
B61: Configurazione dello chassis
B62: HPE DL560 Gen10 8SFF HDD Bay3 Kit | C62: 1 | E62: 872237-B21
B64: HPE DL560 Gen10 8SFF HDD Bay2 Kit | C64: 0 | D64: =VLOOKUP($C$64, HDD_Bay2, 2, FALSE) ->  | E64: =VLOOKUP($C$64, HDD_Bay2, 3, FALSE) ->  | F64: =VLOOKUP($C$64, HDD_Bay2, 4, FALSE) ->  | G64: =VLOOKUP($C$64, HDD_Bay2, 5, FALSE) -> 0
B66: HPE DL560 Gen10 8SFF HDD Bay1 Kit | C66: 0 | D66: =VLOOKUP($C$66, HDD_BAY1, 2, FALSE) ->  | E66: =VLOOKUP($C$66, HDD_BAY1, 3, FALSE) ->  | F66: =VLOOKUP($C$66, HDD_BAY1, 4, FALSE) ->  | G66: =VLOOKUP($C$66, HDD_BAY1, 5, FALSE) -> 0
B68: Controller RAID
B69: HPE Smart Array P408i-a SR G10 LH Ctrlr | C69: 1 | E69: 869081-B21
B71: HPE 96W Smart Storage Battery with 145mm Cable Kit | C71: 1 | E71: P01366-B21
B73: =IF(C64+C66=0,"","HPE DL5x0 Gen10 12Gb SAS Expander Card Kit with Cables") ->  | C73: =IF(C64+C66=0,"",1) ->  | D73: =IF(C64+C66=0,"","S2-873444-B21") ->  | E73: =IF(C64+C66=0,"","873444-B21") ->  | G73: =IF(C64+C66=0,"",540) -> 
B75: =IF(C62+C64+C66=1,"Dischi rigidi (numero massimo totale 8)",(IF(C62+C64+C66=2,"Dischi rigidi (numero massimo totale 16)","Dischi rigidi (numero massimo totale 24)"))) -> Dischi rigidi (numero massimo totale 8)
B76: HPE 300GB SAS 15K SFF SC DS HDD | C76: 2 | E76: 870753-B21
B78: HPE 300GB SAS 15K SFF SC DS HDD | D78: TS1L2-HD300 | E78: 870753-B21 | F78: =C78*156 -> 0
B80: HPE 1.2TB SAS 10K SFF SC DS HDD | D80: TS1L2-HD1200 | E80: 872479-B21 | F80: =C80*292 -> 0
B82: HPE 1.8TB SAS 10K SFF SC DS HDD | D82: TS1L2-HD1800-560 | E82: 872481-B21 | G82: =C82*467 -> 0
B84: HPE 480GB SAS 12G Read Intensive SFF SC DS SSD | D84: S2-875311-B21 | E84: 875311-B21 | G84: =C84*749 -> 0
B86: HPE 960GB SAS 12G Read Intensive SFF SC DS SSD | D86: TS1L2-SSD960-560 | E86: 872390-B21 | G86: =C86*1571 -> 0
B88: HPE 1.92TB SAS 12G Read Intensive SFF SC DS SSD | D88: TS1L2-SSD1920-560 | E88: 875326-B21 | G88: =C88*2667 -> 0
B90: DISCHI TOTALI | C90: =SUM(C76:C89) -> 2 | D90: =IF(C90<=((C62+C64+C66)*8)," OK"," ERRORE: Totale n° di dischi superiore al consentito") -> OK
B92: Configurazione RAID
B93: SCRIVERE QUI' LA CONFIGURAZIONE RAID RICHIESTA. BASE DL560 Gen10 1 | H93: =IF(B93="SCRIVERE QUI' LA CONFIGURAZIONE RAID RICHIESTA. BASE ALTERNATIVO DL560 Gen10 1 ","!!!ATTENZIONE!!! COMPILARE IL CAMPO DELLA SCELTA RAID", "") -> 
B94: Configurazione RAID con HDD 300GB
B95: RAID 1 (2 HDDs) | C95: 1 | E95: =VLOOKUP($B$95, RAID_A1, 2, FALSE) -> 
B96: Hot Spare for 300GB HDD | C96: No
B98: Configurazione RAID con HDD 1TB
C99: 1 | E99: =VLOOKUP($B$99, RAID_A2, 2, FALSE) -> 
B100: Hot Spare for 1TB HDD | C100: No
B102: Alimentatore
B103: HPE 1600W Flex Slot Platinum Hot Plug Low Halogen Power Supply Kit | C103: 2 | E103: 830272-B21
B105: PCIe Riser
B106: Primary Riser | C106: 1
B108: Secondary Riser | D108: =VLOOKUP($C$108, Riser2, 2, FALSE) ->  | E108: =VLOOKUP($C$108, Riser2, 3, FALSE) ->  | F108: =VLOOKUP($C$108, Riser2, 4, FALSE) ->  | G108: =VLOOKUP($C$108, Riser2, 5, FALSE) -> 0 | H108: =IF(C108+C110=2,"ERRORE - SELEZIONARE SOLO UNA SECONDARY RISER","") -> 
B110: Secondary Riser for GPU | C110: 0 | D110: =VLOOKUP($C$110, Riser2GPU, 2, FALSE) ->  | E110: =VLOOKUP($C$110, Riser2GPU, 3, FALSE) ->  | F110: =VLOOKUP($C$110, Riser2GPU, 4, FALSE) ->  | G110: =VLOOKUP($C$110, Riser2GPU, 5, FALSE) -> 0
B112: Tertiary riser | C112: 0 | D112: =VLOOKUP($C$112, Riser3, 2, FALSE) ->  | E112: =VLOOKUP($C$112, Riser3, 3, FALSE) ->  | F112: =VLOOKUP($C$112, Riser3, 4, FALSE) ->  | G112: =VLOOKUP($C$112, Riser3, 5, FALSE) -> 0
B114: Scheda FlexibleLOM
B115: HPE FlexFabric 10Gb 2-port 534FLR-SFP+ Adapter | C115: 1 | E115: 700751-B21
H116: PRIMARY RISER | J116: SECONDARY RISER | K116: TERTIARY RISER
B117: Additional Card for PCIe Slot 1
B118: HPE Ethernet 1Gb 4-port 331T Adapter | C118: 1 | E118: 647594-B21 | G118: 0
B120: Additional Card for PCIe Slot 2
B121: None | C121: =IF(B121=B73,"",VLOOKUP(B121, PCI_A2, 2, FALSE)) ->  | D121: =IF(B121=B73,"",VLOOKUP(B121, PCI_A2, 3, FALSE)) ->  | E121: =IF(B121=B73,"",VLOOKUP(B121, PCI_A2, 5, FALSE)) ->  | F121: =IF(B121=B73,"",VLOOKUP(B121, PCI_A2, 6, FALSE)) ->  | G121: =IF(B121=B73,"",VLOOKUP(B121, PCI_A2, 9, FALSE)) -> 0
B123: Additional Card for PCIe Slot 3
B124: None | C124: =VLOOKUP(B124, PCI_A2, 2, FALSE) ->  | D124: =VLOOKUP(B124, PCI_A2, 3, FALSE) ->  | E124: =VLOOKUP(B124, PCI_A2, 5, FALSE) ->  | F124: =VLOOKUP(B124, PCI_A2, 6, FALSE) ->  | G124: =VLOOKUP(B124, PCI_A2, 9, FALSE) -> 0
B126: =IF(C110=1,"Additional Card for PCIe Slot 4 (GPU Slot)","Additional Card for PCIe Slot 4") -> Additional Card for PCIe Slot 4
B127: None | C127: =IF($B$127="Aggiungere Secondary Riser","",VLOOKUP($B$127, PCI_A5, 2, FALSE)) ->  | D127: =IF($B$127="Aggiungere Secondary Riser","",VLOOKUP($B$127, PCI_A5, 3, FALSE)) ->  | E127: =IF($B$127="Aggiungere Secondary Riser","",VLOOKUP($B$127, PCI_A5, 5, FALSE)) ->  | F127: =IF($B$127="Aggiungere Secondary Riser","",VLOOKUP($B$127, PCI_A5, 6, FALSE)) ->  | G127: =IF($B$127="Aggiungere Secondary Riser","",VLOOKUP($B$127, PCI_A5, 9, FALSE)) -> 0
B129: Additional Card for PCIe Slot 5
B130: None | C130: =IF($B$130="Aggiungere Secondary Riser","",IF($B$130="Non Disponibile","",VLOOKUP($B$130, PCI_A4, 2, FALSE))) ->  | D130: =IF($B$130="Aggiungere Secondary Riser","",IF($B$130="Non Disponibile","",VLOOKUP($B$130, PCI_A4, 3, FALSE))) ->  | E130: =IF($B$130="Aggiungere Secondary Riser","",IF($B$130="Non Disponibile","",VLOOKUP($B$130, PCI_A4, 5, FALSE))) ->  | F130: =IF($B$130="Aggiungere Secondary Riser","",IF($B$130="Non Disponibile","",VLOOKUP($B$130, PCI_A4, 9, FALSE))) -> 0 | G130: =IF($B$130="Aggiungere Secondary Riser","",IF($B$130="Non Disponibile","",VLOOKUP($B$130, PCI_A4, 6, FALSE))) -> 
B132: Additional Card for PCIe Slot 6
B133: None | C133: =IF($B$133="Aggiungere Secondary Riser","",VLOOKUP($B$133, PCI_A4, 2, FALSE)) ->  | D133: =IF($B$133="Aggiungere Secondary Riser","",VLOOKUP($B$133, PCI_A4, 3, FALSE)) ->  | E133: =IF($B$133="Aggiungere Secondary Riser","",VLOOKUP($B$133, PCI_A4, 5, FALSE)) ->  | F133: =IF($B$133="Aggiungere Secondary Riser","",VLOOKUP($B$133, PCI_A4, 6, FALSE)) ->  | G133: =IF($B$133="Aggiungere Secondary Riser","",VLOOKUP($B$133, PCI_A4, 9, FALSE)) -> 0
B135: Additional Card for PCIe Slot 7
B136: None | C136: =IF($B$136="Aggiungere Tertiary Riser","",VLOOKUP($B$136, PCI_A7, 2, FALSE)) ->  | D136: =IF($B$136="Aggiungere Tertiary Riser","",VLOOKUP($B$136, PCI_A7, 3, FALSE)) ->  | E136: =IF($B$136="Aggiungere Tertiary Riser","",VLOOKUP($B$136, PCI_A7, 5, FALSE)) ->  | F136: =IF($B$136="Aggiungere Tertiary Riser","",VLOOKUP($B$136, PCI_A7, 6, FALSE)) ->  | G136: =IF($B$136="Aggiungere Tertiary Riser","",VLOOKUP($B$136, PCI_A7, 9, FALSE)) -> 0
B138: Additional Card for PCIe Slot 8
B139: None | C139: =IF($B$139="Aggiungere Tertiary Riser","",VLOOKUP($B$139, PCI_A7, 2, FALSE)) ->  | D139: =IF($B$139="Aggiungere Tertiary Riser","",VLOOKUP($B$139, PCI_A7, 3, FALSE)) ->  | E139: =IF($B$139="Aggiungere Tertiary Riser","",VLOOKUP($B$139, PCI_A7, 5, FALSE)) ->  | F139: =IF($B$139="Aggiungere Tertiary Riser","",VLOOKUP($B$139, PCI_A7, 6, FALSE)) ->  | G139: =IF($B$139="Aggiungere Tertiary Riser","",VLOOKUP($B$139, PCI_A7, 9, FALSE)) -> 0
B141: Bezel
B142: None | C142: 1
B144: Unità ottica
B145: HP Mobile USB DVDRW Drive | C145: 1 | E145: 701498-B21
B147: Accessori per Server
B148: HP BLc 10G SFP+ SR Transceiver | C148: =(VLOOKUP(B118,PCI_A1,8,FALSE))+((VLOOKUP(B121,PCI_A2,8,FALSE)))+((VLOOKUP(B124,PCI_A2,8,FALSE)))+((VLOOKUP(B127,PCI_A4,8,FALSE)))+((VLOOKUP(B130,PCI_A4,8,FALSE)))+((VLOOKUP(B133,PCI_A4,8,FALSE)))+((VLOOKUP(B136,PCI_A7,8,FALSE))+((VLOOKUP(B139,PCI_A7,8,FALSE)))) -> 0 | E148: 455883-B21
B150: Estensione di Garanzia
B151: None | C151: =VLOOKUP($B$151, SO_B1,2, FALSE) ->  | D151: =VLOOKUP($B$151, SO_B1, 3, FALSE) ->  | E151: =VLOOKUP($B$151, SO_B1, 5, FALSE) ->  | F151: =VLOOKUP($B$151, SO_B1, 6, FALSE) -> 
B153: Protezione dei dati - Keep Your Hard Drive
B154: None | C154: =VLOOKUP($B$154, SO_A2, 2, FALSE) ->  | D154: =VLOOKUP($B$154, SO_A2, 3, FALSE) ->  | E154: =VLOOKUP($B$154, SO_A2,5, FALSE) ->  | F154: =VLOOKUP($B$154, SO_A2, 6, FALSE) -> 

Sheet Lotto2 DL580 1
A1: IN ROSSO LE OPZIONI 20% | J1: TOTALE CONVENZIONE | K1: =K10 -> 0 | L1: Totale Ulteriori Opzioni | M1: =K8 -> 0
A5: Tecnologie Server1 Lotto2 Base Alternativo DL580
J7: Totale Server e Opzioni | K7: =F17*SRV_B -> 0
J8: Totale Ulteriori Opzioni | K8: =G16*SRV_B -> 0
J10: TOTALE CONVENZIONE | K10: =K8+K7 -> 0
A11: Components: Server HP Proliant DL580 Gen10 (2CPU Intel® Xeon® Gold 5518, 64GB , 2xHDD 300GB 15K RPM SAS 12Gbps 2.5in)
A15: Proliant DL580 Gen10 | B15: Category: Server | F15: =3864 -> 3864
B16: Quantity: | F16: =SUM(F20:F207) -> 0 | G16: =SUM(G20:G207) -> 0
F17: =SUM(F15:F16) -> 3864
B19: Base
B20: HPE DL580 Gen10 8SFF CTO Server | C20: 1 | E20: 869854-B21
B22: Processore
B23: HPE DL580 Gen10 Intel® Xeon-Gold 5118 (2.3GHz/12-core/105W) Processor | C23: 1 | E23: 878126-L21
B24: HPE DL580 Gen10 Intel® Xeon-Gold 5118 (2.3GHz/12-core/105W) Processor | C24: 1 | E24: 878126-B21
B26: Processore aggiuntivo
B27: No Additional Processor | C27: =VLOOKUP($B$27, CPU_B, 2, FALSE) -> 0 | D27: =VLOOKUP($B$27, CPU_B, 3, FALSE) ->  | E27: =VLOOKUP($B$27, CPU_B, 5, FALSE) ->  | F27: =VLOOKUP(B27, CPU_B, 12, FALSE) -> 
B29: Mezz Board Option
B30: =VLOOKUP($B$27, CPU_B, 6, FALSE) ->  | C30: =VLOOKUP($B$27, CPU_B, 7, FALSE) ->  | E30: =VLOOKUP($B$27, CPU_B, 8, FALSE) -> 
B32: Memoria Totale in GB | C32: =IF(F27=2584,IF(B33=64,"ATTENZIONE: AUMENTARE LA RAM",""),"") -> 
B33: 64
B35: Capacità di memoria
B36: =IF($B$27="No Additional Processor",VLOOKUP($B$33, MEM_B1, 8, FALSE),VLOOKUP($B$33, MEM_B2, 8, FALSE)) -> HPE 32GB (1x32GB) Dual Rank x4 DDR4-2666 CAS-19-19-19 Registered Smart Memory Kit | C36: =IF($B$27="No Additional Processor",VLOOKUP($B$33, MEM_B1, 9, FALSE),VLOOKUP($B$33, MEM_B2, 9, FALSE)) -> 2 | E36: =IF($B$27="No Additional Processor",VLOOKUP($B$33, MEM_B1, 10, FALSE),VLOOKUP($B$33, MEM_B2, 10, FALSE)) -> 815100-B21
B38: =IF($B$27="No Additional Processor",VLOOKUP($B$33, MEM_B1, 2, FALSE),VLOOKUP($B$33, MEM_B2, 2, FALSE)) ->  | C38: =IF($B$27="No Additional Processor",VLOOKUP($B$33, MEM_B1, 3, FALSE),VLOOKUP($B$33, MEM_B2, 3, FALSE)) ->  | D38: =IF($B$27="No Additional Processor",VLOOKUP($B$33, MEM_B1, 4, FALSE),VLOOKUP($B$33, MEM_B2, 4, FALSE)) ->  | E38: =IF($B$27="No Additional Processor",VLOOKUP($B$33, MEM_B1, 6, FALSE),VLOOKUP($B$33, MEM_B2, 6, FALSE)) ->  | F38: =IF($B$27="No Additional Processor",VLOOKUP($B$33, MEM_B1, 7, FALSE),VLOOKUP($B$33, MEM_B2, 7, FALSE)) -> 
B40: =IF($B$27="No Additional Processor",VLOOKUP($B$33, MEM_B1, 11, FALSE),VLOOKUP($B$33, MEM_B2, 11, FALSE)) ->  | C40: =IF($B$27="No Additional Processor",VLOOKUP($B$33, MEM_B1, 12, FALSE),VLOOKUP($B$33, MEM_B2, 12, FALSE)) ->  | D40: =IF($B$27="No Additional Processor",VLOOKUP($B$33, MEM_B1, 13, FALSE),VLOOKUP($B$33, MEM_B2, 13, FALSE)) ->  | E40: =IF($B$27="No Additional Processor",VLOOKUP($B$33, MEM_B1, 15, FALSE),VLOOKUP($B$33, MEM_B2, 15, FALSE)) ->  | F40: =IF($B$27="No Additional Processor",VLOOKUP($B$33, MEM_B1, 16, FALSE),VLOOKUP($B$33, MEM_B2, 16, FALSE)) -> 
B42: Sistema operativo preinstallato
B43: No Operating System | C43: =VLOOKUP($B$43, OS_B, 2, FALSE) ->  | D43: =VLOOKUP($B$43, OS_B, 3, FALSE) ->  | E43: =VLOOKUP($B$43, OS_B, 5, FALSE) ->  | F43: =VLOOKUP($B$43, OS_B, 6, FALSE) -> 
B44: =IF($B$27="No Additional Processor",VLOOKUP($B$43, OS_B, 19, FALSE),VLOOKUP($B$43, OS_B2, 19, FALSE)) ->  | C44: =IF($B$27="No Additional Processor",VLOOKUP($B$43, OS_B, 20, FALSE),VLOOKUP($B$43, OS_B2, 20, FALSE)) -> 0 | D44: =IF($B$27="No Additional Processor",VLOOKUP($B$43, OS_B, 21, FALSE),VLOOKUP($B$43, OS_B2, 21, FALSE)) ->  | E44: =IF($B$27="No Additional Processor",VLOOKUP($B$43, OS_B, 23, FALSE),VLOOKUP($B$43, OS_B2, 23, FALSE)) ->  | F44: =IF($B$27="No Additional Processor",VLOOKUP($B$43, OS_B, 24, FALSE)*C44,VLOOKUP($B$43, OS_B2, 24, FALSE)*C44) -> 0 | H44: =IF(D43="TS1L2-WIN1",3,IF(D43="TS1L2-WINDC1",4,0)) -> 0
B45: =IF($B$27="No Additional Processor",VLOOKUP($B$43, OS_B, 25, FALSE),VLOOKUP($B$43, OS_B2, 25, FALSE)) ->  | C45: =IF($B$27="No Additional Processor",VLOOKUP($B$43, OS_B, 26, FALSE),VLOOKUP($B$43, OS_B2, 26, FALSE)) -> 0 | D45: =IF($B$27="No Additional Processor",VLOOKUP($B$43, OS_B, 27, FALSE),VLOOKUP($B$43, OS_B2, 27, FALSE)) ->  | E45: =IF($B$27="No Additional Processor",VLOOKUP($B$43, OS_B, 29, FALSE),VLOOKUP($B$43, OS_B2, 29, FALSE)) ->  | F45: =IF($B$27="No Additional Processor",VLOOKUP($B$43, OS_B, 30, FALSE)*C45,VLOOKUP($B$43, OS_B2, 30, FALSE)*C45) -> 0
B47: Client Access Licenses
B48: =VLOOKUP($B$43, OS_B, 7, FALSE) -> None | D48: =VLOOKUP($B$43, OS_B, 9, FALSE) ->  | E48: =VLOOKUP($B$43, OS_B, 11, FALSE) ->  | F48: =VLOOKUP($B$43, OS_B, 12, FALSE)*C48 -> 0
B50: =VLOOKUP($B$43, OS_B, 13, FALSE) -> None | D50: =VLOOKUP($B$43, OS_B, 15, FALSE) ->  | E50: =VLOOKUP($B$43, OS_B, 17, FALSE) ->  | F50: =VLOOKUP($B$43, OS_B, 18, FALSE)*C50 -> 0
B52: Sistema opertivo SUSE Linux Enterprise Server
B53: None | C53: =IF(D53="",0,(C23+C24+C27)/2) -> 0 | D53: =VLOOKUP($B$53, SUSE, 3, FALSE) ->  | E53: =VLOOKUP($B$53, SUSE, 5, FALSE) ->  | G53: =VLOOKUP($B$53, SUSE, 6, FALSE)*C53 -> 0
B55: HPE OneView Advanced (with HPE iLO Advanced)
B56: None | C56: =VLOOKUP($B$56, OpzOVAdv, 2, FALSE) -> 0 | D56: =VLOOKUP($B$56, OpzOVAdv, 3, FALSE) ->  | E56: =VLOOKUP($B$56, OpzOVAdv, 5, FALSE) ->  | G56: =VLOOKUP($B$56, OpzOVAdv, 6, FALSE) -> 0
B58: Configurazione dello chassis
B59: Chassis 16 slot HDD | C59: =IF(C60=0,1,0) -> 1 | E59: 830824-B21
B60: Chassis 48 slot HDD | C60: 0 | D60: =IF(C60=1,"S2-48HDDbay","") ->  | E60: 830824-B21 | G60: =IF(C60=1,1367,0) -> 0
B62: Controller RAID
B63: HPE Smart Array P408i-p SR Gen10 (8 Internal Lanes/2GB Cache) 12G SAS PCIe Plug-in Controller | C63: 1 | E63: 830824-B21
B65: =IF(C59=1,"Dischi rigidi (numero massimo totale 16)","Dischi rigidi (numero massimo totale 48)") -> Dischi rigidi (numero massimo totale 16)
B66: HPE 300GB SAS 15K SFF SC DS HDD | C66: 2 | E66: 870753-B21
B68: HPE 300GB SAS 15K SFF SC DS HDD | D68: TS1L2-HD300 | E68: 870753-B21 | F68: =HD300_B*156 -> 0
B70: HPE 1.2TB SAS 10K SFF SC DS HDD | D70: TS1L2-HD1200 | E70: 872479-B21 | F70: =HD1000_B*292 -> 0
B72: HPE 1.8TB SAS 10K SFF SC DS HDD | D72: TS1L2-HD1800 | E72: 872481-B21 | G72: =C72*467 -> 0
B74: HPE 960GB SAS 12G Read Intensive SFF SC DS SSD | D74: TS1L2-SSD960 | E74: 872390-B21 | G74: =C74*1571 -> 0
B76: HPE 1.92TB SAS 12G Read Intensive SFF SC DS SSD | D76: TS1L2-SSD1920 | E76: 875326-B21 | G76: =C76*2667 -> 0
B78: DISCHI TOTALI | C78: =SUM(C66:C77) -> 2 | D78: =IF(C59=1,IF(C78<=16," OK"," ERRORE: Totale n° di dischi superiore al consentito"),IF(C78<=48," OK"," ERRORE: Totale n° di dischi superiore al consentito")) -> OK
B80: Configurazione RAID
B81: SCRIVERE QUI' LA CONFIGURAZIONE RAID RICHIESTA. BASE ALTERNATIVO DL580 1
B82: RAID 1 (2 HDDs) | C82: 1 | E82: =VLOOKUP($B$82, RAID_B1, 2, FALSE) -> [780-BBJK]
B83: Hot Spare for 300GB HDD | C83: No
B85: Configurazione RAID con HDD 1TB
C86: 1 | E86: =VLOOKUP($B$86, RAID_B2, 2, FALSE) -> 
B87: Hot Spare for 1TB HDD | C87: No
B89: Alimentatore
B90: HPE 1600W FS Plat Ht Plg LH Pwr Sply Kit | C90: =IF(C98+C97>0,4,IF(G110+G104>5000,4,2)) -> 2 | E90: 830272-B21
B92: Scheda FlexibleLOM
B93: HPE FlexFbr 10Gb 534FLR-SFP+ FIO Adptr | C93: 1 | E93: 700751-B21
B95: PCIe Riser
B96: 7 slot Primary Riser | C96: 1
B97: 9 slot Secondary Riser (48HDD) | C97: =IF(C60=1,1,0) -> 0 | D97: =VLOOKUP($C$97, SlotRiser9, 2, FALSE) ->  | E97: =VLOOKUP($C$97, SlotRiser9, 3, FALSE) ->  | F97: =VLOOKUP($C$98, SlotRiser9, 4, FALSE) ->  | G97: =VLOOKUP($C$97, SlotRiser9, 5, FALSE) -> 0
B98: 9 slot Secondary Riser | C98: 0 | D98: =VLOOKUP($C$98, SlotRiser9, 2, FALSE) ->  | E98: =VLOOKUP($C$98, SlotRiser9, 3, FALSE) ->  | F98: =VLOOKUP($C$98, SlotRiser9, 4, FALSE) ->  | G98: =IF(C60=1,0,VLOOKUP($C$98, SlotRiser9, 5, FALSE)) -> 0
B100: Additional Card for PCIe Slot 1 (CPU3)
B101: None | C101: =IF(B101="Aggiungere Coppia di Processori","",(VLOOKUP(B101,PCI_B5, 2, FALSE))) ->  | D101: =IF(B101="Aggiungere Coppia di Processori","",(VLOOKUP(B101,PCI_B5, 3, FALSE))) ->  | E101: =IF(B101="Aggiungere Coppia di Processori","",(VLOOKUP(B101,PCI_B5, 5, FALSE))) ->  | F101: =IF(B101="Aggiungere Coppia di Processori","",(VLOOKUP(B101,PCI_B5, 6, FALSE))) ->  | G101: =IF(B101="Aggiungere Coppia di Processori","",(VLOOKUP(B101,PCI_B5, 9, FALSE))) -> 0
B103: Additional Card for PCIe Slot 2 (CPU3) (GPU Slot)
B104: None | C104: =IF(B104="Aggiungere Coppia di Processori","",(VLOOKUP(B104,PCI_B6, 2, FALSE))) ->  | D104: =IF(B104="Aggiungere Coppia di Processori","",(VLOOKUP(B104,PCI_B6, 3, FALSE))) ->  | E104: =IF(B104="Aggiungere Coppia di Processori","",(VLOOKUP(B104,PCI_B6, 5, FALSE))) ->  | F104: =IF(B104="Aggiungere Coppia di Processori","",(VLOOKUP(B104,PCI_B6, 6, FALSE))) ->  | G104: =IF(B104="Aggiungere Coppia di Processori","",(VLOOKUP(B104,PCI_B6, 9, FALSE))) -> 0
B106: Additional Card for PCIe Slot 3 (CPU3)
B107: None | C107: =IF(B107="Aggiungere Coppia di Processori","",(VLOOKUP(B107,PCI_B5, 2, FALSE))) ->  | D107: =IF(B107="Aggiungere Coppia di Processori","",(VLOOKUP(B107,PCI_B5, 3, FALSE))) ->  | E107: =IF(B107="Aggiungere Coppia di Processori","",(VLOOKUP(B107,PCI_B5, 5, FALSE))) ->  | F107: =IF(B107="Aggiungere Coppia di Processori","",(VLOOKUP(B107,PCI_B5, 6, FALSE))) ->  | G107: =IF(B107="Aggiungere Coppia di Processori","",(VLOOKUP(B107,PCI_B5, 9, FALSE))) -> 0
B109: Additional Card for PCIe Slot 4 (CPU3) (GPU Slot)
B110: None | C110: =IF(B110="Aggiungere Coppia di Processori","",(VLOOKUP(B110,PCI_B6, 2, FALSE))) ->  | D110: =IF(B110="Aggiungere Coppia di Processori","",(VLOOKUP(B110,PCI_B6, 3, FALSE))) ->  | E110: =IF(B110="Aggiungere Coppia di Processori","",(VLOOKUP(B110,PCI_B6, 5, FALSE))) ->  | F110: =IF(B110="Aggiungere Coppia di Processori","",(VLOOKUP(B110,PCI_B6, 6, FALSE))) ->  | G110: =IF(B110="Aggiungere Coppia di Processori","",(VLOOKUP(B110,PCI_B6, 9, FALSE))) -> 0
B112: Additional Card for PCIe Slot 5 (CPU1)
B113: HPE Ethernet 1Gb 4-port 331T Adapter | C113: 1 | E113: 647594-B21
B115: Additional Card for PCIe Slot 6 (CPU1)
B116: HPE Smart Array P408i-p SR Gen10 Ctrlr | C116: 1 | E116: 830824-B21
B118: Additional Card for PCIe Slot 7 (CPU1)
B119: HPE DL580 Gen10 12G 24-port SAS Expander | C119: 1 | E119: 881101-B21
B121: Additional Card for PCIe Slot 8 (CPU4)
B122: None | C122: =IF(B122="Aggiungere Coppia di Processori","",IF(B122="Aggiungere 9 slot Secondary Riser","",(VLOOKUP(B122,PCI_B5,2,FALSE)))) ->  | D122: =IF(B122="Aggiungere Coppia di Processori","",IF(B122="Aggiungere 9 slot Secondary Riser","",(VLOOKUP(B122,PCI_B5,3,FALSE)))) ->  | E122: =IF(B122="Aggiungere Coppia di Processori","",IF(B122="Aggiungere 9 slot Secondary Riser","",(VLOOKUP(B122,PCI_B5,5,FALSE)))) ->  | F122: =IF(B122="Aggiungere Coppia di Processori","",IF(B122="Aggiungere 9 slot Secondary Riser","",(VLOOKUP(B122,PCI_B5,6,FALSE)))) ->  | G122: =IF(B122="Aggiungere Coppia di Processori","",IF(B122="Aggiungere 9 slot Secondary Riser","",(VLOOKUP(B122,PCI_B5,9,FALSE)))) -> 0
B124: Additional Card for PCIe Slot 9 (CPU4) (GPU Slot)
B125: None | C125: =IF(B125="Aggiungere Coppia di Processori","",IF(B125="Aggiungere 9 slot Secondary Riser","",(VLOOKUP(B125,PCI_B6,2,FALSE)))) ->  | D125: =IF(B125="Aggiungere Coppia di Processori","",IF(B125="Aggiungere 9 slot Secondary Riser","",(VLOOKUP(B125,PCI_B6,3,FALSE)))) ->  | E125: =IF(B125="Aggiungere Coppia di Processori","",IF(B125="Aggiungere 9 slot Secondary Riser","",(VLOOKUP(B125,PCI_B6,5,FALSE)))) ->  | F125: =IF(B125="Aggiungere Coppia di Processori","",IF(B125="Aggiungere 9 slot Secondary Riser","",(VLOOKUP(B125,PCI_B6,6,FALSE)))) ->  | G125: =IF(B125="Aggiungere Coppia di Processori","",IF(B125="Aggiungere 9 slot Secondary Riser","",(VLOOKUP(B125,PCI_B6,9,FALSE)))) -> 0
B127: Additional Card for PCIe Slot 10 (CPU4)
B128: None | C128: =IF(B128="Aggiungere Coppia di Processori","",IF(B128="Aggiungere 9 slot Secondary Riser","",(VLOOKUP(B128,PCI_B5,2,FALSE)))) ->  | D128: =IF(B128="Aggiungere Coppia di Processori","",IF(B128="Aggiungere 9 slot Secondary Riser","",(VLOOKUP(B128,PCI_B5,3,FALSE)))) ->  | E128: =IF(B128="Aggiungere Coppia di Processori","",IF(B128="Aggiungere 9 slot Secondary Riser","",(VLOOKUP(B128,PCI_B5,5,FALSE)))) ->  | F128: =IF(B128="Aggiungere Coppia di Processori","",IF(B128="Aggiungere 9 slot Secondary Riser","",(VLOOKUP(B128,PCI_B5,6,FALSE)))) ->  | G128: =IF(B128="Aggiungere Coppia di Processori","",IF(B128="Aggiungere 9 slot Secondary Riser","",(VLOOKUP(B128,PCI_B5,9,FALSE)))) -> 0
B130: Additional Card for PCIe Slot 11 (CPU4) (GPU Slot)
B131: None | C131: =IF(B131="Aggiungere Coppia di Processori","",IF(B131="Aggiungere 9 slot Secondary Riser","",(VLOOKUP(B131,PCI_B6,2,FALSE)))) ->  | D131: =IF(B131="Aggiungere Coppia di Processori","",IF(B131="Aggiungere 9 slot Secondary Riser","",(VLOOKUP(B131,PCI_B6,3,FALSE)))) ->  | E131: =IF(B131="Aggiungere Coppia di Processori","",IF(B131="Aggiungere 9 slot Secondary Riser","",(VLOOKUP(B131,PCI_B6,5,FALSE)))) ->  | F131: =IF(B131="Aggiungere Coppia di Processori","",IF(B131="Aggiungere 9 slot Secondary Riser","",(VLOOKUP(B131,PCI_B6,6,FALSE)))) ->  | G131: =IF(B131="Aggiungere Coppia di Processori","",IF(B131="Aggiungere 9 slot Secondary Riser","",(VLOOKUP(B131,PCI_B6,9,FALSE)))) -> 0
B133: Additional Card for PCIe Slot 12 (CPU2)
B134: None | C134: =IF(B134="Aggiungere Coppia di Processori","",IF(B134="Aggiungere 9 slot Secondary Riser","",(VLOOKUP(B134,PCI_B5,2,FALSE)))) ->  | D134: =IF(B134="Aggiungere Coppia di Processori","",IF(B134="Aggiungere 9 slot Secondary Riser","",(VLOOKUP(B134,PCI_B5,3,FALSE)))) ->  | E134: =IF(B134="Aggiungere Coppia di Processori","",IF(B134="Aggiungere 9 slot Secondary Riser","",(VLOOKUP(B134,PCI_B5,5,FALSE)))) ->  | F134: =IF(B134="Aggiungere Coppia di Processori","",IF(B134="Aggiungere 9 slot Secondary Riser","",(VLOOKUP(B134,PCI_B5,6,FALSE)))) ->  | G134: =IF(B134="Aggiungere Coppia di Processori","",IF(B134="Aggiungere 9 slot Secondary Riser","",(VLOOKUP(B134,PCI_B5,9,FALSE)))) -> 0
B136: Additional Card for PCIe Slot 13 (CPU2)
B137: None | C137: =IF(B137="Aggiungere Coppia di Processori","",IF(B137="Aggiungere 9 slot Secondary Riser","",(VLOOKUP(B137,PCI_B5,2,FALSE)))) ->  | D137: =IF(B137="Aggiungere Coppia di Processori","",IF(B137="Aggiungere 9 slot Secondary Riser","",(VLOOKUP(B137,PCI_B5,3,FALSE)))) ->  | E137: =IF(B137="Aggiungere Coppia di Processori","",IF(B137="Aggiungere 9 slot Secondary Riser","",(VLOOKUP(B137,PCI_B5,5,FALSE)))) ->  | F137: =IF(B137="Aggiungere Coppia di Processori","",IF(B137="Aggiungere 9 slot Secondary Riser","",(VLOOKUP(B137,PCI_B5,6,FALSE)))) ->  | G137: =IF(B137="Aggiungere Coppia di Processori","",IF(B137="Aggiungere 9 slot Secondary Riser","",(VLOOKUP(B137,PCI_B5,9,FALSE)))) -> 0
B139: Additional Card for PCIe Slot 14 (CPU2)
B140: None | C140: =IF(B140="Aggiungere Coppia di Processori","",IF(B140="Aggiungere 9 slot Secondary Riser","",(VLOOKUP(B140,PCI_B5,2,FALSE)))) ->  | D140: =IF(B140="Aggiungere Coppia di Processori","",IF(B140="Aggiungere 9 slot Secondary Riser","",(VLOOKUP(B140,PCI_B5,3,FALSE)))) ->  | E140: =IF(B140="Aggiungere Coppia di Processori","",IF(B140="Aggiungere 9 slot Secondary Riser","",(VLOOKUP(B140,PCI_B5,5,FALSE)))) ->  | F140: =IF(B140="Aggiungere Coppia di Processori","",IF(B140="Aggiungere 9 slot Secondary Riser","",(VLOOKUP(B140,PCI_B5,6,FALSE)))) ->  | G140: =IF(B140="Aggiungere Coppia di Processori","",IF(B140="Aggiungere 9 slot Secondary Riser","",(VLOOKUP(B140,PCI_B5,9,FALSE)))) -> 0
B142: Additional Card for PCIe Slot 15 (CPU2)
B143: None | C143: =IF(B143="Aggiungere Coppia di Processori","",IF(B143="Aggiungere 9 slot Secondary Riser","",(VLOOKUP(B143,PCI_B4,2,FALSE)))) ->  | D143: =IF(B143="Aggiungere Coppia di Processori","",IF(B143="Aggiungere 9 slot Secondary Riser","",(VLOOKUP(B143,PCI_B4,3,FALSE)))) ->  | E143: =IF(B143="Aggiungere Coppia di Processori","",IF(B143="Aggiungere 9 slot Secondary Riser","",(VLOOKUP(B143,PCI_B4,5,FALSE)))) ->  | F143: =IF(B143="Aggiungere Coppia di Processori","",IF(B143="Aggiungere 9 slot Secondary Riser","",(VLOOKUP(B143,PCI_B4,6,FALSE)))) ->  | G143: =IF(B143="Aggiungere Coppia di Processori","",IF(B143="Aggiungere 9 slot Secondary Riser","",(VLOOKUP(B143,PCI_B4,9,FALSE)))) -> 0
B145: Additional Card for PCIe Slot 16 (CPU2)
B146: None | C146: =IF(B146="Aggiungere Coppia di Processori","",IF(B146="Aggiungere 9 slot Secondary Riser","",(VLOOKUP(B146,PCI_B4,2,FALSE)))) ->  | D146: =IF(B146="Aggiungere Coppia di Processori","",IF(B146="Aggiungere 9 slot Secondary Riser","",(VLOOKUP(B146,PCI_B4,3,FALSE)))) ->  | E146: =IF(B146="Aggiungere Coppia di Processori","",IF(B146="Aggiungere 9 slot Secondary Riser","",(VLOOKUP(B146,PCI_B4,5,FALSE)))) ->  | F146: =IF(B146="Aggiungere Coppia di Processori","",IF(B146="Aggiungere 9 slot Secondary Riser","",(VLOOKUP(B146,PCI_B4,6,FALSE)))) ->  | G146: =IF(B146="Aggiungere Coppia di Processori","",IF(B146="Aggiungere 9 slot Secondary Riser","",(VLOOKUP(B146,PCI_B4,9,FALSE)))) -> 0
B148: Accessori per GPU
B149: HPE DL38x Gen10 8-pin Cable Kit for P6000 GPU | C149: =IF(IF($E$104="Q0v76a",1,0)+IF($E$110="Q0v76a",1,0)+IF($E$125="Q0v76a",1,0)++IF($E$131="Q0v76a",1,0)=0,0,IF(IF($E$104="Q0v76a",1,0)+IF($E$110="Q0v76a",1,0)+IF($E$125="Q0v76a",1,0)++IF($E$131="Q0v76a",1,0)>3,2,1)) -> 0 | D149: TS1-871828 | E149: 871828-B21 | G149: =26*C149 -> 0
E150: =COUNTIF($E$104:$E$131,"Q2N68A")+COUNTIF($E$104:$E$131,"Q0v80a") -> 0
B151: HPE DL38x Gen10 8-pin Keyed Cable Kit for P40 or V100 GPU | C151: =IF(E150=0,0,IF(E150>3,2,1)) -> 0 | D151: TS1-871829 | E151: 871829-B21 | G151: =31*C151 -> 0
B153: HPE DL580 Gen10 GPU Bracket Kit for installation in slots 4 or 11 | C153: =IF($E$110="Q2n68A",1,0)+IF($E$131="Q2n68A",1,0)+IF($E$110="Q0v80a",1,0)+IF($E$131="Q0v80a",1,0)+IF($E$110="Q0v76a",1,0)+IF($E$131="Q0v76a",1,0) -> 0 | D153: TS1-P00268 | E153: P00268-B21 | G153: =33*C153 -> 0
B155: Bezel
B156: None | C156: 1
B158: Accessori per Server
B159: HP BLc 10G SFP+ SR Transceiver | C159: 2 | E159: 455883-B21
B161: Unità ottica
B162: HP Mobile USB DVDRW Drive | C162: 1 | E162: 701498-B21
B164: Estensione di Garanzia
B165: None | C165: =VLOOKUP($B$165, SO_B1,2, FALSE) ->  | D165: =VLOOKUP($B$165, SO_B1, 3, FALSE) ->  | E165: =VLOOKUP($B$165, SO_B1, 5, FALSE) ->  | F165: =VLOOKUP($B$165, SO_B1, 6, FALSE) -> 
B167: Protezione dei dati - Keep Your Hard Drive
B168: None | C168: =VLOOKUP($B$168, SO_B2, 2, FALSE) ->  | D168: =VLOOKUP($B$168, SO_B2, 3, FALSE) ->  | E168: =VLOOKUP($B$168, SO_B2,5, FALSE) ->  | F168: =VLOOKUP($B$168, SO_B2, 6, FALSE) -> 

Sheet Lotto2 DL580 Prest 1
A1: IN ROSSO LE OPZIONI 20% | J1: TOTALE CONVENZIONE | K1: =K10 -> 0 | L1: Totale Ulteriori Opzioni | M1: =K8 -> 0
A5: Tecnologie Server1 Lotto2 Prestazionale DL580
J7: Totale Server e Opzioni | K7: =F17*SRV_C -> 0
J8: Totale Ulteriori Opzioni | K8: =G16*SRV_C -> 0
J10: TOTALE CONVENZIONE | K10: =K8+K7 -> 0
A11: Components: Server HP Proliant DL580 Gen10 (2CPU Intel® Xeon® Gold 6140M, 128GB , 2xHDD 300GB 15K RPM SAS 12Gbps 2.5in)
A15: Proliant DL580 Gen10 | B15: Category: Server | F15: 6092
B16: Quantity: | F16: =SUM(F20:F203) -> 0 | G16: =SUM(G20:G203) -> 0
F17: =SUM(F15:F16) -> 6092
B19: Base
B20: HPE DL580 Gen10 8SFF CTO Server | C20: 1 | E20: 869854-B21
B22: Processore
B23: HPE DL580 Gen10 Intel® Xeon-Gold 6140M (2.3GHz/18-core/140W) | C23: 1 | E23: 878138-L21
B24: HPE DL580 Gen10 Intel® Xeon-Gold 6140M (2.3GHz/18-core/140W) | C24: 1 | E24: 878138-B21
B26: Processore aggiuntivo
B27: No Additional Processor | C27: =VLOOKUP($B$27, CPU_C, 2, FALSE) -> 0 | D27: =VLOOKUP($B$27, CPU_C, 3, FALSE) ->  | E27: =VLOOKUP($B$27, CPU_C, 5, FALSE) -> 0 | F27: =VLOOKUP(B27, CPU_C, 12, FALSE) -> 
B29: Mezz Board Option
B30: =VLOOKUP($B$27, CPU_C, 6, FALSE) ->  | C30: =VLOOKUP($B$27, CPU_C, 7, FALSE) ->  | E30: =VLOOKUP($B$27, CPU_C, 8, FALSE) -> 
B32: Memoria Totale in GB | C32: =IF(F27=5056,IF(B33=128,"ATTENZIONE: AUMENTARE LA RAM",""),"") -> 
B33: 128
B35: Capacità di memoria
B36: =IF($B$27="No Additional Processor",VLOOKUP($B$33, MEM_C1, 8, FALSE),VLOOKUP($B$33, MEM_C2, 8, FALSE)) -> HPE 32GB (1x32GB) Dual Rank x4 DDR4-2666 CAS-19-19-19 Registered Smart Memory Kit | C36: =IF($B$27="No Additional Processor",VLOOKUP($B$33, MEM_C1, 9, FALSE),VLOOKUP($B$33, MEM_C2, 9, FALSE)) -> 4 | E36: =IF($B$27="No Additional Processor",VLOOKUP($B$33, MEM_C1, 10, FALSE),VLOOKUP($B$33, MEM_C2, 10, FALSE)) -> 815100-B21
B38: =IF($B$27="No Additional Processor",VLOOKUP($B$33, MEM_C1, 2, FALSE),VLOOKUP($B$33, MEM_C2, 2, FALSE)) ->  | C38: =IF($B$27="No Additional Processor",VLOOKUP($B$33, MEM_C1, 3, FALSE),VLOOKUP($B$33, MEM_C2, 3, FALSE)) ->  | D38: =IF($B$27="No Additional Processor",VLOOKUP($B$33, MEM_C1, 4, FALSE),VLOOKUP($B$33, MEM_C2, 4, FALSE)) ->  | E38: =IF($B$27="No Additional Processor",VLOOKUP($B$33, MEM_C1, 6, FALSE),VLOOKUP($B$33, MEM_C2, 6, FALSE)) -> 0 | F38: =IF($B$27="No Additional Processor",VLOOKUP($B$33, MEM_C1, 7, FALSE),VLOOKUP($B$33, MEM_C2, 7, FALSE)) -> 
B40: =IF($B$27="No Additional Processor",VLOOKUP($B$33, MEM_C1, 11, FALSE),VLOOKUP($B$33, MEM_C2, 11, FALSE)) ->  | C40: =IF($B$27="No Additional Processor",VLOOKUP($B$33, MEM_C1, 12, FALSE),VLOOKUP($B$33, MEM_C2, 12, FALSE)) ->  | D40: =IF($B$27="No Additional Processor",VLOOKUP($B$33, MEM_C1, 13, FALSE),VLOOKUP($B$33, MEM_C2, 13, FALSE)) ->  | E40: =IF($B$27="No Additional Processor",VLOOKUP($B$33, MEM_C1, 15, FALSE),VLOOKUP($B$33, MEM_C2, 15, FALSE)) ->  | F40: =IF($B$27="No Additional Processor",VLOOKUP($B$33, MEM_C1, 16, FALSE),VLOOKUP($B$33, MEM_C2, 16, FALSE)) -> 
B42: Sistema operativo preinstallato
B43: No Operating System | C43: =VLOOKUP($B$43, OS_C, 2, FALSE) ->  | D43: =VLOOKUP($B$43, OS_C, 3, FALSE) ->  | E43: =VLOOKUP($B$43, OS_C, 5, FALSE) ->  | F43: =VLOOKUP($B$43, OS_C, 6, FALSE) -> 
B44: =IF($B$27="No Additional Processor",VLOOKUP($B$43, OS_C, 19, FALSE),VLOOKUP($B$43, OS_C2, 19, FALSE)) ->  | C44: =IF($B$27="No Additional Processor",VLOOKUP($B$43, OS_C, 20, FALSE),VLOOKUP($B$43, OS_C2, 20, FALSE)) -> 0 | D44: =IF($B$27="No Additional Processor",VLOOKUP($B$43, OS_C, 21, FALSE),VLOOKUP($B$43, OS_C2, 21, FALSE)) ->  | E44: =IF($B$27="No Additional Processor",VLOOKUP($B$43, OS_C, 23, FALSE),VLOOKUP($B$43, OS_C2, 23, FALSE)) ->  | F44: =IF($B$27="No Additional Processor",VLOOKUP($B$43, OS_C, 24, FALSE)*C44,VLOOKUP($B$43, OS_C2, 24, FALSE)*C44) -> 0 | H44: =IF(D43="TS1L2-WIN1",3,IF(D43="TS1L2-WINDC1",4,0)) -> 0
B45: =IF($B$27="No Additional Processor",VLOOKUP($B$43, OS_C, 25, FALSE),VLOOKUP($B$43, OS_C2, 25, FALSE)) ->  | C45: =IF($B$27="No Additional Processor",VLOOKUP($B$43, OS_C, 26, FALSE),VLOOKUP($B$43, OS_C2, 26, FALSE)) -> 0 | D45: =IF($B$27="No Additional Processor",VLOOKUP($B$43, OS_C, 27, FALSE),VLOOKUP($B$43, OS_C2, 27, FALSE)) ->  | E45: =IF($B$27="No Additional Processor",VLOOKUP($B$43, OS_C, 29, FALSE),VLOOKUP($B$43, OS_C2, 29, FALSE)) ->  | F45: =IF($B$27="No Additional Processor",VLOOKUP($B$43, OS_C, 30, FALSE)*C45,VLOOKUP($B$43, OS_C2, 30, FALSE)*C45) -> 0
B47: Client Access Licenses
B48: =VLOOKUP($B$43, OS_C, 7, FALSE) -> None | D48: =VLOOKUP($B$43, OS_C, 9, FALSE) ->  | E48: =VLOOKUP($B$43, OS_C, 11, FALSE) ->  | F48: =VLOOKUP($B$43, OS_C, 12, FALSE)*C48 -> 0
B50: =VLOOKUP($B$43, OS_C, 13, FALSE) -> None | D50: =VLOOKUP($B$43, OS_C, 15, FALSE) ->  | E50: =VLOOKUP($B$43, OS_C, 17, FALSE) ->  | F50: =VLOOKUP($B$43, OS_C, 18, FALSE)*C50 -> 0
B52: Sistema opertivo SUSE Linux Enterprise Server
B53: None | C53: =IF(D53="",0,(C23+C24+C27)/2) -> 0 | D53: =VLOOKUP($B$53, SUSE, 3, FALSE) ->  | E53: =VLOOKUP($B$53, SUSE, 5, FALSE) ->  | G53: =VLOOKUP($B$53, SUSE, 6, FALSE)*C53 -> 0
B55: HPE OneView Advanced (with HPE iLO Advanced)
B56: None | C56: =VLOOKUP($B$56, OpzOVAdv, 2, FALSE) -> 0 | D56: =VLOOKUP($B$56, OpzOVAdv, 3, FALSE) ->  | E56: =VLOOKUP($B$56, OpzOVAdv, 5, FALSE) ->  | G56: =VLOOKUP($B$56, OpzOVAdv, 6, FALSE) -> 0
B58: Configurazione dello chassis
B59: Chassis 16 slot HDD | C59: =IF(C60=0,1,0) -> 1 | E59: 830824-B21
B60: Chassis 48 slot HDD | C60: 0 | D60: =IF(C60=1,"S2-48HDDbay","") ->  | E60: 830824-B21 | G60: =IF(C60=1,1367,0) -> 0
B62: Controller RAID (PCIe Slot 16)
B63: HPE Smart Array P408i-p SR Gen10 (8 Internal Lanes/2GB Cache) 12G SAS PCIe Plug-in Controller | C63: 1 | E63: 830824-B21
B65: =IF(C59=1,"Dischi rigidi (numero massimo totale 16)","Dischi rigidi (numero massimo totale 48)") -> Dischi rigidi (numero massimo totale 16)
B66: HPE 300GB SAS 15K SFF SC DS HDD | C66: 2 | E66: 870753-B21
B68: HPE 300GB SAS 15K SFF SC DS HDD | D68: TS1L2-HD300 | E68: 870753-B21 | F68: =HD300_C*156 -> 0
B70: HPE 1.2TB SAS 10K SFF SC DS HDD | D70: TS1L2-HD1200 | E70: 872479-B21 | F70: =HD1000_c*292 -> 0
B72: HPE 1.8TB SAS 10K SFF SC DS HDD | D72: TS1L2-HD1800 | E72: 872481-B21 | F72: =C72*467 -> 0
B74: HPE 960GB SAS 12G Read Intensive SFF SC DS SSD | D74: TS1L2-SSD960 | E74: 872390-B21 | F74: =C74*1571 -> 0
B76: HPE 1.92TB SAS 12G Read Intensive SFF SC DS SSD | D76: TS1L2-SSD1920 | E76: 875326-B21 | F76: =C76*2667 -> 0
B78: DISCHI TOTALI | C78: =SUM(C66:C77) -> 2 | D78: =IF(C59=1,IF(C78<=16," OK"," ERRORE: Totale n° di dischi superiore al consentito"),IF(C78<=48," OK"," ERRORE: Totale n° di dischi superiore al consentito")) -> OK
B80: Configurazione RAID
B81: SCRIVERE QUI' LA CONFIGURAZIONE RAID RICHIESTA. DL580 Prestazionale 1
B82: RAID 1 (2 HDDs) | C82: 1 | E82: =VLOOKUP($B$82, RAID_B1, 2, FALSE) -> [780-BBJK]
B83: Hot Spare for 300GB HDD | C83: No
B85: Configurazione RAID con HDD 1TB
C86: 1 | E86: =VLOOKUP($B$86, RAID_B2, 2, FALSE) -> 
B87: Hot Spare for 1TB HDD | C87: No
B89: Alimentatore
B90: HPE 1600W FS Plat Ht Plg LH Pwr Sply Kit | C90: =IF(C27=0,2,4) -> 2 | E90: 830272-B21
B91: HPE 1600W FS Plat Ht Plg LH Pwr Sply Kit | C91: =IF(C27+C60>=2,0,IF(C27+C60=0,0,2)) -> 0 | D91: S2-PwrSply2 | E91: 830272-B21 | G91: =IF(C91=0,0,306) -> 0
B93: Scheda FlexibleLOM
B94: HPE FlexFabric 10Gb 2P 534FLR-SFP+ Adptr | C94: 1 | E94: 700751-B21
B96: Additional Card for PCIe Slot 1 (CPU3)
B97: None | C97: =IF(B97="Aggiungere Coppia di Processori","",(VLOOKUP(B97,PCI_B5, 2, FALSE))) ->  | D97: =IF(B97="Aggiungere Coppia di Processori","",(VLOOKUP(B97,PCI_B5, 3, FALSE))) ->  | E97: =IF(B97="Aggiungere Coppia di Processori","",(VLOOKUP(B97,PCI_B5, 5, FALSE))) ->  | F97: =IF(B97="Aggiungere Coppia di Processori","",(VLOOKUP(B97,PCI_B5, 6, FALSE))) ->  | G97: =IF(B97="Aggiungere Coppia di Processori","",(VLOOKUP(B97,PCI_B5, 9, FALSE))) -> 0
B99: Additional Card for PCIe Slot 2 (CPU3) (GPU Slot)
B100: None | C100: =IF(B100="Aggiungere Coppia di Processori","",(VLOOKUP(B100,PCI_B6, 2, FALSE))) ->  | D100: =IF(B100="Aggiungere Coppia di Processori","",(VLOOKUP(B100,PCI_B6, 3, FALSE))) ->  | E100: =IF(B100="Aggiungere Coppia di Processori","",(VLOOKUP(B100,PCI_B6, 5, FALSE))) ->  | F100: =IF(B100="Aggiungere Coppia di Processori","",(VLOOKUP(B100,PCI_B6, 6, FALSE))) ->  | G100: =IF(B100="Aggiungere Coppia di Processori","",(VLOOKUP(B100,PCI_B6, 9, FALSE))) -> 0
B102: Additional Card for PCIe Slot 3 (CPU3)
B103: None | C103: =IF(B103="Aggiungere Coppia di Processori","",(VLOOKUP(B103,PCI_B5, 2, FALSE))) ->  | D103: =IF(B103="Aggiungere Coppia di Processori","",(VLOOKUP(B103,PCI_B5, 3, FALSE))) ->  | E103: =IF(B103="Aggiungere Coppia di Processori","",(VLOOKUP(B103,PCI_B5, 5, FALSE))) ->  | F103: =IF(B103="Aggiungere Coppia di Processori","",(VLOOKUP(B103,PCI_B5, 6, FALSE))) ->  | G103: =IF(B103="Aggiungere Coppia di Processori","",(VLOOKUP(B103,PCI_B5, 9, FALSE))) -> 0
B105: Additional Card for PCIe Slot 4 (CPU3) (GPU Slot)
B106: None | C106: =IF(B106="Aggiungere Coppia di Processori","",(VLOOKUP(B106,PCI_B6, 2, FALSE))) ->  | D106: =IF(B106="Aggiungere Coppia di Processori","",(VLOOKUP(B106,PCI_B6, 3, FALSE))) ->  | E106: =IF(B106="Aggiungere Coppia di Processori","",(VLOOKUP(B106,PCI_B6, 5, FALSE))) ->  | F106: =IF(B106="Aggiungere Coppia di Processori","",(VLOOKUP(B106,PCI_B6, 6, FALSE))) ->  | G106: =IF(B106="Aggiungere Coppia di Processori","",(VLOOKUP(B106,PCI_B6, 9, FALSE))) -> 0
B108: Additional Card for PCIe Slot 5 (CPU1)
B109: HPE Ethernet 1Gb 4-port 331T Adapter | C109: 1 | E109: 647594-B21
B111: Additional Card for PCIe Slot 6 (CPU1)
B112: HPE Ethernet 1Gb 2-port 332T Adapter | C112: 1 | E112: 647594-B21
B114: Additional Card for PCIe Slot 7 (CPU1)
B115: HPE DL580 Gen10 12G 24-port SAS Expander | C115: 1 | E115: 881101-B21
B117: Additional Card for PCIe Slot 8 (CPU4)
B118: None | C118: =IF(B118="Aggiungere Coppia di Processori","",(VLOOKUP(B118,PCI_B5, 2, FALSE))) ->  | D118: =IF(B118="Aggiungere Coppia di Processori","",(VLOOKUP(B118,PCI_B5, 3, FALSE))) ->  | E118: =IF(B118="Aggiungere Coppia di Processori","",(VLOOKUP(B118,PCI_B5, 5, FALSE))) ->  | F118: =IF(B118="Aggiungere Coppia di Processori","",(VLOOKUP(B118,PCI_B5, 6, FALSE))) ->  | G118: =IF(B118="Aggiungere Coppia di Processori","",(VLOOKUP(B118,PCI_B5, 9, FALSE))) -> 0
B120: Additional Card for PCIe Slot 9 (CPU4) (GPU Slot)
B121: None | C121: =IF(B121="Aggiungere Coppia di Processori","",IF(B121="Aggiungere 9 slot Secondary Riser","",(VLOOKUP(B121,PCI_B6,2,FALSE)))) ->  | D121: =IF(B121="Aggiungere Coppia di Processori","",IF(B121="Aggiungere 9 slot Secondary Riser","",(VLOOKUP(B121,PCI_B6,3,FALSE)))) ->  | E121: =IF(B121="Aggiungere Coppia di Processori","",IF(B121="Aggiungere 9 slot Secondary Riser","",(VLOOKUP(B121,PCI_B6,5,FALSE)))) ->  | F121: =IF(B121="Aggiungere Coppia di Processori","",IF(B121="Aggiungere 9 slot Secondary Riser","",(VLOOKUP(B121,PCI_B6,6,FALSE)))) ->  | G121: =IF(B121="Aggiungere Coppia di Processori","",IF(B121="Aggiungere 9 slot Secondary Riser","",(VLOOKUP(B121,PCI_B6,9,FALSE)))) -> 0
B123: Additional Card for PCIe Slot 10 (CPU4)
B124: None | C124: =IF(B124="Aggiungere Coppia di Processori","",(VLOOKUP(B124,PCI_B5, 2, FALSE))) ->  | D124: =IF(B124="Aggiungere Coppia di Processori","",(VLOOKUP(B124,PCI_B5, 3, FALSE))) ->  | E124: =IF(B124="Aggiungere Coppia di Processori","",(VLOOKUP(B124,PCI_B5, 5, FALSE))) ->  | F124: =IF(B124="Aggiungere Coppia di Processori","",(VLOOKUP(B124,PCI_B5, 6, FALSE))) ->  | G124: =IF(B124="Aggiungere Coppia di Processori","",(VLOOKUP(B124,PCI_B5, 9, FALSE))) -> 0
B126: Additional Card for PCIe Slot 11 (CPU4) (GPU Slot)
B127: None | C127: =IF(B127="Aggiungere Coppia di Processori","",IF(B127="Aggiungere 9 slot Secondary Riser","",(VLOOKUP(B127,PCI_B6,2,FALSE)))) ->  | D127: =IF(B127="Aggiungere Coppia di Processori","",IF(B127="Aggiungere 9 slot Secondary Riser","",(VLOOKUP(B127,PCI_B6,3,FALSE)))) ->  | E127: =IF(B127="Aggiungere Coppia di Processori","",IF(B127="Aggiungere 9 slot Secondary Riser","",(VLOOKUP(B127,PCI_B6,5,FALSE)))) ->  | F127: =IF(B127="Aggiungere Coppia di Processori","",IF(B127="Aggiungere 9 slot Secondary Riser","",(VLOOKUP(B127,PCI_B6,6,FALSE)))) ->  | G127: =IF(B127="Aggiungere Coppia di Processori","",IF(B127="Aggiungere 9 slot Secondary Riser","",(VLOOKUP(B127,PCI_B6,9,FALSE)))) -> 0
B129: Additional Card for PCIe Slot 12 (CPU2)
B130: None | C130: =VLOOKUP(B130, PCI_B2, 2, FALSE) ->  | D130: =VLOOKUP(B130, PCI_B2, 3, FALSE) ->  | E130: =VLOOKUP(B130, PCI_B2, 5, FALSE) ->  | F130: =VLOOKUP(B130, PCI_B2, 6, FALSE) ->  | G130: =VLOOKUP(B130, PCI_B2, 9, FALSE) -> 0
B132: Additional Card for PCIe Slot 13 (CPU2)
B133: None | C133: =VLOOKUP(B133, PCI_B2, 2, FALSE) ->  | D133: =VLOOKUP(B133, PCI_B2, 3, FALSE) ->  | E133: =VLOOKUP(B133, PCI_B2, 5, FALSE) ->  | F133: =VLOOKUP(B133, PCI_B2, 6, FALSE) ->  | G133: =VLOOKUP(B133, PCI_B2, 9, FALSE) -> 0
B135: Additional Card for PCIe Slot 14 (CPU2)
B136: None | C136: =IF(B136="Aggiungere Coppia di Processori","",(VLOOKUP(B136,PCI_B4,2,FALSE))) ->  | D136: =IF(B136="Aggiungere Coppia di Processori","",(VLOOKUP(B136,PCI_B4,3,FALSE))) ->  | E136: =IF($B$136="Aggiungere Coppia di Processori","",(VLOOKUP($B$136,PCI_B4,5,FALSE))) ->  | F136: =IF($B$136="Aggiungere Coppia di Processori","",(VLOOKUP($B$136,PCI_B4,6,FALSE))) ->  | G136: =IF($B$136="Aggiungere Coppia di Processori","",(VLOOKUP($B$136,PCI_B4,9,FALSE))) -> 0
B138: Additional Card for PCIe Slot 15 (CPU2)
B139: None | C139: =IF(B139="Aggiungere Coppia di Processori","",(VLOOKUP(B139,PCI_B4,2,FALSE))) ->  | D139: =IF(B139="Aggiungere Coppia di Processori","",(VLOOKUP(B139,PCI_B4,3,FALSE))) ->  | E139: =IF($B$139="Aggiungere Coppia di Processori","",(VLOOKUP($B$139,PCI_B4,5,FALSE))) ->  | F139: =IF($B$139="Aggiungere Coppia di Processori","",(VLOOKUP($B$139,PCI_B4,6,FALSE))) ->  | G139: =IF($B$139="Aggiungere Coppia di Processori","",(VLOOKUP($B$139,PCI_B4,9,FALSE))) -> 0
B141: Additional Card for PCIe Slot 16 (CPU2)
B142: HPE Smart Array P408i-p SR Gen10 Ctrlr | C142: 1 | E142: 830824-B21
B144: Accessori per GPU
B145: HPE DL38x Gen10 8-pin Cable Kit for P6000 GPU | C145: =IF(IF($E$100="Q0v76a",1,0)+IF($E$106="Q0v76a",1,0)+IF($E$121="Q0v76a",1,0)++IF($E$127="Q0v76a",1,0)=0,0,IF(IF($E$100="Q0v76a",1,0)+IF($E$106="Q0v76a",1,0)+IF($E$121="Q0v76a",1,0)++IF($E$127="Q0v76a",1,0)>3,2,1)) -> 0 | D145: TS1-871828 | E145: 871828-B21 | G145: =26*C145 -> 0
E146: =COUNTIF($E$100:$E$127,"Q2N68A")+COUNTIF($E$100:$E$127,"Q0v80a") -> 0
B147: HPE DL38x Gen10 8-pin Keyed Cable Kit for P40 or V100 GPU | C147: =IF(E146=0,0,IF(E146>3,2,1)) -> 0 | D147: TS1-871829 | E147: 871829-B21 | G147: =31*C147 -> 0
B149: HPE DL580 Gen10 GPU Bracket Kit for installation in slots 4 or 11 | C149: =IF($E$106="Q2n68A",1,0)+IF($E$127="Q2n68A",1,0)+IF($E$106="Q0v80a",1,0)+IF($E$127="Q0v80a",1,0)+IF($E$106="Q0v76a",1,0)+IF($E$127="Q0v76a",1,0) -> 0 | D149: TS1-P00268 | E149: P00268-B21 | G149: =33*C149 -> 0
B151: Bezel
B152: None | C152: 1
B154: Accessori per Server
B155: HP BLc 10G SFP+ SR Transceiver | C155: 2 | E155: 455883-B21
B157: Unità ottica
B158: HP Mobile USB DVDRW Drive | C158: 1 | E158: 701498-B21
B160: Estensione di Garanzia
B161: None | C161: =VLOOKUP($B$161, SO_B1,2, FALSE) ->  | D161: =VLOOKUP($B$161, SO_B1, 3, FALSE) ->  | E161: =VLOOKUP($B$161, SO_B1, 5, FALSE) ->  | F161: =VLOOKUP($B$161, SO_B1, 6, FALSE) -> 
B163: Protezione dei dati - Keep Your Hard Drive
B164: None | C164: =VLOOKUP($B$164, SO_B2, 2, FALSE) ->  | D164: =VLOOKUP($B$164, SO_B2, 3, FALSE) ->  | E164: =VLOOKUP($B$164, SO_B2,5, FALSE) ->  | F164: =VLOOKUP($B$164, SO_B2, 6, FALSE) -> 

Sheet RACK, Accessori e Servizi
A1: IN ROSSO LE OPZIONI 20%
D2: Indicare il numero delle Opzioni
M4: SERVIZI
C5: =IF(SRV_A+SRV_B>=1,"Servizi Specialistici","") -> 
C6: =IF(SRV_A+SRV_B>=1,"Servizio Specialistico di System and Network Management per sistema opertivo Windows, erogato on site. (GG/Uomo)","") ->  | K6: =IF(J6>=1,"10L2-SO-WIN","") -> 
C8: =IF(SRV_A+SRV_B>=1,"Servizio Specialistico di System and Network Management per sistema opertivo Linux, erogato on site. (GG/Uomo)","") ->  | K8: =IF(J8>=1,"10L2-SO-LINUX","") -> 
C10: =IF((SRV_A+SRV_AA+SRV_AAA+SRV_B+SRV_BB+SRV_BBB)>=5,"Servizi specialistici sistemistici per aggiornare e prevenire malfunzionamenti. (Minimo 5 Server)","") ->  | K10: =IF(J10>=1,"10L2-SO-PREV","") -> 
M13: SERVER RACK | N13: In questo foglio deve essere indicata la quantità delle opzioni Hardware da acquistare.
C14: Rack (OpzRack)
C15: =IF((SRV_A+SRV_AA+SRV_AAA+SRV_B+SRV_BB+SRV_BBB+SRV_C+SRV_CC+SRV_CCC)>=1,"Tecnosteel: armadio Rack 19'' 42U","") ->  | K15: =IF(J15>=1,"TS1L2-RACK","") -> 
C17: PDU (OpzPDU32A)
C18: =IF((SRV_A+SRV_AA+SRV_AAA+SRV_B+SRV_BB+SRV_BBB+SRV_C+SRV_CC+SRV_CCC)>=1,"PDU Vertical 20+4 outlets C13 with MCB - IEC60309 input","") ->  | K18: =IF(J18>=1,"TS1-646861","") -> 
C20: OpzPDU_TRIFASE
C21: =IF((SRV_A+SRV_AA+SRV_AAA+SRV_B+SRV_BB+SRV_BBB+SRV_C+SRV_CC+SRV_CCC)>=1,"PDU Vertical 18+6 outlets (C13+C19) with MCB and ammeter - IEC60309 input - 3 phase","") ->  | K21: =IF(J21>=1,"TS1-646875","") -> 
C23: KVM (OpzGUIRack)
C24: =IF((SRV_A+SRV_AA+SRV_AAA+SRV_B+SRV_BB+SRV_BBB+SRV_C+SRV_CC+SRV_CCC)>=1,"Orca: 1U Rackmount Console 17'' with Italian Keyboard","") ->  | K24: =IF(J24>=1,"TS1L2-GUI","") -> 
C26: KVM Option (OpzSWGUIRack)
C27: =IF((SRV_A+SRV_AA+SRV_AAA+SRV_B+SRV_BB+SRV_BBB+SRV_C+SRV_CC+SRV_CCC)>=1,"Raritan: 16-port remote KVM switch with one remote user","") ->  | K27: =IF(J27>=1,"TS1L2-KVMIP","") -> 
C29: Uninterrupted Power Supply (OpzUPS 3000VA)
C30: =IF((SRV_A+SRV_AA+SRV_AAA+SRV_B+SRV_BB+SRV_BBB+SRV_C+SRV_CC+SRV_CCC)>=1,"Riello - UPS MSR3000EVO 3000VA 2U Rackmount (SNMP+USB+RS232)","") ->  | K30: =IF(J30>=1,"TS1L2-UPS","") -> 
D33: Totale-
D34: RACK A | E34: RACK B | F34: RACK C | G34: RACK D | H34: RACK E | I34: RACK F | J34: RACK G | K34: RACK H | L34: RACK I | M34: RACK J
C35: =J15 -> 0 | D35: =IF(H55>0,IF(C35-H55=0,0,C35-H55),0) -> 0 | E35: =IF(I55>0,IF(D35-I55=0,0,D35-I55),0) -> 0 | F35: 0 | G35: 0 | H35: 0 | I35: 0 | J35: 0 | K35: 0 | L35: 0 | M35: 0
D38: Server Modello 1 | G38: =SRV_A -> 0
D39: Server Modello 2 | G39: =SRV_AA -> 0
D40: Server Modello 3 | G40: =SRV_AAA -> 0
D41: Server Modello 4 | G41: =SRV_B -> 0
D42: Server Modello 5 | G42: =SRV_BB -> 0
D43: Server Modello 6 | G43: =SRV_BBB -> 0
H45: =SUM(H5:H10)+H12+H87*2+H89*2 -> 0 | I45: 0 | J45: 0 | K45: 0 | L45: 0 | M45: 0 | N45: 0 | O45: 0 | P45: 0 | Q45: 0
C53: Rack ancora da configurare | F53: =J15-H55-I55-J55-K55-L55-M55-N55-O55-P55-Q55 -> 0
C55: Indicare il numero di rack per questa configurazione
E57: Totali | F57: da inserire | H57: =IF(C35>0,"RACK A","") ->  | I57: =IF(D35>0,"RACK B","") ->  | J57: =IF(E35>0,"RACK C","") ->  | K57: =IF(F35>0,"RACK D","") ->  | L57: =IF(G35>0,"RACK E","") ->  | M57: =IF(H35>0,"RACK F","") ->  | N57: =IF(I35>0,"RACK G","") ->  | O57: =IF(J35>0,"RACK H","") ->  | P57: =IF(K35>0,"RACK I","") ->  | Q57: =IF(L35>0,"RACK J","") -> 
C59: =IF(G38*$J$15>0,"Server Lotto2 DL560 Conf.1","") ->  | E59: =G38 -> 0 | F59: =(E59-(H59*$H$55)-(I59*$I$55)-(J59*$J$55)-(K59*$K$55)-(L59*$L$55)-(M59*$M$55)-(N59*$N$55)-(O59*$O$55)-(P59*$P$55)-(Q59*$Q$55)) -> 0
C60: =IF(G39*$J$15>0,"Server Lotto2 DL560 Conf.2","") ->  | E60: 0 | F60: 0
C61: =IF(G40*$J$15>0,"Server Lotto2 DL560 Conf.3","") ->  | E61: 0 | F61: 0
C62: =IF(G41*$J$15>0,"Server Lotto2 DL580 Conf.1","") ->  | E62: 0 | F62: 0
C63: =IF(G42*$J$15>0,"Server Lotto2 DL580 Conf.2","") ->  | E63: 0 | F63: 0
C64: =IF(G43*$J$15>0,"Server Lotto2 DL580 Conf.3","") ->  | E64: 0 | F64: 0
C66: =IF(J24>0,"OpzGUIRack Disponibili"," ") ->  | E66: =J24 -> 0 | F66: =J24-H66*H55-I66*I55-J66*J55-K66*K55-L66*L55-M66*M55-N66*N55-O66*O55-P66*P55-Q66*Q55 -> 0
C68: =IF(J27>0,"OpzSWGUIRack Disponibili"," ") ->  | E68: =J27 -> 0 | F68: =J27-H68*H55-I68*I55-J68*J55-K68*K55-L68*L55-M68*M55-N68*N55-O68*O55-P68*P55-Q68*Q55 -> 0
C70: =IF(J30>0,"OpzUPS 3000VA Disponibili"," ") ->  | E70: =J30 -> 0 | F70: =J30-H70*H55-I70*I55-J70*J55-K70*K55-L70*L55-M70*M55-N70*N55-O70*O55-P70*P55-Q70*Q55 -> 0

Sheet Riepilogo
B1: Amministrazione | R1: CONFIGURATORE ELETTRONICO CONVENZIONE CONSIP TECNOLOGIE SERVER 1 LOTTO 2 | V1: 1
B2: N° Identificativo Ordine | I2: =IF(G4=R126,"Configurazione OK",U4) -> Configurazione OK | V2: 1
B3: Data Ordine | V3: 1
B4: Tot Ordine Portale CONSIP IVA incl. | G4: =R126 -> 0 | U4: Nel "Tot Ordine Portale CONSIP" deve essere inserito l'importo totale risultante dall'ordinativo del portale CONSIP. Qualora l'importo inserito corrisponde al valore ricalcolato dal configuratore viene attivato il pulsante "Salva in formato PDF" che permette di generare il file pdf da allegare all'ordinativo. | V4: 1
B5: LE CELLE IN GIALLO DEVO ESSERE COMPILATE OBBLIGATORIAMENTE | V5: 1
B6: Quantità Server Ordinati | G6: =IF(B32="",0,B32)+IF(B14="",0,B14)+IF(B50="",0,B50) -> 0 | T6: ver. 4.1 | V6: 1
V7: 1
B8: Referente per la Consegna | J8: Telefono | P8: email | V8: 1
V9: 1
B10: Referente per l'installazione | J10: Telefono | P10: email | V10: 1
V11: 1
B12: Qtà Totale Ordinata | C12: Oggetto di fornitura | G12: Codice Prodotto | J12: Descrizione Sintetica (si faccia riferimento alla guida alla convenzione per la descrizione estesa e per le regole di acquisto delle opzioni) | R12: Costo Unitario | T12: Costo Complessivo | V12: 1
B13: SERVER BASE (HPE PROLIANT DL560 Gen10) | V13: =IF(B14>="",0,1) -> 0 | W13: DL560 | X13: Server1 | Y13: Server2 | Z13: Server3
B14: =IF(AE14>=1,AE14,"") ->  | C14: =IF(AE14>0,(VLOOKUP(G14,COD_A,2,FALSE)),"") ->  | G14: =IF(AE14>=1,W14,"") ->  | J14: =IF(AE14>0,(VLOOKUP(G14,COD_A,5,FALSE)),"") ->  | R14: =IF(AE14>0,(VLOOKUP(G14,COD_A,3,FALSE)),"") ->  | T14: =IF(B14="","",R14*B14) ->  | V14: =IF(B14>="",0,1) -> 0 | W14: TS1L2-560 | X14: =SRV_A -> 0 | Y14: =SRV_AA -> 0 | Z14: =SRV_AAA -> 0 | AE14: =SUM(X14:AD14) -> 0
B15: =IF(AE15>=1,AE15,"") ->  | G15: =IF(AE15>=1,W15,"") ->  | T15: =IF(B15="","",R15*B15) ->  | V15: =IF(B15>="",0,1) -> 0 | W15: TS1L2-CPU-560 | X15: ='Lotto2 DL560 Gen10 1'!$C$30/2 -> 0 | Y15: ='Lotto2 DL560 Gen10 2'!$C$30/2 -> 0 | Z15: ='Lotto2 DL560 Gen10 3'!$C$30/2 -> 0 | AB15: =X15*$X$14 -> 0 | AC15: =Y15*$Y$14 -> 0 | AD15: =Z15*$Z$14 -> 0 | AE15: =SUM(AB15:AD15) -> 0
B16: =IF(AE16>=1,AE16,"") ->  | G16: =IF(AE16>=1,W16,"") ->  | T16: =IF(B16="","",R16*B16) ->  | V16: 0 | W16: TS1L2-32GB | X16: =IF(MEM_A="",0,MEM_A) -> 0 | Y16: =IF(MEM_AA="",0,MEM_AA) -> 0 | Z16: =IF(MEM_AAA="",0,MEM_AAA) -> 0 | AB16: =X16*$X$14 -> 0 | AC16: =Y16*$Y$14 -> 0 | AD16: =Z16*$Z$14 -> 0 | AE16: =SUM(AB16:AD16) -> 0
V17: 0 | W17: TS1L2-64GB | X17: =IF(MEM_A32="",0,MEM_A32) -> 0 | Y17: =IF(MEM_AA32="",0,MEM_AA32) -> 0 | Z17: =IF(MEM_AAA32="",0,MEM_AAA32) -> 0 | AB17: =X17*$X$14 -> 0 | AC17: =Y17*$Y$14 -> 0 | AD17: =Z17*$Z$14 -> 0 | AE17: =SUM(AB17:AD17) -> 0
V18: 0 | AH18: slot1 | AI18: ='Lotto2 DL560 Gen10 1'!$D$118 ->  | AJ18: ='Lotto2 DL560 Gen10 2'!$D$116 ->  | AK18: ='Lotto2 DL560 Gen10 3'!$D$116 -> 
V19: 0 | W19: TS1L2-1GB | X19: =COUNTIF($AI$18:$AI$25,W19) -> 0 | Y19: =COUNTIF($AJ$18:$AJ$25,W19) -> 0 | Z19: =COUNTIF($AK$18:$AK$25,W19) -> 0 | AB19: =X19*$X$14 -> 0 | AC19: =Y19*$Y$14 -> 0 | AD19: =Z19*$Z$14 -> 0 | AE19: =SUM(AB19:AD19) -> 0 | AH19: slot2 | AI19: ='Lotto2 DL560 Gen10 1'!$D$121 ->  | AJ19: ='Lotto2 DL560 Gen10 2'!$D$119 ->  | AK19: ='Lotto2 DL560 Gen10 3'!$D$119 -> 
V20: 0 | X20: =COUNTIF($AI$18:$AI$25,W20) -> 0 | Y20: =COUNTIF($AJ$18:$AJ$25,W20) -> 0 | Z20: =COUNTIF($AK$18:$AK$25,W20) -> 0 | AH20: slot3 | AI20: ='Lotto2 DL560 Gen10 1'!$D$124 ->  | AJ20: ='Lotto2 DL560 Gen10 2'!$D$122 ->  | AK20: ='Lotto2 DL560 Gen10 3'!$D$122 -> 
V21: 0 | W21: TS1L2-10GB | X21: 0 | Y21: 0 | Z21: 0 | AB21: =X21*$X$14 -> 0 | AC21: =Y21*$Y$14 -> 0 | AD21: =Z21*$Z$14 -> 0 | AE21: =SUM(AB21:AD21) -> 0 | AH21: slot4 | AI21: ='Lotto2 DL560 Gen10 1'!$D$127 ->  | AJ21: ='Lotto2 DL560 Gen10 2'!$D$125 ->  | AK21: ='Lotto2 DL560 Gen10 3'!$D$125 -> 
V22: 0 | X22: 0 | Y22: 0 | Z22: 0 | AB22: =X22*$X$14 -> 0 | AC22: =Y22*$Y$14 -> 0 | AD22: =Z22*$Z$14 -> 0 | AE22: =SUM(AB22:AD22) -> 0 | AH22: slot5 | AI22: ='Lotto2 DL560 Gen10 1'!$D$130 ->  | AJ22: ='Lotto2 DL560 Gen10 2'!$D$128 ->  | AK22: ='Lotto2 DL560 Gen10 3'!$D$128 -> 
V23: 0 | W23: TS1L2-CNA | X23: 0 | Y23: 0 | Z23: 0 | AB23: =X23*$X$14 -> 0 | AC23: =Y23*$Y$14 -> 0 | AD23: =Z23*$Z$14 -> 0 | AE23: =SUM(AB23:AD23) -> 0 | AH23: slot6 | AI23: ='Lotto2 DL560 Gen10 1'!$D$133 ->  | AJ23: ='Lotto2 DL560 Gen10 2'!$D$131 ->  | AK23: ='Lotto2 DL560 Gen10 3'!$D$131 -> 
V24: 0 | X24: 0 | Y24: 0 | Z24: 0 | AH24: slot7 | AI24: ='Lotto2 DL560 Gen10 1'!$D$136 ->  | AJ24: ='Lotto2 DL560 Gen10 2'!$D$134 ->  | AK24: ='Lotto2 DL560 Gen10 3'!$D$134 -> 
B25: =IF(AE25>=1,AE25,"") ->  | G25: =IF(AE25>=1,W25,"") ->  | V25: 0 | W25: TS1L2-FC | X25: 0 | Y25: 0 | Z25: 0 | AB25: =X25*$X$14 -> 0 | AC25: =Y25*$Y$14 -> 0 | AD25: =Z25*$Z$14 -> 0 | AE25: =SUM(AB25:AD25) -> 0 | AH25: slot8 | AI25: ='Lotto2 DL560 Gen10 1'!$D$139 ->  | AJ25: ='Lotto2 DL560 Gen10 2'!$D$137 ->  | AK25: ='Lotto2 DL560 Gen10 3'!$D$137 -> 
V26: 0 | W26: TS1L2-HD300 | X26: ='Lotto2 DL560 Gen10 1'!$C$78 -> 0 | Y26: ='Lotto2 DL560 Gen10 2'!$C$78 -> 0 | Z26: ='Lotto2 DL560 Gen10 3'!$C$78 -> 0 | AB26: 0 | AC26: 0 | AD26: 0 | AE26: 0
V27: 0 | W27: TS1L2-HD1200 | X27: ='Lotto2 DL560 Gen10 1'!$C$80 -> 0 | Y27: ='Lotto2 DL560 Gen10 2'!$C$80 -> 0 | Z27: ='Lotto2 DL560 Gen10 3'!$C$80 -> 0 | AB27: 0 | AC27: 0 | AD27: 0 | AE27: 0
V28: 0 | W28: TS1L2-4ANNI | X28: =IF('Lotto2 DL560 Gen10 1'!$D$151=W28,'Lotto2 DL560 Gen10 1'!$C$151,0) -> 0 | Y28: =IF('Lotto2 DL560 Gen10 2'!$D$149=W28,'Lotto2 DL560 Gen10 2'!$C$149,0) -> 0 | Z28: =IF('Lotto2 DL560 Gen10 3'!$D$149=W28,'Lotto2 DL560 Gen10 3'!$C$149,0) -> 0 | AB28: 0 | AC28: 0 | AD28: 0 | AE28: 0
V29: 0 | W29: TS1L2-5ANNI | X29: =IF('Lotto2 DL560 Gen10 1'!$D$151=W29,'Lotto2 DL560 Gen10 1'!$C$151,0) -> 0 | Y29: =IF('Lotto2 DL560 Gen10 2'!$D$149=W29,'Lotto2 DL560 Gen10 2'!$C$149,0) -> 0 | Z29: =IF('Lotto2 DL560 Gen10 3'!$D$149=W29,'Lotto2 DL560 Gen10 3'!$C$149,0) -> 0 | AB29: 0 | AC29: =Y29*$Y$14 -> 0 | AD29: 0 | AE29: 0
V30: 0 | W30: 10L2-SO-HDD | X30: =IF('Lotto2 DL560 Gen10 1'!$D$154=W30,'Lotto2 DL560 Gen10 1'!$C$154,0) -> 0 | Y30: =IF('Lotto2 DL560 Gen10 2'!$D$152=W30,'Lotto2 DL560 Gen10 2'!$C$152,0) -> 0 | Z30: =IF('Lotto2 DL560 Gen10 3'!$D$152=W30,'Lotto2 DL560 Gen10 3'!$C$152,0) -> 0 | AB30: 0 | AC30: 0 | AD30: 0 | AE30: 0
B31: SERVER BASE ALTERNATIVO (HP PROLIANT DL580 Gen10) | V31: =IF(B32>="",0,1) -> 0 | W31: DL580 Alt | X31: Server1 | Y31: Server2 | Z31: Server3
B32: =IF(AE32>=1,AE32,"") ->  | C32: =IF(AE32>0,(VLOOKUP(G32,COD_B,2,FALSE)),"") ->  | G32: =IF(AE32>=1,W32,"") ->  | J32: =IF(AE32>0,(VLOOKUP(G32,COD_B,5,FALSE)),"") ->  | R32: =IF(AE32>0,(VLOOKUP(G32,COD_B,3,FALSE)),"") ->  | T32: =IF(B32="","",R32*B32) ->  | V32: 0 | W32: TS1L2-ALT-U | X32: =SRV_B -> 0 | Y32: =SRV_BB -> 0 | Z32: =SRV_BBB -> 0 | AE32: =SUM(X32:AD32) -> 0
B33: =IF(AE33>=1,AE33,"") ->  | C33: =IF(AE33>0,(VLOOKUP(G33,COD_B,2,FALSE)),"") ->  | G33: =IF(AE33>=1,W33,"") ->  | J33: =IF(AE33>0,(VLOOKUP(G33,COD_B,5,FALSE)),"") ->  | R33: =IF(AE33>0,(VLOOKUP(G33,COD_B,3,FALSE)),"") ->  | T33: =IF(B33="","",R33*B33) ->  | V33: =IF(B33>="",0,1) -> 0 | W33: TS1L2-CPU-ALT-U | X33: ='Lotto2 DL580 1'!$C$27/2 -> 0 | Y33: ='Lotto2 DL580 2'!$C$27/2 -> 0 | Z33: ='Lotto2 DL580 3'!$C$27/2 -> 0 | AB33: =X33*$X$32 -> 0 | AC33: =Y33*$Y$32 -> 0 | AD33: =Z33*$Z$32 -> 0 | AE33: =SUM(AB33:AD33) -> 0
V34: 0 | W34: TS1L2-32GB | X34: =IF(MEM_B="",0,MEM_B) -> 0 | Y34: =IF(MEM_BB="",0,MEM_BB) -> 0 | Z34: =IF(MEM_BBB="",0,MEM_BBB) -> 0 | AB34: =X34*$X$32 -> 0 | AC34: =Y34*$Y$32 -> 0 | AD34: =Z34*$Z$32 -> 0 | AE34: =SUM(AB34:AD34) -> 0
V35: 0 | W35: TS1L2-64GB | X35: =IF(MEM_B32="",0,MEM_B32) -> 0 | Y35: =IF(MEM_BB32="",0,MEM_BB32) -> 0 | Z35: =IF(MEM_BBB32="",0,MEM_BBB32) -> 0 | AB35: =X35*$X$32 -> 0 | AC35: =Y35*$Y$32 -> 0 | AD35: =Z35*$Z$32 -> 0 | AE35: =SUM(AB35:AD35) -> 0 | AI35: Dl580-alt 1 | AJ35: Dl580-alt 2 | AK35: Dl580-alt 3
V36: 0 | W36: TS1L2-64GB | X36: =COUNTIF($AI$36:$AI$44,W36) -> 0 | Y36: =COUNTIF($AJ$36:$AJ$44,W36) -> 0 | Z36: =COUNTIF($AK$36:$AK$44,W36) -> 0 | AB36: =X36*$X$32 -> 0 | AC36: =Y36*$Y$32 -> 0 | AD36: =Z36*$Z$32 -> 0 | AE36: =SUM(AB36:AD36) -> 0 | AH36: Slot1 | AI36: ='Lotto2 DL580 1'!$D$101 ->  | AJ36: ='Lotto2 DL580 2'!$D$101 ->  | AK36: ='Lotto2 DL580 3'!$D$101 -> 
V37: 0 | W37: TS1L2-1GB | X37: =COUNTIF($AI$36:$AI$48,W37) -> 0 | Y37: =COUNTIF($AJ$36:$AJ$48,W37) -> 0 | Z37: =COUNTIF($AK$36:$AK$48,W37) -> 0 | AB37: =X37*$X$32 -> 0 | AC37: =Y37*$Y$32 -> 0 | AD37: =Z37*$Z$32 -> 0 | AE37: =SUM(AB37:AD37) -> 0 | AH37: Slot2 | AI37: ='Lotto2 DL580 1'!$D$104 ->  | AJ37: ='Lotto2 DL580 2'!$D$104 ->  | AK37: ='Lotto2 DL580 3'!$D$104 -> 
V38: 0 | X38: =COUNTIF($AI$36:$AI$48,W38) -> 0 | Y38: =COUNTIF($AJ$36:$AJ$48,W38) -> 0 | Z38: =COUNTIF($AK$36:$AK$48,W38) -> 0 | AB38: 0 | AC38: 0 | AD38: 0 | AE38: 0 | AH38: Slot3 | AI38: ='Lotto2 DL580 1'!$D$107 ->  | AJ38: ='Lotto2 DL580 2'!$D$107 ->  | AK38: ='Lotto2 DL580 3'!$D$107 -> 
V39: 0 | W39: TS1L2-10GB | X39: 0 | Y39: 0 | Z39: 0 | AB39: 0 | AC39: 0 | AD39: 0 | AE39: 0 | AH39: Slot4 | AI39: ='Lotto2 DL580 1'!$D$110 ->  | AJ39: ='Lotto2 DL580 2'!$D$110 ->  | AK39: ='Lotto2 DL580 3'!$D$110 -> 
V40: 0 | X40: 0 | Y40: 0 | Z40: 0 | AB40: 0 | AC40: 0 | AD40: 0 | AE40: 0 | AH40: Slot8 | AI40: ='Lotto2 DL580 1'!$D$122 ->  | AJ40: ='Lotto2 DL580 2'!$D$122 ->  | AK40: ='Lotto2 DL580 3'!$D$122 -> 
V41: 0 | W41: TS1L2-CNA | X41: 0 | Y41: 0 | Z41: 0 | AB41: 0 | AC41: 0 | AD41: 0 | AE41: 0 | AH41: Slot9 | AI41: ='Lotto2 DL580 1'!$D$125 ->  | AJ41: ='Lotto2 DL580 2'!$D$125 ->  | AK41: ='Lotto2 DL580 3'!$D$125 -> 
V42: 0 | X42: 0 | Y42: 0 | Z42: 0 | AB42: 0 | AC42: 0 | AD42: 0 | AE42: 0 | AH42: Slot10 | AI42: ='Lotto2 DL580 1'!$D$128 ->  | AJ42: ='Lotto2 DL580 2'!$D$128 ->  | AK42: ='Lotto2 DL580 3'!$D$128 -> 
V43: 0 | W43: TS1L2-FC | X43: 0 | Y43: 0 | Z43: 0 | AB43: 0 | AC43: 0 | AD43: 0 | AE43: 0 | AH43: Slot11 | AI43: ='Lotto2 DL580 1'!$D$131 ->  | AJ43: ='Lotto2 DL580 2'!$D$131 ->  | AK43: ='Lotto2 DL580 3'!$D$131 -> 
V44: 0 | W44: TS1L2-HD300 | X44: =HD300_B -> 0 | Y44: =HD300_BB -> 0 | Z44: =HD300_BBB -> 0 | AB44: =X44*$X$32 -> 0 | AC44: =Y44*$Y$32 -> 0 | AD44: =Z44*$Z$32 -> 0 | AE44: =SUM(AB44:AD44) -> 0 | AH44: Slot12 | AI44: ='Lotto2 DL580 1'!$D$134 ->  | AJ44: ='Lotto2 DL580 2'!$D$134 ->  | AK44: ='Lotto2 DL580 3'!$D$134 -> 
V45: 0 | W45: TS1L2-HD1200 | X45: =HD1000_B -> 0 | Y45: =HD1000_BB -> 0 | Z45: =HD1000_BBB -> 0 | AB45: =X45*$X$32 -> 0 | AC45: =Y45*$Y$32 -> 0 | AD45: =Z45*$Z$32 -> 0 | AE45: =SUM(AB45:AD45) -> 0 | AH45: Slot13 | AI45: ='Lotto2 DL580 1'!$D$137 ->  | AJ45: ='Lotto2 DL580 2'!$D$137 ->  | AK45: ='Lotto2 DL580 3'!$D$137 -> 
V46: 0 | W46: TS1L2-4ANNI | X46: =IF('Lotto2 DL580 1'!$D$165=W46,'Lotto2 DL580 1'!$C$165,0) -> 0 | Y46: =IF('Lotto2 DL580 2'!$D$165=W46,'Lotto2 DL580 2'!$C$165,0) -> 0 | Z46: =IF('Lotto2 DL580 3'!$D$165=W46,'Lotto2 DL580 3'!$C$165,0) -> 0 | AB46: =X46*$X$32 -> 0 | AC46: =Y46*$Y$32 -> 0 | AD46: =Z46*$Z$32 -> 0 | AE46: =SUM(AB46:AD46) -> 0 | AH46: Slot14 | AI46: ='Lotto2 DL580 1'!$D$140 ->  | AJ46: ='Lotto2 DL580 2'!$D$140 ->  | AK46: ='Lotto2 DL580 3'!$D$140 -> 
V47: 0 | W47: TS1L2-5ANNI | X47: =IF('Lotto2 DL580 1'!$D$165=W47,'Lotto2 DL580 1'!$C$165,0) -> 0 | Y47: =IF('Lotto2 DL580 2'!$D$165=W47,'Lotto2 DL580 2'!$C$165,0) -> 0 | Z47: =IF('Lotto2 DL580 3'!$D$165=W47,'Lotto2 DL580 3'!$C$165,0) -> 0 | AB47: =X47*$X$32 -> 0 | AC47: =Y47*$Y$32 -> 0 | AD47: =Z47*$Z$32 -> 0 | AE47: =SUM(AB47:AD47) -> 0 | AH47: Slot15 | AI47: ='Lotto2 DL580 1'!$D$143 ->  | AJ47: ='Lotto2 DL580 2'!$D$143 ->  | AK47: ='Lotto2 DL580 3'!$D$143 -> 
V48: 0 | W48: 10L2-SO-HDD | X48: =IF('Lotto2 DL580 1'!$D$168=W48,'Lotto2 DL580 1'!$C$168,0) -> 0 | Y48: =IF('Lotto2 DL580 2'!$D$168=W48,'Lotto2 DL580 2'!$C$168,0) -> 0 | Z48: =IF('Lotto2 DL580 3'!$D$168=W48,'Lotto2 DL580 3'!$C$168,0) -> 0 | AB48: =X48*$X$32 -> 0 | AC48: =Y48*$Y$32 -> 0 | AD48: =Z48*$Z$32 -> 0 | AE48: =SUM(AB48:AD48) -> 0 | AH48: Slot16 | AI48: ='Lotto2 DL580 1'!$D$146 ->  | AJ48: ='Lotto2 DL580 2'!$D$146 ->  | AK48: ='Lotto2 DL580 3'!$D$146 -> 
B49: SERVER PRESTAZIONALE (HP PROLIANT DL580 Gen10) | V49: =IF(B50>="",0,1) -> 0 | W49: DL580 Prest | X49: Server1 | Y49: Server2 | Z49: Server3
B50: =IF(AE50>=1,AE50,"") ->  | C50: =IF(AE50>0,(VLOOKUP(G50,COD_B,2,FALSE)),"") ->  | G50: =IF(AE50>=1,W50,"") ->  | J50: =IF(AE50>0,(VLOOKUP(G50,COD_B,5,FALSE)),"") ->  | R50: =IF(AE50>0,(VLOOKUP(G50,COD_B,3,FALSE)),"") ->  | T50: =IF(B50="","",R50*B50) ->  | V50: =IF(B50>="",0,1) -> 0 | W50: TS1L2-580-U | X50: =SRV_C -> 0 | Y50: =SRV_CC -> 0 | Z50: =SRV_CCC -> 0 | AE50: =SUM(X50:AD50) -> 0
B51: =IF(AE51>=1,AE51,"") ->  | G51: =IF(AE51>=1,W51,"") ->  | V51: 0 | W51: TS1L2-CPU-580-U | X51: ='Lotto2 DL580 Prest 1'!$C$27/2 -> 0 | Y51: ='Lotto2 DL580 Prest 2'!$C$27/2 -> 0 | Z51: ='Lotto2 DL580 Prest 3'!$C$27/2 -> 0 | AB51: =X51*$X$50 -> 0 | AC51: =Y51*$Y$50 -> 0 | AD51: =Z51*$Z$50 -> 0 | AE51: =SUM(AB51:AD51) -> 0
V52: 0 | W52: TS1L2-32GB | X52: =IF(MEM_C="",0,MEM_C) -> 0 | Y52: =IF(MEM_CC="",0,MEM_CC) -> 0 | Z52: =IF(MEM_CCC="",0,MEM_CCC) -> 0 | AB52: =X52*$X$50 -> 0 | AC52: =Y52*$Y$50 -> 0 | AD52: =Z52*$Z$50 -> 0 | AE52: =SUM(AB52:AD52) -> 0
V53: 0 | W53: TS1L2-64GB | X53: =IF(MEM_C32="",0,MEM_C32) -> 0 | Y53: =IF(MEM_CC32="",0,MEM_CC32) -> 0 | Z53: =IF(MEM_CCC32="",0,MEM_CCC32) -> 0 | AB53: 0 | AC53: 0 | AD53: 0 | AE53: 0 | AI53: Dl580-prest 1 | AJ53: Dl580-prest 2 | AK53: Dl580-prest 3
V54: 0 | W54: TS1L2-64GB | X54: =COUNTIF($AI$54:$AI$65,W54) -> 0 | Y54: =COUNTIF($AJ$54:$AJ$62,W54) -> 0 | Z54: =COUNTIF($AK$54:$AK$62,W54) -> 0 | AB54: 0 | AC54: 0 | AD54: 0 | AE54: 0 | AH54: slot1 | AI54: ='Lotto2 DL580 Prest 1'!$D$97 ->  | AJ54: ='Lotto2 DL580 Prest 2'!$D$97 ->  | AK54: ='Lotto2 DL580 Prest 3'!$D$97 -> 
V55: 0 | W55: TS1L2-1GB | X55: 0 | Y55: =COUNTIF($AJ$54:$AJ$65,W55) -> 0 | Z55: =COUNTIF($AK$54:$AK$65,W55) -> 0 | AB55: 0 | AC55: 0 | AD55: 0 | AE55: 0 | AH55: slot2 | AI55: ='Lotto2 DL580 Prest 1'!$D$100 ->  | AJ55: ='Lotto2 DL580 Prest 2'!$D$100 ->  | AK55: ='Lotto2 DL580 Prest 3'!$D$100 -> 
V56: 0 | X56: 0 | Y56: =COUNTIF($AJ$54:$AJ$65,W56) -> 0 | Z56: =COUNTIF($AK$54:$AK$65,W56) -> 0 | AB56: 0 | AC56: 0 | AD56: 0 | AE56: 0 | AH56: slot3 | AI56: ='Lotto2 DL580 Prest 1'!$D$103 ->  | AJ56: ='Lotto2 DL580 Prest 2'!$D$103 ->  | AK56: ='Lotto2 DL580 Prest 3'!$D$103 -> 
V57: 0 | W57: TS1L2-10GB | X57: 0 | Y57: 0 | Z57: 0 | AB57: 0 | AC57: 0 | AD57: 0 | AE57: 0 | AH57: slot4 | AI57: ='Lotto2 DL580 Prest 1'!$D$106 ->  | AJ57: ='Lotto2 DL580 Prest 2'!$D$106 ->  | AK57: ='Lotto2 DL580 Prest 3'!$D$106 -> 
V58: 0 | X58: 0 | Y58: 0 | Z58: 0 | AB58: 0 | AC58: 0 | AD58: 0 | AE58: 0 | AH58: slot8 | AI58: ='Lotto2 DL580 Prest 1'!$D$118 ->  | AJ58: ='Lotto2 DL580 Prest 2'!$D$118 ->  | AK58: ='Lotto2 DL580 Prest 3'!$D$118 -> 
V59: 0 | W59: TS1L2-CNA | X59: 0 | Y59: 0 | Z59: 0 | AB59: 0 | AC59: 0 | AD59: 0 | AE59: 0 | AH59: slot9 | AI59: ='Lotto2 DL580 Prest 1'!$D$121 ->  | AJ59: ='Lotto2 DL580 Prest 2'!$D$121 ->  | AK59: ='Lotto2 DL580 Prest 3'!$D$121 -> 
V60: 0 | X60: 0 | Y60: 0 | Z60: 0 | AB60: 0 | AC60: 0 | AD60: 0 | AE60: 0 | AH60: slot10 | AI60: ='Lotto2 DL580 Prest 1'!$D$124 ->  | AJ60: ='Lotto2 DL580 Prest 2'!$D$124 ->  | AK60: ='Lotto2 DL580 Prest 3'!$D$124 -> 
V61: 0 | W61: TS1L2-FC | X61: 0 | Y61: 0 | Z61: 0 | AB61: 0 | AC61: 0 | AD61: 0 | AE61: 0 | AH61: slot11 | AI61: ='Lotto2 DL580 Prest 1'!$D$127 ->  | AJ61: ='Lotto2 DL580 Prest 2'!$D$127 ->  | AK61: ='Lotto2 DL580 Prest 3'!$D$127 -> 
V62: 0 | W62: TS1L2-HD300 | X62: =HD300_C -> 0 | Y62: =HD300_CC -> 0 | Z62: =HD300_CCC -> 0 | AB62: 0 | AC62: 0 | AD62: 0 | AE62: 0 | AH62: slot12 | AI62: ='Lotto2 DL580 Prest 1'!$D$130 ->  | AJ62: ='Lotto2 DL580 Prest 2'!$D$130 ->  | AK62: ='Lotto2 DL580 Prest 3'!$D$130 -> 
V63: 0 | W63: TS1L2-HD1200 | X63: =HD1000_c -> 0 | Y63: =HD1000_CC -> 0 | Z63: =HD1000_CCC -> 0 | AB63: 0 | AC63: 0 | AD63: 0 | AE63: 0 | AH63: slot13 | AI63: ='Lotto2 DL580 Prest 1'!$D$133 ->  | AJ63: ='Lotto2 DL580 Prest 2'!$D$133 ->  | AK63: ='Lotto2 DL580 Prest 3'!$D$133 -> 
C64: =IF(AE64>0,(VLOOKUP(G64,COD_B,2,FALSE)),"") ->  | G64: =IF(AE64>=1,W64,"") ->  | J64: =IF(AE64>0,(VLOOKUP(G64,COD_B,5,FALSE)),"") ->  | R64: =IF(AE64>0,(VLOOKUP(G64,COD_B,3,FALSE)),"") ->  | T64: =IF(B64="","",R64*B64) ->  | V64: 0 | W64: TS1L2-HD1800 | X64: ='Lotto2 DL580 Prest 1'!C72 -> 0 | Y64: ='Lotto2 DL580 Prest 2'!C72 -> 0 | Z64: ='Lotto2 DL580 Prest 3'!C72 -> 0 | AB64: 0 | AC64: 0 | AD64: 0 | AE64: 0 | AH64: slot14 | AI64: ='Lotto2 DL580 Prest 1'!$D$136 ->  | AJ64: ='Lotto2 DL580 Prest 2'!$D$136 ->  | AK64: ='Lotto2 DL580 Prest 3'!$D$136 -> 
C65: =IF(AE65>0,(VLOOKUP(G65,COD_B,2,FALSE)),"") ->  | G65: =IF(AE65>=1,W65,"") ->  | J65: =IF(AE65>0,(VLOOKUP(G65,COD_B,5,FALSE)),"") ->  | R65: =IF(AE65>0,(VLOOKUP(G65,COD_B,3,FALSE)),"") ->  | T65: =IF(B65="","",R65*B65) ->  | V65: 0 | W65: TS1L2-SSD960 | X65: ='Lotto2 DL580 Prest 1'!C74 -> 0 | Y65: ='Lotto2 DL580 Prest 2'!C74 -> 0 | Z65: ='Lotto2 DL580 Prest 3'!C74 -> 0 | AB65: 0 | AC65: 0 | AD65: 0 | AE65: 0 | AH65: slot15 | AI65: ='Lotto2 DL580 Prest 1'!$D$139 ->  | AJ65: ='Lotto2 DL580 Prest 2'!$D$139 ->  | AK65: ='Lotto2 DL580 Prest 3'!$D$139 -> 
C66: =IF(AE66>0,(VLOOKUP(G66,COD_B,2,FALSE)),"") ->  | G66: =IF(AE66>=1,W66,"") ->  | J66: =IF(AE66>0,(VLOOKUP(G66,COD_B,5,FALSE)),"") ->  | R66: =IF(AE66>0,(VLOOKUP(G66,COD_B,3,FALSE)),"") ->  | T66: =IF(B66="","",R66*B66) ->  | V66: 0 | W66: TS1L2-SSD1920 | X66: ='Lotto2 DL580 Prest 1'!C76 -> 0 | Y66: ='Lotto2 DL580 Prest 2'!C76 -> 0 | Z66: ='Lotto2 DL580 Prest 3'!C76 -> 0 | AB66: 0 | AC66: 0 | AD66: 0 | AE66: 0
V67: 0 | W67: TS1L2-4ANNI | X67: =IF('Lotto2 DL580 Prest 1'!$D$161=W67,'Lotto2 DL580 Prest 1'!$C$161,0) -> 0 | Y67: =IF('Lotto2 DL580 Prest 2'!$D$161=W67,'Lotto2 DL580 Prest 2'!$C$161,0) -> 0 | Z67: =IF('Lotto2 DL580 Prest 3'!$D$161=W67,'Lotto2 DL580 Prest 3'!$C$161,0) -> 0 | AB67: 0 | AC67: 0 | AD67: 0 | AE67: 0
V68: 0 | W68: TS1L2-5ANNI | X68: =IF('Lotto2 DL580 Prest 1'!$D$161=W68,'Lotto2 DL580 Prest 1'!$C$161,0) -> 0 | Y68: =IF('Lotto2 DL580 Prest 2'!$D$161=W68,'Lotto2 DL580 Prest 2'!$C$161,0) -> 0 | Z68: =IF('Lotto2 DL580 Prest 3'!$D$161=W68,'Lotto2 DL580 Prest 3'!$C$161,0) -> 0 | AB68: 0 | AC68: 0 | AD68: 0 | AE68: 0
V69: 0 | W69: 10L2-SO-HDD | AB69: 0 | AC69: 0 | AD69: 0 | AE69: 0
B70: OPZIONI COMUNI | V70: =IF(SUM(V71:V84)=0,0,1) -> 0 | W70: Comuni | X70: DL560 | Y70: DL560 2 | Z70: DL560 3 | AA70: DL580 | AB70: DL580 2 | AC70: DL580 3 | AD70: DL580 Prest 1 | AE70: DL580 Prest 2 | AF70: DL580 Prest 3 | AG70: tot DL560 | AH70: tot DL580 | AI70: tot 580 Prest
B71: =IF(AT71=0,"",AT71) ->  | C71: =IF(AT71=0,"",(VLOOKUP(G71,COD_A,2,FALSE))) ->  | G71: =IF(AT71>0,W71,"") ->  | J71: =IF(AT71>0,(VLOOKUP(G71,COD_A,5,FALSE)),"") ->  | R71: =IF(AT71>0,(VLOOKUP(G71,COD_A,3,FALSE)),"") ->  | T71: =IF(B71="","",R71*B71) ->  | V71: 0 | W71: TS1L2-WIN1 | X71: =IF('Lotto2 DL560 Gen10 1'!$D$46=W71,1,0) -> 0 | Y71: =IF('Lotto2 DL560 Gen10 2'!$D$46=W71,1,0) -> 0 | Z71: =IF('Lotto2 DL560 Gen10 3'!$D$46=W71,1,0) -> 0 | AA71: =IF('Lotto2 DL580 1'!$D$43=W71,1,0) -> 0 | AB71: =IF('Lotto2 DL580 2'!$D$43=W71,1,0) -> 0 | AC71: =IF('Lotto2 DL580 3'!$D$43=W71,1,0) -> 0 | AD71: =IF('Lotto2 DL580 Prest 1'!$D$43=W71,1,0) -> 0 | AE71: =IF('Lotto2 DL580 Prest 2'!$D$43=W71,1,0) -> 0 | AF71: =IF('Lotto2 DL580 Prest 3'!$D$43=W71,1,0) -> 0 | AG71: =SUM(X71:Z71) -> 0 | AH71: =SUM(AA71:AC71) -> 0 | AI71: =SUM(AD71:AF71) -> 0 | AJ71: =X71*$X$14 -> 0 | AK71: =Y71*$Y$14 -> 0 | AL71: =Z71*$Z$14 -> 0 | AM71: =AA71*$X$32 -> 0 | AN71: =AB71*$Y$32 -> 0 | AO71: =AC71*$Z$32 -> 0 | AP71: =AD71*$X$50 -> 0 | AQ71: =AE71*$Y$50 -> 0 | AR71: =AF71*$Z$50 -> 0 | AT71: =SUM(AJ71:AR71) -> 0
V72: 0 | W72: TS1L2-WIN2 | X72: =IF('Lotto2 DL560 Gen10 1'!$D$47=$W$72,'Lotto2 DL560 Gen10 1'!$C$47,0) -> 0 | Y72: =IF('Lotto2 DL560 Gen10 2'!$D$47=$W$72,'Lotto2 DL560 Gen10 2'!$C$47,0) -> 0 | Z72: =IF('Lotto2 DL560 Gen10 3'!$D$47=$W$72,'Lotto2 DL560 Gen10 3'!$C$47,0) -> 0 | AA72: =IF('Lotto2 DL580 1'!$D$44=W72,'Lotto2 DL580 1'!$C$44,0) -> 0 | AB72: =IF('Lotto2 DL580 2'!$D$44=W72,'Lotto2 DL580 2'!$C$44,0) -> 0 | AC72: =IF('Lotto2 DL580 3'!$D$44=W72,'Lotto2 DL580 3'!$C$44,0) -> 0 | AD72: =IF('Lotto2 DL580 Prest 1'!$D$44=W72,'Lotto2 DL580 Prest 1'!$C$44,0) -> 0 | AE72: =IF('Lotto2 DL580 Prest 2'!$D$44=W72,'Lotto2 DL580 Prest 2'!$C$44,0) -> 0 | AF72: =IF('Lotto2 DL580 Prest 3'!$D$44=W72,'Lotto2 DL580 Prest 3'!$C$44,0) -> 0 | AG72: 0 | AH72: 0 | AI72: =SUM(AD72:AF72) -> 0 | AJ72: 0 | AK72: 0 | AL72: 0 | AM72: 0 | AN72: 0 | AO72: 0 | AP72: =AD72*$X$50 -> 0 | AQ72: =AE72*$Y$50 -> 0 | AR72: =AF72*$Z$50 -> 0 | AT72: =SUM(AJ72:AR72) -> 0
V73: 0 | W73: TS1L2-WINDC1 | X73: =IF('Lotto2 DL560 Gen10 1'!$D$46=$W$73,1,0) -> 0 | Y73: =IF('Lotto2 DL560 Gen10 2'!$D$46=$W$73,1,0) -> 0 | Z73: =IF('Lotto2 DL560 Gen10 3'!$D$46=$W$73,1,0) -> 0 | AA73: =IF('Lotto2 DL580 1'!$D$43=W73,1,0) -> 0 | AB73: =IF('Lotto2 DL580 2'!$D$43=W73,1,0) -> 0 | AC73: =IF('Lotto2 DL580 3'!$D$43=W73,1,0) -> 0 | AD73: =IF('Lotto2 DL580 Prest 1'!$D$43=W73,1,0) -> 0 | AE73: =IF('Lotto2 DL580 Prest 2'!$D$43=W73,1,0) -> 0 | AF73: =IF('Lotto2 DL580 Prest 3'!$D$43=W73,1,0) -> 0 | AG73: 0 | AH73: 0 | AI73: 0 | AJ73: 0 | AK73: 0 | AL73: 0 | AM73: 0 | AN73: 0 | AO73: 0 | AP73: 0 | AQ73: 0 | AR73: 0 | AT73: 0
V74: 0 | W74: TS1L2-WINDC2 | X74: =IF('Lotto2 DL560 Gen10 1'!$D$47=$W$74,'Lotto2 DL560 Gen10 1'!$C$47,0) -> 0 | Y74: =IF('Lotto2 DL560 Gen10 2'!$D$47=$W$74,'Lotto2 DL560 Gen10 2'!$C$47,0) -> 0 | Z74: =IF('Lotto2 DL560 Gen10 3'!$D$47=$W$74,'Lotto2 DL560 Gen10 3'!$C$47,0) -> 0 | AA74: =IF('Lotto2 DL580 1'!$D$44=W74,'Lotto2 DL580 1'!$C$44,0) -> 0 | AB74: =IF('Lotto2 DL580 2'!$D$44=W74,'Lotto2 DL580 2'!$C$44,0) -> 0 | AC74: =IF('Lotto2 DL580 3'!$D$44=W74,'Lotto2 DL580 3'!$C$44,0) -> 0 | AD74: =IF('Lotto2 DL580 Prest 1'!$D$44=W74,'Lotto2 DL580 Prest 1'!$C$44,0) -> 0 | AE74: =IF('Lotto2 DL580 Prest 2'!$D$44=W74,'Lotto2 DL580 Prest 2'!$C$44,0) -> 0 | AF74: =IF('Lotto2 DL580 Prest 3'!$D$44=W74,'Lotto2 DL580 Prest 3'!$C$44,0) -> 0 | AG74: 0 | AH74: 0 | AI74: 0 | AJ74: 0 | AK74: 0 | AL74: 0 | AM74: 0 | AN74: 0 | AO74: 0 | AP74: 0 | AQ74: 0 | AR74: 0 | AT74: 0
V75: 0 | W75: TS1L2-LINUX | X75: =IF('Lotto2 DL560 Gen10 1'!$D$46=$W$75,1,0) -> 0 | Y75: =IF('Lotto2 DL560 Gen10 2'!$D$46=$W$75,1,0) -> 0 | Z75: =IF('Lotto2 DL560 Gen10 3'!$D$46=$W$75,1,0) -> 0 | AA75: =IF('Lotto2 DL580 1'!$D$43=W75,1,0) -> 0 | AB75: =IF('Lotto2 DL580 2'!$D$43=W75,1,0) -> 0 | AC75: =IF('Lotto2 DL580 3'!$D$43=W75,1,0) -> 0 | AD75: =IF('Lotto2 DL580 Prest 1'!$D$43=W75,1,0) -> 0 | AE75: =IF('Lotto2 DL580 Prest 2'!$D$43=W75,1,0) -> 0 | AF75: =IF('Lotto2 DL580 Prest 3'!$D$43=W75,1,0) -> 0 | AG75: 0 | AH75: 0 | AI75: 0 | AJ75: 0 | AK75: 0 | AL75: 0 | AM75: 0 | AN75: 0 | AO75: 0 | AP75: 0 | AQ75: 0 | AR75: 0 | AT75: 0
V76: 0 | W76: TS1L2-CALUSER | X76: =IF(($X$71+$X$73)>0,'Lotto2 DL560 Gen10 1'!$C$51,0) -> 0 | Y76: =IF(($Y$71+$Y$73)>0,'Lotto2 DL560 Gen10 2'!$C$51,0) -> 0 | Z76: =IF(($Z$71+$Z$73)>0,'Lotto2 DL560 Gen10 3'!$C$51,0) -> 0 | AA76: =IF(($AA$71+$AA$73)>0,'Lotto2 DL580 1'!$C$48,0) -> 0 | AB76: =IF(($AB$71+$AB$73)>0,'Lotto2 DL580 2'!$C$48,0) -> 0 | AC76: =IF(($AC$71+$AC$73)>0,'Lotto2 DL580 3'!$C$48,0) -> 0 | AD76: =IF(($AD$71+$AD$73)>0,'Lotto2 DL580 Prest 1'!$C$48,0) -> 0 | AE76: =IF(($AE$71+$AE$73)>0,'Lotto2 DL580 Prest 2'!$C$48,0) -> 0 | AF76: =IF(($AF$71+$AF$73)>0,'Lotto2 DL580 Prest 3'!$C$48,0) -> 0 | AG76: 0 | AH76: 0 | AI76: 0 | AJ76: 0 | AK76: 0 | AL76: 0 | AM76: 0 | AN76: 0 | AO76: 0 | AP76: 0 | AQ76: 0 | AR76: 0 | AT76: 0
V77: 0 | W77: TS1L2-CALDEV | X77: =IF(($X$71+$X$73)>0,'Lotto2 DL560 Gen10 2'!$C$53,0) -> 0 | Y77: =IF(($Y$71+$Y$73)>0,'Lotto2 DL560 Gen10 1'!$C$53,0) -> 0 | Z77: =IF(($Z$71+$Z$73)>0,'Lotto2 DL560 Gen10 3'!$C$53,0) -> 0 | AA77: =IF(($AA$71+$AA$73)>0,'Lotto2 DL580 1'!$C$50,0) -> 0 | AB77: =IF(($AB$71+$AB$73)>0,'Lotto2 DL580 2'!$C$50,0) -> 0 | AC77: =IF(($AC$71+$AC$73)>0,'Lotto2 DL580 3'!$C$50,0) -> 0 | AD77: =IF(($AD$71+$AD$73)>0,'Lotto2 DL580 Prest 1'!$C$50,0) -> 0 | AE77: =IF(($AE$71+$AE$73)>0,'Lotto2 DL580 Prest 2'!$C$50,0) -> 0 | AF77: =IF(($AF$71+$AF$73)>0,'Lotto2 DL580 Prest 3'!$C$50,0) -> 0 | AG77: 0 | AH77: 0 | AI77: 0 | AJ77: 0 | AK77: 0 | AL77: 0 | AM77: 0 | AN77: 0 | AO77: 0 | AP77: 0 | AQ77: 0 | AR77: 0 | AT77: 0
J78: =IF(AT78>0,(VLOOKUP(G78,COD_A,5,FALSE)),"") ->  | R78: =IF(AT78>0,(VLOOKUP(G78,COD_A,3,FALSE)),"") ->  | V78: 0 | W78: TS1L2-WIN2CORE | X78: =IF('Lotto2 DL560 Gen10 1'!$D$47=Riepilogo!$W$78,'Lotto2 DL560 Gen10 1'!$C$47,0) -> 0 | Y78: =IF('Lotto2 DL560 Gen10 2'!$D$47=Riepilogo!$W$78,'Lotto2 DL560 Gen10 2'!$C$47,0) -> 0 | Z78: =IF('Lotto2 DL560 Gen10 3'!$D$47=Riepilogo!$W$78,'Lotto2 DL560 Gen10 3'!$C$47,0) -> 0 | AA78: =IF('Lotto2 DL580 1'!$D$44=Riepilogo!$W$78,'Lotto2 DL580 1'!$C$44,0) -> 0 | AB78: =IF('Lotto2 DL580 2'!$D$44=Riepilogo!$W$78,'Lotto2 DL580 2'!$C$44,0) -> 0 | AC78: =IF('Lotto2 DL580 3'!$D$44=Riepilogo!$W$78,'Lotto2 DL580 3'!$C$44,0) -> 0 | AD78: =IF('Lotto2 DL580 Prest 1'!D45=Riepilogo!$W$78,'Lotto2 DL580 Prest 1'!$C$45,0) -> 0 | AE78: =IF('Lotto2 DL580 Prest 2'!D45=Riepilogo!$W$78,'Lotto2 DL580 Prest 2'!$C$45,0) -> 0 | AF78: =IF('Lotto2 DL580 Prest 3'!D45=Riepilogo!$W$78,'Lotto2 DL580 Prest 3'!$C$45,0) -> 0 | AG78: 0 | AH78: 0 | AI78: 0 | AJ78: 0 | AK78: 0 | AL78: 0 | AM78: 0 | AN78: 0 | AO78: 0 | AP78: 0 | AQ78: 0 | AR78: 0 | AT78: 0
B79: =IF('RACK, Accessori e Servizi'!J30=0,"",'RACK, Accessori e Servizi'!J30) ->  | C79: =IF(B79="","",(VLOOKUP(G79,COD_A,2,FALSE))) ->  | G79: =IF('RACK, Accessori e Servizi'!J30>0,'RACK, Accessori e Servizi'!K30,"") ->  | J79: =IF(B79="","",(VLOOKUP(G79,COD_A,5,FALSE))) ->  | R79: =IF(B79="","",(VLOOKUP(G79,COD_A,3,FALSE))) ->  | T79: =IF(B79="","",R79*B79) ->  | V79: 0
B80: =IF('RACK, Accessori e Servizi'!J24=0,"",'RACK, Accessori e Servizi'!J24) ->  | C80: =IF(B80="","",(VLOOKUP(G80,COD_A,2,FALSE))) ->  | G80: =IF('RACK, Accessori e Servizi'!J24>0,'RACK, Accessori e Servizi'!K24,"") ->  | J80: =IF(B80="","",(VLOOKUP(G80,COD_A,5,FALSE))) ->  | R80: =IF(B80="","",(VLOOKUP(G80,COD_A,3,FALSE))) ->  | V80: 0
B81: =IF('RACK, Accessori e Servizi'!J27=0,"",'RACK, Accessori e Servizi'!J27) ->  | C81: =IF(B81="","",(VLOOKUP(G81,COD_A,2,FALSE))) ->  | G81: =IF('RACK, Accessori e Servizi'!J27>0,'RACK, Accessori e Servizi'!K27,"") ->  | J81: =IF(B81="","",(VLOOKUP(G81,COD_A,5,FALSE))) ->  | R81: =IF(B81="","",(VLOOKUP(G81,COD_A,3,FALSE))) ->  | V81: 0
B82: =IF('RACK, Accessori e Servizi'!J15=0,"",'RACK, Accessori e Servizi'!J15) ->  | C82: =IF(B82="","",(VLOOKUP(G82,COD_A,2,FALSE))) ->  | G82: =IF('RACK, Accessori e Servizi'!J15>0,'RACK, Accessori e Servizi'!K15,"") ->  | J82: =IF(B82="","",(VLOOKUP(G82,COD_A,5,FALSE))) ->  | R82: =IF(B82="","",(VLOOKUP(G82,COD_A,3,FALSE))) ->  | V82: 0
B83: =IF('RACK, Accessori e Servizi'!J8=0,"",'RACK, Accessori e Servizi'!J8) ->  | C83: =IF(B83>0,(VLOOKUP(G83,COD_B,2,FALSE)),"") ->  | G83: =IF('RACK, Accessori e Servizi'!J8>0,'RACK, Accessori e Servizi'!K8,"") ->  | J83: =IF(B83>0,(VLOOKUP(G83,COD_B,5,FALSE)),"") ->  | R83: =IF(B83>0,(VLOOKUP(G83,COD_B,3,FALSE)),"") ->  | V83: 0
B84: =IF('RACK, Accessori e Servizi'!J10=0,"",'RACK, Accessori e Servizi'!J10) ->  | C84: =IF(B84>0,(VLOOKUP(G84,COD_B,2,FALSE)),"") ->  | G84: =IF('RACK, Accessori e Servizi'!J10>0,'RACK, Accessori e Servizi'!K10,"") ->  | J84: =IF(B84>0,(VLOOKUP(G84,COD_B,5,FALSE)),"") ->  | R84: =IF(B84>0,(VLOOKUP(G84,COD_B,3,FALSE)),"") ->  | V84: 0
B85: ULTERIORI OPZIONI | V85: =IF(SUM(V86:V122)=0,0,1) -> 0 | X85: DL560 | Y85: DL560 2 | Z85: DL560 3 | AA85: DL580 | AB85: DL580 2 | AC85: DL580 3 | AD85: DL580 | AE85: DL580 2 | AF85: DL580 3 | AG85: tot DL560 | AH85: tot DL580
B86: =IF(AT86=0,"",AT86) ->  | C86: =IF(AT86=0,"",(VLOOKUP(G86,COD_A,2,FALSE))) ->  | G86: =IF(AT86>0,W86,"") ->  | J86: =IF(AT86>0,(VLOOKUP(G86,COD_A,5,FALSE)),"") ->  | R86: =IF(AT86>0,(VLOOKUP(G86,COD_A,3,FALSE)),"") ->  | T86: =IF(B86="","",R86*B86) ->  | V86: 0 | W86: TS1L2-HD1800-580-AS | X86: ='Lotto2 DL560 Gen10 1'!$C$82 -> 0 | Y86: ='Lotto2 DL560 Gen10 2'!$C$82 -> 0 | Z86: ='Lotto2 DL560 Gen10 3'!$C$82 -> 0 | AA86: ='Lotto2 DL580 1'!$C$72 -> 0 | AB86: ='Lotto2 DL580 2'!$C$72 -> 0 | AC86: ='Lotto2 DL580 3'!$C$72 -> 0 | AG86: =SUM(X86:Z86) -> 0 | AH86: =SUM(AA86:AC86) -> 0 | AI86: =SUM(AD86:AF86) -> 0 | AJ86: =X86*$X$14 -> 0 | AK86: =Y86*$Y$14 -> 0 | AL86: =Z86*$Z$14 -> 0 | AM86: =AA86*$X$32 -> 0 | AN86: =AB86*$Y$32 -> 0 | AO86: =AC86*$Z$32 -> 0 | AP86: =AD86*$X$50 -> 0 | AQ86: =AE86*$Y$50 -> 0 | AR86: =AF86*$Z$50 -> 0 | AT86: =SUM(AJ86:AS86) -> 0
C87: =IF(AT87=0,"",(VLOOKUP(G87,COD_A,2,FALSE))) ->  | G87: =IF(AT87>0,W87,"") ->  | J87: =IF(AT87>0,(VLOOKUP(G87,COD_A,5,FALSE)),"") ->  | R87: =IF(AT87>0,(VLOOKUP(G87,COD_A,3,FALSE)),"") ->  | T87: =IF(B87="","",R87*B87) ->  | V87: 0 | W87: S2-875311-B21 | X87: ='Lotto2 DL560 Gen10 1'!$C$84 -> 0 | Y87: ='Lotto2 DL560 Gen10 2'!$C$84 -> 0 | Z87: ='Lotto2 DL560 Gen10 3'!$C$84 -> 0 | AG87: =SUM(X87:Z87) -> 0 | AH87: =SUM(AA87:AC87) -> 0 | AI87: =SUM(AD87:AF87) -> 0 | AJ87: =X87*$X$14 -> 0 | AK87: =Y87*$Y$14 -> 0 | AL87: =Z87*$Z$14 -> 0 | AM87: =AA87*$X$32 -> 0 | AN87: =AB87*$Y$32 -> 0 | AO87: =AC87*$Z$32 -> 0 | AP87: =AD87*$X$50 -> 0 | AQ87: =AE87*$Y$50 -> 0 | AR87: =AF87*$Z$50 -> 0 | AT87: =SUM(AJ87:AS87) -> 0
C88: =IF(AT88=0,"",(VLOOKUP(G88,COD_A,2,FALSE))) ->  | T88: =IF(B88="","",R88*B88) ->  | V88: 0 | W88: TS1L2-SSD960-AS | X88: ='Lotto2 DL560 Gen10 1'!$C$86 -> 0 | Y88: ='Lotto2 DL560 Gen10 2'!$C$86 -> 0 | Z88: ='Lotto2 DL560 Gen10 3'!$C$86 -> 0 | AA88: ='Lotto2 DL580 1'!$C$74 -> 0 | AB88: ='Lotto2 DL580 2'!$C$74 -> 0 | AC88: ='Lotto2 DL580 3'!$C$74 -> 0 | AG88: 0 | AH88: 0 | AI88: =SUM(AD88:AF88) -> 0 | AJ88: 0 | AK88: 0 | AL88: 0 | AM88: 0 | AN88: 0 | AO88: 0 | AP88: =AD88*$X$50 -> 0 | AQ88: =AE88*$Y$50 -> 0 | AR88: =AF88*$Z$50 -> 0 | AT88: =SUM(AJ88:AS88) -> 0
V89: 0 | W89: TS1L2-SSD1920 | X89: ='Lotto2 DL560 Gen10 1'!$C$88 -> 0 | Y89: ='Lotto2 DL560 Gen10 2'!$C$88 -> 0 | Z89: ='Lotto2 DL560 Gen10 3'!$C$88 -> 0 | AA89: ='Lotto2 DL580 1'!$C$76 -> 0 | AB89: ='Lotto2 DL580 2'!$C$76 -> 0 | AC89: ='Lotto2 DL580 3'!$C$76 -> 0 | AG89: 0 | AH89: 0 | AI89: 0 | AJ89: 0 | AK89: 0 | AL89: 0 | AM89: 0 | AN89: 0 | AO89: 0 | AP89: 0 | AQ89: 0 | AR89: 0 | AT89: 0
V90: 0 | W90: S2-P9D94A | X90: =COUNTIF($AI$18:$AI$25,W90) -> 0 | Y90: =COUNTIF($AJ$18:$AJ$25,W90) -> 0 | Z90: =COUNTIF($AK$18:$AK$25,W90) -> 0 | AA90: =COUNTIF($AI$36:$AI$48,W90) -> 0 | AB90: =COUNTIF($AJ$36:$AJ$48,W90) -> 0 | AC90: =COUNTIF($AK$36:$AK$48,W90) -> 0 | AD90: =COUNTIF($AI$54:$AI$65,W90) -> 0 | AE90: =COUNTIF($AJ$54:$AJ$65,W90) -> 0 | AF90: =COUNTIF($AK$54:$AK$65,W90) -> 0 | AG90: 0 | AH90: 0 | AI90: 0 | AJ90: 0 | AK90: 0 | AL90: 0 | AM90: 0 | AN90: 0 | AO90: 0 | AP90: 0 | AQ90: 0 | AR90: 0 | AT90: 0
C91: =IF(AT91=0,"",(VLOOKUP(G91,COD_A,2,FALSE))) ->  | G91: =IF(AT91>0,W91,"") ->  | J91: =IF(AT91>0,(VLOOKUP(G91,COD_A,5,FALSE)),"") ->  | R91: =IF(AT91>0,(VLOOKUP(G91,COD_A,3,FALSE)),"") ->  | T91: =IF(B91="","",R91*B91) ->  | V91: 0 | W91: TS1-764302 | X91: =COUNTIF($AI$18:$AI$25,W91) -> 0 | Y91: =COUNTIF($AJ$18:$AJ$25,W91) -> 0 | Z91: =COUNTIF($AK$18:$AK$25,W91) -> 0 | AA91: =COUNTIF($AI$36:$AI$48,W91) -> 0 | AB91: =COUNTIF($AJ$36:$AJ$48,W91) -> 0 | AC91: =COUNTIF($AK$36:$AK$48,W91) -> 0 | AD91: =COUNTIF($AI$54:$AI$65,W91) -> 0 | AE91: =COUNTIF($AJ$54:$AJ$65,W91) -> 0 | AF91: =COUNTIF($AK$54:$AK$65,W91) -> 0 | AG91: =SUM(X91:Z91) -> 0 | AH91: =SUM(AA91:AC91) -> 0 | AI91: =SUM(AD91:AF91) -> 0 | AJ91: =X91*$X$14 -> 0 | AK91: =Y91*$Y$14 -> 0 | AL91: =Z91*$Z$14 -> 0 | AM91: =AA91*$X$32 -> 0 | AN91: =AB91*$Y$32 -> 0 | AO91: =AC91*$Z$32 -> 0 | AP91: =AD91*$X$50 -> 0 | AQ91: =AE91*$Y$50 -> 0 | AR91: =AF91*$Z$50 -> 0 | AT91: =SUM(AJ91:AS91) -> 0
C92: =IF(AT92=0,"",(VLOOKUP(G92,COD_A,2,FALSE))) ->  | G92: =IF(AT92>0,W92,"") ->  | J92: =IF(AT92>0,(VLOOKUP(G92,COD_A,5,FALSE)),"") ->  | R92: =IF(AT92>0,(VLOOKUP(G92,COD_A,3,FALSE)),"") ->  | T92: =IF(B92="","",R92*B92) ->  | V92: 0 | W92: TS1-656596 | X92: =COUNTIF($AI$18:$AI$25,W92) -> 0 | Y92: =COUNTIF($AJ$18:$AJ$25,W92) -> 0 | Z92: =COUNTIF($AK$18:$AK$25,W92) -> 0 | AA92: =COUNTIF($AI$36:$AI$48,W92) -> 0 | AB92: =COUNTIF($AJ$36:$AJ$48,W92) -> 0 | AC92: =COUNTIF($AK$36:$AK$48,W92) -> 0 | AD92: =COUNTIF($AI$54:$AI$65,W92) -> 0 | AE92: =COUNTIF($AJ$54:$AJ$65,W92) -> 0 | AF92: =COUNTIF($AK$54:$AK$65,W92) -> 0 | AG92: =SUM(X92:Z92) -> 0 | AH92: =SUM(AA92:AC92) -> 0 | AI92: =SUM(AD92:AF92) -> 0 | AJ92: =X92*$X$14 -> 0 | AK92: =Y92*$Y$14 -> 0 | AL92: =Z92*$Z$14 -> 0 | AM92: =AA92*$X$32 -> 0 | AN92: =AB92*$Y$32 -> 0 | AO92: =AC92*$Z$32 -> 0 | AP92: =AD92*$X$50 -> 0 | AQ92: =AE92*$Y$50 -> 0 | AR92: =AF92*$Z$50 -> 0 | AT92: =SUM(AJ92:AS92) -> 0
V93: 0 | W93: TS1-867707 | X93: 0 | Y93: 0 | Z93: 0 | AA93: 0 | AB93: 0 | AC93: 0 | AD93: 0 | AE93: 0 | AF93: 0 | AG93: 0 | AH93: 0 | AI93: 0 | AJ93: 0 | AK93: 0 | AL93: 0 | AM93: 0 | AN93: 0 | AO93: 0 | AP93: 0 | AQ93: 0 | AR93: 0 | AT93: 0
V94: 0 | W94: S2-E5Y34A | X94: ='Lotto2 DL560 Gen10 1'!$C$59 -> 0 | Y94: ='Lotto2 DL560 Gen10 2'!$C$59 -> 0 | Z94: ='Lotto2 DL560 Gen10 3'!$C$59 -> 0 | AA94: ='Lotto2 DL580 1'!$C$56 -> 0 | AB94: ='Lotto2 DL580 2'!$C$56 -> 0 | AC94: ='Lotto2 DL580 3'!$C$56 -> 0 | AD94: ='Lotto2 DL580 Prest 1'!$C$56 -> 0 | AE94: ='Lotto2 DL580 Prest 2'!$C$56 -> 0 | AF94: ='Lotto2 DL580 Prest 3'!$C$56 -> 0 | AG94: 0 | AH94: 0 | AI94: 0 | AJ94: 0 | AK94: 0 | AL94: 0 | AM94: 0 | AN94: 0 | AO94: 0 | AP94: 0 | AQ94: 0 | AR94: 0 | AT94: 0
V95: 0 | W95: TS1-874-006887 | X95: =IF('Lotto2 DL560 Gen10 1'!$D$56=Riepilogo!W95,'Lotto2 DL560 Gen10 1'!$C$56,0) -> 0 | Y95: =IF('Lotto2 DL560 Gen10 2'!$D$56=Riepilogo!W95,'Lotto2 DL560 Gen10 2'!$C$56,0) -> 0 | Z95: =IF('Lotto2 DL560 Gen10 3'!$D$56=Riepilogo!W95,'Lotto2 DL560 Gen10 3'!$C$56,0) -> 0 | AA95: =IF('Lotto2 DL580 1'!$D$53=Riepilogo!$W$95,'Lotto2 DL580 1'!$C$53,0) -> 0 | AB95: =IF('Lotto2 DL580 2'!$D$53=Riepilogo!W95,'Lotto2 DL580 2'!$C$53,0) -> 0 | AC95: =IF('Lotto2 DL580 3'!$D$53=Riepilogo!W95,'Lotto2 DL580 3'!$C$53,0) -> 0 | AD95: =IF('Lotto2 DL580 Prest 1'!$D$53=Riepilogo!W95,'Lotto2 DL580 Prest 1'!$C$53,0) -> 0 | AE95: =IF('Lotto2 DL580 Prest 2'!$D$53=Riepilogo!W95,'Lotto2 DL580 Prest 2'!$C$53,0) -> 0 | AF95: =IF('Lotto2 DL580 Prest 3'!$D$53=Riepilogo!W95,'Lotto2 DL580 Prest 3'!$C$53,0) -> 0 | AG95: 0 | AH95: 0 | AI95: 0 | AJ95: 0 | AK95: 0 | AL95: 0 | AM95: 0 | AN95: 0 | AO95: 0 | AP95: 0 | AQ95: 0 | AR95: 0 | AT95: 0
V96: 0 | W96: TS1-874-006898 | X96: =IF('Lotto2 DL560 Gen10 1'!$D$56=Riepilogo!W96,'Lotto2 DL560 Gen10 1'!$C$56,0) -> 0 | Y96: =IF('Lotto2 DL560 Gen10 2'!$D$56=Riepilogo!W96,'Lotto2 DL560 Gen10 2'!$C$56,0) -> 0 | Z96: =IF('Lotto2 DL560 Gen10 3'!$D$56=Riepilogo!W96,'Lotto2 DL560 Gen10 3'!$C$56,0) -> 0 | AA96: =IF('Lotto2 DL580 1'!$D$53=Riepilogo!W96,'Lotto2 DL580 1'!$C$53,0) -> 0 | AB96: =IF('Lotto2 DL580 2'!$D$53=Riepilogo!W96,'Lotto2 DL580 2'!$C$53,0) -> 0 | AC96: =IF('Lotto2 DL580 3'!$D$53=Riepilogo!W96,'Lotto2 DL580 3'!$C$53,0) -> 0 | AD96: =IF('Lotto2 DL580 Prest 1'!$D$53=Riepilogo!W96,'Lotto2 DL580 Prest 1'!$C$53,0) -> 0 | AE96: =IF('Lotto2 DL580 Prest 2'!$D$53=Riepilogo!W96,'Lotto2 DL580 Prest 2'!$C$53,0) -> 0 | AF96: =IF('Lotto2 DL580 Prest 3'!$D$53=Riepilogo!W96,'Lotto2 DL580 Prest 3'!$C$53,0) -> 0 | AG96: 0 | AH96: 0 | AI96: 0 | AJ96: 0 | AK96: 0 | AL96: 0 | AM96: 0 | AN96: 0 | AO96: 0 | AP96: 0 | AQ96: 0 | AR96: 0 | AT96: 0
V97: 0 | W97: TS1-874-006888 | X97: =IF('Lotto2 DL560 Gen10 1'!$D$56=Riepilogo!W97,'Lotto2 DL560 Gen10 1'!$C$56,0) -> 0 | Y97: =IF('Lotto2 DL560 Gen10 2'!$D$56=Riepilogo!W97,'Lotto2 DL560 Gen10 2'!$C$56,0) -> 0 | Z97: =IF('Lotto2 DL560 Gen10 3'!$D$56=Riepilogo!W97,'Lotto2 DL560 Gen10 3'!$C$56,0) -> 0 | AA97: =IF('Lotto2 DL580 1'!$D$53=Riepilogo!W97,'Lotto2 DL580 1'!$C$53,0) -> 0 | AB97: =IF('Lotto2 DL580 2'!$D$53=Riepilogo!W97,'Lotto2 DL580 2'!$C$53,0) -> 0 | AC97: =IF('Lotto2 DL580 3'!$D$53=Riepilogo!W97,'Lotto2 DL580 3'!$C$53,0) -> 0 | AD97: =IF('Lotto2 DL580 Prest 1'!$D$53=Riepilogo!W97,'Lotto2 DL580 Prest 1'!$C$53,0) -> 0 | AE97: =IF('Lotto2 DL580 Prest 2'!$D$53=Riepilogo!W97,'Lotto2 DL580 Prest 2'!$C$53,0) -> 0 | AF97: =IF('Lotto2 DL580 Prest 3'!$D$53=Riepilogo!W97,'Lotto2 DL580 Prest 3'!$C$53,0) -> 0 | AG97: 0 | AH97: 0 | AI97: 0 | AJ97: 0 | AK97: 0 | AL97: 0 | AM97: 0 | AN97: 0 | AO97: 0 | AP97: 0 | AQ97: 0 | AR97: 0 | AT97: 0
T98: =IF(B98="","",R98*B98) ->  | V98: 0 | W98: TS1-874-006902 | X98: =IF('Lotto2 DL560 Gen10 1'!$D$56=Riepilogo!W98,'Lotto2 DL560 Gen10 1'!$C$56,0) -> 0 | Y98: =IF('Lotto2 DL560 Gen10 2'!$D$56=Riepilogo!W98,'Lotto2 DL560 Gen10 2'!$C$56,0) -> 0 | Z98: =IF('Lotto2 DL560 Gen10 3'!$D$56=Riepilogo!W98,'Lotto2 DL560 Gen10 3'!$C$56,0) -> 0 | AA98: =IF('Lotto2 DL580 1'!$D$53=Riepilogo!W98,'Lotto2 DL580 1'!$C$53,0) -> 0 | AB98: =IF('Lotto2 DL580 2'!$D$53=Riepilogo!W98,'Lotto2 DL580 2'!$C$53,0) -> 0 | AC98: =IF('Lotto2 DL580 3'!$D$53=Riepilogo!W98,'Lotto2 DL580 3'!$C$53,0) -> 0 | AD98: =IF('Lotto2 DL580 Prest 1'!$D$53=Riepilogo!W98,'Lotto2 DL580 Prest 1'!$C$53,0) -> 0 | AE98: =IF('Lotto2 DL580 Prest 2'!$D$53=Riepilogo!W98,'Lotto2 DL580 Prest 2'!$C$53,0) -> 0 | AF98: =IF('Lotto2 DL580 Prest 3'!$D$53=Riepilogo!W98,'Lotto2 DL580 Prest 3'!$C$53,0) -> 0 | AG98: 0 | AH98: 0 | AI98: 0 | AJ98: 0 | AK98: 0 | AL98: 0 | AM98: 0 | AN98: 0 | AO98: 0 | AP98: 0 | AQ98: 0 | AR98: 0 | AT98: 0
T99: =IF(B99="","",R99*B99) ->  | V99: 0 | W99: TS1-874-006883 | X99: =IF('Lotto2 DL560 Gen10 1'!$D$56=Riepilogo!W99,'Lotto2 DL560 Gen10 1'!$C$56,0) -> 0 | Y99: =IF('Lotto2 DL560 Gen10 2'!$D$56=Riepilogo!W99,'Lotto2 DL560 Gen10 2'!$C$56,0) -> 0 | Z99: =IF('Lotto2 DL560 Gen10 3'!$D$56=Riepilogo!W99,'Lotto2 DL560 Gen10 3'!$C$56,0) -> 0 | AA99: =IF('Lotto2 DL580 1'!$D$53=Riepilogo!W99,'Lotto2 DL580 1'!$C$53,0) -> 0 | AB99: =IF('Lotto2 DL580 2'!$D$53=Riepilogo!W99,'Lotto2 DL580 2'!$C$53,0) -> 0 | AC99: =IF('Lotto2 DL580 3'!$D$53=Riepilogo!W99,'Lotto2 DL580 3'!$C$53,0) -> 0 | AD99: =IF('Lotto2 DL580 Prest 1'!$D$53=Riepilogo!W99,'Lotto2 DL580 Prest 1'!$C$53,0) -> 0 | AE99: =IF('Lotto2 DL580 Prest 2'!$D$53=Riepilogo!W99,'Lotto2 DL580 Prest 2'!$C$53,0) -> 0 | AF99: =IF('Lotto2 DL580 Prest 3'!$D$53=Riepilogo!W99,'Lotto2 DL580 Prest 3'!$C$53,0) -> 0 | AG99: 0 | AH99: 0 | AI99: 0 | AJ99: 0 | AK99: 0 | AL99: 0 | AM99: 0 | AN99: 0 | AO99: 0 | AP99: 0 | AQ99: 0 | AR99: 0 | AT99: 0
T100: =IF(B100="","",R100*B100) ->  | V100: 0 | W100: TS1-874-006894 | X100: =IF('Lotto2 DL560 Gen10 1'!$D$56=Riepilogo!W100,'Lotto2 DL560 Gen10 1'!$C$56,0) -> 0 | Y100: =IF('Lotto2 DL560 Gen10 2'!$D$56=Riepilogo!W100,'Lotto2 DL560 Gen10 2'!$C$56,0) -> 0 | Z100: =IF('Lotto2 DL560 Gen10 3'!$D$56=Riepilogo!W100,'Lotto2 DL560 Gen10 3'!$C$56,0) -> 0 | AA100: =IF('Lotto2 DL580 1'!$D$53=Riepilogo!W100,'Lotto2 DL580 1'!$C$53,0) -> 0 | AB100: =IF('Lotto2 DL580 2'!$D$53=Riepilogo!W100,'Lotto2 DL580 2'!$C$53,0) -> 0 | AC100: =IF('Lotto2 DL580 3'!$D$53=Riepilogo!W100,'Lotto2 DL580 3'!$C$53,0) -> 0 | AD100: =IF('Lotto2 DL580 Prest 1'!$D$53=Riepilogo!W100,'Lotto2 DL580 Prest 1'!$C$53,0) -> 0 | AE100: =IF('Lotto2 DL580 Prest 2'!$D$53=Riepilogo!W100,'Lotto2 DL580 Prest 2'!$C$53,0) -> 0 | AF100: =IF('Lotto2 DL580 Prest 3'!$D$53=Riepilogo!W100,'Lotto2 DL580 Prest 3'!$C$53,0) -> 0 | AG100: 0 | AH100: 0 | AI100: 0 | AJ100: 0 | AK100: 0 | AL100: 0 | AM100: 0 | AN100: 0 | AO100: 0 | AP100: 0 | AQ100: 0 | AR100: 0 | AT100: 0
T101: =IF(B101="","",R101*B101) ->  | V101: 0 | W101: TS1-874-006884 | X101: =IF('Lotto2 DL560 Gen10 1'!$D$56=Riepilogo!W101,'Lotto2 DL560 Gen10 1'!$C$56,0) -> 0 | Y101: =IF('Lotto2 DL560 Gen10 2'!$D$56=Riepilogo!W101,'Lotto2 DL560 Gen10 2'!$C$56,0) -> 0 | Z101: =IF('Lotto2 DL560 Gen10 3'!$D$56=Riepilogo!W101,'Lotto2 DL560 Gen10 3'!$C$56,0) -> 0 | AA101: =IF('Lotto2 DL580 1'!$D$53=Riepilogo!W101,'Lotto2 DL580 1'!$C$53,0) -> 0 | AB101: =IF('Lotto2 DL580 2'!$D$53=Riepilogo!W101,'Lotto2 DL580 2'!$C$53,0) -> 0 | AC101: =IF('Lotto2 DL580 3'!$D$53=Riepilogo!W101,'Lotto2 DL580 3'!$C$53,0) -> 0 | AD101: =IF('Lotto2 DL580 Prest 1'!$D$53=Riepilogo!W101,'Lotto2 DL580 Prest 1'!$C$53,0) -> 0 | AE101: =IF('Lotto2 DL580 Prest 2'!$D$53=Riepilogo!W101,'Lotto2 DL580 Prest 2'!$C$53,0) -> 0 | AF101: =IF('Lotto2 DL580 Prest 3'!$D$53=Riepilogo!W101,'Lotto2 DL580 Prest 3'!$C$53,0) -> 0 | AG101: 0 | AH101: 0 | AI101: 0 | AJ101: 0 | AK101: 0 | AL101: 0 | AM101: 0 | AN101: 0 | AO101: 0 | AP101: 0 | AQ101: 0 | AR101: 0 | AT101: 0
T102: =IF(B102="","",R102*B102) ->  | V102: 0 | W102: TS1-874-006895 | X102: =IF('Lotto2 DL560 Gen10 1'!$D$56=Riepilogo!W102,'Lotto2 DL560 Gen10 1'!$C$56,0) -> 0 | Y102: =IF('Lotto2 DL560 Gen10 2'!$D$56=Riepilogo!W102,'Lotto2 DL560 Gen10 2'!$C$56,0) -> 0 | Z102: =IF('Lotto2 DL560 Gen10 3'!$D$56=Riepilogo!W102,'Lotto2 DL560 Gen10 3'!$C$56,0) -> 0 | AA102: =IF('Lotto2 DL580 1'!$D$53=Riepilogo!W102,'Lotto2 DL580 1'!$C$53,0) -> 0 | AB102: =IF('Lotto2 DL580 2'!$D$53=Riepilogo!W102,'Lotto2 DL580 2'!$C$53,0) -> 0 | AC102: =IF('Lotto2 DL580 3'!$D$53=Riepilogo!W102,'Lotto2 DL580 3'!$C$53,0) -> 0 | AD102: =IF('Lotto2 DL580 Prest 1'!$D$53=Riepilogo!W102,'Lotto2 DL580 Prest 1'!$C$53,0) -> 0 | AE102: =IF('Lotto2 DL580 Prest 2'!$D$53=Riepilogo!W102,'Lotto2 DL580 Prest 2'!$C$53,0) -> 0 | AF102: =IF('Lotto2 DL580 Prest 3'!$D$53=Riepilogo!W102,'Lotto2 DL580 Prest 3'!$C$53,0) -> 0 | AG102: 0 | AH102: 0 | AI102: 0 | AJ102: 0 | AK102: 0 | AL102: 0 | AM102: 0 | AN102: 0 | AO102: 0 | AP102: 0 | AQ102: 0 | AR102: 0 | AT102: 0
G103: =IF(AT103>0,W103,"") ->  | J103: =IF(AT103>0,(VLOOKUP(G103,COD_A,5,FALSE)),"") ->  | R103: =IF(AT103>0,(VLOOKUP(G103,COD_A,3,FALSE)),"") ->  | T103: =IF(B103="","",R103*B103) ->  | V103: 0 | W103: S2-872235-B21 | X103: ='Lotto2 DL560 Gen10 1'!$C$64 -> 0 | Y103: ='Lotto2 DL560 Gen10 2'!$C$64 -> 0 | Z103: ='Lotto2 DL560 Gen10 3'!$C$64 -> 0 | AG103: =SUM(X103:Z103) -> 0 | AH103: =SUM(AA103:AC103) -> 0 | AI103: =SUM(AD103:AF103) -> 0 | AJ103: =X103*$X$14 -> 0 | AK103: =Y103*$Y$14 -> 0 | AL103: =Z103*$Z$14 -> 0 | AM103: =AA103*$X$32 -> 0 | AN103: =AB103*$Y$32 -> 0 | AO103: =AC103*$Z$32 -> 0 | AP103: =AD103*$X$50 -> 0 | AQ103: =AE103*$Y$50 -> 0 | AR103: =AF103*$Z$50 -> 0 | AT103: =SUM(AJ103:AS103) -> 0
V104: =IF(B104>="",0,1) -> 0 | W104: S2-872233-B21 | X104: ='Lotto2 DL560 Gen10 1'!$C$66 -> 0 | Y104: ='Lotto2 DL560 Gen10 2'!$C$66 -> 0 | Z104: ='Lotto2 DL560 Gen10 3'!$C$66 -> 0 | AG104: 0 | AH104: 0 | AI104: 0 | AJ104: 0 | AK104: 0 | AL104: 0 | AM104: 0 | AN104: 0 | AO104: 0 | AP104: 0 | AQ104: 0 | AR104: 0 | AT104: 0
V105: 0 | W105: S2-870548-B21 | X105: ='Lotto2 DL560 Gen10 1'!$C$108 -> 0 | Y105: ='Lotto2 DL560 Gen10 2'!$C$108 -> 0 | Z105: ='Lotto2 DL560 Gen10 3'!$C$108 -> 0 | AG105: =SUM(X105:Z105) -> 0 | AH105: =SUM(AA105:AC105) -> 0 | AI105: =SUM(AD105:AF105) -> 0 | AJ105: =X105*$X$14 -> 0 | AK105: =Y105*$Y$14 -> 0 | AL105: =Z105*$Z$14 -> 0 | AM105: =AA105*$X$32 -> 0 | AN105: =AB105*$Y$32 -> 0 | AO105: =AC105*$Z$32 -> 0 | AP105: =AD105*$X$50 -> 0 | AQ105: =AE105*$Y$50 -> 0 | AR105: =AF105*$Z$50 -> 0 | AT105: =SUM(AJ105:AS105) -> 0
V106: 0 | W106: S2-872253-B21 | X106: ='Lotto2 DL560 Gen10 1'!$C$112 -> 0 | Y106: ='Lotto2 DL560 Gen10 2'!$C$110 -> 0 | Z106: ='Lotto2 DL560 Gen10 3'!$C$110 -> 0 | AG106: 0 | AH106: 0 | AI106: 0 | AJ106: =X106*$X$14 -> 0 | AK106: =Y106*$Y$14 -> 0 | AL106: =Z106*$Z$14 -> 0 | AM106: =AA106*$X$32 -> 0 | AN106: =AB106*$Y$32 -> 0 | AO106: =AC106*$Z$32 -> 0 | AP106: =AD106*$X$50 -> 0 | AQ106: =AE106*$Y$50 -> 0 | AR106: =AF106*$Z$50 -> 0 | AT106: =SUM(AJ106:AS106) -> 0
G107: =IF(AT107>0,W107,"") ->  | J107: =IF(AT107>0,(VLOOKUP(G107,COD_A,5,FALSE)),"") ->  | R107: =IF(AT107>0,(VLOOKUP(G107,COD_A,3,FALSE)),"") ->  | V107: 0 | W107: S2-873444-B21 | X107: =IF('Lotto2 DL560 Gen10 1'!$C$73="",0,1) -> 0 | Y107: =IF('Lotto2 DL560 Gen10 2'!$C$73="",0,1) -> 0 | Z107: =IF('Lotto2 DL560 Gen10 3'!$C$73="",0,1) -> 0 | AG107: 0 | AH107: 0 | AI107: 0 | AJ107: 0 | AK107: 0 | AL107: 0 | AM107: 0 | AN107: 0 | AO107: 0 | AP107: 0 | AQ107: 0 | AR107: 0 | AT107: 0
G108: =IF(AT108>0,W108,"") ->  | V108: 0 | W108: S2-871168-A21 | AD108: =IF('Lotto2 DL580 Prest 1'!D45=Riepilogo!$W$108,'Lotto2 DL580 Prest 1'!$C$45,0) -> 0 | AE108: =IF('Lotto2 DL580 Prest 2'!D45=Riepilogo!$W$108,'Lotto2 DL580 Prest 2'!$C$45,0) -> 0 | AF108: =IF('Lotto2 DL580 Prest 3'!D45=Riepilogo!$W$108,'Lotto2 DL580 Prest 3'!$C$45,0) -> 0 | AG108: 0 | AH108: 0 | AI108: 0 | AJ108: 0 | AK108: 0 | AL108: 0 | AM108: 0 | AN108: 0 | AO108: 0 | AP108: 0 | AQ108: 0 | AR108: 0 | AT108: 0
V109: 0 | AJ109: 0 | AK109: 0 | AL109: 0 | AM109: 0 | AN109: 0 | AO109: 0 | AP109: 0 | AQ109: 0 | AR109: 0 | AT109: 0
B110: =IF('RACK, Accessori e Servizi'!J18=0,"",'RACK, Accessori e Servizi'!J18) ->  | C110: =IF(B110="","",(VLOOKUP(G110,COD_A,2,FALSE))) ->  | G110: =IF(B110="","",W110) ->  | J110: =IF(B110="","",(VLOOKUP(G110,COD_A,5,FALSE))) ->  | R110: =IF(B110="","",(VLOOKUP(G110,COD_A,3,FALSE))) ->  | V110: 0 | W110: TS1-646861
B111: =IF('RACK, Accessori e Servizi'!J21=0,"",'RACK, Accessori e Servizi'!J21) ->  | C111: =IF(B111="","",(VLOOKUP(G111,COD_A,2,FALSE))) ->  | G111: =IF(B111="","",W111) ->  | T111: =IF(B111="","",R111*B111) ->  | V111: 0 | W111: TS1-646875 | AA111: 580-alt 1 | AB111: 580-alt 2 | AC111: 580-alt 3 | AD111: 580-pre 1 | AE111: 580-pre 2 | AF111: 580-pre 3
C112: =IF(AT112=0,"",(VLOOKUP(G112,COD_A,2,FALSE))) ->  | G112: =IF(B112="","",W112) ->  | T112: =IF(B112="","",R112*B112) ->  | V112: 0 | W112: S2-9SlotRiser | AA112: =IF('Lotto2 DL580 1'!$G$97+'Lotto2 DL580 1'!$G$98>0,1,0) -> 0 | AB112: =IF('Lotto2 DL580 2'!$G$97+'Lotto2 DL580 2'!$G$98>0,1,0) -> 0 | AC112: =IF('Lotto2 DL580 3'!$G$97+'Lotto2 DL580 3'!$G$98>0,1,0) -> 0 | AG112: =SUM(X112:Z112) -> 0 | AH112: =SUM(AA112:AC112) -> 0 | AI112: =SUM(AD112:AF112) -> 0 | AJ112: =X112*$X$14 -> 0 | AK112: =Y112*$Y$14 -> 0 | AL112: =Z112*$Z$14 -> 0 | AM112: =AA112*$X$32 -> 0 | AN112: =AB112*$Y$32 -> 0 | AO112: =AC112*$Z$32 -> 0 | AP112: =AD112*$X$50 -> 0 | AQ112: =AE112*$Y$50 -> 0 | AR112: =AF112*$Z$50 -> 0 | AT112: =SUM(AJ112:AS112) -> 0
V113: 0 | W113: S2-48HDDbay | AA113: ='Lotto2 DL580 1'!$C$60 -> 0 | AB113: ='Lotto2 DL580 2'!$C$60 -> 0 | AC113: ='Lotto2 DL580 3'!$C$60 -> 0 | AD113: ='Lotto2 DL580 Prest 1'!$C$60 -> 0 | AE113: ='Lotto2 DL580 Prest 2'!$C$60 -> 0 | AF113: ='Lotto2 DL580 Prest 3'!$C$60 -> 0 | AG113: 0 | AH113: 0 | AI113: 0 | AJ113: 0 | AK113: 0 | AL113: 0 | AM113: 0 | AN113: 0 | AO113: 0 | AP113: 0 | AQ113: 0 | AR113: 0 | AT113: 0
G114: =IF(B114="","",W114) ->  | T114: =IF(B114="","",R114*B114) ->  | V114: =IF(B114>="",0,1) -> 0 | W114: S2-PwrSply2 | AA114: =IF(AA112>=1,0,'Lotto2 DL580 1'!$C$90/2-1) -> 0 | AB114: =IF(AB112>=1,0,'Lotto2 DL580 2'!$C$90/2-1) -> 0 | AC114: =IF(AC112>=1,0,'Lotto2 DL580 3'!$C$90/2-1) -> 0 | AD114: ='Lotto2 DL580 Prest 1'!$C$91/2 -> 0 | AE114: ='Lotto2 DL580 Prest 2'!$C$91/2 -> 0 | AF114: ='Lotto2 DL580 Prest 2'!$C$91/2 -> 0 | AG114: =SUM(X114:Z114) -> 0 | AH114: =SUM(AA114:AC114) -> 0 | AI114: =SUM(AD114:AF114) -> 0 | AJ114: =X114*$X$14 -> 0 | AK114: =Y114*$Y$14 -> 0 | AL114: =Z114*$Z$14 -> 0 | AM114: =AA114*$X$32 -> 0 | AN114: =AB114*$Y$32 -> 0 | AO114: =AC114*$Z$32 -> 0 | AP114: =AD114*$X$50 -> 0 | AQ114: =AE114*$Y$50 -> 0 | AR114: =AF114*$Z$50 -> 0 | AT114: =SUM(AJ114:AS114) -> 0
G115: =IF(B115="","",W115) ->  | T115: =IF(B115="","",R115*B115) ->  | V115: =IF(B115>="",0,1) -> 0 | W115: TS1-Q0V76A | AA115: =COUNTIF(AI36:AI48,$W$115) -> 0 | AB115: =COUNTIF(AJ36:AJ48,$W$115) -> 0 | AC115: =COUNTIF(AK36:AK48,$W$115) -> 0 | AD115: =COUNTIF($AI$54:$AI$65,W115) -> 0 | AE115: =COUNTIF($AJ$54:$AJ$65,W115) -> 0 | AF115: =COUNTIF($AK$54:$AK$65,W115) -> 0 | AM115: =AA115*$X$32 -> 0 | AN115: 0 | AO115: =AC115*$Z$32 -> 0 | AP115: =AD115*$X$50 -> 0 | AQ115: 0 | AR115: 0 | AT115: 0
V116: 0 | W116: TS1-Q0V80A | AA116: =COUNTIF(AI36:AI48,$W$116) -> 0 | AB116: =COUNTIF(AJ36:AJ48,$W$116) -> 0 | AC116: =COUNTIF(AK36:AK48,$W$116) -> 0 | AD116: =COUNTIF($AI$54:$AI$65,W116) -> 0 | AE116: =COUNTIF($AJ$54:$AJ$65,W116) -> 0 | AF116: =COUNTIF($AK$54:$AK$65,W116) -> 0 | AM116: 0 | AN116: 0 | AO116: 0 | AP116: 0 | AQ116: 0 | AR116: 0 | AT116: 0
V117: 0 | W117: TS1-Q2N68A | AA117: =COUNTIF(AI36:AI48,$W$117) -> 0 | AB117: =COUNTIF(AJ36:AJ48,$W$117) -> 0 | AC117: =COUNTIF(AK36:AK48,$W$117) -> 0 | AD117: 0 | AE117: 0 | AF117: 0 | AM117: 0 | AN117: 0 | AO117: 0 | AP117: 0 | AQ117: 0 | AR117: 0 | AT117: 0
V118: 0 | W118: TS1-871828 | AA118: ='Lotto2 DL580 1'!$C$149 -> 0 | AB118: ='Lotto2 DL580 2'!$C$149 -> 0 | AC118: ='Lotto2 DL580 3'!$C$149 -> 0 | AD118: ='Lotto2 DL580 Prest 1'!$C$145 -> 0 | AE118: ='Lotto2 DL580 Prest 2'!$C$145 -> 0 | AF118: ='Lotto2 DL580 Prest 3'!$C$145 -> 0 | AM118: 0 | AN118: 0 | AO118: 0 | AP118: 0 | AQ118: 0 | AR118: 0 | AT118: 0
V119: 0 | W119: TS1-871829 | AA119: ='Lotto2 DL580 1'!$C$151 -> 0 | AB119: ='Lotto2 DL580 2'!$C$151 -> 0 | AC119: ='Lotto2 DL580 3'!$C$151 -> 0 | AD119: ='Lotto2 DL580 Prest 1'!$C$147 -> 0 | AE119: ='Lotto2 DL580 Prest 2'!$C$147 -> 0 | AF119: ='Lotto2 DL580 Prest 3'!$C$147 -> 0 | AM119: 0 | AN119: 0 | AO119: 0 | AP119: 0 | AQ119: 0 | AR119: 0 | AT119: 0
V120: 0 | W120: TS1-P00268 | AA120: ='Lotto2 DL580 1'!$C$153 -> 0 | AB120: ='Lotto2 DL580 2'!$C$153 -> 0 | AC120: ='Lotto2 DL580 3'!$C$153 -> 0 | AD120: ='Lotto2 DL580 Prest 1'!$C$149 -> 0 | AE120: ='Lotto2 DL580 Prest 2'!$C$149 -> 0 | AF120: ='Lotto2 DL580 Prest 3'!$C$149 -> 0 | AM120: 0 | AN120: 0 | AO120: 0 | AP120: 0 | AQ120: 0 | AR120: 0 | AT120: 0
C121: =IF(AT121=0,"",(VLOOKUP(G121,COD_A,2,FALSE))) ->  | G121: =IF(B121="","",W121) ->  | J121: =IF(B121="","",(VLOOKUP(G121,COD_A,5,FALSE))) ->  | R121: =IF(B121="","",(VLOOKUP(G121,COD_A,3,FALSE))) ->  | T121: =IF(B121="","",R121*B121) ->  | V121: 0 | W121: S2-826704 | X121: ='Lotto2 DL560 Gen10 1'!$C$110 -> 0 | AJ121: =X121*$X$14 -> 0 | AK121: =Y121*$Y$14 -> 0 | AL121: =Z121*$Z$14 -> 0 | AM121: 0 | AN121: 0 | AO121: 0 | AP121: 0 | AQ121: 0 | AR121: 0 | AT121: 0
V122: 0 | W122: TS1-Q0V77A | X122: =COUNTIF($AI$18:$AI$25,W122) -> 0 | Y122: =COUNTIF($AJ$18:$AJ$25,W122) -> 0 | Z122: =COUNTIF($AK$18:$AK$25,W122) -> 0 | AJ122: =X122*$X$14 -> 0 | AK122: =Y122*$Y$14 -> 0 | AL122: =Z122*$Z$14 -> 0 | AM122: =AA122*$X$32 -> 0 | AN122: =AB122*$Y$32 -> 0 | AO122: =AC122*$Z$32 -> 0 | AP122: =AD122*$X$50 -> 0 | AQ122: =AE122*$Y$50 -> 0 | AR122: =AF122*$Z$50 -> 0 | AT122: =SUM(AJ122:AS122) -> 0
B123: TOTALE ULTERIORI OPZIONI (I.V.A. Esclusa) | R123: =SUM(T89:U122) -> 0 | V123: =IF(R123>0,1,0) -> 0
B124: TOTALE COSTO (I.V.A. Esclusa) | R124: =SUM(T14:U88) -> 0 | V124: 1
B125: I.V.A. | R125: =(R124+R123)*22% -> 0 | V125: 1
B126: TOTALE ORDINE | R126: =SUM(R123:U125) -> 0 | V126: 1
V127: 1
V128: 1
V129: 1
D130: =IF(G6>0,"DETTAGLIO CONFIGURAZIONI SERVER LOTTO 2 ","") ->  | V130: 1
V131: 1
V132: 1
V133: =IF($B$14>="",0,1) -> 0
B134: Proliant DL560 Gen10 Conf.1 | E134: =SRV_A -> 0 | F134: Server | I134: Proliant DL560 Gen10 Conf.2 | L134: =SRV_AA -> 0 | M134: Server | P134: Proliant DL560 Gen10 Conf.3 | S134: =SRV_AAA -> 0 | T134: Server | V134: =IF($B$14>="",0,1) -> 0
V135: =IF($B$14>="",0,1) -> 0
B136: =IF(SRV_A>0,"1","-") -> - | C136: =IF(B136="-","-",CONCATENATE(MID($C$14,1,21)," - ",$G$14)) -> - | I136: =IF(SRV_AA>0,"1","-") -> - | J136: =IF(I136="-","-",CONCATENATE(MID($C$14,1,21)," - ",$G$14)) -> - | P136: =IF(SRV_AAA>0,"1","-") -> - | Q136: =IF(P136="-","-",CONCATENATE(MID($C$14,1,21)," - ",$G$14)) -> - | V136: =IF($B$14>="",0,1) -> 0
B137: =IF(X15=0,"-",X15) -> - | C137: =IF(B137="-","-",CONCATENATE(MID($C$15,1,21)," - ",$G$15)) -> - | I137: =IF(Y15=0,"-",Y15) -> - | J137: =IF(I137="-","-",CONCATENATE(MID(C15,1,21)," - ",G15)) -> - | P137: =IF(Z15=0,"-",Z15) -> - | Q137: =IF(P137="-","-",CONCATENATE(MID(C15,1,21)," - ",G15)) -> - | V137: =Z137 -> 0 | W137: =IF(B137="-",0,B137) -> 0 | X137: =IF(I137="-",0,I137) -> 0 | Y137: =IF(P137="-",0,P137) -> 0 | Z137: =IF(X137+W137+Y137>0,1,0) -> 0
B138: - | C138: =IF(B138="-","-",CONCATENATE(MID($C$16,1,21)," - ",$G$16)) -> - | I138: - | J138: - | P138: - | Q138: - | V138: =Z138 -> 0 | W138: =IF(B138="-",0,B138) -> 0 | X138: =IF(I138="-",0,I138) -> 0 | Y138: =IF(P138="-",0,P138) -> 0 | Z138: =IF(X138+W138+Y138>0,1,0) -> 0
B139: - | C139: =IF(B139="-","-",CONCATENATE(MID($C$17,1,21)," - ",$G$17)) -> - | I139: - | J139: - | P139: - | Q139: - | V139: 0 | W139: 0 | X139: 0 | Y139: 0 | Z139: 0
B140: - | C140: =IF(B140="-","-",CONCATENATE(MID(C18,1,21)," - ",G18)) -> - | I140: - | J140: - | P140: - | Q140: - | V140: 0 | W140: 0 | X140: 0 | Y140: 0 | Z140: 0
B141: - | C141: - | I141: - | J141: - | P141: - | Q141: - | V141: 0 | W141: 0 | X141: 0 | Y141: 0 | Z141: 0
B142: - | C142: - | I142: - | J142: - | P142: - | Q142: - | V142: 0 | W142: 0 | X142: 0 | Y142: 0 | Z142: 0
B143: - | C143: - | I143: - | J143: - | P143: - | Q143: - | V143: 0 | W143: 0 | X143: 0 | Y143: 0 | Z143: 0
B144: - | C144: - | I144: - | J144: - | P144: - | Q144: - | V144: 0 | W144: 0 | X144: 0 | Y144: 0 | Z144: 0
B145: - | C145: - | I145: - | J145: - | P145: - | Q145: - | V145: 0 | W145: 0 | X145: 0 | Y145: 0 | Z145: 0
B146: - | C146: - | I146: - | J146: - | P146: - | Q146: - | V146: 0 | W146: 0 | X146: 0 | Y146: 0 | Z146: 0
B147: - | C147: - | I147: - | J147: - | P147: - | Q147: - | V147: 0 | W147: 0 | X147: 0 | Y147: 0 | Z147: 0
B148: - | C148: - | I148: - | J148: - | P148: - | Q148: - | V148: 0 | W148: 0 | X148: 0 | Y148: 0 | Z148: 0
B149: - | C149: - | I149: - | J149: - | P149: - | Q149: - | V149: 0 | W149: 0 | X149: 0 | Y149: 0 | Z149: 0
B150: - | C150: - | I150: - | J150: - | P150: - | Q150: - | V150: 0 | W150: 0 | X150: 0 | Y150: 0 | Z150: 0
B151: - | C151: - | I151: - | J151: - | P151: - | Q151: - | V151: 0 | W151: 0 | X151: 0 | Y151: 0 | Z151: 0
B152: - | C152: - | I152: - | J152: - | P152: - | Q152: - | V152: 0 | W152: 0 | X152: 0 | Y152: 0 | Z152: 0
B153: =IF(X71=0,"-",X71) -> - | C153: =IF(B153="-","-",CONCATENATE(MID(C71,1,21)," - ",G71)) -> - | I153: =IF(Y71=0,"-",Y71) -> - | J153: =IF(I153="-","-",CONCATENATE(MID(C71,1,21)," - ",G71)) -> - | P153: =IF(Z71=0,"-",Z71) -> - | Q153: =IF(P153="-","-",CONCATENATE(MID(C71,1,21)," - ",G71)) -> - | V153: 0 | W153: 0 | X153: 0 | Y153: 0 | Z153: 0
B154: - | C154: - | I154: - | J154: - | P154: - | Q154: - | V154: 0 | W154: 0 | X154: 0 | Y154: 0 | Z154: 0
B155: - | C155: - | I155: - | J155: - | P155: - | Q155: - | V155: 0 | W155: 0 | X155: 0 | Y155: 0 | Z155: 0
B156: - | C156: - | I156: - | J156: - | P156: - | Q156: - | V156: 0 | W156: 0 | X156: 0 | Y156: 0 | Z156: 0
B157: - | C157: - | I157: - | J157: - | P157: - | Q157: - | V157: 0 | W157: 0 | X157: 0 | Y157: 0 | Z157: 0
B158: - | C158: - | I158: - | J158: - | P158: - | Q158: - | V158: 0 | W158: 0 | X158: 0 | Y158: =IF(P158="-",0,P158) -> 0 | Z158: 0
B159: - | C159: - | I159: - | J159: - | P159: - | Q159: - | V159: 0 | W159: 0 | X159: 0 | Y159: =IF(P159="-",0,P159) -> 0 | Z159: 0
B160: - | C160: =IF(B160="-","-",CONCATENATE(MID(C78,1,21)," - ",G78)) -> - | I160: - | J160: =IF(I160="-","-",CONCATENATE(MID(C78,1,21)," - ",G78)) -> - | P160: - | Q160: - | V160: =Z160 -> 0 | W160: =IF(B160="-",0,B160) -> 0 | X160: =IF(I160="-",0,I160) -> 0 | Y160: =IF(P160="-",0,P160) -> 0 | Z160: =IF(X160+W160+Y160>0,1,0) -> 0
B161: =IF(X86=0,"-",X86) -> - | C161: =IF(B161="-","-",CONCATENATE(MID($C$86,1,24)," - ",$G$86)) -> - | I161: =IF(Y86=0,"-",Y86) -> - | J161: =IF(I161="-","-",CONCATENATE(MID(C86,1,24)," - ",G86)) -> - | P161: =IF(Z86=0,"-",Z86) -> - | Q161: =IF(P161="-","-",CONCATENATE(MID(C86,1,24)," - ",G86)) -> - | V161: 0 | W161: 0 | X161: 0 | Y161: 0 | Z161: 0
B162: - | C162: =IF(B162="-","-",CONCATENATE(MID(C87,1,24)," - ",G87)) -> - | I162: - | J162: - | P162: - | Q162: - | V162: 0 | W162: 0 | X162: 0 | Y162: 0 | Z162: 0
B163: - | C163: =IF(B163="-","-",CONCATENATE(MID(C88,1,24)," - ",G88)) -> - | I163: - | J163: - | P163: - | Q163: - | V163: 0 | W163: 0 | X163: 0 | Y163: 0 | Z163: 0
B164: - | C164: =IF(B164="-","-",CONCATENATE(MID(C89,1,24)," - ",G89)) -> - | I164: - | J164: - | P164: - | Q164: - | V164: 0 | W164: 0 | X164: 0 | Y164: 0 | Z164: 0
B165: - | C165: =IF(B165="-","-",CONCATENATE(MID(C90,1,24)," - ",G90)) -> - | I165: - | J165: - | P165: - | Q165: - | V165: 0 | W165: 0 | X165: 0 | Y165: 0 | Z165: 0
B166: - | C166: =IF(B166="-","-",CONCATENATE(MID(C91,1,24)," - ",G91)) -> - | I166: - | J166: - | P166: - | Q166: - | V166: =Z166 -> 0 | W166: =IF(B166="-",0,B166) -> 0 | X166: =IF(I166="-",0,I166) -> 0 | Y166: =IF(P166="-",0,P166) -> 0 | Z166: =IF(X166+W166+Y166>0,1,0) -> 0
B167: =IF(X92=0,"-",X92) -> - | C167: =IF(B167="-","-",CONCATENATE(MID(C92,1,24)," - ",G92)) -> - | I167: =IF(Y92=0,"-",Y92) -> - | J167: =IF(I167="-","-",CONCATENATE(MID(C92,1,24)," - ",G92)) -> - | P167: - | Q167: =IF(P167="-","-",CONCATENATE(MID(C92,1,24)," - ",G92)) -> - | V167: 0 | W167: =IF(B167="-",0,B167) -> 0 | X167: =IF(I167="-",0,I167) -> 0 | Y167: =IF(P167="-",0,P167) -> 0 | Z167: =IF(X167+W167+Y167>0,1,0) -> 0
B168: - | C168: - | I168: - | J168: - | Q168: - | V168: 0 | W168: 0 | X168: 0 | Y168: 0 | Z168: 0
B169: =IF(X94=0,"-",X94) -> - | C169: =IF(B169="-","-",CONCATENATE(MID(C94,1,24)," - ",G94)) -> - | I169: =IF(Y94=0,"-",Y94) -> - | J169: =IF(I169="-","-",CONCATENATE(MID(C94,1,24)," - ",G94)) -> - | P169: =IF(Z94=0,"-",Z94) -> - | Q169: =IF(P169="-","-",CONCATENATE(MID(C94,1,24)," - ",G94)) -> - | V169: 0 | W169: 0 | X169: 0 | Y169: 0 | Z169: 0
B170: - | C170: - | I170: - | J170: - | P170: - | Q170: - | V170: 0 | W170: 0 | X170: 0 | Y170: 0 | Z170: 0
B171: - | C171: - | I171: - | J171: - | P171: - | Q171: - | V171: 0 | W171: 0 | X171: 0 | Y171: 0 | Z171: 0
B172: - | C172: - | I172: - | J172: - | P172: - | Q172: - | V172: 0 | W172: 0 | X172: 0 | Y172: 0 | Z172: 0
B173: - | C173: - | I173: - | J173: - | P173: - | Q173: - | V173: 0 | W173: 0 | X173: 0 | Y173: 0 | Z173: 0
B174: - | C174: - | I174: - | J174: - | P174: - | Q174: - | V174: 0 | W174: 0 | X174: 0 | Y174: 0 | Z174: 0
B175: - | C175: - | I175: - | J175: - | P175: - | Q175: - | V175: 0 | W175: 0 | X175: 0 | Y175: 0 | Z175: 0
B176: - | C176: - | I176: - | J176: - | P176: - | Q176: - | V176: 0 | W176: 0 | X176: 0 | Y176: 0 | Z176: 0
B177: - | C177: - | I177: - | J177: - | P177: - | Q177: - | V177: 0 | W177: 0 | X177: 0 | Y177: 0 | Z177: 0
B178: - | C178: - | I178: - | J178: - | P178: - | Q178: - | V178: 0 | W178: 0 | X178: 0 | Y178: 0 | Z178: 0
B179: - | C179: - | I179: - | J179: - | P179: - | Q179: - | V179: 0 | W179: 0 | X179: 0 | Y179: 0 | Z179: 0
B180: - | C180: - | I180: - | J180: - | P180: - | Q180: - | V180: 0 | W180: 0 | X180: 0 | Y180: 0 | Z180: 0
B181: - | C181: - | I181: - | J181: - | P181: - | Q181: - | V181: 0 | W181: 0 | X181: 0 | Y181: 0 | Z181: 0
B182: - | C182: - | I182: - | J182: - | P182: - | Q182: - | V182: 0 | W182: 0 | X182: 0 | Y182: 0 | Z182: 0
B183: =IF(X121=0,"-",X121) -> - | C183: =IF(B183="-","-",CONCATENATE(MID(C121,1,24)," - ",G121)) -> -
B184: =IF(X122=0,"-",X122) -> - | C184: =IF(B184="-","-",CONCATENATE(MID(C122,1,24)," - ",G122)) -> -
V185: =IF($B$14>="",0,1) -> 0
B186: Configurazione RAID | I186: Configurazione RAID | P186: Configurazione RAID | V186: 0
V187: 0
B188: ='Lotto2 DL560 Gen10 1'!B93 -> SCRIVERE QUI' LA CONFIGURAZIONE RAID RICHIESTA. BASE DL560 Gen10 1 | I188: ='Lotto2 DL560 Gen10 2'!B93 -> SCRIVERE QUI' LA CONFIGURAZIONE RAID RICHIESTA. BASE DL560 Gen10 2 | K188: =IF(#REF!=0,"",'Lotto2 DL580 2'!$B$82) ->  | P188: ='Lotto2 DL560 Gen10 3'!B93 -> SCRIVERE QUI' LA CONFIGURAZIONE RAID RICHIESTA. BASE DL560 Gen10 3 | R188: =IF(#REF!=0,"",'Lotto2 DL580 2'!$B$82) ->  | V188: 0
V189: 0
I190: =IF(#REF!=0,"","Hot spare HDD 300 GB") ->  | M190: =IF(#REF!=0,"",'Lotto2 DL580 2'!$C$83) ->  | P190: =IF(#REF!=0,"","Hot spare HDD 300 GB") ->  | T190: =IF(#REF!=0,"",'Lotto2 DL580 2'!$C$83) ->  | V190: 0
V191: 0
V192: 0
I193: =IF(#REF!=0,"","HDD 1000 GB") ->  | K193: =IF(#REF!=0,"",'Lotto2 DL580 2'!$B$86) ->  | P193: =IF(#REF!=0,"","HDD 1000 GB") ->  | R193: =IF(#REF!=0,"",'Lotto2 DL580 2'!$B$86) ->  | V193: 0
V194: 0
I195: =IF(#REF!=0,"","Hot spare HDD 1000 GB") ->  | M195: =IF(#REF!=0,"",'Lotto2 DL580 2'!$C$87) ->  | P195: =IF(#REF!=0,"","Hot spare HDD 1000 GB") ->  | T195: =IF(#REF!=0,"",'Lotto2 DL580 2'!$C$87) ->  | V195: 0
V196: 0
V197: 0
I198: Note RAID | P198: Note RAID | V198: 0
I199: =IF('Lotto2 DL580 2'!#REF!=0,"",'Lotto2 DL580 2'!#REF!) ->  | P199: =IF('Lotto2 DL580 2'!#REF!=0,"",'Lotto2 DL580 2'!#REF!) ->  | V199: 0
V200: 0
... 168 more rows

Sheet Lotto2 DL560 Gen10 2
A1: IN ROSSO LE OPZIONI 20% | H1: TOTALE CONVENZIONE | I1: =I13 -> 0 | J1: Totale Ulteriori Opzioni | K1: =I11 -> 0
A5: Tecnologie Server1 Lotto2 Base DL560 Gen10
H10: Totale Server e Opzioni | I10: =F17*SRV_AA -> 0
A11: Components: Server HPE Proliant DL560 Gen10 (2CPU Intel® Xeon-Gold 5118, 64GB , 2xHDD 300GB 15K RPM SAS 12Gbps 2.5in) | H11: Totale Ulteriori Opzioni | I11: =G17*SRV_AA -> 0
H13: TOTALE CONVENZIONE | I13: =I11+I10 -> 0
A15: Proliant DL560 Gen10 | B15: Category: Server | F15: 3864
B16: Quantity: | F16: =SUM(F20:F153) -> 0
F17: =SUM(F15:F16) -> 3864 | G17: =SUM(G20:G153) -> 0
B19: Base
B20: HPE DL560 Gen10 8SFF CTO Server | C20: 1 | E20: 841730-B21
B22: Configurazione dello chassis
B23: HP DL560 Gen9 2SFF Media Bay Kit | C23: 1 | E23: 795090-B21
B25: Processore
B26: HPE DL560 Gen10 Intel® Xeon-Gold 5118 (2.3GHz/12-core/105W) Processor | C26: 1 | E26: 840399-L21
B27: HPE DL560 Gen10 Intel® Xeon-Gold 5118 (2.3GHz/12-core/105W) Processor | C27: 1 | E27: 840399-B21
B29: Processore aggiuntivo
B30: No Additional Processor | C30: =VLOOKUP($B$30, CPU_A, 2, FALSE) -> 0 | D30: =VLOOKUP($B$30, CPU_A, 3, FALSE) ->  | E30: =VLOOKUP($B$30, CPU_A, 5, FALSE) ->  | F30: =VLOOKUP(B30, CPU_A, 12, FALSE) -> 0
B32: Mezz Board Option
B33: =VLOOKUP($B$30, CPU_A, 6, FALSE) ->  | C33: =VLOOKUP($B$30, CPU_A, 7, FALSE) ->  | E33: =VLOOKUP($B$30, CPU_A, 8, FALSE) -> 
B35: Memoria Totale in GB | C35: =IF(F30=2584,IF(B36=64,"ATTENZIONE: AUMENTARE LA RAM",""),"") -> 
B36: 64
B38: Capacità di memoria
B39: =IF($B$30="No Additional Processor",VLOOKUP($B$36, MEM_A1, 8, FALSE),VLOOKUP($B$36, MEM_A2, 8, FALSE)) -> HPE 32GB (1x32GB) Dual Rank x4 DDR4-2666 CAS-19-19-19 Registered Smart Memory Kit | C39: =IF($B$30="No Additional Processor",VLOOKUP($B$36, MEM_A1, 9, FALSE),VLOOKUP($B$36, MEM_A2, 9, FALSE)) -> 2 | E39: =IF($B$30="No Additional Processor",VLOOKUP($B$36, MEM_A1, 10, FALSE),VLOOKUP($B$36, MEM_A2, 10, FALSE)) -> 815100-B21
B41: =IF($B$30="No Additional Processor",VLOOKUP($B$36, MEM_A1, 2, FALSE),VLOOKUP($B$36, MEM_A2, 2, FALSE)) ->  | C41: =IF($B$30="No Additional Processor",VLOOKUP($B$36, MEM_A1, 3, FALSE),VLOOKUP($B$36, MEM_A2, 3, FALSE)) ->  | D41: =IF($B$30="No Additional Processor",VLOOKUP($B$36, MEM_A1, 4, FALSE),VLOOKUP($B$36, MEM_A2, 4, FALSE)) ->  | E41: =IF($B$30="No Additional Processor",VLOOKUP($B$36, MEM_A1, 6, FALSE),VLOOKUP($B$36, MEM_A2, 6, FALSE)) ->  | F41: =IF($B$30="No Additional Processor",VLOOKUP($B$36, MEM_A1, 7, FALSE),VLOOKUP($B$36, MEM_A2, 7, FALSE)) -> 
B43: =IF($B$30="No Additional Processor",VLOOKUP($B$36, MEM_A1, 11, FALSE),VLOOKUP($B$36, MEM_A2, 11, FALSE)) ->  | C43: =IF($B$30="No Additional Processor",VLOOKUP($B$36, MEM_A1, 12, FALSE),VLOOKUP($B$36, MEM_A2, 12, FALSE)) ->  | D43: =IF($B$30="No Additional Processor",VLOOKUP($B$36, MEM_A1, 13, FALSE),VLOOKUP($B$36, MEM_A2, 13, FALSE)) ->  | E43: =IF($B$30="No Additional Processor",VLOOKUP($B$36, MEM_A1, 15, FALSE),VLOOKUP($B$36, MEM_A2, 15, FALSE)) ->  | F43: =IF($B$30="No Additional Processor",VLOOKUP($B$36, MEM_A1, 16, FALSE),VLOOKUP($B$36, MEM_A2, 16, FALSE)) -> 
B45: Sistema operativo preinstallato
B46: No Operating System | C46: =VLOOKUP($B$46, OS_A, 2, FALSE) ->  | D46: =VLOOKUP($B$46, OS_A, 3, FALSE) ->  | E46: =VLOOKUP($B$46, OS_A, 5, FALSE) ->  | F46: =VLOOKUP($B$46, OS_A, 6, FALSE) -> 
B47: =IF($B$30="No Additional Processor",VLOOKUP($B$46, OS_A, 19, FALSE),VLOOKUP($B$46, OS_A2, 19, FALSE)) ->  | C47: =IF($B$30="No Additional Processor",VLOOKUP($B$46, OS_A, 20, FALSE),VLOOKUP($B$46, OS_A2, 20, FALSE)) -> 0 | D47: =IF($B$30="No Additional Processor",VLOOKUP($B$46, OS_A, 21, FALSE),VLOOKUP($B$46, OS_A2, 21, FALSE)) ->  | E47: =IF($B$30="No Additional Processor",VLOOKUP($B$46, OS_A, 23, FALSE),VLOOKUP($B$46, OS_A2, 23, FALSE)) ->  | F47: =IF($B$30="No Additional Processor",VLOOKUP($B$46, OS_A, 24, FALSE)*C47,VLOOKUP($B$46, OS_A2, 24, FALSE)*C47) -> 0 | H47: =IF(D46="TS1L2-WIN1",3,IF(D46="TS1L2-WINDC1",4,0)) -> 0
B48: =IF($B$30="No Additional Processor",VLOOKUP($B$46, OS_A, 25, FALSE),VLOOKUP($B$46, OS_A2, 25, FALSE)) ->  | C48: =IF($B$30="No Additional Processor",VLOOKUP($B$46, OS_A, 26, FALSE),VLOOKUP($B$46, OS_A2, 26, FALSE)) -> 0 | D48: =IF($B$30="No Additional Processor",VLOOKUP($B$46, OS_A, 27, FALSE),VLOOKUP($B$46, OS_A2, 27, FALSE)) ->  | E48: =IF($B$30="No Additional Processor",VLOOKUP($B$46, OS_A, 29, FALSE),VLOOKUP($B$46, OS_A2, 29, FALSE)) ->  | F48: =IF($B$30="No Additional Processor",VLOOKUP($B$46, OS_A, 30, FALSE)*C48,VLOOKUP($B$46, OS_A2, 30, FALSE)*C48) -> 0
B50: Client Access Licenses
B51: =VLOOKUP($B$46, OS_A, 7, FALSE) -> None | D51: =VLOOKUP($B$46, OS_A, 9, FALSE) ->  | E51: =VLOOKUP($B$46, OS_A, 11, FALSE) ->  | F51: =VLOOKUP($B$46, OS_A, 12, FALSE)*C51 -> 0
B53: =VLOOKUP($B$46, OS_A, 13, FALSE) -> None | D53: =VLOOKUP($B$46, OS_A, 15, FALSE) ->  | E53: =VLOOKUP($B$46, OS_A, 17, FALSE) ->  | F53: =VLOOKUP($B$46, OS_A, 18, FALSE)*C53 -> 0
B55: Sistema opertivo SUSE Linux Enterprise Server
B56: None | C56: =IF(D56="",0,(C26+C27+C30)/2) -> 0 | D56: =VLOOKUP($B$56, SUSE, 3, FALSE) ->  | E56: =VLOOKUP($B$56, SUSE, 5, FALSE) ->  | G56: =VLOOKUP($B$56, SUSE, 6, FALSE)*C56 -> 0
B58: HPE OneView Advanced (with HPE iLO Advanced)
B59: None | C59: =VLOOKUP($B$59, OpzOVAdv, 2, FALSE) -> 0 | D59: =VLOOKUP($B$59, OpzOVAdv, 3, FALSE) ->  | E59: =VLOOKUP($B$59, OpzOVAdv, 5, FALSE) ->  | G59: =VLOOKUP($B$59, OpzOVAdv, 6, FALSE) -> 0
B61: Configurazione dello chassis
B62: HPE DL560 Gen10 8SFF HDD Bay3 Kit | C62: 1 | E62: 872237-B21
B64: HPE DL560 Gen10 8SFF HDD Bay2 Kit | C64: 0 | D64: =VLOOKUP($C$64, HDD_Bay2, 2, FALSE) ->  | E64: =VLOOKUP($C$64, HDD_Bay2, 3, FALSE) ->  | F64: =VLOOKUP($C$64, HDD_Bay2, 4, FALSE) ->  | G64: =VLOOKUP($C$64, HDD_Bay2, 5, FALSE) -> 0
B66: HPE DL560 Gen10 8SFF HDD Bay1 Kit | C66: 0 | D66: =VLOOKUP($C$66, HDD_BAY1, 2, FALSE) ->  | E66: =VLOOKUP($C$66, HDD_BAY1, 3, FALSE) ->  | F66: =VLOOKUP($C$66, HDD_BAY1, 4, FALSE) ->  | G66: =VLOOKUP($C$66, HDD_BAY1, 5, FALSE) -> 0
B68: Controller RAID
B69: HPE Smart Array P408i-a SR G10 LH Ctrlr | C69: 1 | E69: 869081-B21
B71: HPE 96W Smart Storage Battery with 145mm Cable Kit | C71: 1 | E71: P01366-B21
B73: =IF(C64+C66=0,"","HPE DL5x0 Gen10 12Gb SAS Expander Card Kit with Cables") ->  | C73: =IF(C64+C66=0,"",1) ->  | D73: =IF(C64+C66=0,"","S2-873444-B21") ->  | E73: =IF(C64+C66=0,"","873444-B21") ->  | G73: =IF(C64+C66=0,"",540) -> 
B75: =IF(C62+C64+C66=1,"Dischi rigidi (numero massimo totale 8)",(IF(C62+C64+C66=2,"Dischi rigidi (numero massimo totale 16)","Dischi rigidi (numero massimo totale 24)"))) -> Dischi rigidi (numero massimo totale 8)
B76: HPE 300GB SAS 15K SFF SC DS HDD | C76: 2 | E76: 870753-B21
B78: HPE 300GB SAS 15K SFF SC DS HDD | D78: TS1L2-HD300 | E78: 870753-B21 | F78: =C78*156 -> 0
B80: HPE 1.2TB SAS 10K SFF SC DS HDD | D80: TS1L2-HD1200 | E80: 872479-B21 | F80: =C80*292 -> 0
B82: HPE 1.8TB SAS 10K SFF SC DS HDD | D82: TS1L2-HD1800-560 | E82: 872481-B21 | G82: =C82*467 -> 0
B84: HPE 480GB SAS 12G Read Intensive SFF SC DS SSD | D84: S2-875311-B21 | E84: 875311-B21 | G84: =C84*749 -> 0
B86: HPE 960GB SAS 12G Read Intensive SFF SC DS SSD | D86: TS1L2-SSD960-560 | E86: 872390-B21 | G86: =C86*1571 -> 0
B88: HPE 1.92TB SAS 12G Read Intensive SFF SC DS SSD | D88: TS1L2-SSD1920-560 | E88: 875326-B21 | G88: =C88*2667 -> 0
B90: DISCHI TOTALI | C90: =SUM(C76:C89) -> 2 | D90: =IF(C90<=((C62+C64+C66)*8)," OK"," ERRORE: Totale n° di dischi superiore al consentito") -> OK
B92: Configurazione RAID
B93: SCRIVERE QUI' LA CONFIGURAZIONE RAID RICHIESTA. BASE DL560 Gen10 2
B94: Configurazione RAID con HDD 300GB
B95: RAID 1 (2 HDDs) | C95: 1 | E95: =VLOOKUP($B$95, RAID_A1, 2, FALSE) -> 
B96: Hot Spare for 300GB HDD | C96: No
B98: Configurazione RAID con HDD 1TB
C99: 1 | E99: =VLOOKUP($B$99, RAID_A2, 2, FALSE) -> 
B100: Hot Spare for 1TB HDD | C100: No
B102: Alimentatore
B103: HPE 1600W Flex Slot Platinum Hot Plug Low Halogen Power Supply Kit | C103: 2 | E103: 830272-B21
B105: PCIe Riser
B106: Primary Riser | C106: 1
B108: Secondary Riser | C108: 0 | D108: =VLOOKUP($C$108, Riser2, 2, FALSE) ->  | E108: =VLOOKUP($C$108, Riser2, 3, FALSE) ->  | F108: =VLOOKUP($C$108, Riser2, 4, FALSE) ->  | G108: =VLOOKUP($C$108, Riser2, 5, FALSE) -> 0
B110: Tertiary riser | C110: 0 | D110: =VLOOKUP($C$110, Riser3, 2, FALSE) ->  | E110: =VLOOKUP($C$110, Riser3, 3, FALSE) ->  | F110: =VLOOKUP($C$110, Riser3, 4, FALSE) ->  | G110: =VLOOKUP($C$110, Riser3, 5, FALSE) -> 0
B112: Scheda FlexibleLOM
B113: HPE FlexFabric 10Gb 2-port 534FLR-SFP+ Adapter | C113: 1 | E113: 700751-B21
H114: PRIMARY RISER | J114: SECONDARY RISER | K114: TERTIARY RISER
B115: Additional Card for PCIe Slot 1
B116: HPE Ethernet 1Gb 4-port 331T Adapter | C116: 1 | E116: 647594-B21 | G116: 0
B118: Additional Card for PCIe Slot 2
B119: None | C119: =IF(B119=B73,"",VLOOKUP(B119, PCI_A2, 2, FALSE)) ->  | D119: =IF(B119=B73,"",VLOOKUP(B119, PCI_A2, 3, FALSE)) ->  | E119: =IF(B119=B73,"",VLOOKUP(B119, PCI_A2, 5, FALSE)) ->  | F119: =IF(B119=B73,"",VLOOKUP(B119, PCI_A2, 6, FALSE)) ->  | G119: =IF(B119=B73,"",VLOOKUP(B119, PCI_A2, 9, FALSE)) -> 0
B121: Additional Card for PCIe Slot 3
B122: None | C122: =VLOOKUP(B122, PCI_A2, 2, FALSE) ->  | D122: =VLOOKUP(B122, PCI_A2, 3, FALSE) ->  | E122: =VLOOKUP(B122, PCI_A2, 5, FALSE) ->  | F122: =VLOOKUP(B122, PCI_A2, 6, FALSE) ->  | G122: =VLOOKUP(B122, PCI_A2, 9, FALSE) -> 0
B124: Additional Card for PCIe Slot 4
B125: None | C125: =IF($B$125="Aggiungere Secondary Riser","",VLOOKUP($B$125, PCI_A4, 2, FALSE)) ->  | D125: =IF($B$125="Aggiungere Secondary Riser","",VLOOKUP($B$125, PCI_A4, 3, FALSE)) ->  | E125: =IF($B$125="Aggiungere Secondary Riser","",VLOOKUP($B$125, PCI_A4, 5, FALSE)) ->  | F125: =IF($B$125="Aggiungere Secondary Riser","",VLOOKUP($B$125, PCI_A4, 6, FALSE)) ->  | G125: =IF($B$125="Aggiungere Secondary Riser","",VLOOKUP($B$125, PCI_A4, 9, FALSE)) -> 0
B127: Additional Card for PCIe Slot 5
B128: None | C128: =IF($B$128="Aggiungere Secondary Riser","",VLOOKUP($B$128, PCI_A4, 2, FALSE)) ->  | D128: =IF($B$128="Aggiungere Secondary Riser","",VLOOKUP($B$128, PCI_A4, 3, FALSE)) ->  | E128: =IF($B$128="Aggiungere Secondary Riser","",VLOOKUP($B$128, PCI_A4, 5, FALSE)) ->  | F128: =IF($B$128="Aggiungere Secondary Riser","",VLOOKUP($B$128, PCI_A4, 6, FALSE)) ->  | G128: =IF($B$128="Aggiungere Secondary Riser","",VLOOKUP($B$128, PCI_A4, 9, FALSE)) -> 0
B130: Additional Card for PCIe Slot 6
B131: None | C131: =IF($B$131="Aggiungere Secondary Riser","",VLOOKUP($B$131, PCI_A4, 2, FALSE)) ->  | D131: =IF($B$131="Aggiungere Secondary Riser","",VLOOKUP($B$131, PCI_A4, 3, FALSE)) ->  | E131: =IF($B$131="Aggiungere Secondary Riser","",VLOOKUP($B$131, PCI_A4, 5, FALSE)) ->  | F131: =IF($B$131="Aggiungere Secondary Riser","",VLOOKUP($B$131, PCI_A4, 6, FALSE)) ->  | G131: =IF($B$131="Aggiungere Secondary Riser","",VLOOKUP($B$131, PCI_A4, 9, FALSE)) -> 0
B133: Additional Card for PCIe Slot 7
B134: None | C134: =IF($B$134="Aggiungere Tertiary Riser","",VLOOKUP($B$134, PCI_A7, 2, FALSE)) ->  | D134: =IF($B$134="Aggiungere Tertiary Riser","",VLOOKUP($B$134, PCI_A7, 3, FALSE)) ->  | E134: =IF($B$134="Aggiungere Tertiary Riser","",VLOOKUP($B$134, PCI_A7, 5, FALSE)) ->  | F134: =IF($B$134="Aggiungere Tertiary Riser","",VLOOKUP($B$134, PCI_A7, 6, FALSE)) ->  | G134: =IF($B$134="Aggiungere Tertiary Riser","",VLOOKUP($B$134, PCI_A7, 9, FALSE)) -> 0
B136: Additional Card for PCIe Slot 8
B137: None | C137: =IF($B$137="Aggiungere Tertiary Riser","",VLOOKUP($B$137, PCI_A7, 2, FALSE)) ->  | D137: =IF($B$137="Aggiungere Tertiary Riser","",VLOOKUP($B$137, PCI_A7, 3, FALSE)) ->  | E137: =IF($B$137="Aggiungere Tertiary Riser","",VLOOKUP($B$137, PCI_A7, 5, FALSE)) ->  | F137: =IF($B$137="Aggiungere Tertiary Riser","",VLOOKUP($B$137, PCI_A7, 6, FALSE)) ->  | G137: =IF($B$137="Aggiungere Tertiary Riser","",VLOOKUP($B$137, PCI_A7, 9, FALSE)) -> 0
B139: Bezel
B140: None | C140: 1
B142: Unità ottica
B143: HP Mobile USB DVDRW Drive | C143: 1 | E143: 701498-B21
B145: Accessori per Server
B146: HP BLc 10G SFP+ SR Transceiver | C146: =(VLOOKUP(B116,PCI_A1,8,FALSE))+((VLOOKUP(B119,PCI_A2,8,FALSE)))+((VLOOKUP(B122,PCI_A2,8,FALSE)))+((VLOOKUP(B125,PCI_A4,8,FALSE)))+((VLOOKUP(B128,PCI_A4,8,FALSE)))+((VLOOKUP(B131,PCI_A4,8,FALSE)))+((VLOOKUP(B134,PCI_A7,8,FALSE))+((VLOOKUP(B137,PCI_A7,8,FALSE)))) -> 0 | E146: 455883-B21
B148: Estensione di Garanzia
B149: None | C149: =VLOOKUP($B$149, SO_B1,2, FALSE) ->  | D149: =VLOOKUP($B$149, SO_B1, 3, FALSE) ->  | E149: =VLOOKUP($B$149, SO_B1, 5, FALSE) ->  | F149: =VLOOKUP($B$149, SO_B1, 6, FALSE) -> 
B151: Protezione dei dati - Keep Your Hard Drive
B152: None | C152: =VLOOKUP($B$152, SO_A2, 2, FALSE) ->  | D152: =VLOOKUP($B$152, SO_A2, 3, FALSE) ->  | E152: =VLOOKUP($B$152, SO_A2,5, FALSE) ->  | F152: =VLOOKUP($B$152, SO_A2, 6, FALSE) -> 

Sheet Lotto2 DL560 Gen10 3
A1: IN ROSSO LE OPZIONI 20% | H1: TOTALE CONVENZIONE | I1: =I13 -> 0 | J1: Totale Ulteriori Opzioni | K1: =I11 -> 0
A5: Tecnologie Server1 Lotto2 Base DL560 Gen10
H10: Totale Server e Opzioni | I10: =F17*SRV_AAA -> 0
A11: Components: Server HPE Proliant DL560 Gen10 (2CPU Intel® Xeon-Gold 5118, 64GB , 2xHDD 300GB 15K RPM SAS 12Gbps 2.5in) | H11: Totale Ulteriori Opzioni | I11: =G17*SRV_AAA -> 0
H13: TOTALE CONVENZIONE | I13: =I11+I10 -> 0
A15: Proliant DL560 Gen10 | B15: Category: Server | F15: 3864
B16: Quantity: | F16: =SUM(F20:F153) -> 0
F17: =SUM(F15:F16) -> 3864 | G17: =SUM(G20:G153) -> 0
B19: Base
B20: HPE DL560 Gen10 8SFF CTO Server | C20: 1 | E20: 841730-B21
B22: Configurazione dello chassis
B23: HP DL560 Gen9 2SFF Media Bay Kit | C23: 1 | E23: 795090-B21
B25: Processore
B26: HPE DL560 Gen10 Intel® Xeon-Gold 5118 (2.3GHz/12-core/105W) Processor | C26: 1 | E26: 840399-L21
B27: HPE DL560 Gen10 Intel® Xeon-Gold 5118 (2.3GHz/12-core/105W) Processor | C27: 1 | E27: 840399-B21
B29: Processore aggiuntivo
B30: No Additional Processor | C30: =VLOOKUP($B$30, CPU_A, 2, FALSE) -> 0 | D30: =VLOOKUP($B$30, CPU_A, 3, FALSE) ->  | E30: =VLOOKUP($B$30, CPU_A, 5, FALSE) ->  | F30: =VLOOKUP(B30, CPU_A, 12, FALSE) -> 0
B32: Mezz Board Option
B33: =VLOOKUP($B$30, CPU_A, 6, FALSE) ->  | C33: =VLOOKUP($B$30, CPU_A, 7, FALSE) ->  | E33: =VLOOKUP($B$30, CPU_A, 8, FALSE) -> 
B35: Memoria Totale in GB | C35: =IF(F30=2584,IF(B36=64,"ATTENZIONE: AUMENTARE LA RAM",""),"") -> 
B36: 64
B38: Capacità di memoria
B39: =IF($B$30="No Additional Processor",VLOOKUP($B$36, MEM_A1, 8, FALSE),VLOOKUP($B$36, MEM_A2, 8, FALSE)) -> HPE 32GB (1x32GB) Dual Rank x4 DDR4-2666 CAS-19-19-19 Registered Smart Memory Kit | C39: =IF($B$30="No Additional Processor",VLOOKUP($B$36, MEM_A1, 9, FALSE),VLOOKUP($B$36, MEM_A2, 9, FALSE)) -> 2 | E39: =IF($B$30="No Additional Processor",VLOOKUP($B$36, MEM_A1, 10, FALSE),VLOOKUP($B$36, MEM_A2, 10, FALSE)) -> 815100-B21
B41: =IF($B$30="No Additional Processor",VLOOKUP($B$36, MEM_A1, 2, FALSE),VLOOKUP($B$36, MEM_A2, 2, FALSE)) ->  | C41: =IF($B$30="No Additional Processor",VLOOKUP($B$36, MEM_A1, 3, FALSE),VLOOKUP($B$36, MEM_A2, 3, FALSE)) ->  | D41: =IF($B$30="No Additional Processor",VLOOKUP($B$36, MEM_A1, 4, FALSE),VLOOKUP($B$36, MEM_A2, 4, FALSE)) ->  | E41: =IF($B$30="No Additional Processor",VLOOKUP($B$36, MEM_A1, 6, FALSE),VLOOKUP($B$36, MEM_A2, 6, FALSE)) ->  | F41: =IF($B$30="No Additional Processor",VLOOKUP($B$36, MEM_A1, 7, FALSE),VLOOKUP($B$36, MEM_A2, 7, FALSE)) -> 
B43: =IF($B$30="No Additional Processor",VLOOKUP($B$36, MEM_A1, 11, FALSE),VLOOKUP($B$36, MEM_A2, 11, FALSE)) ->  | C43: =IF($B$30="No Additional Processor",VLOOKUP($B$36, MEM_A1, 12, FALSE),VLOOKUP($B$36, MEM_A2, 12, FALSE)) ->  | D43: =IF($B$30="No Additional Processor",VLOOKUP($B$36, MEM_A1, 13, FALSE),VLOOKUP($B$36, MEM_A2, 13, FALSE)) ->  | E43: =IF($B$30="No Additional Processor",VLOOKUP($B$36, MEM_A1, 15, FALSE),VLOOKUP($B$36, MEM_A2, 15, FALSE)) ->  | F43: =IF($B$30="No Additional Processor",VLOOKUP($B$36, MEM_A1, 16, FALSE),VLOOKUP($B$36, MEM_A2, 16, FALSE)) -> 
B45: Sistema operativo preinstallato
B46: No Operating System | C46: =VLOOKUP($B$46, OS_A, 2, FALSE) ->  | D46: =VLOOKUP($B$46, OS_A, 3, FALSE) ->  | E46: =VLOOKUP($B$46, OS_A, 5, FALSE) ->  | F46: =VLOOKUP($B$46, OS_A, 6, FALSE) -> 
B47: =IF($B$30="No Additional Processor",VLOOKUP($B$46, OS_A, 19, FALSE),VLOOKUP($B$46, OS_A2, 19, FALSE)) ->  | C47: =IF($B$30="No Additional Processor",VLOOKUP($B$46, OS_A, 20, FALSE),VLOOKUP($B$46, OS_A2, 20, FALSE)) -> 0 | D47: =IF($B$30="No Additional Processor",VLOOKUP($B$46, OS_A, 21, FALSE),VLOOKUP($B$46, OS_A2, 21, FALSE)) ->  | E47: =IF($B$30="No Additional Processor",VLOOKUP($B$46, OS_A, 23, FALSE),VLOOKUP($B$46, OS_A2, 23, FALSE)) ->  | F47: =IF($B$30="No Additional Processor",VLOOKUP($B$46, OS_A, 24, FALSE)*C47,VLOOKUP($B$46, OS_A2, 24, FALSE)*C47) -> 0 | H47: =IF(D46="TS1L2-WIN1",3,IF(D46="TS1L2-WINDC1",4,0)) -> 0
B48: =IF($B$30="No Additional Processor",VLOOKUP($B$46, OS_A, 25, FALSE),VLOOKUP($B$46, OS_A2, 25, FALSE)) ->  | C48: =IF($B$30="No Additional Processor",VLOOKUP($B$46, OS_A, 26, FALSE),VLOOKUP($B$46, OS_A2, 26, FALSE)) -> 0 | D48: =IF($B$30="No Additional Processor",VLOOKUP($B$46, OS_A, 27, FALSE),VLOOKUP($B$46, OS_A2, 27, FALSE)) ->  | E48: =IF($B$30="No Additional Processor",VLOOKUP($B$46, OS_A, 29, FALSE),VLOOKUP($B$46, OS_A2, 29, FALSE)) ->  | F48: =IF($B$30="No Additional Processor",VLOOKUP($B$46, OS_A, 30, FALSE)*C48,VLOOKUP($B$46, OS_A2, 30, FALSE)*C48) -> 0
B50: Client Access Licenses
B51: =VLOOKUP($B$46, OS_A, 7, FALSE) -> None | D51: =VLOOKUP($B$46, OS_A, 9, FALSE) ->  | E51: =VLOOKUP($B$46, OS_A, 11, FALSE) ->  | F51: =VLOOKUP($B$46, OS_A, 12, FALSE)*C51 -> 0
B53: =VLOOKUP($B$46, OS_A, 13, FALSE) -> None | D53: =VLOOKUP($B$46, OS_A, 15, FALSE) ->  | E53: =VLOOKUP($B$46, OS_A, 17, FALSE) ->  | F53: =VLOOKUP($B$46, OS_A, 18, FALSE)*C53 -> 0
B55: Sistema opertivo SUSE Linux Enterprise Server
B56: None | C56: =IF(D56="",0,(C26+C27+C30)/2) -> 0 | D56: =VLOOKUP($B$56, SUSE, 3, FALSE) ->  | E56: =VLOOKUP($B$56, SUSE, 5, FALSE) ->  | G56: =VLOOKUP($B$56, SUSE, 6, FALSE)*C56 -> 0
B58: HPE OneView Advanced (with HPE iLO Advanced)
B59: None | C59: =VLOOKUP($B$59, OpzOVAdv, 2, FALSE) -> 0 | D59: =VLOOKUP($B$59, OpzOVAdv, 3, FALSE) ->  | E59: =VLOOKUP($B$59, OpzOVAdv, 5, FALSE) ->  | G59: =VLOOKUP($B$59, OpzOVAdv, 6, FALSE) -> 0
B61: Configurazione dello chassis
B62: HPE DL560 Gen10 8SFF HDD Bay3 Kit | C62: 1 | E62: 872237-B21
B64: HPE DL560 Gen10 8SFF HDD Bay2 Kit | C64: 0 | D64: =VLOOKUP($C$64, HDD_Bay2, 2, FALSE) ->  | E64: =VLOOKUP($C$64, HDD_Bay2, 3, FALSE) ->  | F64: =VLOOKUP($C$64, HDD_Bay2, 4, FALSE) ->  | G64: =VLOOKUP($C$64, HDD_Bay2, 5, FALSE) -> 0
B66: HPE DL560 Gen10 8SFF HDD Bay1 Kit | C66: 0 | D66: =VLOOKUP($C$66, HDD_BAY1, 2, FALSE) ->  | E66: =VLOOKUP($C$66, HDD_BAY1, 3, FALSE) ->  | F66: =VLOOKUP($C$66, HDD_BAY1, 4, FALSE) ->  | G66: =VLOOKUP($C$66, HDD_BAY1, 5, FALSE) -> 0
B68: Controller RAID
B69: HPE Smart Array P408i-a SR G10 LH Ctrlr | C69: 1 | E69: 869081-B21
B71: HPE 96W Smart Storage Battery with 145mm Cable Kit | C71: 1 | E71: P01366-B21
B73: =IF(C64+C66=0,"","HPE DL5x0 Gen10 12Gb SAS Expander Card Kit with Cables") ->  | C73: =IF(C64+C66=0,"",1) ->  | D73: =IF(C64+C66=0,"","S2-873444-B21") ->  | E73: =IF(C64+C66=0,"","873444-B21") ->  | G73: =IF(C64+C66=0,"",540) -> 
B75: =IF(C62+C64+C66=1,"Dischi rigidi (numero massimo totale 8)",(IF(C62+C64+C66=2,"Dischi rigidi (numero massimo totale 16)","Dischi rigidi (numero massimo totale 24)"))) -> Dischi rigidi (numero massimo totale 8)
B76: HPE 300GB SAS 15K SFF SC DS HDD | C76: 2 | E76: 870753-B21
B78: HPE 300GB SAS 15K SFF SC DS HDD | D78: TS1L2-HD300 | E78: 870753-B21 | F78: =C78*156 -> 0
B80: HPE 1.2TB SAS 10K SFF SC DS HDD | D80: TS1L2-HD1200 | E80: 872479-B21 | F80: =C80*292 -> 0
B82: HPE 1.8TB SAS 10K SFF SC DS HDD | D82: TS1L2-HD1800-560 | E82: 872481-B21 | G82: =C82*467 -> 0
B84: HPE 480GB SAS 12G Read Intensive SFF SC DS SSD | D84: S2-875311-B21 | E84: 875311-B21 | G84: =C84*749 -> 0
B86: HPE 960GB SAS 12G Read Intensive SFF SC DS SSD | D86: TS1L2-SSD960-560 | E86: 872390-B21 | G86: =C86*1571 -> 0
B88: HPE 1.92TB SAS 12G Read Intensive SFF SC DS SSD | D88: TS1L2-SSD1920-560 | E88: 875326-B21 | G88: =C88*2667 -> 0
B90: DISCHI TOTALI | C90: =SUM(C76:C89) -> 2 | D90: =IF(C90<=((C62+C64+C66)*8)," OK"," ERRORE: Totale n° di dischi superiore al consentito") -> OK
B92: Configurazione RAID
B93: SCRIVERE QUI' LA CONFIGURAZIONE RAID RICHIESTA. BASE DL560 Gen10 3
B94: Configurazione RAID con HDD 300GB
B95: RAID 1 (2 HDDs) | C95: 1 | E95: =VLOOKUP($B$95, RAID_A1, 2, FALSE) -> 
B96: Hot Spare for 300GB HDD | C96: No
B98: Configurazione RAID con HDD 1TB
C99: 1 | E99: =VLOOKUP($B$99, RAID_A2, 2, FALSE) -> 
B100: Hot Spare for 1TB HDD | C100: No
B102: Alimentatore
B103: HPE 1600W Flex Slot Platinum Hot Plug Low Halogen Power Supply Kit | C103: 2 | E103: 830272-B21
B105: PCIe Riser
B106: Primary Riser | C106: 1
B108: Secondary Riser | C108: 0 | D108: =VLOOKUP($C$108, Riser2, 2, FALSE) ->  | E108: =VLOOKUP($C$108, Riser2, 3, FALSE) ->  | F108: =VLOOKUP($C$108, Riser2, 4, FALSE) ->  | G108: =VLOOKUP($C$108, Riser2, 5, FALSE) -> 0
B110: Tertiary riser | C110: 0 | D110: =VLOOKUP($C$110, Riser3, 2, FALSE) ->  | E110: =VLOOKUP($C$110, Riser3, 3, FALSE) ->  | F110: =VLOOKUP($C$110, Riser3, 4, FALSE) ->  | G110: =VLOOKUP($C$110, Riser3, 5, FALSE) -> 0
B112: Scheda FlexibleLOM
B113: HPE FlexFabric 10Gb 2-port 534FLR-SFP+ Adapter | C113: 1 | E113: 700751-B21
H114: PRIMARY RISER | J114: SECONDARY RISER | K114: TERTIARY RISER
B115: Additional Card for PCIe Slot 1
B116: HPE Ethernet 1Gb 4-port 331T Adapter | C116: 1 | E116: 647594-B21 | G116: 0
B118: Additional Card for PCIe Slot 2
B119: None | C119: =IF(B119=B73,"",VLOOKUP(B119, PCI_A2, 2, FALSE)) ->  | D119: =IF(B119=B73,"",VLOOKUP(B119, PCI_A2, 3, FALSE)) ->  | E119: =IF(B119=B73,"",VLOOKUP(B119, PCI_A2, 5, FALSE)) ->  | F119: =IF(B119=B73,"",VLOOKUP(B119, PCI_A2, 6, FALSE)) ->  | G119: =IF(B119=B73,"",VLOOKUP(B119, PCI_A2, 9, FALSE)) -> 0
B121: Additional Card for PCIe Slot 3
B122: None | C122: =VLOOKUP(B122, PCI_A2, 2, FALSE) ->  | D122: =VLOOKUP(B122, PCI_A2, 3, FALSE) ->  | E122: =VLOOKUP(B122, PCI_A2, 5, FALSE) ->  | F122: =VLOOKUP(B122, PCI_A2, 6, FALSE) ->  | G122: =VLOOKUP(B122, PCI_A2, 9, FALSE) -> 0
B124: Additional Card for PCIe Slot 4
B125: None | C125: =IF($B$125="Aggiungere Secondary Riser","",VLOOKUP($B$125, PCI_A4, 2, FALSE)) ->  | D125: =IF($B$125="Aggiungere Secondary Riser","",VLOOKUP($B$125, PCI_A4, 3, FALSE)) ->  | E125: =IF($B$125="Aggiungere Secondary Riser","",VLOOKUP($B$125, PCI_A4, 5, FALSE)) ->  | F125: =IF($B$125="Aggiungere Secondary Riser","",VLOOKUP($B$125, PCI_A4, 6, FALSE)) ->  | G125: =IF($B$125="Aggiungere Secondary Riser","",VLOOKUP($B$125, PCI_A4, 9, FALSE)) -> 0
B127: Additional Card for PCIe Slot 5
B128: None | C128: =IF($B$128="Aggiungere Secondary Riser","",VLOOKUP($B$128, PCI_A4, 2, FALSE)) ->  | D128: =IF($B$128="Aggiungere Secondary Riser","",VLOOKUP($B$128, PCI_A4, 3, FALSE)) ->  | E128: =IF($B$128="Aggiungere Secondary Riser","",VLOOKUP($B$128, PCI_A4, 5, FALSE)) ->  | F128: =IF($B$128="Aggiungere Secondary Riser","",VLOOKUP($B$128, PCI_A4, 6, FALSE)) ->  | G128: =IF($B$128="Aggiungere Secondary Riser","",VLOOKUP($B$128, PCI_A4, 9, FALSE)) -> 0
B130: Additional Card for PCIe Slot 6
B131: None | C131: =IF($B$131="Aggiungere Secondary Riser","",VLOOKUP($B$131, PCI_A4, 2, FALSE)) ->  | D131: =IF($B$131="Aggiungere Secondary Riser","",VLOOKUP($B$131, PCI_A4, 3, FALSE)) ->  | E131: =IF($B$131="Aggiungere Secondary Riser","",VLOOKUP($B$131, PCI_A4, 5, FALSE)) ->  | F131: =IF($B$131="Aggiungere Secondary Riser","",VLOOKUP($B$131, PCI_A4, 6, FALSE)) ->  | G131: =IF($B$131="Aggiungere Secondary Riser","",VLOOKUP($B$131, PCI_A4, 9, FALSE)) -> 0
B133: Additional Card for PCIe Slot 7
B134: None | C134: =IF($B$134="Aggiungere Tertiary Riser","",VLOOKUP($B$134, PCI_A7, 2, FALSE)) ->  | D134: =IF($B$134="Aggiungere Tertiary Riser","",VLOOKUP($B$134, PCI_A7, 3, FALSE)) ->  | E134: =IF($B$134="Aggiungere Tertiary Riser","",VLOOKUP($B$134, PCI_A7, 5, FALSE)) ->  | F134: =IF($B$134="Aggiungere Tertiary Riser","",VLOOKUP($B$134, PCI_A7, 6, FALSE)) ->  | G134: =IF($B$134="Aggiungere Tertiary Riser","",VLOOKUP($B$134, PCI_A7, 9, FALSE)) -> 0
B136: Additional Card for PCIe Slot 8
B137: None | C137: =IF($B$137="Aggiungere Tertiary Riser","",VLOOKUP($B$137, PCI_A7, 2, FALSE)) ->  | D137: =IF($B$137="Aggiungere Tertiary Riser","",VLOOKUP($B$137, PCI_A7, 3, FALSE)) ->  | E137: =IF($B$137="Aggiungere Tertiary Riser","",VLOOKUP($B$137, PCI_A7, 5, FALSE)) ->  | F137: =IF($B$137="Aggiungere Tertiary Riser","",VLOOKUP($B$137, PCI_A7, 6, FALSE)) ->  | G137: =IF($B$137="Aggiungere Tertiary Riser","",VLOOKUP($B$137, PCI_A7, 9, FALSE)) -> 0
B139: Bezel
B140: None | C140: 1
B142: Unità ottica
B143: HP Mobile USB DVDRW Drive | C143: 1 | E143: 701498-B21
B145: Accessori per Server
B146: HP BLc 10G SFP+ SR Transceiver | C146: =(VLOOKUP(B116,PCI_A1,8,FALSE))+((VLOOKUP(B119,PCI_A2,8,FALSE)))+((VLOOKUP(B122,PCI_A2,8,FALSE)))+((VLOOKUP(B125,PCI_A4,8,FALSE)))+((VLOOKUP(B128,PCI_A4,8,FALSE)))+((VLOOKUP(B131,PCI_A4,8,FALSE)))+((VLOOKUP(B134,PCI_A7,8,FALSE))+((VLOOKUP(B137,PCI_A7,8,FALSE)))) -> 0 | E146: 455883-B21
B148: Estensione di Garanzia
B149: None | C149: =VLOOKUP($B$149, SO_B1,2, FALSE) ->  | D149: =VLOOKUP($B$149, SO_B1, 3, FALSE) ->  | E149: =VLOOKUP($B$149, SO_B1, 5, FALSE) ->  | F149: =VLOOKUP($B$149, SO_B1, 6, FALSE) -> 
B151: Protezione dei dati - Keep Your Hard Drive
B152: None | C152: =VLOOKUP($B$152, SO_A2, 2, FALSE) ->  | D152: =VLOOKUP($B$152, SO_A2, 3, FALSE) ->  | E152: =VLOOKUP($B$152, SO_A2,5, FALSE) ->  | F152: =VLOOKUP($B$152, SO_A2, 6, FALSE) -> 

Sheet Lotto2 DL580 2
A1: IN ROSSO LE OPZIONI 20% | J1: TOTALE CONVENZIONE | K1: =K10 -> 0 | L1: Totale Ulteriori Opzioni | M1: =K8 -> 0
A5: Tecnologie Server1 Lotto2 Base Alternativo DL580
J7: Totale Server e Opzioni | K7: =F17*SRV_BB -> 0
J8: Totale Ulteriori Opzioni | K8: =G16*SRV_BB -> 0
J10: TOTALE CONVENZIONE | K10: =K8+K7 -> 0
A11: Components: Server HP Proliant DL580 Gen10 (2CPU Intel® Xeon® Gold 5518, 64GB , 2xHDD 300GB 15K RPM SAS 12Gbps 2.5in)
A15: Proliant DL580 Gen10 | B15: Category: Server | F15: =3864 -> 3864
B16: Quantity: | F16: =SUM(F20:F188) -> 0 | G16: =SUM(G20:G188) -> 0
F17: =SUM(F15:F16) -> 3864
B19: Base
B20: HPE DL580 Gen10 8SFF CTO Server | C20: 1 | E20: 869854-B21
B22: Processore
B23: HPE DL580 Gen10 Intel® Xeon-Gold 5118 (2.3GHz/12-core/105W) Processor | C23: 1 | E23: 878126-L21
B24: HPE DL580 Gen10 Intel® Xeon-Gold 5118 (2.3GHz/12-core/105W) Processor | C24: 1 | E24: 878126-B21
B26: Processore aggiuntivo
B27: No Additional Processor | C27: =VLOOKUP($B$27, CPU_B, 2, FALSE) -> 0 | D27: =VLOOKUP($B$27, CPU_B, 3, FALSE) ->  | E27: =VLOOKUP($B$27, CPU_B, 5, FALSE) ->  | F27: =VLOOKUP(B27, CPU_B, 12, FALSE) -> 
B29: Mezz Board Option
B30: =VLOOKUP($B$27, CPU_B, 6, FALSE) ->  | C30: =VLOOKUP($B$27, CPU_B, 7, FALSE) ->  | E30: =VLOOKUP($B$27, CPU_B, 8, FALSE) -> 
B32: Memoria Totale in GB | C32: =IF(F27=2584,IF(B33=64,"ATTENZIONE: AUMENTARE LA RAM",""),"") -> 
B33: 64
B35: Capacità di memoria
B36: =IF($B$27="No Additional Processor",VLOOKUP($B$33, MEM_B1, 8, FALSE),VLOOKUP($B$33, MEM_B2, 8, FALSE)) -> HPE 32GB (1x32GB) Dual Rank x4 DDR4-2666 CAS-19-19-19 Registered Smart Memory Kit | C36: =IF($B$27="No Additional Processor",VLOOKUP($B$33, MEM_B1, 9, FALSE),VLOOKUP($B$33, MEM_B2, 9, FALSE)) -> 2 | E36: =IF($B$27="No Additional Processor",VLOOKUP($B$33, MEM_B1, 10, FALSE),VLOOKUP($B$33, MEM_B2, 10, FALSE)) -> 815100-B21
B38: =IF($B$27="No Additional Processor",VLOOKUP($B$33, MEM_B1, 2, FALSE),VLOOKUP($B$33, MEM_B2, 2, FALSE)) ->  | C38: =IF($B$27="No Additional Processor",VLOOKUP($B$33, MEM_B1, 3, FALSE),VLOOKUP($B$33, MEM_B2, 3, FALSE)) ->  | D38: =IF($B$27="No Additional Processor",VLOOKUP($B$33, MEM_B1, 4, FALSE),VLOOKUP($B$33, MEM_B2, 4, FALSE)) ->  | E38: =IF($B$27="No Additional Processor",VLOOKUP($B$33, MEM_B1, 6, FALSE),VLOOKUP($B$33, MEM_B2, 6, FALSE)) ->  | F38: =IF($B$27="No Additional Processor",VLOOKUP($B$33, MEM_B1, 7, FALSE),VLOOKUP($B$33, MEM_B2, 7, FALSE)) -> 
B40: =IF($B$27="No Additional Processor",VLOOKUP($B$33, MEM_B1, 11, FALSE),VLOOKUP($B$33, MEM_B2, 11, FALSE)) ->  | C40: =IF($B$27="No Additional Processor",VLOOKUP($B$33, MEM_B1, 12, FALSE),VLOOKUP($B$33, MEM_B2, 12, FALSE)) ->  | D40: =IF($B$27="No Additional Processor",VLOOKUP($B$33, MEM_B1, 13, FALSE),VLOOKUP($B$33, MEM_B2, 13, FALSE)) ->  | E40: =IF($B$27="No Additional Processor",VLOOKUP($B$33, MEM_B1, 15, FALSE),VLOOKUP($B$33, MEM_B2, 15, FALSE)) ->  | F40: =IF($B$27="No Additional Processor",VLOOKUP($B$33, MEM_B1, 16, FALSE),VLOOKUP($B$33, MEM_B2, 16, FALSE)) -> 
B42: Sistema operativo preinstallato
B43: No Operating System | C43: =VLOOKUP($B$43, OS_B, 2, FALSE) ->  | D43: =VLOOKUP($B$43, OS_B, 3, FALSE) ->  | E43: =VLOOKUP($B$43, OS_B, 5, FALSE) ->  | F43: =VLOOKUP($B$43, OS_B, 6, FALSE) -> 
B44: =IF($B$27="No Additional Processor",VLOOKUP($B$43, OS_B, 19, FALSE),VLOOKUP($B$43, OS_B2, 19, FALSE)) ->  | C44: =IF($B$27="No Additional Processor",VLOOKUP($B$43, OS_B, 20, FALSE),VLOOKUP($B$43, OS_B2, 20, FALSE)) -> 0 | D44: =IF($B$27="No Additional Processor",VLOOKUP($B$43, OS_B, 21, FALSE),VLOOKUP($B$43, OS_B2, 21, FALSE)) ->  | E44: =IF($B$27="No Additional Processor",VLOOKUP($B$43, OS_B, 23, FALSE),VLOOKUP($B$43, OS_B2, 23, FALSE)) ->  | F44: =IF($B$27="No Additional Processor",VLOOKUP($B$43, OS_B, 24, FALSE)*C44,VLOOKUP($B$43, OS_B2, 24, FALSE)*C44) -> 0 | H44: =IF(D43="TS1L2-WIN1",3,IF(D43="TS1L2-WINDC1",4,0)) -> 0
B45: =IF($B$27="No Additional Processor",VLOOKUP($B$43, OS_B, 25, FALSE),VLOOKUP($B$43, OS_B2, 25, FALSE)) ->  | C45: =IF($B$27="No Additional Processor",VLOOKUP($B$43, OS_B, 26, FALSE),VLOOKUP($B$43, OS_B2, 26, FALSE)) -> 0 | D45: =IF($B$27="No Additional Processor",VLOOKUP($B$43, OS_B, 27, FALSE),VLOOKUP($B$43, OS_B2, 27, FALSE)) ->  | E45: =IF($B$27="No Additional Processor",VLOOKUP($B$43, OS_B, 29, FALSE),VLOOKUP($B$43, OS_B2, 29, FALSE)) ->  | F45: =IF($B$27="No Additional Processor",VLOOKUP($B$43, OS_B, 30, FALSE)*C45,VLOOKUP($B$43, OS_B2, 30, FALSE)*C45) -> 0
B47: Client Access Licenses
B48: =VLOOKUP($B$43, OS_B, 7, FALSE) -> None | D48: =VLOOKUP($B$43, OS_B, 9, FALSE) ->  | E48: =VLOOKUP($B$43, OS_B, 11, FALSE) ->  | F48: =VLOOKUP($B$43, OS_B, 12, FALSE)*C48 -> 0
B50: =VLOOKUP($B$43, OS_B, 13, FALSE) -> None | D50: =VLOOKUP($B$43, OS_B, 15, FALSE) ->  | E50: =VLOOKUP($B$43, OS_B, 17, FALSE) ->  | F50: =VLOOKUP($B$43, OS_B, 18, FALSE)*C50 -> 0
B52: Sistema opertivo SUSE Linux Enterprise Server
B53: None | C53: =IF(D53="",0,(C23+C24+C27)/2) -> 0 | D53: =VLOOKUP($B$53, SUSE, 3, FALSE) ->  | E53: =VLOOKUP($B$53, SUSE, 5, FALSE) ->  | G53: =VLOOKUP($B$53, SUSE, 6, FALSE)*C53 -> 0
B55: HPE OneView Advanced (with HPE iLO Advanced)
B56: None | C56: =VLOOKUP($B$56, OpzOVAdv, 2, FALSE) -> 0 | D56: =VLOOKUP($B$56, OpzOVAdv, 3, FALSE) ->  | E56: =VLOOKUP($B$56, OpzOVAdv, 5, FALSE) ->  | G56: =VLOOKUP($B$56, OpzOVAdv, 6, FALSE) -> 0
B58: Configurazione dello chassis
B59: Chassis 16 slot HDD | C59: =IF(C60=0,1,0) -> 1 | E59: 830824-B21
B60: Chassis 48 slot HDD | C60: 0 | D60: =IF(C60=1,"S2-48HDDbay","") ->  | E60: 830824-B21 | G60: =IF(C60=1,1367,0) -> 0
B62: Controller RAID
B63: HPE Smart Array P408i-p SR Gen10 (8 Internal Lanes/2GB Cache) 12G SAS PCIe Plug-in Controller | C63: 1 | E63: 830824-B21
B65: =IF(C59=1,"Dischi rigidi (numero massimo totale 16)","Dischi rigidi (numero massimo totale 48)") -> Dischi rigidi (numero massimo totale 16)
B66: HPE 300GB SAS 15K SFF SC DS HDD | C66: 2 | E66: 870753-B21
B68: HPE 300GB SAS 15K SFF SC DS HDD | D68: TS1L2-HD300 | E68: 870753-B21 | F68: =HD300_B*156 -> 0
B70: HPE 1.2TB SAS 10K SFF SC DS HDD | D70: TS1L2-HD1200 | E70: 872479-B21 | F70: =HD1000_B*292 -> 0
B72: HPE 1.8TB SAS 10K SFF SC DS HDD | D72: TS1L2-HD1800 | E72: 872481-B21 | G72: =C72*467 -> 0
B74: HPE 960GB SAS 12G Read Intensive SFF SC DS SSD | D74: TS1L2-SSD960 | E74: 872390-B21 | G74: =C74*1571 -> 0
B76: HPE 1.92TB SAS 12G Read Intensive SFF SC DS SSD | D76: TS1L2-SSD1920 | E76: 875326-B21 | G76: =C76*2667 -> 0
B78: DISCHI TOTALI | C78: =SUM(C66:C77) -> 2 | D78: =IF(C59=1,IF(C78<=16," OK"," ERRORE: Totale n° di dischi superiore al consentito"),IF(C78<=48," OK"," ERRORE: Totale n° di dischi superiore al consentito")) -> OK
B80: Configurazione RAID
B81: SCRIVERE QUI' LA CONFIGURAZIONE RAID RICHIESTA. BASE ALTERNATIVO DL580 2
B82: RAID 1 (2 HDDs) | C82: 1 | E82: =VLOOKUP($B$82, RAID_BB1, 2, FALSE) -> 
B83: Hot Spare for 300GB HDD | C83: No
B85: Configurazione RAID con HDD 1TB
C86: 1 | E86: =VLOOKUP($B$86, RAID_BB2, 2, FALSE) -> 
B87: Hot Spare for 1TB HDD | C87: No
B89: Alimentatore
B90: HPE 1600W FS Plat Ht Plg LH Pwr Sply Kit | C90: =IF(C98+C97>0,4,IF(G110+G104>5000,4,2)) -> 2 | E90: 830272-B21
B92: Scheda FlexibleLOM
B93: HPE FlexFbr 10Gb 534FLR-SFP+ FIO Adptr | C93: 1 | E93: 700751-B21
B95: PCIe Riser
B96: 7 slot Primary Riser | C96: 1
B97: 9 slot Secondary Riser (48HDD) | C97: =IF(C60=1,1,0) -> 0 | D97: =VLOOKUP($C$97, SlotRiser9, 2, FALSE) ->  | E97: =VLOOKUP($C$97, SlotRiser9, 3, FALSE) ->  | F97: =VLOOKUP($C$98, SlotRiser9, 4, FALSE) ->  | G97: =VLOOKUP($C$97, SlotRiser9, 5, FALSE) -> 0
B98: 9 slot Secondary Riser | C98: 0 | D98: =VLOOKUP($C$98, SlotRiser9, 2, FALSE) ->  | E98: =VLOOKUP($C$98, SlotRiser9, 3, FALSE) ->  | F98: =VLOOKUP($C$98, SlotRiser9, 4, FALSE) ->  | G98: =IF(C60=1,0,VLOOKUP($C$98, SlotRiser9, 5, FALSE)) -> 0
B100: Additional Card for PCIe Slot 1 (CPU3)
B101: None | C101: =IF(B101="Aggiungere Coppia di Processori","",(VLOOKUP(B101,PCI_B5, 2, FALSE))) ->  | D101: =IF(B101="Aggiungere Coppia di Processori","",(VLOOKUP(B101,PCI_B5, 3, FALSE))) ->  | E101: =IF(B101="Aggiungere Coppia di Processori","",(VLOOKUP(B101,PCI_B5, 5, FALSE))) ->  | F101: =IF(B101="Aggiungere Coppia di Processori","",(VLOOKUP(B101,PCI_B5, 6, FALSE))) ->  | G101: =IF(B101="Aggiungere Coppia di Processori","",(VLOOKUP(B101,PCI_B5, 9, FALSE))) -> 0
B103: Additional Card for PCIe Slot 2 (CPU3) (GPU Slot)
B104: None | C104: =IF(B104="Aggiungere Coppia di Processori","",(VLOOKUP(B104,PCI_B6, 2, FALSE))) ->  | D104: =IF(B104="Aggiungere Coppia di Processori","",(VLOOKUP(B104,PCI_B6, 3, FALSE))) ->  | E104: =IF(B104="Aggiungere Coppia di Processori","",(VLOOKUP(B104,PCI_B6, 5, FALSE))) ->  | F104: =IF(B104="Aggiungere Coppia di Processori","",(VLOOKUP(B104,PCI_B6, 6, FALSE))) ->  | G104: =IF(B104="Aggiungere Coppia di Processori","",(VLOOKUP(B104,PCI_B6, 9, FALSE))) -> 0
B106: Additional Card for PCIe Slot 3 (CPU3)
B107: None | C107: =IF(B107="Aggiungere Coppia di Processori","",(VLOOKUP(B107,PCI_B5, 2, FALSE))) ->  | D107: =IF(B107="Aggiungere Coppia di Processori","",(VLOOKUP(B107,PCI_B5, 3, FALSE))) ->  | E107: =IF(B107="Aggiungere Coppia di Processori","",(VLOOKUP(B107,PCI_B5, 5, FALSE))) ->  | F107: =IF(B107="Aggiungere Coppia di Processori","",(VLOOKUP(B107,PCI_B5, 6, FALSE))) ->  | G107: =IF(B107="Aggiungere Coppia di Processori","",(VLOOKUP(B107,PCI_B5, 9, FALSE))) -> 0
B109: Additional Card for PCIe Slot 4 (CPU3) (GPU Slot)
B110: None | C110: =IF(B110="Aggiungere Coppia di Processori","",(VLOOKUP(B110,PCI_B6, 2, FALSE))) ->  | D110: =IF(B110="Aggiungere Coppia di Processori","",(VLOOKUP(B110,PCI_B6, 3, FALSE))) ->  | E110: =IF(B110="Aggiungere Coppia di Processori","",(VLOOKUP(B110,PCI_B6, 5, FALSE))) ->  | F110: =IF(B110="Aggiungere Coppia di Processori","",(VLOOKUP(B110,PCI_B6, 6, FALSE))) ->  | G110: =IF(B110="Aggiungere Coppia di Processori","",(VLOOKUP(B110,PCI_B6, 9, FALSE))) -> 0
B112: Additional Card for PCIe Slot 5 (CPU1)
B113: HPE Ethernet 1Gb 4-port 331T Adapter | C113: 1 | E113: 647594-B21
B115: Additional Card for PCIe Slot 6 (CPU1)
B116: HPE Smart Array P408i-p SR Gen10 Ctrlr | C116: 1 | E116: 830824-B21
B118: Additional Card for PCIe Slot 7 (CPU1)
B119: HPE DL580 Gen10 12G 24-port SAS Expander | C119: 1 | E119: 881101-B21
B121: Additional Card for PCIe Slot 8 (CPU4)
B122: None | C122: =IF(B122="Aggiungere Coppia di Processori","",IF(B122="Aggiungere 9 slot Secondary Riser","",(VLOOKUP(B122,PCI_B5,2,FALSE)))) ->  | D122: =IF(B122="Aggiungere Coppia di Processori","",IF(B122="Aggiungere 9 slot Secondary Riser","",(VLOOKUP(B122,PCI_B5,3,FALSE)))) ->  | E122: =IF(B122="Aggiungere Coppia di Processori","",IF(B122="Aggiungere 9 slot Secondary Riser","",(VLOOKUP(B122,PCI_B5,5,FALSE)))) ->  | F122: =IF(B122="Aggiungere Coppia di Processori","",IF(B122="Aggiungere 9 slot Secondary Riser","",(VLOOKUP(B122,PCI_B5,6,FALSE)))) ->  | G122: =IF(B122="Aggiungere Coppia di Processori","",IF(B122="Aggiungere 9 slot Secondary Riser","",(VLOOKUP(B122,PCI_B5,9,FALSE)))) -> 0
B124: Additional Card for PCIe Slot 9 (CPU4) (GPU Slot)
B125: None | C125: =IF(B125="Aggiungere Coppia di Processori","",IF(B125="Aggiungere 9 slot Secondary Riser","",(VLOOKUP(B125,PCI_B6,2,FALSE)))) ->  | D125: =IF(B125="Aggiungere Coppia di Processori","",IF(B125="Aggiungere 9 slot Secondary Riser","",(VLOOKUP(B125,PCI_B6,3,FALSE)))) ->  | E125: =IF(B125="Aggiungere Coppia di Processori","",IF(B125="Aggiungere 9 slot Secondary Riser","",(VLOOKUP(B125,PCI_B6,5,FALSE)))) ->  | F125: =IF(B125="Aggiungere Coppia di Processori","",IF(B125="Aggiungere 9 slot Secondary Riser","",(VLOOKUP(B125,PCI_B6,6,FALSE)))) ->  | G125: =IF(B125="Aggiungere Coppia di Processori","",IF(B125="Aggiungere 9 slot Secondary Riser","",(VLOOKUP(B125,PCI_B6,9,FALSE)))) -> 0
B127: Additional Card for PCIe Slot 10 (CPU4)
B128: None | C128: =IF(B128="Aggiungere Coppia di Processori","",IF(B128="Aggiungere 9 slot Secondary Riser","",(VLOOKUP(B128,PCI_B5,2,FALSE)))) ->  | D128: =IF(B128="Aggiungere Coppia di Processori","",IF(B128="Aggiungere 9 slot Secondary Riser","",(VLOOKUP(B128,PCI_B5,3,FALSE)))) ->  | E128: =IF(B128="Aggiungere Coppia di Processori","",IF(B128="Aggiungere 9 slot Secondary Riser","",(VLOOKUP(B128,PCI_B5,5,FALSE)))) ->  | F128: =IF(B128="Aggiungere Coppia di Processori","",IF(B128="Aggiungere 9 slot Secondary Riser","",(VLOOKUP(B128,PCI_B5,6,FALSE)))) ->  | G128: =IF(B128="Aggiungere Coppia di Processori","",IF(B128="Aggiungere 9 slot Secondary Riser","",(VLOOKUP(B128,PCI_B5,9,FALSE)))) -> 0
B130: Additional Card for PCIe Slot 11 (CPU4) (GPU Slot)
B131: None | C131: =IF(B131="Aggiungere Coppia di Processori","",IF(B131="Aggiungere 9 slot Secondary Riser","",(VLOOKUP(B131,PCI_B6,2,FALSE)))) ->  | D131: =IF(B131="Aggiungere Coppia di Processori","",IF(B131="Aggiungere 9 slot Secondary Riser","",(VLOOKUP(B131,PCI_B6,3,FALSE)))) ->  | E131: =IF(B131="Aggiungere Coppia di Processori","",IF(B131="Aggiungere 9 slot Secondary Riser","",(VLOOKUP(B131,PCI_B6,5,FALSE)))) ->  | F131: =IF(B131="Aggiungere Coppia di Processori","",IF(B131="Aggiungere 9 slot Secondary Riser","",(VLOOKUP(B131,PCI_B6,6,FALSE)))) ->  | G131: =IF(B131="Aggiungere Coppia di Processori","",IF(B131="Aggiungere 9 slot Secondary Riser","",(VLOOKUP(B131,PCI_B6,9,FALSE)))) -> 0
B133: Additional Card for PCIe Slot 12 (CPU2)
B134: None | C134: =IF(B134="Aggiungere Coppia di Processori","",IF(B134="Aggiungere 9 slot Secondary Riser","",(VLOOKUP(B134,PCI_B5,2,FALSE)))) ->  | D134: =IF(B134="Aggiungere Coppia di Processori","",IF(B134="Aggiungere 9 slot Secondary Riser","",(VLOOKUP(B134,PCI_B5,3,FALSE)))) ->  | E134: =IF(B134="Aggiungere Coppia di Processori","",IF(B134="Aggiungere 9 slot Secondary Riser","",(VLOOKUP(B134,PCI_B5,5,FALSE)))) ->  | F134: =IF(B134="Aggiungere Coppia di Processori","",IF(B134="Aggiungere 9 slot Secondary Riser","",(VLOOKUP(B134,PCI_B5,6,FALSE)))) ->  | G134: =IF(B134="Aggiungere Coppia di Processori","",IF(B134="Aggiungere 9 slot Secondary Riser","",(VLOOKUP(B134,PCI_B5,9,FALSE)))) -> 0
B136: Additional Card for PCIe Slot 13 (CPU2)
B137: None | C137: =IF(B137="Aggiungere Coppia di Processori","",IF(B137="Aggiungere 9 slot Secondary Riser","",(VLOOKUP(B137,PCI_B5,2,FALSE)))) ->  | D137: =IF(B137="Aggiungere Coppia di Processori","",IF(B137="Aggiungere 9 slot Secondary Riser","",(VLOOKUP(B137,PCI_B5,3,FALSE)))) ->  | E137: =IF(B137="Aggiungere Coppia di Processori","",IF(B137="Aggiungere 9 slot Secondary Riser","",(VLOOKUP(B137,PCI_B5,5,FALSE)))) ->  | F137: =IF(B137="Aggiungere Coppia di Processori","",IF(B137="Aggiungere 9 slot Secondary Riser","",(VLOOKUP(B137,PCI_B5,6,FALSE)))) ->  | G137: =IF(B137="Aggiungere Coppia di Processori","",IF(B137="Aggiungere 9 slot Secondary Riser","",(VLOOKUP(B137,PCI_B5,9,FALSE)))) -> 0
B139: Additional Card for PCIe Slot 14 (CPU2)
B140: None | C140: =IF(B140="Aggiungere Coppia di Processori","",IF(B140="Aggiungere 9 slot Secondary Riser","",(VLOOKUP(B140,PCI_B5,2,FALSE)))) ->  | D140: =IF(B140="Aggiungere Coppia di Processori","",IF(B140="Aggiungere 9 slot Secondary Riser","",(VLOOKUP(B140,PCI_B5,3,FALSE)))) ->  | E140: =IF(B140="Aggiungere Coppia di Processori","",IF(B140="Aggiungere 9 slot Secondary Riser","",(VLOOKUP(B140,PCI_B5,5,FALSE)))) ->  | F140: =IF(B140="Aggiungere Coppia di Processori","",IF(B140="Aggiungere 9 slot Secondary Riser","",(VLOOKUP(B140,PCI_B5,6,FALSE)))) ->  | G140: =IF(B140="Aggiungere Coppia di Processori","",IF(B140="Aggiungere 9 slot Secondary Riser","",(VLOOKUP(B140,PCI_B5,9,FALSE)))) -> 0
B142: Additional Card for PCIe Slot 15 (CPU2)
B143: None | C143: =IF(B143="Aggiungere Coppia di Processori","",IF(B143="Aggiungere 9 slot Secondary Riser","",(VLOOKUP(B143,PCI_B4,2,FALSE)))) ->  | D143: =IF(B143="Aggiungere Coppia di Processori","",IF(B143="Aggiungere 9 slot Secondary Riser","",(VLOOKUP(B143,PCI_B4,3,FALSE)))) ->  | E143: =IF(B143="Aggiungere Coppia di Processori","",IF(B143="Aggiungere 9 slot Secondary Riser","",(VLOOKUP(B143,PCI_B4,5,FALSE)))) ->  | F143: =IF(B143="Aggiungere Coppia di Processori","",IF(B143="Aggiungere 9 slot Secondary Riser","",(VLOOKUP(B143,PCI_B4,6,FALSE)))) ->  | G143: =IF(B143="Aggiungere Coppia di Processori","",IF(B143="Aggiungere 9 slot Secondary Riser","",(VLOOKUP(B143,PCI_B4,9,FALSE)))) -> 0
B145: Additional Card for PCIe Slot 16 (CPU2)
B146: None | C146: =IF(B146="Aggiungere Coppia di Processori","",IF(B146="Aggiungere 9 slot Secondary Riser","",(VLOOKUP(B146,PCI_B4,2,FALSE)))) ->  | D146: =IF(B146="Aggiungere Coppia di Processori","",IF(B146="Aggiungere 9 slot Secondary Riser","",(VLOOKUP(B146,PCI_B4,3,FALSE)))) ->  | E146: =IF(B146="Aggiungere Coppia di Processori","",IF(B146="Aggiungere 9 slot Secondary Riser","",(VLOOKUP(B146,PCI_B4,5,FALSE)))) ->  | F146: =IF(B146="Aggiungere Coppia di Processori","",IF(B146="Aggiungere 9 slot Secondary Riser","",(VLOOKUP(B146,PCI_B4,6,FALSE)))) ->  | G146: =IF(B146="Aggiungere Coppia di Processori","",IF(B146="Aggiungere 9 slot Secondary Riser","",(VLOOKUP(B146,PCI_B4,9,FALSE)))) -> 0
B148: Accessori per GPU
B149: HPE DL38x Gen10 8-pin Cable Kit for P6000 GPU | C149: =IF(IF($E$104="Q0v76a",1,0)+IF($E$110="Q0v76a",1,0)+IF($E$125="Q0v76a",1,0)++IF($E$131="Q0v76a",1,0)=0,0,IF(IF($E$104="Q0v76a",1,0)+IF($E$110="Q0v76a",1,0)+IF($E$125="Q0v76a",1,0)++IF($E$131="Q0v76a",1,0)>3,2,1)) -> 0 | D149: TS1-871828 | E149: 871828-B21 | G149: =26*C149 -> 0
E150: =COUNTIF($E$104:$E$131,"Q2N68A")+COUNTIF($E$104:$E$131,"Q0v80a") -> 0
B151: HPE DL38x Gen10 8-pin Keyed Cable Kit for P40 or V100 GPU | C151: =IF(E150=0,0,IF(E150>3,2,1)) -> 0 | D151: TS1-871829 | E151: 871829-B21 | G151: =31*C151 -> 0
B153: HPE DL580 Gen10 GPU Bracket Kit for installation in slots 4 or 11 | C153: =IF($E$110="Q2n68A",1,0)+IF($E$131="Q2n68A",1,0)+IF($E$110="Q0v80a",1,0)+IF($E$131="Q0v80a",1,0)+IF($E$110="Q0v76a",1,0)+IF($E$131="Q0v76a",1,0) -> 0 | D153: TS1-P00268 | E153: P00268-B21 | G153: =33*C153 -> 0
B155: Bezel
B156: None | C156: 1
B158: Accessori per Server
B159: HP BLc 10G SFP+ SR Transceiver | C159: 2 | E159: 455883-B21
B161: Unità ottica
B162: HP Mobile USB DVDRW Drive | C162: 1 | E162: 701498-B21
B164: Estensione di Garanzia
B165: None | C165: =VLOOKUP($B$165, SO_B1,2, FALSE) ->  | D165: =VLOOKUP($B$165, SO_B1, 3, FALSE) ->  | E165: =VLOOKUP($B$165, SO_B1, 5, FALSE) ->  | F165: =VLOOKUP($B$165, SO_B1, 6, FALSE) -> 
B167: Protezione dei dati - Keep Your Hard Drive
B168: None | C168: =VLOOKUP($B$168, SO_BB2, 2, FALSE) ->  | D168: =VLOOKUP($B$168, SO_BB2, 3, FALSE) ->  | E168: =VLOOKUP($B$168, SO_BB2,5, FALSE) ->  | F168: =VLOOKUP($B$168, SO_BB2, 6, FALSE) -> 

Sheet Lotto2 DL580 3
A1: IN ROSSO LE OPZIONI 20% | J1: TOTALE CONVENZIONE | K1: =K10 -> 0 | L1: Totale Ulteriori Opzioni | M1: =K8 -> 0
A5: Tecnologie Server1 Lotto2 Base Alternativo DL580
J7: Totale Server e Opzioni | K7: =F17*SRV_BBB -> 0
J8: Totale Ulteriori Opzioni | K8: =G16*SRV_BBB -> 0
J10: TOTALE CONVENZIONE | K10: =K8+K7 -> 0
A11: Components: Server HP Proliant DL580 Gen10 (2CPU Intel® Xeon® Gold 5518, 64GB , 2xHDD 300GB 15K RPM SAS 12Gbps 2.5in)
A15: Proliant DL580 Gen10 | B15: Category: Server | F15: =3864 -> 3864
B16: Quantity: | F16: =SUM(F20:F169) -> 0 | G16: =SUM(G20:G169) -> 0
F17: =SUM(F15:F16) -> 3864
B19: Base
B20: HPE DL580 Gen10 8SFF CTO Server | C20: 1 | E20: 869854-B21
B22: Processore
B23: HPE DL580 Gen10 Intel® Xeon-Gold 5118 (2.3GHz/12-core/105W) Processor | C23: 1 | E23: 878126-L21
B24: HPE DL580 Gen10 Intel® Xeon-Gold 5118 (2.3GHz/12-core/105W) Processor | C24: 1 | E24: 878126-B21
B26: Processore aggiuntivo
B27: No Additional Processor | C27: =VLOOKUP($B$27, CPU_B, 2, FALSE) -> 0 | D27: =VLOOKUP($B$27, CPU_B, 3, FALSE) ->  | E27: =VLOOKUP($B$27, CPU_B, 5, FALSE) ->  | F27: =VLOOKUP(B27, CPU_B, 12, FALSE) -> 
B29: Mezz Board Option
B30: =VLOOKUP($B$27, CPU_B, 6, FALSE) ->  | C30: =VLOOKUP($B$27, CPU_B, 7, FALSE) ->  | E30: =VLOOKUP($B$27, CPU_B, 8, FALSE) -> 
B32: Memoria Totale in GB | C32: =IF(F27=2584,IF(B33=64,"ATTENZIONE: AUMENTARE LA RAM",""),"") -> 
B33: 64
B35: Capacità di memoria
B36: =IF($B$27="No Additional Processor",VLOOKUP($B$33, MEM_B1, 8, FALSE),VLOOKUP($B$33, MEM_B2, 8, FALSE)) -> HPE 32GB (1x32GB) Dual Rank x4 DDR4-2666 CAS-19-19-19 Registered Smart Memory Kit | C36: =IF($B$27="No Additional Processor",VLOOKUP($B$33, MEM_B1, 9, FALSE),VLOOKUP($B$33, MEM_B2, 9, FALSE)) -> 2 | E36: =IF($B$27="No Additional Processor",VLOOKUP($B$33, MEM_B1, 10, FALSE),VLOOKUP($B$33, MEM_B2, 10, FALSE)) -> 815100-B21
B38: =IF($B$27="No Additional Processor",VLOOKUP($B$33, MEM_B1, 2, FALSE),VLOOKUP($B$33, MEM_B2, 2, FALSE)) ->  | C38: =IF($B$27="No Additional Processor",VLOOKUP($B$33, MEM_B1, 3, FALSE),VLOOKUP($B$33, MEM_B2, 3, FALSE)) ->  | D38: =IF($B$27="No Additional Processor",VLOOKUP($B$33, MEM_B1, 4, FALSE),VLOOKUP($B$33, MEM_B2, 4, FALSE)) ->  | E38: =IF($B$27="No Additional Processor",VLOOKUP($B$33, MEM_B1, 6, FALSE),VLOOKUP($B$33, MEM_B2, 6, FALSE)) ->  | F38: =IF($B$27="No Additional Processor",VLOOKUP($B$33, MEM_B1, 7, FALSE),VLOOKUP($B$33, MEM_B2, 7, FALSE)) -> 
B40: =IF($B$27="No Additional Processor",VLOOKUP($B$33, MEM_B1, 11, FALSE),VLOOKUP($B$33, MEM_B2, 11, FALSE)) ->  | C40: =IF($B$27="No Additional Processor",VLOOKUP($B$33, MEM_B1, 12, FALSE),VLOOKUP($B$33, MEM_B2, 12, FALSE)) ->  | D40: =IF($B$27="No Additional Processor",VLOOKUP($B$33, MEM_B1, 13, FALSE),VLOOKUP($B$33, MEM_B2, 13, FALSE)) ->  | E40: =IF($B$27="No Additional Processor",VLOOKUP($B$33, MEM_B1, 15, FALSE),VLOOKUP($B$33, MEM_B2, 15, FALSE)) ->  | F40: =IF($B$27="No Additional Processor",VLOOKUP($B$33, MEM_B1, 16, FALSE),VLOOKUP($B$33, MEM_B2, 16, FALSE)) -> 
B42: Sistema operativo preinstallato
B43: No Operating System | C43: =VLOOKUP($B$43, OS_B, 2, FALSE) ->  | D43: =VLOOKUP($B$43, OS_B, 3, FALSE) ->  | E43: =VLOOKUP($B$43, OS_B, 5, FALSE) ->  | F43: =VLOOKUP($B$43, OS_B, 6, FALSE) -> 
B44: =IF($B$27="No Additional Processor",VLOOKUP($B$43, OS_B, 19, FALSE),VLOOKUP($B$43, OS_B2, 19, FALSE)) ->  | C44: =IF($B$27="No Additional Processor",VLOOKUP($B$43, OS_B, 20, FALSE),VLOOKUP($B$43, OS_B2, 20, FALSE)) -> 0 | D44: =IF($B$27="No Additional Processor",VLOOKUP($B$43, OS_B, 21, FALSE),VLOOKUP($B$43, OS_B2, 21, FALSE)) ->  | E44: =IF($B$27="No Additional Processor",VLOOKUP($B$43, OS_B, 23, FALSE),VLOOKUP($B$43, OS_B2, 23, FALSE)) ->  | F44: =IF($B$27="No Additional Processor",VLOOKUP($B$43, OS_B, 24, FALSE)*C44,VLOOKUP($B$43, OS_B2, 24, FALSE)*C44) -> 0 | H44: =IF(D43="TS1L2-WIN1",3,IF(D43="TS1L2-WINDC1",4,0)) -> 0
B45: =IF($B$27="No Additional Processor",VLOOKUP($B$43, OS_B, 25, FALSE),VLOOKUP($B$43, OS_B2, 25, FALSE)) ->  | C45: =IF($B$27="No Additional Processor",VLOOKUP($B$43, OS_B, 26, FALSE),VLOOKUP($B$43, OS_B2, 26, FALSE)) -> 0 | D45: =IF($B$27="No Additional Processor",VLOOKUP($B$43, OS_B, 27, FALSE),VLOOKUP($B$43, OS_B2, 27, FALSE)) ->  | E45: =IF($B$27="No Additional Processor",VLOOKUP($B$43, OS_B, 29, FALSE),VLOOKUP($B$43, OS_B2, 29, FALSE)) ->  | F45: =IF($B$27="No Additional Processor",VLOOKUP($B$43, OS_B, 30, FALSE)*C45,VLOOKUP($B$43, OS_B2, 30, FALSE)*C45) -> 0
B47: Client Access Licenses
B48: =VLOOKUP($B$43, OS_B, 7, FALSE) -> None | D48: =VLOOKUP($B$43, OS_B, 9, FALSE) ->  | E48: =VLOOKUP($B$43, OS_B, 11, FALSE) ->  | F48: =VLOOKUP($B$43, OS_B, 12, FALSE)*C48 -> 0
B50: =VLOOKUP($B$43, OS_B, 13, FALSE) -> None | D50: =VLOOKUP($B$43, OS_B, 15, FALSE) ->  | E50: =VLOOKUP($B$43, OS_B, 17, FALSE) ->  | F50: =VLOOKUP($B$43, OS_B, 18, FALSE)*C50 -> 0
B52: Sistema opertivo SUSE Linux Enterprise Server
B53: None | C53: =IF(D53="",0,(C23+C24+C27)/2) -> 0 | D53: =VLOOKUP($B$53, SUSE, 3, FALSE) ->  | E53: =VLOOKUP($B$53, SUSE, 5, FALSE) ->  | G53: =VLOOKUP($B$53, SUSE, 6, FALSE)*C53 -> 0
B55: HPE OneView Advanced (with HPE iLO Advanced)
B56: None | C56: =VLOOKUP($B$56, OpzOVAdv, 2, FALSE) -> 0 | D56: =VLOOKUP($B$56, OpzOVAdv, 3, FALSE) ->  | E56: =VLOOKUP($B$56, OpzOVAdv, 5, FALSE) ->  | G56: =VLOOKUP($B$56, OpzOVAdv, 6, FALSE) -> 0
B58: Configurazione dello chassis
B59: Chassis 16 slot HDD | C59: =IF(C60=0,1,0) -> 1 | E59: 830824-B21
B60: Chassis 48 slot HDD | C60: 0 | D60: =IF(C60=1,"S2-48HDDbay","") ->  | E60: 830824-B21 | G60: =IF(C60=1,1367,0) -> 0
B62: Controller RAID
B63: HPE Smart Array P408i-p SR Gen10 (8 Internal Lanes/2GB Cache) 12G SAS PCIe Plug-in Controller | C63: 1 | E63: 830824-B21
B65: =IF(C59=1,"Dischi rigidi (numero massimo totale 16)","Dischi rigidi (numero massimo totale 48)") -> Dischi rigidi (numero massimo totale 16)
B66: HPE 300GB SAS 15K SFF SC DS HDD | C66: 2 | E66: 870753-B21
B68: HPE 300GB SAS 15K SFF SC DS HDD | D68: TS1L2-HD300 | E68: 870753-B21 | F68: =HD300_B*156 -> 0
B70: HPE 1.2TB SAS 10K SFF SC DS HDD | D70: TS1L2-HD1200 | E70: 872479-B21 | F70: =HD1000_B*292 -> 0
B72: HPE 1.8TB SAS 10K SFF SC DS HDD | D72: TS1L2-HD1800 | E72: 872481-B21 | G72: =C72*467 -> 0
B74: HPE 960GB SAS 12G Read Intensive SFF SC DS SSD | D74: TS1L2-SSD960 | E74: 872390-B21 | G74: =C74*1571 -> 0
B76: HPE 1.92TB SAS 12G Read Intensive SFF SC DS SSD | D76: TS1L2-SSD1920 | E76: 875326-B21 | G76: =C76*2667 -> 0
B78: DISCHI TOTALI | C78: =SUM(C66:C77) -> 2 | D78: =IF(C59=1,IF(C78<=16," OK"," ERRORE: Totale n° di dischi superiore al consentito"),IF(C78<=48," OK"," ERRORE: Totale n° di dischi superiore al consentito")) -> OK
B80: Configurazione RAID
B81: SCRIVERE QUI' LA CONFIGURAZIONE RAID RICHIESTA. BASE ALTERNATIVO DL580 3
B82: RAID 1 (2 HDDs) | C82: 1 | E82: =VLOOKUP($B$82, RAID_BBB1, 2, FALSE) -> [780-BBJK]
B83: Hot Spare for 300GB HDD | C83: No
B85: Configurazione RAID con HDD 1TB
C86: 1 | E86: =VLOOKUP($B$86, RAID_BBB2, 2, FALSE) -> 
B87: Hot Spare for 1TB HDD | C87: No
B89: Alimentatore
B90: HPE 1600W FS Plat Ht Plg LH Pwr Sply Kit | C90: =IF(C98+C97>0,4,IF(G110+G104>5000,4,2)) -> 2 | E90: 830272-B21
B92: Scheda FlexibleLOM
B93: HPE FlexFbr 10Gb 534FLR-SFP+ FIO Adptr | C93: 1 | E93: 700751-B21
B95: PCIe Riser
B96: 7 slot Primary Riser | C96: 1
B97: 9 slot Secondary Riser (48HDD) | C97: =IF(C60=1,1,0) -> 0 | D97: =VLOOKUP($C$97, SlotRiser9, 2, FALSE) ->  | E97: =VLOOKUP($C$97, SlotRiser9, 3, FALSE) ->  | F97: =VLOOKUP($C$98, SlotRiser9, 4, FALSE) ->  | G97: =VLOOKUP($C$97, SlotRiser9, 5, FALSE) -> 0
B98: 9 slot Secondary Riser | C98: 0 | D98: =VLOOKUP($C$98, SlotRiser9, 2, FALSE) ->  | E98: =VLOOKUP($C$98, SlotRiser9, 3, FALSE) ->  | F98: =VLOOKUP($C$98, SlotRiser9, 4, FALSE) ->  | G98: =IF(C60=1,0,VLOOKUP($C$98, SlotRiser9, 5, FALSE)) -> 0
B100: Additional Card for PCIe Slot 1 (CPU3)
B101: None | C101: =IF(B101="Aggiungere Coppia di Processori","",(VLOOKUP(B101,PCI_B5, 2, FALSE))) ->  | D101: =IF(B101="Aggiungere Coppia di Processori","",(VLOOKUP(B101,PCI_B5, 3, FALSE))) ->  | E101: =IF(B101="Aggiungere Coppia di Processori","",(VLOOKUP(B101,PCI_B5, 5, FALSE))) ->  | F101: =IF(B101="Aggiungere Coppia di Processori","",(VLOOKUP(B101,PCI_B5, 6, FALSE))) ->  | G101: =IF(B101="Aggiungere Coppia di Processori","",(VLOOKUP(B101,PCI_B5, 9, FALSE))) -> 0
B103: Additional Card for PCIe Slot 2 (CPU3) (GPU Slot)
B104: None | C104: =IF(B104="Aggiungere Coppia di Processori","",(VLOOKUP(B104,PCI_B6, 2, FALSE))) ->  | D104: =IF(B104="Aggiungere Coppia di Processori","",(VLOOKUP(B104,PCI_B6, 3, FALSE))) ->  | E104: =IF(B104="Aggiungere Coppia di Processori","",(VLOOKUP(B104,PCI_B6, 5, FALSE))) ->  | F104: =IF(B104="Aggiungere Coppia di Processori","",(VLOOKUP(B104,PCI_B6, 6, FALSE))) ->  | G104: =IF(B104="Aggiungere Coppia di Processori","",(VLOOKUP(B104,PCI_B6, 9, FALSE))) -> 0
B106: Additional Card for PCIe Slot 3 (CPU3)
B107: None | C107: =IF(B107="Aggiungere Coppia di Processori","",(VLOOKUP(B107,PCI_B5, 2, FALSE))) ->  | D107: =IF(B107="Aggiungere Coppia di Processori","",(VLOOKUP(B107,PCI_B5, 3, FALSE))) ->  | E107: =IF(B107="Aggiungere Coppia di Processori","",(VLOOKUP(B107,PCI_B5, 5, FALSE))) ->  | F107: =IF(B107="Aggiungere Coppia di Processori","",(VLOOKUP(B107,PCI_B5, 6, FALSE))) ->  | G107: =IF(B107="Aggiungere Coppia di Processori","",(VLOOKUP(B107,PCI_B5, 9, FALSE))) -> 0
B109: Additional Card for PCIe Slot 4 (CPU3) (GPU Slot)
B110: None | C110: =IF(B110="Aggiungere Coppia di Processori","",(VLOOKUP(B110,PCI_B6, 2, FALSE))) ->  | D110: =IF(B110="Aggiungere Coppia di Processori","",(VLOOKUP(B110,PCI_B6, 3, FALSE))) ->  | E110: =IF(B110="Aggiungere Coppia di Processori","",(VLOOKUP(B110,PCI_B6, 5, FALSE))) ->  | F110: =IF(B110="Aggiungere Coppia di Processori","",(VLOOKUP(B110,PCI_B6, 6, FALSE))) ->  | G110: =IF(B110="Aggiungere Coppia di Processori","",(VLOOKUP(B110,PCI_B6, 9, FALSE))) -> 0
B112: Additional Card for PCIe Slot 5 (CPU1)
B113: HPE Ethernet 1Gb 4-port 331T Adapter | C113: 1 | E113: 647594-B21
B115: Additional Card for PCIe Slot 6 (CPU1)
B116: HPE Smart Array P408i-p SR Gen10 Ctrlr | C116: 1 | E116: 830824-B21
B118: Additional Card for PCIe Slot 7 (CPU1)
B119: HPE DL580 Gen10 12G 24-port SAS Expander | C119: 1 | E119: 881101-B21
B121: Additional Card for PCIe Slot 8 (CPU4)
B122: None | C122: =IF(B122="Aggiungere Coppia di Processori","",IF(B122="Aggiungere 9 slot Secondary Riser","",(VLOOKUP(B122,PCI_B5,2,FALSE)))) ->  | D122: =IF(B122="Aggiungere Coppia di Processori","",IF(B122="Aggiungere 9 slot Secondary Riser","",(VLOOKUP(B122,PCI_B5,3,FALSE)))) ->  | E122: =IF(B122="Aggiungere Coppia di Processori","",IF(B122="Aggiungere 9 slot Secondary Riser","",(VLOOKUP(B122,PCI_B5,5,FALSE)))) ->  | F122: =IF(B122="Aggiungere Coppia di Processori","",IF(B122="Aggiungere 9 slot Secondary Riser","",(VLOOKUP(B122,PCI_B5,6,FALSE)))) ->  | G122: =IF(B122="Aggiungere Coppia di Processori","",IF(B122="Aggiungere 9 slot Secondary Riser","",(VLOOKUP(B122,PCI_B5,9,FALSE)))) -> 0
B124: Additional Card for PCIe Slot 9 (CPU4) (GPU Slot)
B125: None | C125: =IF(B125="Aggiungere Coppia di Processori","",IF(B125="Aggiungere 9 slot Secondary Riser","",(VLOOKUP(B125,PCI_B6,2,FALSE)))) ->  | D125: =IF(B125="Aggiungere Coppia di Processori","",IF(B125="Aggiungere 9 slot Secondary Riser","",(VLOOKUP(B125,PCI_B6,3,FALSE)))) ->  | E125: =IF(B125="Aggiungere Coppia di Processori","",IF(B125="Aggiungere 9 slot Secondary Riser","",(VLOOKUP(B125,PCI_B6,5,FALSE)))) ->  | F125: =IF(B125="Aggiungere Coppia di Processori","",IF(B125="Aggiungere 9 slot Secondary Riser","",(VLOOKUP(B125,PCI_B6,6,FALSE)))) ->  | G125: =IF(B125="Aggiungere Coppia di Processori","",IF(B125="Aggiungere 9 slot Secondary Riser","",(VLOOKUP(B125,PCI_B6,9,FALSE)))) -> 0
B127: Additional Card for PCIe Slot 10 (CPU4)
B128: None | C128: =IF(B128="Aggiungere Coppia di Processori","",IF(B128="Aggiungere 9 slot Secondary Riser","",(VLOOKUP(B128,PCI_B5,2,FALSE)))) ->  | D128: =IF(B128="Aggiungere Coppia di Processori","",IF(B128="Aggiungere 9 slot Secondary Riser","",(VLOOKUP(B128,PCI_B5,3,FALSE)))) ->  | E128: =IF(B128="Aggiungere Coppia di Processori","",IF(B128="Aggiungere 9 slot Secondary Riser","",(VLOOKUP(B128,PCI_B5,5,FALSE)))) ->  | F128: =IF(B128="Aggiungere Coppia di Processori","",IF(B128="Aggiungere 9 slot Secondary Riser","",(VLOOKUP(B128,PCI_B5,6,FALSE)))) ->  | G128: =IF(B128="Aggiungere Coppia di Processori","",IF(B128="Aggiungere 9 slot Secondary Riser","",(VLOOKUP(B128,PCI_B5,9,FALSE)))) -> 0
B130: Additional Card for PCIe Slot 11 (CPU4) (GPU Slot)
B131: None | C131: =IF(B131="Aggiungere Coppia di Processori","",IF(B131="Aggiungere 9 slot Secondary Riser","",(VLOOKUP(B131,PCI_B6,2,FALSE)))) ->  | D131: =IF(B131="Aggiungere Coppia di Processori","",IF(B131="Aggiungere 9 slot Secondary Riser","",(VLOOKUP(B131,PCI_B6,3,FALSE)))) ->  | E131: =IF(B131="Aggiungere Coppia di Processori","",IF(B131="Aggiungere 9 slot Secondary Riser","",(VLOOKUP(B131,PCI_B6,5,FALSE)))) ->  | F131: =IF(B131="Aggiungere Coppia di Processori","",IF(B131="Aggiungere 9 slot Secondary Riser","",(VLOOKUP(B131,PCI_B6,6,FALSE)))) ->  | G131: =IF(B131="Aggiungere Coppia di Processori","",IF(B131="Aggiungere 9 slot Secondary Riser","",(VLOOKUP(B131,PCI_B6,9,FALSE)))) -> 0
B133: Additional Card for PCIe Slot 12 (CPU2)
B134: None | C134: =IF(B134="Aggiungere Coppia di Processori","",IF(B134="Aggiungere 9 slot Secondary Riser","",(VLOOKUP(B134,PCI_B5,2,FALSE)))) ->  | D134: =IF(B134="Aggiungere Coppia di Processori","",IF(B134="Aggiungere 9 slot Secondary Riser","",(VLOOKUP(B134,PCI_B5,3,FALSE)))) ->  | E134: =IF(B134="Aggiungere Coppia di Processori","",IF(B134="Aggiungere 9 slot Secondary Riser","",(VLOOKUP(B134,PCI_B5,5,FALSE)))) ->  | F134: =IF(B134="Aggiungere Coppia di Processori","",IF(B134="Aggiungere 9 slot Secondary Riser","",(VLOOKUP(B134,PCI_B5,6,FALSE)))) ->  | G134: =IF(B134="Aggiungere Coppia di Processori","",IF(B134="Aggiungere 9 slot Secondary Riser","",(VLOOKUP(B134,PCI_B5,9,FALSE)))) -> 0
B136: Additional Card for PCIe Slot 13 (CPU2)
B137: None | C137: =IF(B137="Aggiungere Coppia di Processori","",IF(B137="Aggiungere 9 slot Secondary Riser","",(VLOOKUP(B137,PCI_B5,2,FALSE)))) ->  | D137: =IF(B137="Aggiungere Coppia di Processori","",IF(B137="Aggiungere 9 slot Secondary Riser","",(VLOOKUP(B137,PCI_B5,3,FALSE)))) ->  | E137: =IF(B137="Aggiungere Coppia di Processori","",IF(B137="Aggiungere 9 slot Secondary Riser","",(VLOOKUP(B137,PCI_B5,5,FALSE)))) ->  | F137: =IF(B137="Aggiungere Coppia di Processori","",IF(B137="Aggiungere 9 slot Secondary Riser","",(VLOOKUP(B137,PCI_B5,6,FALSE)))) ->  | G137: =IF(B137="Aggiungere Coppia di Processori","",IF(B137="Aggiungere 9 slot Secondary Riser","",(VLOOKUP(B137,PCI_B5,9,FALSE)))) -> 0
B139: Additional Card for PCIe Slot 14 (CPU2)
B140: None | C140: =IF(B140="Aggiungere Coppia di Processori","",IF(B140="Aggiungere 9 slot Secondary Riser","",(VLOOKUP(B140,PCI_B5,2,FALSE)))) ->  | D140: =IF(B140="Aggiungere Coppia di Processori","",IF(B140="Aggiungere 9 slot Secondary Riser","",(VLOOKUP(B140,PCI_B5,3,FALSE)))) ->  | E140: =IF(B140="Aggiungere Coppia di Processori","",IF(B140="Aggiungere 9 slot Secondary Riser","",(VLOOKUP(B140,PCI_B5,5,FALSE)))) ->  | F140: =IF(B140="Aggiungere Coppia di Processori","",IF(B140="Aggiungere 9 slot Secondary Riser","",(VLOOKUP(B140,PCI_B5,6,FALSE)))) ->  | G140: =IF(B140="Aggiungere Coppia di Processori","",IF(B140="Aggiungere 9 slot Secondary Riser","",(VLOOKUP(B140,PCI_B5,9,FALSE)))) -> 0
B142: Additional Card for PCIe Slot 15 (CPU2)
B143: None | C143: =IF(B143="Aggiungere Coppia di Processori","",IF(B143="Aggiungere 9 slot Secondary Riser","",(VLOOKUP(B143,PCI_B4,2,FALSE)))) ->  | D143: =IF(B143="Aggiungere Coppia di Processori","",IF(B143="Aggiungere 9 slot Secondary Riser","",(VLOOKUP(B143,PCI_B4,3,FALSE)))) ->  | E143: =IF(B143="Aggiungere Coppia di Processori","",IF(B143="Aggiungere 9 slot Secondary Riser","",(VLOOKUP(B143,PCI_B4,5,FALSE)))) ->  | F143: =IF(B143="Aggiungere Coppia di Processori","",IF(B143="Aggiungere 9 slot Secondary Riser","",(VLOOKUP(B143,PCI_B4,6,FALSE)))) ->  | G143: =IF(B143="Aggiungere Coppia di Processori","",IF(B143="Aggiungere 9 slot Secondary Riser","",(VLOOKUP(B143,PCI_B4,9,FALSE)))) -> 0
B145: Additional Card for PCIe Slot 16 (CPU2)
B146: None | C146: =IF(B146="Aggiungere Coppia di Processori","",IF(B146="Aggiungere 9 slot Secondary Riser","",(VLOOKUP(B146,PCI_B4,2,FALSE)))) ->  | D146: =IF(B146="Aggiungere Coppia di Processori","",IF(B146="Aggiungere 9 slot Secondary Riser","",(VLOOKUP(B146,PCI_B4,3,FALSE)))) ->  | E146: =IF(B146="Aggiungere Coppia di Processori","",IF(B146="Aggiungere 9 slot Secondary Riser","",(VLOOKUP(B146,PCI_B4,5,FALSE)))) ->  | F146: =IF(B146="Aggiungere Coppia di Processori","",IF(B146="Aggiungere 9 slot Secondary Riser","",(VLOOKUP(B146,PCI_B4,6,FALSE)))) ->  | G146: =IF(B146="Aggiungere Coppia di Processori","",IF(B146="Aggiungere 9 slot Secondary Riser","",(VLOOKUP(B146,PCI_B4,9,FALSE)))) -> 0
B148: Accessori per GPU
B149: HPE DL38x Gen10 8-pin Cable Kit for P6000 GPU | C149: =IF(IF($E$104="Q0v76a",1,0)+IF($E$110="Q0v76a",1,0)+IF($E$125="Q0v76a",1,0)++IF($E$131="Q0v76a",1,0)=0,0,IF(IF($E$104="Q0v76a",1,0)+IF($E$110="Q0v76a",1,0)+IF($E$125="Q0v76a",1,0)++IF($E$131="Q0v76a",1,0)>3,2,1)) -> 0 | D149: TS1-871828 | E149: 871828-B21 | G149: =26*C149 -> 0
E150: =COUNTIF($E$104:$E$131,"Q2N68A")+COUNTIF($E$104:$E$131,"Q0v80a") -> 0
B151: HPE DL38x Gen10 8-pin Keyed Cable Kit for P40 or V100 GPU | C151: =IF(E150=0,0,IF(E150>3,2,1)) -> 0 | D151: TS1-871829 | E151: 871829-B21 | G151: =31*C151 -> 0
B153: HPE DL580 Gen10 GPU Bracket Kit for installation in slots 4 or 11 | C153: =IF($E$110="Q2n68A",1,0)+IF($E$131="Q2n68A",1,0)+IF($E$110="Q0v80a",1,0)+IF($E$131="Q0v80a",1,0)+IF($E$110="Q0v76a",1,0)+IF($E$131="Q0v76a",1,0) -> 0 | D153: TS1-P00268 | E153: P00268-B21 | G153: =33*C153 -> 0
B155: Bezel
B156: None | C156: 1
B158: Accessori per Server
B159: HP BLc 10G SFP+ SR Transceiver | C159: 2 | E159: 455883-B21
B161: Unità ottica
B162: HP Mobile USB DVDRW Drive | C162: 1 | E162: 701498-B21
B164: Estensione di Garanzia
B165: None | C165: =VLOOKUP($B$165, SO_B1,2, FALSE) ->  | D165: =VLOOKUP($B$165, SO_B1, 3, FALSE) ->  | E165: =VLOOKUP($B$165, SO_B1, 5, FALSE) ->  | F165: =VLOOKUP($B$165, SO_B1, 6, FALSE) -> 
B167: Protezione dei dati - Keep Your Hard Drive
B168: None | C168: =VLOOKUP($B$168, SO_BBB2, 2, FALSE) ->  | D168: =VLOOKUP($B$168, SO_BBB2, 3, FALSE) ->  | E168: =VLOOKUP($B$168, SO_BBB2,5, FALSE) ->  | F168: =VLOOKUP($B$168, SO_BBB2, 6, FALSE) -> 

Sheet Lotto2 DL580 Prest 2
A1: IN ROSSO LE OPZIONI 20% | J1: TOTALE CONVENZIONE | K1: =K10 -> 0 | L1: Totale Ulteriori Opzioni | M1: =K8 -> 0
A5: Tecnologie Server1 Lotto2 Prestazionale DL580
J7: Totale Server e Opzioni | K7: =F17*SRV_CC -> 0
J8: Totale Ulteriori Opzioni | K8: =G16*SRV_CC -> 0
J10: TOTALE CONVENZIONE | K10: =K8+K7 -> 0
A11: Components: Server HP Proliant DL580 Gen10 (2CPU Intel® Xeon® Gold 6140M, 128GB , 2xHDD 300GB 15K RPM SAS 12Gbps 2.5in)
A15: Proliant DL580 Gen10 | B15: Category: Server | F15: 6092
B16: Quantity: | F16: =SUM(F20:F203) -> 0 | G16: =SUM(G20:G203) -> 0
F17: =SUM(F15:F16) -> 6092
B19: Base
B20: HPE DL580 Gen10 8SFF CTO Server | C20: 1 | E20: 869854-B21
B22: Processore
B23: HPE DL580 Gen10 Intel® Xeon-Gold 6140M (2.3GHz/18-core/140W) | C23: 1 | E23: 878138-L21
B24: HPE DL580 Gen10 Intel® Xeon-Gold 6140M (2.3GHz/18-core/140W) | C24: 1 | E24: 878138-B21
B26: Processore aggiuntivo
B27: No Additional Processor | C27: =VLOOKUP($B$27, CPU_C, 2, FALSE) -> 0 | D27: =VLOOKUP($B$27, CPU_C, 3, FALSE) ->  | E27: =VLOOKUP($B$27, CPU_C, 5, FALSE) -> 0 | F27: =VLOOKUP(B27, CPU_C, 12, FALSE) -> 
B29: Mezz Board Option
B30: =VLOOKUP($B$27, CPU_C, 6, FALSE) ->  | C30: =VLOOKUP($B$27, CPU_C, 7, FALSE) ->  | E30: =VLOOKUP($B$27, CPU_C, 8, FALSE) -> 
B32: Memoria Totale in GB | C32: =IF(F27=5056,IF(B33=128,"ATTENZIONE: AUMENTARE LA RAM",""),"") -> 
B33: 128
B35: Capacità di memoria
B36: =IF($B$27="No Additional Processor",VLOOKUP($B$33, MEM_C1, 8, FALSE),VLOOKUP($B$33, MEM_C2, 8, FALSE)) -> HPE 32GB (1x32GB) Dual Rank x4 DDR4-2666 CAS-19-19-19 Registered Smart Memory Kit | C36: =IF($B$27="No Additional Processor",VLOOKUP($B$33, MEM_C1, 9, FALSE),VLOOKUP($B$33, MEM_C2, 9, FALSE)) -> 4 | E36: =IF($B$27="No Additional Processor",VLOOKUP($B$33, MEM_C1, 10, FALSE),VLOOKUP($B$33, MEM_C2, 10, FALSE)) -> 815100-B21
B38: =IF($B$27="No Additional Processor",VLOOKUP($B$33, MEM_C1, 2, FALSE),VLOOKUP($B$33, MEM_C2, 2, FALSE)) ->  | C38: =IF($B$27="No Additional Processor",VLOOKUP($B$33, MEM_C1, 3, FALSE),VLOOKUP($B$33, MEM_C2, 3, FALSE)) ->  | D38: =IF($B$27="No Additional Processor",VLOOKUP($B$33, MEM_C1, 4, FALSE),VLOOKUP($B$33, MEM_C2, 4, FALSE)) ->  | E38: =IF($B$27="No Additional Processor",VLOOKUP($B$33, MEM_C1, 6, FALSE),VLOOKUP($B$33, MEM_C2, 6, FALSE)) -> 0 | F38: =IF($B$27="No Additional Processor",VLOOKUP($B$33, MEM_C1, 7, FALSE),VLOOKUP($B$33, MEM_C2, 7, FALSE)) -> 
B40: =IF($B$27="No Additional Processor",VLOOKUP($B$33, MEM_C1, 11, FALSE),VLOOKUP($B$33, MEM_C2, 11, FALSE)) ->  | C40: =IF($B$27="No Additional Processor",VLOOKUP($B$33, MEM_C1, 12, FALSE),VLOOKUP($B$33, MEM_C2, 12, FALSE)) ->  | D40: =IF($B$27="No Additional Processor",VLOOKUP($B$33, MEM_C1, 13, FALSE),VLOOKUP($B$33, MEM_C2, 13, FALSE)) ->  | E40: =IF($B$27="No Additional Processor",VLOOKUP($B$33, MEM_C1, 15, FALSE),VLOOKUP($B$33, MEM_C2, 15, FALSE)) ->  | F40: =IF($B$27="No Additional Processor",VLOOKUP($B$33, MEM_C1, 16, FALSE),VLOOKUP($B$33, MEM_C2, 16, FALSE)) -> 
B42: Sistema operativo preinstallato
B43: No Operating System | C43: =VLOOKUP($B$43, OS_C, 2, FALSE) ->  | D43: =VLOOKUP($B$43, OS_C, 3, FALSE) ->  | E43: =VLOOKUP($B$43, OS_C, 5, FALSE) ->  | F43: =VLOOKUP($B$43, OS_C, 6, FALSE) -> 
B44: =IF($B$27="No Additional Processor",VLOOKUP($B$43, OS_C, 19, FALSE),VLOOKUP($B$43, OS_C2, 19, FALSE)) ->  | C44: =IF($B$27="No Additional Processor",VLOOKUP($B$43, OS_C, 20, FALSE),VLOOKUP($B$43, OS_C2, 20, FALSE)) -> 0 | D44: =IF($B$27="No Additional Processor",VLOOKUP($B$43, OS_C, 21, FALSE),VLOOKUP($B$43, OS_C2, 21, FALSE)) ->  | E44: =IF($B$27="No Additional Processor",VLOOKUP($B$43, OS_C, 23, FALSE),VLOOKUP($B$43, OS_C2, 23, FALSE)) ->  | F44: =IF($B$27="No Additional Processor",VLOOKUP($B$43, OS_C, 24, FALSE)*C44,VLOOKUP($B$43, OS_C2, 24, FALSE)*C44) -> 0 | H44: =IF(D43="TS1L2-WIN1",3,IF(D43="TS1L2-WINDC1",4,0)) -> 0
B45: =IF($B$27="No Additional Processor",VLOOKUP($B$43, OS_C, 25, FALSE),VLOOKUP($B$43, OS_C2, 25, FALSE)) ->  | C45: =IF($B$27="No Additional Processor",VLOOKUP($B$43, OS_C, 26, FALSE),VLOOKUP($B$43, OS_C2, 26, FALSE)) -> 0 | D45: =IF($B$27="No Additional Processor",VLOOKUP($B$43, OS_C, 27, FALSE),VLOOKUP($B$43, OS_C2, 27, FALSE)) ->  | E45: =IF($B$27="No Additional Processor",VLOOKUP($B$43, OS_C, 29, FALSE),VLOOKUP($B$43, OS_C2, 29, FALSE)) ->  | F45: =IF($B$27="No Additional Processor",VLOOKUP($B$43, OS_C, 30, FALSE)*C45,VLOOKUP($B$43, OS_C2, 30, FALSE)*C45) -> 0
B47: Client Access Licenses
B48: =VLOOKUP($B$43, OS_C, 7, FALSE) -> None | D48: =VLOOKUP($B$43, OS_C, 9, FALSE) ->  | E48: =VLOOKUP($B$43, OS_C, 11, FALSE) ->  | F48: =VLOOKUP($B$43, OS_C, 12, FALSE)*C48 -> 0
B50: =VLOOKUP($B$43, OS_C, 13, FALSE) -> None | D50: =VLOOKUP($B$43, OS_C, 15, FALSE) ->  | E50: =VLOOKUP($B$43, OS_C, 17, FALSE) ->  | F50: =VLOOKUP($B$43, OS_C, 18, FALSE)*C50 -> 0
B52: Sistema opertivo SUSE Linux Enterprise Server
B53: None | C53: =IF(D53="",0,(C23+C24+C27)/2) -> 0 | D53: =VLOOKUP($B$53, SUSE, 3, FALSE) ->  | E53: =VLOOKUP($B$53, SUSE, 5, FALSE) ->  | G53: =VLOOKUP($B$53, SUSE, 6, FALSE)*C53 -> 0
B55: HPE OneView Advanced (with HPE iLO Advanced)
B56: None | C56: =VLOOKUP($B$56, OpzOVAdv, 2, FALSE) -> 0 | D56: =VLOOKUP($B$56, OpzOVAdv, 3, FALSE) ->  | E56: =VLOOKUP($B$56, OpzOVAdv, 5, FALSE) ->  | G56: =VLOOKUP($B$56, OpzOVAdv, 6, FALSE) -> 0
B58: Configurazione dello chassis
B59: Chassis 16 slot HDD | C59: =IF(C60=0,1,0) -> 1 | E59: 830824-B21
B60: Chassis 48 slot HDD | C60: 0 | D60: =IF(C60=1,"S2-48HDDbay","") ->  | E60: 830824-B21 | G60: =IF(C60=1,1367,0) -> 0
B62: Controller RAID (PCIe Slot 16)
B63: HPE Smart Array P408i-p SR Gen10 (8 Internal Lanes/2GB Cache) 12G SAS PCIe Plug-in Controller | C63: 1 | E63: 830824-B21
B65: =IF(C59=1,"Dischi rigidi (numero massimo totale 16)","Dischi rigidi (numero massimo totale 48)") -> Dischi rigidi (numero massimo totale 16)
B66: HPE 300GB SAS 15K SFF SC DS HDD | C66: 2 | E66: 870753-B21
B68: HPE 300GB SAS 15K SFF SC DS HDD | D68: TS1L2-HD300 | E68: 870753-B21 | F68: =HD300_C*156 -> 0
B70: HPE 1.2TB SAS 10K SFF SC DS HDD | D70: TS1L2-HD1200 | E70: 872479-B21 | F70: =HD1000_c*292 -> 0
B72: HPE 1.8TB SAS 10K SFF SC DS HDD | D72: TS1L2-HD1800 | E72: 872481-B21 | F72: =C72*467 -> 0
B74: HPE 960GB SAS 12G Read Intensive SFF SC DS SSD | D74: TS1L2-SSD960 | E74: 872390-B21 | F74: =C74*1571 -> 0
B76: HPE 1.92TB SAS 12G Read Intensive SFF SC DS SSD | D76: TS1L2-SSD1920 | E76: 875326-B21 | F76: =C76*2667 -> 0
B78: DISCHI TOTALI | C78: =SUM(C66:C77) -> 2 | D78: =IF(C59=1,IF(C78<=16," OK"," ERRORE: Totale n° di dischi superiore al consentito"),IF(C78<=48," OK"," ERRORE: Totale n° di dischi superiore al consentito")) -> OK
B80: Configurazione RAID
B81: SCRIVERE QUI' LA CONFIGURAZIONE RAID RICHIESTA. DL580 Prestazionale 2
B82: RAID 1 (2 HDDs) | C82: 1 | E82: =VLOOKUP($B$82, RAID_B1, 2, FALSE) -> [780-BBJK]
B83: Hot Spare for 300GB HDD | C83: No
B85: Configurazione RAID con HDD 1TB
C86: 1 | E86: =VLOOKUP($B$86, RAID_B2, 2, FALSE) -> 
B87: Hot Spare for 1TB HDD | C87: No
B89: Alimentatore
B90: HPE 1600W FS Plat Ht Plg LH Pwr Sply Kit | C90: =IF(C27=0,2,4) -> 2 | E90: 830272-B21
B91: HPE 1600W FS Plat Ht Plg LH Pwr Sply Kit | C91: =IF(C27+C60>=2,0,IF(C27+C60=0,0,2)) -> 0 | D91: S2-PwrSply2 | E91: 830272-B21 | G91: =IF(C91=0,0,306) -> 0
B93: Scheda FlexibleLOM
B94: HPE FlexFabric 10Gb 2P 534FLR-SFP+ Adptr | C94: 1 | E94: 700751-B21
B96: Additional Card for PCIe Slot 1 (CPU3)
B97: None | C97: =IF(B97="Aggiungere Coppia di Processori","",(VLOOKUP(B97,PCI_B5, 2, FALSE))) ->  | D97: =IF(B97="Aggiungere Coppia di Processori","",(VLOOKUP(B97,PCI_B5, 3, FALSE))) ->  | E97: =IF(B97="Aggiungere Coppia di Processori","",(VLOOKUP(B97,PCI_B5, 5, FALSE))) ->  | F97: =IF(B97="Aggiungere Coppia di Processori","",(VLOOKUP(B97,PCI_B5, 6, FALSE))) ->  | G97: =IF(B97="Aggiungere Coppia di Processori","",(VLOOKUP(B97,PCI_B5, 9, FALSE))) -> 0
B99: Additional Card for PCIe Slot 2 (CPU3) (GPU Slot)
B100: None | C100: =IF(B100="Aggiungere Coppia di Processori","",(VLOOKUP(B100,PCI_B6, 2, FALSE))) ->  | D100: =IF(B100="Aggiungere Coppia di Processori","",(VLOOKUP(B100,PCI_B6, 3, FALSE))) ->  | E100: =IF(B100="Aggiungere Coppia di Processori","",(VLOOKUP(B100,PCI_B6, 5, FALSE))) ->  | F100: =IF(B100="Aggiungere Coppia di Processori","",(VLOOKUP(B100,PCI_B6, 6, FALSE))) ->  | G100: =IF(B100="Aggiungere Coppia di Processori","",(VLOOKUP(B100,PCI_B6, 9, FALSE))) -> 0
B102: Additional Card for PCIe Slot 3 (CPU3)
B103: None | C103: =IF(B103="Aggiungere Coppia di Processori","",(VLOOKUP(B103,PCI_B5, 2, FALSE))) ->  | D103: =IF(B103="Aggiungere Coppia di Processori","",(VLOOKUP(B103,PCI_B5, 3, FALSE))) ->  | E103: =IF(B103="Aggiungere Coppia di Processori","",(VLOOKUP(B103,PCI_B5, 5, FALSE))) ->  | F103: =IF(B103="Aggiungere Coppia di Processori","",(VLOOKUP(B103,PCI_B5, 6, FALSE))) ->  | G103: =IF(B103="Aggiungere Coppia di Processori","",(VLOOKUP(B103,PCI_B5, 9, FALSE))) -> 0
B105: Additional Card for PCIe Slot 4 (CPU3) (GPU Slot)
B106: None | C106: =IF(B106="Aggiungere Coppia di Processori","",(VLOOKUP(B106,PCI_B6, 2, FALSE))) ->  | D106: =IF(B106="Aggiungere Coppia di Processori","",(VLOOKUP(B106,PCI_B6, 3, FALSE))) ->  | E106: =IF(B106="Aggiungere Coppia di Processori","",(VLOOKUP(B106,PCI_B6, 5, FALSE))) ->  | F106: =IF(B106="Aggiungere Coppia di Processori","",(VLOOKUP(B106,PCI_B6, 6, FALSE))) ->  | G106: =IF(B106="Aggiungere Coppia di Processori","",(VLOOKUP(B106,PCI_B6, 9, FALSE))) -> 0
B108: Additional Card for PCIe Slot 5 (CPU1)
B109: HPE Ethernet 1Gb 4-port 331T Adapter | C109: 1 | E109: 647594-B21
B111: Additional Card for PCIe Slot 6 (CPU1)
B112: HPE Ethernet 1Gb 2-port 332T Adapter | C112: 1 | E112: 647594-B21
B114: Additional Card for PCIe Slot 7 (CPU1)
B115: HPE DL580 Gen10 12G 24-port SAS Expander | C115: 1 | E115: 881101-B21
B117: Additional Card for PCIe Slot 8 (CPU4)
B118: None | C118: =IF(B118="Aggiungere Coppia di Processori","",(VLOOKUP(B118,PCI_B5, 2, FALSE))) ->  | D118: =IF(B118="Aggiungere Coppia di Processori","",(VLOOKUP(B118,PCI_B5, 3, FALSE))) ->  | E118: =IF(B118="Aggiungere Coppia di Processori","",(VLOOKUP(B118,PCI_B5, 5, FALSE))) ->  | F118: =IF(B118="Aggiungere Coppia di Processori","",(VLOOKUP(B118,PCI_B5, 6, FALSE))) ->  | G118: =IF(B118="Aggiungere Coppia di Processori","",(VLOOKUP(B118,PCI_B5, 9, FALSE))) -> 0
B120: Additional Card for PCIe Slot 9 (CPU4) (GPU Slot)
B121: None | C121: =IF(B121="Aggiungere Coppia di Processori","",IF(B121="Aggiungere 9 slot Secondary Riser","",(VLOOKUP(B121,PCI_B6,2,FALSE)))) ->  | D121: =IF(B121="Aggiungere Coppia di Processori","",IF(B121="Aggiungere 9 slot Secondary Riser","",(VLOOKUP(B121,PCI_B6,3,FALSE)))) ->  | E121: =IF(B121="Aggiungere Coppia di Processori","",IF(B121="Aggiungere 9 slot Secondary Riser","",(VLOOKUP(B121,PCI_B6,5,FALSE)))) ->  | F121: =IF(B121="Aggiungere Coppia di Processori","",IF(B121="Aggiungere 9 slot Secondary Riser","",(VLOOKUP(B121,PCI_B6,6,FALSE)))) ->  | G121: =IF(B121="Aggiungere Coppia di Processori","",IF(B121="Aggiungere 9 slot Secondary Riser","",(VLOOKUP(B121,PCI_B6,9,FALSE)))) -> 0
B123: Additional Card for PCIe Slot 10 (CPU4)
B124: None | C124: =IF(B124="Aggiungere Coppia di Processori","",(VLOOKUP(B124,PCI_B5, 2, FALSE))) ->  | D124: =IF(B124="Aggiungere Coppia di Processori","",(VLOOKUP(B124,PCI_B5, 3, FALSE))) ->  | E124: =IF(B124="Aggiungere Coppia di Processori","",(VLOOKUP(B124,PCI_B5, 5, FALSE))) ->  | F124: =IF(B124="Aggiungere Coppia di Processori","",(VLOOKUP(B124,PCI_B5, 6, FALSE))) ->  | G124: =IF(B124="Aggiungere Coppia di Processori","",(VLOOKUP(B124,PCI_B5, 9, FALSE))) -> 0
B126: Additional Card for PCIe Slot 11 (CPU4) (GPU Slot)
B127: None | C127: =IF(B127="Aggiungere Coppia di Processori","",IF(B127="Aggiungere 9 slot Secondary Riser","",(VLOOKUP(B127,PCI_B6,2,FALSE)))) ->  | D127: =IF(B127="Aggiungere Coppia di Processori","",IF(B127="Aggiungere 9 slot Secondary Riser","",(VLOOKUP(B127,PCI_B6,3,FALSE)))) ->  | E127: =IF(B127="Aggiungere Coppia di Processori","",IF(B127="Aggiungere 9 slot Secondary Riser","",(VLOOKUP(B127,PCI_B6,5,FALSE)))) ->  | F127: =IF(B127="Aggiungere Coppia di Processori","",IF(B127="Aggiungere 9 slot Secondary Riser","",(VLOOKUP(B127,PCI_B6,6,FALSE)))) ->  | G127: =IF(B127="Aggiungere Coppia di Processori","",IF(B127="Aggiungere 9 slot Secondary Riser","",(VLOOKUP(B127,PCI_B6,9,FALSE)))) -> 0
B129: Additional Card for PCIe Slot 12 (CPU2)
B130: None | C130: =VLOOKUP(B130, PCI_B2, 2, FALSE) ->  | D130: =VLOOKUP(B130, PCI_B2, 3, FALSE) ->  | E130: =VLOOKUP(B130, PCI_B2, 5, FALSE) ->  | F130: =VLOOKUP(B130, PCI_B2, 6, FALSE) ->  | G130: =VLOOKUP(B130, PCI_B2, 9, FALSE) -> 0
B132: Additional Card for PCIe Slot 13 (CPU2)
B133: None | C133: =VLOOKUP(B133, PCI_B2, 2, FALSE) ->  | D133: =VLOOKUP(B133, PCI_B2, 3, FALSE) ->  | E133: =VLOOKUP(B133, PCI_B2, 5, FALSE) ->  | F133: =VLOOKUP(B133, PCI_B2, 6, FALSE) ->  | G133: =VLOOKUP(B133, PCI_B2, 9, FALSE) -> 0
B135: Additional Card for PCIe Slot 14 (CPU2)
B136: None | C136: =IF(B136="Aggiungere Coppia di Processori","",(VLOOKUP(B136,PCI_B4,2,FALSE))) ->  | D136: =IF(B136="Aggiungere Coppia di Processori","",(VLOOKUP(B136,PCI_B4,3,FALSE))) ->  | E136: =IF($B$136="Aggiungere Coppia di Processori","",(VLOOKUP($B$136,PCI_B4,5,FALSE))) ->  | F136: =IF($B$136="Aggiungere Coppia di Processori","",(VLOOKUP($B$136,PCI_B4,6,FALSE))) ->  | G136: =IF($B$136="Aggiungere Coppia di Processori","",(VLOOKUP($B$136,PCI_B4,9,FALSE))) -> 0
B138: Additional Card for PCIe Slot 15 (CPU2)
B139: None | C139: =IF(B139="Aggiungere Coppia di Processori","",(VLOOKUP(B139,PCI_B4,2,FALSE))) ->  | D139: =IF(B139="Aggiungere Coppia di Processori","",(VLOOKUP(B139,PCI_B4,3,FALSE))) ->  | E139: =IF($B$139="Aggiungere Coppia di Processori","",(VLOOKUP($B$139,PCI_B4,5,FALSE))) ->  | F139: =IF($B$139="Aggiungere Coppia di Processori","",(VLOOKUP($B$139,PCI_B4,6,FALSE))) ->  | G139: =IF($B$139="Aggiungere Coppia di Processori","",(VLOOKUP($B$139,PCI_B4,9,FALSE))) -> 0
B141: Additional Card for PCIe Slot 16 (CPU2)
B142: HPE Smart Array P408i-p SR Gen10 Ctrlr | C142: 1 | E142: 830824-B21
B144: Accessori per GPU
B145: HPE DL38x Gen10 8-pin Cable Kit for P6000 GPU | C145: =IF(IF($E$100="Q0v76a",1,0)+IF($E$106="Q0v76a",1,0)+IF($E$121="Q0v76a",1,0)++IF($E$127="Q0v76a",1,0)=0,0,IF(IF($E$100="Q0v76a",1,0)+IF($E$106="Q0v76a",1,0)+IF($E$121="Q0v76a",1,0)++IF($E$127="Q0v76a",1,0)>3,2,1)) -> 0 | D145: TS1-871828 | E145: 871828-B21 | G145: =26*C145 -> 0
E146: =COUNTIF($E$100:$E$127,"Q2N68A")+COUNTIF($E$100:$E$127,"Q0v80a") -> 0
B147: HPE DL38x Gen10 8-pin Keyed Cable Kit for P40 or V100 GPU | C147: =IF(E146=0,0,IF(E146>3,2,1)) -> 0 | D147: TS1-871829 | E147: 871829-B21 | G147: =31*C147 -> 0
B149: HPE DL580 Gen10 GPU Bracket Kit for installation in slots 4 or 11 | C149: =IF($E$106="Q2n68A",1,0)+IF($E$127="Q2n68A",1,0)+IF($E$106="Q0v80a",1,0)+IF($E$127="Q0v80a",1,0)+IF($E$106="Q0v76a",1,0)+IF($E$127="Q0v76a",1,0) -> 0 | D149: TS1-P00268 | E149: P00268-B21 | G149: =33*C149 -> 0
B151: Bezel
B152: None | C152: 1
B154: Accessori per Server
B155: HP BLc 10G SFP+ SR Transceiver | C155: 2 | E155: 455883-B21
B157: Unità ottica
B158: HP Mobile USB DVDRW Drive | C158: 1 | E158: 701498-B21
B160: Estensione di Garanzia
B161: None | C161: =VLOOKUP($B$161, SO_B1,2, FALSE) ->  | D161: =VLOOKUP($B$161, SO_B1, 3, FALSE) ->  | E161: =VLOOKUP($B$161, SO_B1, 5, FALSE) ->  | F161: =VLOOKUP($B$161, SO_B1, 6, FALSE) -> 
B163: Protezione dei dati - Keep Your Hard Drive
B164: None | C164: =VLOOKUP($B$164, SO_B2, 2, FALSE) ->  | D164: =VLOOKUP($B$164, SO_B2, 3, FALSE) ->  | E164: =VLOOKUP($B$164, SO_B2,5, FALSE) ->  | F164: =VLOOKUP($B$164, SO_B2, 6, FALSE) -> 

Sheet Lotto2 DL580 Prest 3
A1: IN ROSSO LE OPZIONI 20% | J1: TOTALE CONVENZIONE | K1: =K10 -> 0 | L1: Totale Ulteriori Opzioni | M1: =K8 -> 0
A5: Tecnologie Server1 Lotto2 Prestazionale DL580
J7: Totale Server e Opzioni | K7: =F17*SRV_CCC -> 0
J8: Totale Ulteriori Opzioni | K8: =G16*SRV_CCC -> 0
J10: TOTALE CONVENZIONE | K10: =K8+K7 -> 0
A11: Components: Server HP Proliant DL580 Gen10 (2CPU Intel® Xeon® Gold 6140M, 128GB , 2xHDD 300GB 15K RPM SAS 12Gbps 2.5in)
A15: Proliant DL580 Gen10 | B15: Category: Server | F15: 6092
B16: Quantity: | F16: =SUM(F20:F203) -> 0 | G16: =SUM(G20:G203) -> 0
F17: =SUM(F15:F16) -> 6092
B19: Base
B20: HPE DL580 Gen10 8SFF CTO Server | C20: 1 | E20: 869854-B21
B22: Processore
B23: HPE DL580 Gen10 Intel® Xeon-Gold 6140M (2.3GHz/18-core/140W) | C23: 1 | E23: 878138-L21
B24: HPE DL580 Gen10 Intel® Xeon-Gold 6140M (2.3GHz/18-core/140W) | C24: 1 | E24: 878138-B21
B26: Processore aggiuntivo
B27: No Additional Processor | C27: =VLOOKUP($B$27, CPU_C, 2, FALSE) -> 0 | D27: =VLOOKUP($B$27, CPU_C, 3, FALSE) ->  | E27: =VLOOKUP($B$27, CPU_C, 5, FALSE) -> 0 | F27: =VLOOKUP(B27, CPU_C, 12, FALSE) -> 
B29: Mezz Board Option
B30: =VLOOKUP($B$27, CPU_C, 6, FALSE) ->  | C30: =VLOOKUP($B$27, CPU_C, 7, FALSE) ->  | E30: =VLOOKUP($B$27, CPU_C, 8, FALSE) -> 
B32: Memoria Totale in GB | C32: =IF(F27=5056,IF(B33=128,"ATTENZIONE: AUMENTARE LA RAM",""),"") -> 
B33: 128
B35: Capacità di memoria
B36: =IF($B$27="No Additional Processor",VLOOKUP($B$33, MEM_C1, 8, FALSE),VLOOKUP($B$33, MEM_C2, 8, FALSE)) -> HPE 32GB (1x32GB) Dual Rank x4 DDR4-2666 CAS-19-19-19 Registered Smart Memory Kit | C36: =IF($B$27="No Additional Processor",VLOOKUP($B$33, MEM_C1, 9, FALSE),VLOOKUP($B$33, MEM_C2, 9, FALSE)) -> 4 | E36: =IF($B$27="No Additional Processor",VLOOKUP($B$33, MEM_C1, 10, FALSE),VLOOKUP($B$33, MEM_C2, 10, FALSE)) -> 815100-B21
B38: =IF($B$27="No Additional Processor",VLOOKUP($B$33, MEM_C1, 2, FALSE),VLOOKUP($B$33, MEM_C2, 2, FALSE)) ->  | C38: =IF($B$27="No Additional Processor",VLOOKUP($B$33, MEM_C1, 3, FALSE),VLOOKUP($B$33, MEM_C2, 3, FALSE)) ->  | D38: =IF($B$27="No Additional Processor",VLOOKUP($B$33, MEM_C1, 4, FALSE),VLOOKUP($B$33, MEM_C2, 4, FALSE)) ->  | E38: =IF($B$27="No Additional Processor",VLOOKUP($B$33, MEM_C1, 6, FALSE),VLOOKUP($B$33, MEM_C2, 6, FALSE)) -> 0 | F38: =IF($B$27="No Additional Processor",VLOOKUP($B$33, MEM_C1, 7, FALSE),VLOOKUP($B$33, MEM_C2, 7, FALSE)) -> 
B40: =IF($B$27="No Additional Processor",VLOOKUP($B$33, MEM_C1, 11, FALSE),VLOOKUP($B$33, MEM_C2, 11, FALSE)) ->  | C40: =IF($B$27="No Additional Processor",VLOOKUP($B$33, MEM_C1, 12, FALSE),VLOOKUP($B$33, MEM_C2, 12, FALSE)) ->  | D40: =IF($B$27="No Additional Processor",VLOOKUP($B$33, MEM_C1, 13, FALSE),VLOOKUP($B$33, MEM_C2, 13, FALSE)) ->  | E40: =IF($B$27="No Additional Processor",VLOOKUP($B$33, MEM_C1, 15, FALSE),VLOOKUP($B$33, MEM_C2, 15, FALSE)) ->  | F40: =IF($B$27="No Additional Processor",VLOOKUP($B$33, MEM_C1, 16, FALSE),VLOOKUP($B$33, MEM_C2, 16, FALSE)) -> 
B42: Sistema operativo preinstallato
B43: No Operating System | C43: =VLOOKUP($B$43, OS_C, 2, FALSE) ->  | D43: =VLOOKUP($B$43, OS_C, 3, FALSE) ->  | E43: =VLOOKUP($B$43, OS_C, 5, FALSE) ->  | F43: =VLOOKUP($B$43, OS_C, 6, FALSE) -> 
B44: =IF($B$27="No Additional Processor",VLOOKUP($B$43, OS_C, 19, FALSE),VLOOKUP($B$43, OS_C2, 19, FALSE)) ->  | C44: =IF($B$27="No Additional Processor",VLOOKUP($B$43, OS_C, 20, FALSE),VLOOKUP($B$43, OS_C2, 20, FALSE)) -> 0 | D44: =IF($B$27="No Additional Processor",VLOOKUP($B$43, OS_C, 21, FALSE),VLOOKUP($B$43, OS_C2, 21, FALSE)) ->  | E44: =IF($B$27="No Additional Processor",VLOOKUP($B$43, OS_C, 23, FALSE),VLOOKUP($B$43, OS_C2, 23, FALSE)) ->  | F44: =IF($B$27="No Additional Processor",VLOOKUP($B$43, OS_C, 24, FALSE)*C44,VLOOKUP($B$43, OS_C2, 24, FALSE)*C44) -> 0 | H44: =IF(D43="TS1L2-WIN1",3,IF(D43="TS1L2-WINDC1",4,0)) -> 0
B45: =IF($B$27="No Additional Processor",VLOOKUP($B$43, OS_C, 25, FALSE),VLOOKUP($B$43, OS_C2, 25, FALSE)) ->  | C45: =IF($B$27="No Additional Processor",VLOOKUP($B$43, OS_C, 26, FALSE),VLOOKUP($B$43, OS_C2, 26, FALSE)) -> 0 | D45: =IF($B$27="No Additional Processor",VLOOKUP($B$43, OS_C, 27, FALSE),VLOOKUP($B$43, OS_C2, 27, FALSE)) ->  | E45: =IF($B$27="No Additional Processor",VLOOKUP($B$43, OS_C, 29, FALSE),VLOOKUP($B$43, OS_C2, 29, FALSE)) ->  | F45: =IF($B$27="No Additional Processor",VLOOKUP($B$43, OS_C, 30, FALSE)*C45,VLOOKUP($B$43, OS_C2, 30, FALSE)*C45) -> 0
B47: Client Access Licenses
B48: =VLOOKUP($B$43, OS_C, 7, FALSE) -> None | D48: =VLOOKUP($B$43, OS_C, 9, FALSE) ->  | E48: =VLOOKUP($B$43, OS_C, 11, FALSE) ->  | F48: =VLOOKUP($B$43, OS_C, 12, FALSE)*C48 -> 0
B50: =VLOOKUP($B$43, OS_C, 13, FALSE) -> None | D50: =VLOOKUP($B$43, OS_C, 15, FALSE) ->  | E50: =VLOOKUP($B$43, OS_C, 17, FALSE) ->  | F50: =VLOOKUP($B$43, OS_C, 18, FALSE)*C50 -> 0
B52: Sistema opertivo SUSE Linux Enterprise Server
B53: None | C53: =IF(D53="",0,(C23+C24+C27)/2) -> 0 | D53: =VLOOKUP($B$53, SUSE, 3, FALSE) ->  | E53: =VLOOKUP($B$53, SUSE, 5, FALSE) ->  | G53: =VLOOKUP($B$53, SUSE, 6, FALSE)*C53 -> 0
B55: HPE OneView Advanced (with HPE iLO Advanced)
B56: None | C56: =VLOOKUP($B$56, OpzOVAdv, 2, FALSE) -> 0 | D56: =VLOOKUP($B$56, OpzOVAdv, 3, FALSE) ->  | E56: =VLOOKUP($B$56, OpzOVAdv, 5, FALSE) ->  | G56: =VLOOKUP($B$56, OpzOVAdv, 6, FALSE) -> 0
B58: Configurazione dello chassis
B59: Chassis 16 slot HDD | C59: =IF(C60=0,1,0) -> 1 | E59: 830824-B21
B60: Chassis 48 slot HDD | C60: 0 | D60: =IF(C60=1,"S2-48HDDbay","") ->  | E60: 830824-B21 | G60: =IF(C60=1,1367,0) -> 0
B62: Controller RAID (PCIe Slot 16)
B63: HPE Smart Array P408i-p SR Gen10 (8 Internal Lanes/2GB Cache) 12G SAS PCIe Plug-in Controller | C63: 1 | E63: 830824-B21
B65: =IF(C59=1,"Dischi rigidi (numero massimo totale 16)","Dischi rigidi (numero massimo totale 48)") -> Dischi rigidi (numero massimo totale 16)
B66: HPE 300GB SAS 15K SFF SC DS HDD | C66: 2 | E66: 870753-B21
B68: HPE 300GB SAS 15K SFF SC DS HDD | D68: TS1L2-HD300 | E68: 870753-B21 | F68: =HD300_C*156 -> 0
B70: HPE 1.2TB SAS 10K SFF SC DS HDD | D70: TS1L2-HD1200 | E70: 872479-B21 | F70: =HD1000_c*292 -> 0
B72: HPE 1.8TB SAS 10K SFF SC DS HDD | D72: TS1L2-HD1800 | E72: 872481-B21 | F72: =C72*467 -> 0
B74: HPE 960GB SAS 12G Read Intensive SFF SC DS SSD | D74: TS1L2-SSD960 | E74: 872390-B21 | F74: =C74*1571 -> 0
B76: HPE 1.92TB SAS 12G Read Intensive SFF SC DS SSD | D76: TS1L2-SSD1920 | E76: 875326-B21 | F76: =C76*2667 -> 0
B78: DISCHI TOTALI | C78: =SUM(C66:C77) -> 2 | D78: =IF(C59=1,IF(C78<=16," OK"," ERRORE: Totale n° di dischi superiore al consentito"),IF(C78<=48," OK"," ERRORE: Totale n° di dischi superiore al consentito")) -> OK
B80: Configurazione RAID
B81: SCRIVERE QUI' LA CONFIGURAZIONE RAID RICHIESTA. DL580 Prestazionale 3
B82: RAID 1 (2 HDDs) | C82: 1 | E82: =VLOOKUP($B$82, RAID_B1, 2, FALSE) -> [780-BBJK]
B83: Hot Spare for 300GB HDD | C83: No
B85: Configurazione RAID con HDD 1TB
C86: 1 | E86: =VLOOKUP($B$86, RAID_B2, 2, FALSE) -> 
B87: Hot Spare for 1TB HDD | C87: No
B89: Alimentatore
B90: HPE 1600W FS Plat Ht Plg LH Pwr Sply Kit | C90: =IF(C27=0,2,4) -> 2 | E90: 830272-B21
B91: HPE 1600W FS Plat Ht Plg LH Pwr Sply Kit | C91: =IF(C27+C60>=2,0,IF(C27+C60=0,0,2)) -> 0 | D91: S2-PwrSply2 | E91: 830272-B21 | G91: =IF(C91=0,0,306) -> 0
B93: Scheda FlexibleLOM
B94: HPE FlexFabric 10Gb 2P 534FLR-SFP+ Adptr | C94: 1 | E94: 700751-B21
B96: Additional Card for PCIe Slot 1 (CPU3)
B97: None | C97: =IF(B97="Aggiungere Coppia di Processori","",(VLOOKUP(B97,PCI_B5, 2, FALSE))) ->  | D97: =IF(B97="Aggiungere Coppia di Processori","",(VLOOKUP(B97,PCI_B5, 3, FALSE))) ->  | E97: =IF(B97="Aggiungere Coppia di Processori","",(VLOOKUP(B97,PCI_B5, 5, FALSE))) ->  | F97: =IF(B97="Aggiungere Coppia di Processori","",(VLOOKUP(B97,PCI_B5, 6, FALSE))) ->  | G97: =IF(B97="Aggiungere Coppia di Processori","",(VLOOKUP(B97,PCI_B5, 9, FALSE))) -> 0
B99: Additional Card for PCIe Slot 2 (CPU3) (GPU Slot)
B100: None | C100: =IF(B100="Aggiungere Coppia di Processori","",(VLOOKUP(B100,PCI_B6, 2, FALSE))) ->  | D100: =IF(B100="Aggiungere Coppia di Processori","",(VLOOKUP(B100,PCI_B6, 3, FALSE))) ->  | E100: =IF(B100="Aggiungere Coppia di Processori","",(VLOOKUP(B100,PCI_B6, 5, FALSE))) ->  | F100: =IF(B100="Aggiungere Coppia di Processori","",(VLOOKUP(B100,PCI_B6, 6, FALSE))) ->  | G100: =IF(B100="Aggiungere Coppia di Processori","",(VLOOKUP(B100,PCI_B6, 9, FALSE))) -> 0
B102: Additional Card for PCIe Slot 3 (CPU3)
B103: None | C103: =IF(B103="Aggiungere Coppia di Processori","",(VLOOKUP(B103,PCI_B5, 2, FALSE))) ->  | D103: =IF(B103="Aggiungere Coppia di Processori","",(VLOOKUP(B103,PCI_B5, 3, FALSE))) ->  | E103: =IF(B103="Aggiungere Coppia di Processori","",(VLOOKUP(B103,PCI_B5, 5, FALSE))) ->  | F103: =IF(B103="Aggiungere Coppia di Processori","",(VLOOKUP(B103,PCI_B5, 6, FALSE))) ->  | G103: =IF(B103="Aggiungere Coppia di Processori","",(VLOOKUP(B103,PCI_B5, 9, FALSE))) -> 0
B105: Additional Card for PCIe Slot 4 (CPU3) (GPU Slot)
B106: None | C106: =IF(B106="Aggiungere Coppia di Processori","",(VLOOKUP(B106,PCI_B6, 2, FALSE))) ->  | D106: =IF(B106="Aggiungere Coppia di Processori","",(VLOOKUP(B106,PCI_B6, 3, FALSE))) ->  | E106: =IF(B106="Aggiungere Coppia di Processori","",(VLOOKUP(B106,PCI_B6, 5, FALSE))) ->  | F106: =IF(B106="Aggiungere Coppia di Processori","",(VLOOKUP(B106,PCI_B6, 6, FALSE))) ->  | G106: =IF(B106="Aggiungere Coppia di Processori","",(VLOOKUP(B106,PCI_B6, 9, FALSE))) -> 0
B108: Additional Card for PCIe Slot 5 (CPU1)
B109: HPE Ethernet 1Gb 4-port 331T Adapter | C109: 1 | E109: 647594-B21
B111: Additional Card for PCIe Slot 6 (CPU1)
B112: HPE Ethernet 1Gb 2-port 332T Adapter | C112: 1 | E112: 647594-B21
B114: Additional Card for PCIe Slot 7 (CPU1)
B115: HPE DL580 Gen10 12G 24-port SAS Expander | C115: 1 | E115: 881101-B21
B117: Additional Card for PCIe Slot 8 (CPU4)
B118: None | C118: =IF(B118="Aggiungere Coppia di Processori","",(VLOOKUP(B118,PCI_B5, 2, FALSE))) ->  | D118: =IF(B118="Aggiungere Coppia di Processori","",(VLOOKUP(B118,PCI_B5, 3, FALSE))) ->  | E118: =IF(B118="Aggiungere Coppia di Processori","",(VLOOKUP(B118,PCI_B5, 5, FALSE))) ->  | F118: =IF(B118="Aggiungere Coppia di Processori","",(VLOOKUP(B118,PCI_B5, 6, FALSE))) ->  | G118: =IF(B118="Aggiungere Coppia di Processori","",(VLOOKUP(B118,PCI_B5, 9, FALSE))) -> 0
B120: Additional Card for PCIe Slot 9 (CPU4) (GPU Slot)
B121: None | C121: =IF(B121="Aggiungere Coppia di Processori","",IF(B121="Aggiungere 9 slot Secondary Riser","",(VLOOKUP(B121,PCI_B6,2,FALSE)))) ->  | D121: =IF(B121="Aggiungere Coppia di Processori","",IF(B121="Aggiungere 9 slot Secondary Riser","",(VLOOKUP(B121,PCI_B6,3,FALSE)))) ->  | E121: =IF(B121="Aggiungere Coppia di Processori","",IF(B121="Aggiungere 9 slot Secondary Riser","",(VLOOKUP(B121,PCI_B6,5,FALSE)))) ->  | F121: =IF(B121="Aggiungere Coppia di Processori","",IF(B121="Aggiungere 9 slot Secondary Riser","",(VLOOKUP(B121,PCI_B6,6,FALSE)))) ->  | G121: =IF(B121="Aggiungere Coppia di Processori","",IF(B121="Aggiungere 9 slot Secondary Riser","",(VLOOKUP(B121,PCI_B6,9,FALSE)))) -> 0
B123: Additional Card for PCIe Slot 10 (CPU4)
B124: None | C124: =IF(B124="Aggiungere Coppia di Processori","",(VLOOKUP(B124,PCI_B5, 2, FALSE))) ->  | D124: =IF(B124="Aggiungere Coppia di Processori","",(VLOOKUP(B124,PCI_B5, 3, FALSE))) ->  | E124: =IF(B124="Aggiungere Coppia di Processori","",(VLOOKUP(B124,PCI_B5, 5, FALSE))) ->  | F124: =IF(B124="Aggiungere Coppia di Processori","",(VLOOKUP(B124,PCI_B5, 6, FALSE))) ->  | G124: =IF(B124="Aggiungere Coppia di Processori","",(VLOOKUP(B124,PCI_B5, 9, FALSE))) -> 0
B126: Additional Card for PCIe Slot 11 (CPU4) (GPU Slot)
B127: None | C127: =IF(B127="Aggiungere Coppia di Processori","",IF(B127="Aggiungere 9 slot Secondary Riser","",(VLOOKUP(B127,PCI_B6,2,FALSE)))) ->  | D127: =IF(B127="Aggiungere Coppia di Processori","",IF(B127="Aggiungere 9 slot Secondary Riser","",(VLOOKUP(B127,PCI_B6,3,FALSE)))) ->  | E127: =IF(B127="Aggiungere Coppia di Processori","",IF(B127="Aggiungere 9 slot Secondary Riser","",(VLOOKUP(B127,PCI_B6,5,FALSE)))) ->  | F127: =IF(B127="Aggiungere Coppia di Processori","",IF(B127="Aggiungere 9 slot Secondary Riser","",(VLOOKUP(B127,PCI_B6,6,FALSE)))) ->  | G127: =IF(B127="Aggiungere Coppia di Processori","",IF(B127="Aggiungere 9 slot Secondary Riser","",(VLOOKUP(B127,PCI_B6,9,FALSE)))) -> 0
B129: Additional Card for PCIe Slot 12 (CPU2)
B130: None | C130: =VLOOKUP(B130, PCI_B2, 2, FALSE) ->  | D130: =VLOOKUP(B130, PCI_B2, 3, FALSE) ->  | E130: =VLOOKUP(B130, PCI_B2, 5, FALSE) ->  | F130: =VLOOKUP(B130, PCI_B2, 6, FALSE) ->  | G130: =VLOOKUP(B130, PCI_B2, 9, FALSE) -> 0
B132: Additional Card for PCIe Slot 13 (CPU2)
B133: None | C133: =VLOOKUP(B133, PCI_B2, 2, FALSE) ->  | D133: =VLOOKUP(B133, PCI_B2, 3, FALSE) ->  | E133: =VLOOKUP(B133, PCI_B2, 5, FALSE) ->  | F133: =VLOOKUP(B133, PCI_B2, 6, FALSE) ->  | G133: =VLOOKUP(B133, PCI_B2, 9, FALSE) -> 0
B135: Additional Card for PCIe Slot 14 (CPU2)
B136: None | C136: =IF(B136="Aggiungere Coppia di Processori","",(VLOOKUP(B136,PCI_B4,2,FALSE))) ->  | D136: =IF(B136="Aggiungere Coppia di Processori","",(VLOOKUP(B136,PCI_B4,3,FALSE))) ->  | E136: =IF($B$136="Aggiungere Coppia di Processori","",(VLOOKUP($B$136,PCI_B4,5,FALSE))) ->  | F136: =IF($B$136="Aggiungere Coppia di Processori","",(VLOOKUP($B$136,PCI_B4,6,FALSE))) ->  | G136: =IF($B$136="Aggiungere Coppia di Processori","",(VLOOKUP($B$136,PCI_B4,9,FALSE))) -> 0
B138: Additional Card for PCIe Slot 15 (CPU2)
B139: None | C139: =IF(B139="Aggiungere Coppia di Processori","",(VLOOKUP(B139,PCI_B4,2,FALSE))) ->  | D139: =IF(B139="Aggiungere Coppia di Processori","",(VLOOKUP(B139,PCI_B4,3,FALSE))) ->  | E139: =IF($B$139="Aggiungere Coppia di Processori","",(VLOOKUP($B$139,PCI_B4,5,FALSE))) ->  | F139: =IF($B$139="Aggiungere Coppia di Processori","",(VLOOKUP($B$139,PCI_B4,6,FALSE))) ->  | G139: =IF($B$139="Aggiungere Coppia di Processori","",(VLOOKUP($B$139,PCI_B4,9,FALSE))) -> 0
B141: Additional Card for PCIe Slot 16 (CPU2)
B142: HPE Smart Array P408i-p SR Gen10 Ctrlr | C142: 1 | E142: 830824-B21
B144: Accessori per GPU
B145: HPE DL38x Gen10 8-pin Cable Kit for P6000 GPU | C145: =IF(IF($E$100="Q0v76a",1,0)+IF($E$106="Q0v76a",1,0)+IF($E$121="Q0v76a",1,0)++IF($E$127="Q0v76a",1,0)=0,0,IF(IF($E$100="Q0v76a",1,0)+IF($E$106="Q0v76a",1,0)+IF($E$121="Q0v76a",1,0)++IF($E$127="Q0v76a",1,0)>3,2,1)) -> 0 | D145: TS1-871828 | E145: 871828-B21 | G145: =26*C145 -> 0
E146: =COUNTIF($E$100:$E$127,"Q2N68A")+COUNTIF($E$100:$E$127,"Q0v80a") -> 0
B147: HPE DL38x Gen10 8-pin Keyed Cable Kit for P40 or V100 GPU | C147: =IF(E146=0,0,IF(E146>3,2,1)) -> 0 | D147: TS1-871829 | E147: 871829-B21 | G147: =31*C147 -> 0
B149: HPE DL580 Gen10 GPU Bracket Kit for installation in slots 4 or 11 | C149: =IF($E$106="Q2n68A",1,0)+IF($E$127="Q2n68A",1,0)+IF($E$106="Q0v80a",1,0)+IF($E$127="Q0v80a",1,0)+IF($E$106="Q0v76a",1,0)+IF($E$127="Q0v76a",1,0) -> 0 | D149: TS1-P00268 | E149: P00268-B21 | G149: =33*C149 -> 0
B151: Bezel
B152: None | C152: 1
B154: Accessori per Server
B155: HP BLc 10G SFP+ SR Transceiver | C155: 2 | E155: 455883-B21
B157: Unità ottica
B158: HP Mobile USB DVDRW Drive | C158: 1 | E158: 701498-B21
B160: Estensione di Garanzia
B161: None | C161: =VLOOKUP($B$161, SO_B1,2, FALSE) ->  | D161: =VLOOKUP($B$161, SO_B1, 3, FALSE) ->  | E161: =VLOOKUP($B$161, SO_B1, 5, FALSE) ->  | F161: =VLOOKUP($B$161, SO_B1, 6, FALSE) -> 
B163: Protezione dei dati - Keep Your Hard Drive
B164: None | C164: =VLOOKUP($B$164, SO_B2, 2, FALSE) ->  | D164: =VLOOKUP($B$164, SO_B2, 3, FALSE) ->  | E164: =VLOOKUP($B$164, SO_B2,5, FALSE) ->  | F164: =VLOOKUP($B$164, SO_B2, 6, FALSE) -> 

Sheet Codici (hidden)
A1: Codici
A2: TS1L2-560 | B2: Server prestazionale | C2: 3864 | D2: 1 | E2: HPE ProLiant DL560 Gen9 Server prestazionale V4 (2CPU Intel® Xeon® E5-4620 v4, 64GB RDIMM, 2xHDD 300GB 15k RPM SAS 12Gbps 2.5in)
A3: ="" ->  | B3: ="" ->  | C3: ="" ->  | D3: ="" ->  | E3: ="" -> 
A4: TS1L2-WIN1 | B4: OpzWinServ1 | C4: 556 | D4: 1 | E4: Microsoft Windows Server 2016 Standard Edition ROK 16 Core
A5: TS1L2-WIN2 | B5: OpzWinServ2 | C5: 526 | D5: 1 | E5: Microsoft Windows Server 2016 Standard Edition Additional License 16 Core
A6: TS1L2-CALDEV | B6: OpzDeviceCal | C6: 22 | D6: 1 | E6: Microsoft Windows Server 2016 1 Device CAL
A7: TS1L2-CALUSER | B7: OpzUserCal | C7: 22 | D7: 1 | E7: Microsoft Windows Server 2016 1 User CAL
A8: TS1L2-WIN2CORE | B8: OpzWinServ 2 core | C8: 56 | D8: 1 | E8: Microsoft Windows Server 2016 Standard Edition Additional License 2 Core
A9: TS1L2-WINDC1 | B9: OpzWinServDC | C9: 2174 | D9: 1 | E9: Microsoft Windows Server 2016 Datacenter Edition ROK 16 Core
A10: TS1L2-WINDC2 | B10: OpzWinServDC2 | C10: 2105 | D10: 1 | E10: Microsoft Windows Server 2016 Datacenter Edition Additional License 16 Core
A11: TS1L2-LINUX | B11: OpzOpenSource | C11: 50 | D11: 1 | E11: DVD Linux Centos 7.x
A12: TS1L2-CPU-560 | B12: Opz2P | C12: 2584 | D12: 2 | E12: Kit 2 CPU Intel® Xeon® E5-Gold 5118 (Intel Xeon-Gold 5118 2.3GHz, 12 core, 105W) | F12: TS1L2-CPU-560
D13: 1 | E13: HPE DL560 Gen9 CPU Mezz Board w/ Mech Kit
A15: TS1L2-16GB | B15: OpzRam16 | C15: 172 | D15: 1 | E15: HPE 16GB (1x16GB) Single Rank x4 DDR4-2666 CAS-19-19-19 Registered Smart Memory Kit
A16: TS1L2-32GB | B16: OpzRam32 | C16: 344 | D16: 1 | E16: HPE 32GB (1x32GB) Dual Rank x4 DDR4-2666 CAS-19-19-19 Registered Smart Memory Kit
A17: TS1L2-64GB | B17: OpzRam64 | C17: 750 | D17: 1 | E17: HPE 64GB (1x64GB) Quad Rank x4 DDR4-2666 CAS-19-19-19 Load Reduced Smart Memory Kit
A18: 10L2-LAN1GB | B18: OpzGigabit | C18: 35 | D18: 1 | E18: Scheda LAN Gigabit (HPE Ethernet 1Gb 2P 332T Adptr)
A19: 10L2-LAN10GB | B19: OpzGigabit 10GB | C19: 716 | D19: 1 | E19: Scheda LAN 10 Gigabit (HPE Ethernet 10Gb 2P 530SFP)
D20: 2 | E20: HP BLc 10G SFP+ SR Transceiver
A21: 10L2-CNA10 | B21: OpzGigabit 10GB CNA | C21: 778 | D21: 1 | E21: Scheda CNA (HPE StoreFabric CN1200E 10Gb CNA)
D22: 2 | E22: HPE BLc 10G SFP+ SR Transceiver
A23: 10L2-HDD300GB | B23: OpzStorage300 | C23: 140 | D23: 1 | E23: HDD 300Gb SAS (HPE HDD 300GB 12G SAS 15K 2.5" )
A24: 10L2-HDD1TB | B24: OpzStorage1Tb | C24: 278 | D24: 1 | E24: HDD 1TB NLSAS (HPE HDD 1TB 6G SAS 7.2K 2.5")
A25: 10L2-FC | B25: OpzFibreChannel | C25: 889 | D25: 1 | E25: Scheda FC (HPE 82Q 8Gb Dual Port PCI-e FC HBA)
A31: 10L2-UPS | B31: OpzUPS 3000VA | C31: 428 | D31: 1 | E31: UPS MSR 3000 VA
A32: 10L2-GUI | B32: OpzGUIRack | C32: 466 | D32: 1 | E32: Console KVM GUI per rack
A33: 10L2-KVMIP | B33: OpzSWGUIRack | C33: 550 | D33: 1 | E33: KVM Switch IP per GUI con cavi
A34: 10L2-RACK | B34: OpzRack | C34: 503 | E34: Armadio Rack 42U
A36: 10L2-SO-WIN | B36: ServOpzSysManWindows | C36: 200 | D36: 1 | E36: System-Network Mng. svc Windows
A37: 10L2-SO-LINUX | B37: ServOpzSysManOS | C37: 200 | D37: 1 | E37: System-Network Mng. svc Linux
A38: 10L2-SO-PREV | B38: Manutenzione Preventiva | C38: 200 | D38: 1 | E38: Servizi di manutenzione Preventiva
A39: 10L2-SO-HDD | B39: Hard-Disk retention | C39: 300 | D39: 1 | E39: Servizio HDD Retention
D40: 1 | E40: 3Yr Data Protection - Keep Your Hard Drive | G40: 3864
D41: 1 | E41: 4Yr Data Protection - Keep Your Hard Drive
D42: 1 | E42: 5Yr Data Protection - Keep Your Hard Drive
A43: 10L2-SO-12M | B43: OpzEstensione12 | C43: 350 | D43: 1 | E43: Estensione garanzia 12 mesi Agg.
A44: 10L2-SO-24M | B44: OpzEstensione24 | C44: 700 | D44: 1 | E44: Estensione garanzia 24 mesi Agg.
A45: Codici
A46: TS1L2-ALT-U | B46: Server Rack Base Alternativo | C46: 3864 | D46: 1 | E46: Server HP Proliant DL580 Gen10 (2CPU Intel® Xeon® Gold 5518, 64GB , 2xHDD 300GB 15K RPM SAS 12Gbps 2.5in)
A47: TS1L2-560 | B47: Server Rack Base | C47: 3864 | D47: 1 | E47: HPE ProLiant DL560 Gen10 Server BASE (2CPU Intel® Xeon® E5-Gold 5118, 64GB RDIMM, 2xHDD 300GB 15k RPM SAS 12Gbps 2.5in)
A48: TS1L2-CPU-560 | B48: Opz2P | C48: 2584 | D48: 2 | E48: Kit 2 CPU Intel® Xeon® E5-Gold 5118 (Intel Xeon-Gold 5118 2.3GHz, 12 core, 105W) | F48: TS1L2-CPU-560
D49: 1 | E49: HPE DL560 Gen9 CPU Mezz Board w/ Mech Kit
A51: TS1L2-16GB | B51: OpzRam16 | C51: 172 | D51: 1 | E51: HPE 16GB (1x16GB) Single Rank x4 DDR4-2666 CAS-19-19-19 Registered Smart Memory Kit
A52: TS1L2-32GB | B52: OpzRam32 | C52: 344 | D52: 1 | E52: HPE 32GB (1x32GB) Dual Rank x4 DDR4-2666 CAS-19-19-19 Registered Smart Memory Kit
A53: TS1L2-64GB | B53: OpzRam64 | C53: 750 | D53: 1 | E53: HPE 64GB (1x64GB) Quad Rank x4 DDR4-2666 CAS-19-19-19 Load Reduced Smart Memory Kit
A54: TS1L2-WIN1 | B54: OpzWinServ1 | C54: 556 | D54: 1 | E54: Microsoft Windows Server 2016 Standard Edition ROK 16 Core | F54: TS1L2-WIN1 | G54: OpzWinServ1 | H54: 556 | I54: 1 | J54: Microsoft Windows Server 2016 Standard Edition ROK 16 Core
A55: TS1L2-WIN2 | B55: OpzWinServ2 | C55: 526 | D55: 1 | E55: Microsoft Windows Server 2016 Standard Edition Additional License 16 Core | F55: TS1L2-WIN2 | G55: OpzWinServ2 | H55: 526 | I55: 1 | J55: Microsoft Windows Server 2016 Standard Edition Additional License 16 Core
A56: TS1L2-CALDEV | B56: OpzDeviceCal | C56: 22 | D56: 1 | E56: Microsoft Windows Server 2016 1 Device CAL | F56: TS1L2-CALDEV | G56: OpzDeviceCal | H56: 22 | I56: 1 | J56: Microsoft Windows Server 2016 1 Device CAL
A57: TS1L2-CALUSER | B57: OpzUserCal | C57: 22 | D57: 1 | E57: Microsoft Windows Server 2016 1 User CAL | F57: TS1L2-CALUSER | G57: OpzUserCal | H57: 22 | I57: 1 | J57: Microsoft Windows Server 2016 1 User CAL
A58: TS1L2-WIN2CORE | B58: OpzWinServ 2 core | C58: 56 | D58: 1 | E58: Microsoft Windows Server 2016 Standard Edition Additional License 2 Core | F58: TS1L2-WIN2CORE | G58: OpzWinServ 2 core | H58: 56 | I58: 1 | J58: Microsoft Windows Server 2016 Standard Edition Additional License 2 Core
A59: TS1L2-WINDC1 | B59: OpzWinServDC | C59: 2174 | D59: 1 | E59: Microsoft Windows Server 2016 Datacenter Edition ROK 16 Core | F59: TS1L2-WINDC1 | G59: OpzWinServDC | H59: 2174 | I59: 1 | J59: Microsoft Windows Server 2016 Datacenter Edition ROK 16 Core
A60: TS1L2-WINDC2 | B60: OpzWinServDC2 | C60: 2105 | D60: 1 | E60: Microsoft Windows Server 2016 Datacenter Edition Additional License 16 Core | F60: TS1L2-WINDC2 | G60: OpzWinServDC2 | H60: 2105 | I60: 1 | J60: Microsoft Windows Server 2016 Datacenter Edition Additional License 16 Core
A61: S2-871168-A21 | B61: OpzWinServ 2 core DC | C61: 530 | D61: 1 | E61: Microsoft Windows Server 2016 Datacenter Edition Additional License 2 Core
A62: TS1L2-LINUX | B62: OpzOpenSource | C62: 50 | D62: 1 | E62: DVD Linux Centos 7.x | F62: TS1L2-LINUX | G62: OpzOpenSource | H62: 50 | I62: 1 | J62: DVD Linux Centos 7.x
A63: TS1L2-CPU-ALT-U | B63: 2 Processori (opz2P) | C63: 2584 | D63: 1 | E63: Kit 2 CPU Intel® Xeon® E5-Gold 5118 (Intel Xeon-Gold 5118 2.3GHz, 12 core, 105W) | F63: TS1L2-CPU-580 | G63: 2 Processori (opz2P) | H63: 5056 | I63: 1 | J63: HPE DL580 Gen9 Intel® Xeon® E7-8880v4 (2.2GHz/22-core/55MB/150W) Processor Kit
E64: HPE DL5x0 Gen10 CPU Mezz Kit | J64: HPE 1200W Common Slot Platinum Plus Hot Plug Power Supply Kit
E65: HPE DL580 Gen9 12 DDR4 DIMM Slots Memory Cartridge | J65: HPE DL580 Gen9 12 DDR4 DIMM Slots Memory Cartridge
A66: TS1L2-16GB-2400 | B66: OpzRam16 | C66: 172 | D66: 1 | E66: HPE 16GB (1x16GB) Dual Rank x4 DDR4-2400 Registered Memory Kit | F66: TS1L2-16GB-2400 | G66: OpzRam16 | H66: 172 | I66: 1 | J66: HPE 16GB (1x16GB) Dual Rank x4 DDR4-2400 Registered Memory Kit
A67: TS1L2-32GB-2400 | B67: OpzRam32 | C67: 344 | D67: 1 | E67: HP 32GB (1x32GB) Dual Rank x4 DDR4-2400 Registered Memory Kit | F67: TS1L2-32GB-2400 | G67: OpzRam32 | H67: 344 | I67: 1 | J67: HP 32GB (1x32GB) Dual Rank x4 DDR4-2400 Registered Memory Kit
A68: TS1L2-64GB-2400 | B68: OpzRam64 | C68: 750 | D68: 1 | E68: HPE 64GB (1x64GB) Quad Rank x4 DDR4-2400 Load Reduced Memory Kit | F68: TS1L2-64GB-2400 | G68: OpzRam64 | H68: 750 | I68: 1 | J68: HPE 64GB (1x64GB) Quad Rank x4 DDR4-2400 Load Reduced Memory Kit
A69: TS1L2-1GB | B69: OpzGigabit | C69: 29 | D69: 1 | E69: PE Ethernet 1Gb 2-port 332T Adapter | F69: TS1L2-1GB | G69: OpzGigabit | H69: 29 | I69: 1 | J69: PE Ethernet 1Gb 2-port 332T Adapter
A70: TS1L2-10GB-580 | B70: OpzGigabit 10 GBs | C70: 259 | D70: 1 | E70: HPE Ethernet 10Gb 2-port 530SFP Adapter | F70: TS1L2-10GB-580 | G70: OpzGigabit 10 GBs | H70: 259 | I70: 1 | J70: HPE Ethernet 10Gb 2-port 546SFP+ Adapter
E71: HPE BLc 10G SFP+ SR Transceiver | J71: HPE BLc 10G SFP+ SR Transceiver
A72: TS1L2-10GB | B72: OpzGigabit 10 GBs | C72: 259 | D72: 1 | E72: HPE Ethernet 10Gb 2-port 530SFP Adapter
E73: HPE BLc 10G SFP+ SR Transceiver
A74: TS1-764302 | B74: Opz10baseT4p | C74: 690 | D74: 1 | E74: HPE FlexFabric 10Gb 4-port 536FLR-T Adapter
A75: TS1L2-CNA | B75: OpzGigabit 10 GBs CNA | C75: 720 | D75: 1 | E75: HPE StoreFabric CN1200E 10Gb Converged Network Adapter | F75: TS1L2-CNA | G75: OpzGigabit 10 GBs CNA | H75: 720 | I75: 1 | J75: HPE StoreFabric CN1200E 10Gb Converged Network Adapter
E76: HPE BLc 10G SFP+ SR Transceiver | J76: HPE BLc 10G SFP+ SR Transceiver
A77: TS1L2-HD300 | B77: OpzStorage300 | C77: 156 | D77: 1 | E77: HPE 300GB SAS 12G Enterprise 15K SFF (2.5in) SC Digitally Signed Firmware HDD | F77: TS1L2-HD300 | G77: OpzStorage300 | H77: 156 | I77: 1 | J77: HPE 300GB SAS 12G Enterprise 15K SFF (2.5in) SC Digitally Signed Firmware HDD
A78: TS1L2-HD1200 | B78: OpzStorage1Tb | C78: 292 | D78: 1 | E78: HPE 1.2TB SAS 12G Enterprise 10K SFF (2.5in) SC Digitally Signed Firmware HDD | F78: TS1L2-HD1200 | G78: OpzStorage1Tb | H78: 292 | I78: 1 | J78: HPE 1.2TB SAS 12G Enterprise 10K SFF (2.5in) SC Digitally Signed Firmware HDD
A79: TS1L2-HD1800 | B79: OpzStorage2Tb | C79: 467 | D79: 1 | E79: HPE 1.8TB SAS 12G Enterprise 10K SFF (2.5in) SC 512e Digitally Signed Firmware HDD | F79: TS1L2-HD1800 | G79: OpzStorage2Tb | H79: 467 | I79: 1 | J79: HPE 1.8TB SAS 12G Enterprise 10K SFF (2.5in) SC 512e Digitally Signed Firmware HDD
A80: TS1L2-SSD960 | B80: OpzStorageSSD800 | C80: 1571 | D80: 1 | E80: HPE 960GB SAS 12G Read Intensive SFF (2.5in) SC Digitally Signed Firmware SSD | F80: TS1L2-SSD960 | G80: OpzStorageSSD800 | H80: 1571 | I80: 1 | J80: HPE 960GB SAS 12G Read Intensive SFF (2.5in) SC Digitally Signed Firmware SSD
A81: TS1L2-SSD1920 | B81: OpzStorageSSD1,6TB | C81: 2667 | D81: 1 | E81: HPE 1.92TB SAS 12G Read Intensive SFF (2.5in) SCDigitally Signed Firmware SSD | F81: TS1L2-SSD1920 | G81: OpzStorageSSD1,6TB | H81: 2667 | I81: 1 | J81: HPE 1.92TB SAS 12G Read Intensive SFF (2.5in) SCDigitally Signed Firmware SSD
A82: TS1L2-FC | B82: OpzFibreChannel | C82: 356 | E82: HPE 82Q 8Gb 2-port PCIe Fibre Channel Host Bus Adapter
A83: TS1L2-FC-82Q | B83: OpzFibreChannel | C83: 356 | D83: 1 | E83: HPE 82Q 8Gb 2-port PCIe Fibre Channel Host Bus Adapter | F83: TS1L2-FC-82Q | G83: OpzFibreChannel | H83: 356 | I83: 1 | J83: HPE 82Q 8Gb 2-port PCIe Fibre Channel Host Bus Adapter
A84: TS1L2-4ANNI | B84: OpzEstensione12 | C84: 386 | D84: 1 | E84: OpzEstensione12 | F84: TS1L2-4ANNI | G84: OpzEstensione12 | H84: 386 | I84: 1 | J84: OpzEstensione12
A85: TS1L2-5ANNI | B85: OpzEstensione24 | C85: 724 | D85: 1 | E85: OpzEstensione24 | F85: TS1L2-5ANNI | G85: OpzEstensione24 | H85: 724 | I85: 1 | J85: OpzEstensione24
A86: S2-E5Y34A | B86: OpzOVAdv | C86: 480 | D86: 1 | E86: HPE OneView Advanced (with HPE iLO Advanced)
A87: TS1L2-HD1800 | B87: OpzStorage2Tb | C87: 467 | D87: 1 | E87: HPE 1.8TB SAS 12G Enterprise 10K SFF (2.5in) SC 512e Digitally Signed Firmware HDD | F87: TS1L2-HD1800 | G87: OpzStorage2Tb | H87: 467 | I87: 1 | J87: HPE 1.8TB SAS 12G Enterprise 10K SFF (2.5in) SC 512e Digitally Signed Firmware HDD
A88: TS1L2-HD1800-580-AS | B88: OpzStorage2Tb | C88: 467 | D88: 1 | E88: HPE 1.8TB SAS 12G Enterprise 10K SFF (2.5in) SC 512e Digitally Signed Firmware HDD | F88: TS1L2-HD1800 | G88: OpzStorage2Tb | H88: 467
A89: S2-875311-B21 | B89: OpzStorageSSD480 | C89: 749 | E89: HPE 480GB SAS 12G Read Intensive SFF (2.5in) SC Digitally Signed Firmware SSD
A90: TS1L2-SSD960 | B90: OpzStorageSSD800 | C90: 1571 | D90: 1 | E90: HPE 960GB SAS 12G Read Intensive SFF (2.5in) SC Digitally Signed Firmware SSD | F90: TS1L2-SSD960 | G90: OpzStorageSSD800 | H90: 1571 | I90: 1 | J90: HPE 960GB SAS 12G Read Intensive SFF (2.5in) SC Digitally Signed Firmware SSD
A91: TS1L2-SSD960-AS | B91: OpzStorageSSD800 | C91: 1571 | D91: 1 | E91: HPE 960GB SAS 12G Read Intensive SFF (2.5in) SC Digitally Signed Firmware SSD | F91: TS1L2-SSD960 | G91: OpzStorageSSD800 | H91: 1571 | I91: 1
A92: TS1L2-SSD1920 | B92: OpzStorageSSD1,6TB | C92: 2667 | D92: 1 | E92: HPE 1.92TB SAS 12G Read Intensive SFF (2.5in) SCDigitally Signed Firmware SSD | F92: TS1L2-SSD1920 | G92: OpzStorageSSD1,6TB | H92: 2667 | I92: 1 | J92: HPE 1.92TB SAS 12G Read Intensive SFF (2.5in) SCDigitally Signed Firmware SSD
A93: S2-P9D94A | B93: OpzFibreChannel2 | C93: 584 | D93: 1 | E93: HPE StoreFabric SN1100Q 16Gb Dual Port Fibre Channel Host Bus Adapter | F93: S2-P9D94A | G93: OpzFibreChannel2 | H93: 584 | I93: 1 | J93: HPE StoreFabric SN1100Q 16Gb Dual Port Fibre Channel Host Bus Adapter
A94: TS1-656596 | B94: Opz10baseT_1 | C94: 298 | D94: 1 | E94: HPE Ethernet 10Gb 2P 530T Adptr A20
A95: TS1-867707 | B95: Opz10baseT_2 | C95: 298 | D95: 1 | E95: HPE Ethernet 10Gb 2-port 521T Adapter A20
A96: TS1-874-006887 | B96: OpzSUSE1 | C96: 1350 | D96: 1 | E96: SUSE Linux Enterprise Server, x86 & x86-64, 1-2 Sockets or 1-2 Virtual Machines, Standard Subscription, 3 Years | F96: TS1-874-006887 | G96: OpzSUSE1 | H96: 1350 | I96: 1 | J96: SUSE Linux Enterprise Server, x86 & x86-64, 1-2 Sockets or 1-2 Virtual Machines, Standard Subscription, 3 Years
A97: TS1-874-006898 | B97: OpzSUSE2 | C97: 2242.5 | D97: 1 | E97: SUSE Linux Enterprise Server, x86 & x86-64, 1-2 Sockets or 1-2 Virtual Machines, Standard Subscription, 5 Years | F97: TS1-874-006898 | G97: OpzSUSE2 | H97: 2242.5 | I97: 1 | J97: SUSE Linux Enterprise Server, x86 & x86-64, 1-2 Sockets or 1-2 Virtual Machines, Standard Subscription, 5 Years
A98: TS1-874-006888 | B98: OpzSUSE3 | C98: 2692.5 | D98: 1 | E98: SUSE Linux Enterprise Server, x86 & x86-64, 1-2 Sockets with Unlimited Virtual Machines, Standard Subscription, 3 Years | F98: TS1-874-006888 | G98: OpzSUSE3 | H98: 2692.5 | I98: 1 | J98: SUSE Linux Enterprise Server, x86 & x86-64, 1-2 Sockets with Unlimited Virtual Machines, Standard Subscription, 3 Years
A99: TS1-874-006902 | B99: OpzSUSE4 | C99: 4500 | D99: 1 | E99: SUSE Linux Enterprise Server, x86 & x86-64, 1-2 Sockets with Unlimited Virtual Machines, Standard Subscription, 5 Years | F99: TS1-874-006902 | G99: OpzSUSE4 | H99: 4500 | I99: 1 | J99: SUSE Linux Enterprise Server, x86 & x86-64, 1-2 Sockets with Unlimited Virtual Machines, Standard Subscription, 5 Years
A100: TS1-874-006883 | B100: OpzSUSE5 | C100: 2520 | D100: 1 | E100: SUSE Linux Enterprise Server, x86 & x86-64, 1-2 Sockets or 1-2 Virtual Machines, Priority Subscription, 3 Year | F100: TS1-874-006883 | G100: OpzSUSE5 | H100: 2520 | I100: 1 | J100: SUSE Linux Enterprise Server, x86 & x86-64, 1-2 Sockets or 1-2 Virtual Machines, Priority Subscription, 3 Year
A101: TS1-874-006894 | B101: OpzSUSE6 | C101: 4200 | D101: 1 | E101: SUSE Linux Enterprise Server, x86 & x86-64, 1-2 Sockets or 1-2 Virtual Machines, Priority Subscription, 5 Year | F101: TS1-874-006894 | G101: OpzSUSE6 | H101: 4200 | I101: 1 | J101: SUSE Linux Enterprise Server, x86 & x86-64, 1-2 Sockets or 1-2 Virtual Machines, Priority Subscription, 5 Year
A102: TS1-874-006884 | B102: OpzSUSE7 | C102: 5100 | D102: 1 | E102: SUSE Linux Enterprise Server, x86 & x86-64, 1-2 Sockets with Unlimited Virtual Machines, Priority Subscription, 3 Year | F102: TS1-874-006884 | G102: OpzSUSE7 | H102: 5100 | I102: 1 | J102: SUSE Linux Enterprise Server, x86 & x86-64, 1-2 Sockets with Unlimited Virtual Machines, Priority Subscription, 3 Year
A103: TS1-874-006895 | B103: OpzSUSE8 | C103: 8400 | D103: 1 | E103: SUSE Linux Enterprise Server, x86 & x86-64, 1-2 Sockets with Unlimited Virtual Machines, Priority Subscription, 5 Year | F103: TS1-874-006895 | G103: OpzSUSE8 | H103: 8400 | I103: 1 | J103: SUSE Linux Enterprise Server, x86 & x86-64, 1-2 Sockets with Unlimited Virtual Machines, Priority Subscription, 5 Year
A104: S2-872235-B21 | B104: OpzBay2HDD | C104: 230 | E104: HPE DL560 Gen10 8SFF HDD Bay2 Kit
A105: S2-872233-B21 | B105: OpzBay1HDD | C105: 297 | E105: HPE DL560 Gen10 8SFF HDD Bay1 Kit
A106: S2-870548-B21 | B106: OpzRiser1 | C106: 109 | E106: HPE DL Gen10 x8/x16/x8 Riser Kit
A107: S2-872253-B21 | B107: OpzRiser2 | C107: 285 | E107: HPE DL560 Gen10 x8/x8 Tertiary Riser Kit
A108: TS1-646861 | B108: OpzPDU32A | C108: 289 | E108: PDU Vertical 20+4 outlets C13 with MCB - IEC60309 input
A109: TS1-646875 | B109: OpzPDU_TRIFASE | C109: 349 | E109: PDU Vertical 18+6 outlets (C13+C19) with MCB and ammeter - IEC60309 input - 3 phase
A110: S2-873444-B21 | B110: OpzSasExpander | C110: 540 | E110: HPE DL5x0 Gen10 12Gb SAS Expander
A111: S2-826704 | B111: OpzRiserGPU | C111: 109 | E111: HPE DL Gen10 x16/x16 GPU Riser Kit A20
A112: TS1-Q0V77A | B112: OpzGPU_P2000 | C112: 518,00 | E112: NVIDIA Quadro P2000 GPU Module A20
A113: TS1-Q0V76A | B113: OpzGPU_P6000 | C113: 5310 | E113: HPE NVIDIA Quadro P6000 GPU Module A20
A114: TS1-Q0V80A | B114: OpzGPU_P40 | C114: 7552 | E114: HPE NVIDIA Tesla P40 24GB Module A20
A115: TS1-Q2N68A | B115: OpzGPU_V100 | C115: 10583 | E115: NVIDIA Tesla V100 PCIe 16GB Computational Accelerator A20
A116: TS1-871828 | B116: OpzGPU_Cbl_P6000 | C116: 26 | E116: HPE DL580 Gen10 8-pin Cable Kit (P6000) A20
A117: TS1-871829 | B117: OpzGPU_Cbl_P40_V100 | C117: 31 | E117: HPE DL580 Gen10 8-pin Keyed Cable Kit (P40, V100) A20
A118: TS1-P00268 | B118: OpzGPU_bracket | C118: 33 | E118: HPE DL580 Gen10 GPU Bracket Kit (Extended) A20
A120: TS1L2-UPS | B120: OpzUPS 3000VA | C120: 398 | D120: 1 | E120: UPS MSR 3000 VA
A121: TS1L2-GUI | B121: OpzGUIRack | C121: 466 | D121: 1 | E121: Console KVM GUI per rack
A122: TS1L2-KVMIP | B122: OpzSWGUIRack | C122: 573 | D122: 1 | E122: KVM Switch IP per GUI con cavi
A123: TS1L2-RACK | B123: OpzRack | C123: 514 | E123: Armadio Rack 42U
A124: S2-9SlotRiser | B124: Opz9SlotRiser | C124: 671 | D124: 1 | E124: Kit di Upgrade 9 slot PCIe comprensivo di coppia alimentatori 1600W
A125: S2-48HDDbay | B125: Opz48HDD | C125: 1367 | D125: 1 | E125: Kit di Upgrade a 48slot HDD totali comprensivo di tutti i componenti necessari
A126: S2-PwrSply2 | B126: OpzPwrSply2 | C126: 306 | D126: 1 | E126: Kit coppia HPE 1600W Flex Slot Platinum Hot Plug Low Halogen Power Supply
A127: 10L2-SO-WIN | B127: ServOpzSysManWindows | C127: 200 | D127: 1 | E127: System-Network Mng. svc Windows
A128: 10L2-SO-LINUX | B128: ServOpzSysManOS | C128: 200 | D128: 1 | E128: System-Network Mng. svc Linux
A129: 10L2-SO-PREV | B129: Manutenzione Preventiva | C129: 200 | D129: 1 | E129: Servizi di manutenzione Preventiva
A130: 10L2-SO-HDD | B130: Hard-Disk retention | C130: 300 | D130: 1 | E130: Servizio HDD Retention
D131: 1 | E131: 3Yr Data Protection - Keep Your Hard Drive
D132: 1 | E132: 4Yr Data Protection - Keep Your Hard Drive
D133: 1 | E133: 5Yr Data Protection - Keep Your Hard Drive
A134: 10L2-SO-12M | B134: OpzEstensione12 | C134: 350 | D134: 1 | E134: Estensione garanzia 12 mesi Agg.
A135: 10L2-SO-24M | B135: OpzEstensione24 | C135: 700 | D135: 1 | E135: Estensione garanzia 24 mesi Agg.
A137: TS1L2-ALT-U | B137: Server Rack Base Alternativo | C137: 3864 | D137: 1 | E137: Server HP Proliant DL580 Gen10 (2CPU Intel® Xeon® Gold 5518, 64GB , 2xHDD 300GB 15K RPM SAS 12Gbps 2.5in)
A138: TS1L2-580-U | B138: Server Rack Prestazionale | C138: 6092 | D138: 1 | E138: Server HP Proliant DL580 Gen10 (2CPU Intel® Xeon® Gold 6140M, 128GB , 2xHDD 300GB 15K RPM SAS 12Gbps 2.5in)
A139: TS1L2-WIN1 | B139: OpzWinServ1 | C139: 556 | D139: 1 | E139: Microsoft Windows Server 2016 Standard Edition ROK 16 Core
A140: TS1L2-WIN2 | B140: OpzWinServ2 | C140: 526 | D140: 1 | E140: Microsoft Windows Server 2016 Standard Edition Additional License 16 Core
A141: TS1L2-CALDEV | B141: OpzDeviceCal | C141: 22 | D141: 1 | E141: Microsoft Windows Server 2016 1 Device CAL
A142: TS1L2-CALUSER | B142: OpzUserCal | C142: 22 | D142: 1 | E142: Microsoft Windows Server 2016 1 User CAL
A143: TS1L2-WIN2CORE | B143: OpzWinServ 2 core | C143: 56 | D143: 1 | E143: Microsoft Windows Server 2016 Standard Edition Additional License 2 Core
A144: TS1L2-WINDC1 | B144: OpzWinServDC | C144: 2174 | D144: 1 | E144: Microsoft Windows Server 2016 Datacenter Edition ROK 16 Core
A145: TS1L2-WINDC2 | B145: OpzWinServDC2 | C145: 2105 | D145: 1 | E145: Microsoft Windows Server 2016 Datacenter Edition Additional License 16 Core
A146: TS1L2-LINUX | B146: OpzOpenSource | C146: 50 | D146: 1 | E146: DVD Linux Centos 7.x
A147: TS1L2-CPU-580-U | B147: 2 Processori (opz2P) | C147: 5056 | D147: 1 | E147: Kit 2 CPU Intel® Xeon-Gold 6140M (Intel Xeon-Gold 6140M 2.3GHz/18-core/140W)
E148: HPE DL5x0 Gen10 CPU Mezz Kit
E149: HPE 1600W FS Plat Ht Plg LH Pwr Sply Kit
A150: TS1L2-CPU-ALT-U | B150: 2 Processori (opz2P) | C150: 2584 | D150: 1 | E150: Kit 2 CPU Intel® Xeon® E5-Gold 5118 (Intel Xeon-Gold 5118 2.3GHz, 12 core, 105W)
E151: HPE DL5x0 Gen10 CPU Mezz Kit
E152: HPE 1600W FS Plat Ht Plg LH Pwr Sply Kit
A153: TS1L2-16GB | B153: OpzRam16 | C153: 172 | D153: 1 | E153: HPE 16GB (1x16GB) Single Rank x4 DDR4-2666 CAS-19-19-19 Registered Smart Memory Kit
A154: TS1L2-32GB | B154: OpzRam32 | C154: 344 | D154: 1 | E154: HPE 32GB (1x32GB) Dual Rank x4 DDR4-2666 CAS-19-19-19 Registered Smart Memory Kit
A155: TS1L2-64GB | B155: OpzRam64 | C155: 750 | D155: 1 | E155: HPE 64GB (1x64GB) Quad Rank x4 DDR4-2666 CAS-19-19-19 Load Reduced Smart Memory Kit
A156: TS1L2-1GB | B156: OpzGigabit | C156: 29 | D156: 1 | E156: PE Ethernet 1Gb 2-port 332T Adapter
A157: TS1L2-10GB | B157: OpzGigabit 10 GBs | C157: 259 | D157: 1 | E157: HPE Ethernet 10Gb 2-port 530SFP Adapter
E158: HPE BLc 10G SFP+ SR Transceiver
A159: TS1-764302 | B159: Opz10baseT4p | C159: 690 | D159: 1 | E159: HPE FlexFabric 10Gb 4-port 536FLR-T Adapter
A160: TS1L2-CNA | B160: OpzGigabit 10 GBs CNA | C160: 720 | D160: 1 | E160: HPE StoreFabric CN1200E 10Gb Converged Network Adapter
E161: HPE BLc 10G SFP+ SR Transceiver
A162: TS1L2-HD300 | B162: OpzStorage300 | C162: 156 | D162: 1 | E162: HPE 300GB SAS 12G Enterprise 15K SFF (2.5in) SC Digitally Signed Firmware HDD
A163: TS1L2-HD1200 | B163: OpzStorage1Tb | C163: 292 | D163: 1 | E163: HPE 1.2TB SAS 12G Enterprise 10K SFF (2.5in) SC Digitally Signed Firmware HDD
A164: TS1L2-HD1800 | B164: OpzStorage2Tb | C164: 467 | D164: 1 | E164: HPE 1.8TB SAS 12G Enterprise 10K SFF (2.5in) SC 512e Digitally Signed Firmware HDD
A165: TS1L2-SSD960 | B165: OpzStorageSSD800 | C165: 1571 | D165: 1 | E165: HPE 960GB SAS 12G Read Intensive SFF (2.5in) SC Digitally Signed Firmware SSD
A166: TS1L2-SSD1920 | B166: OpzStorageSSD1,6TB | C166: 2667 | D166: 1 | E166: HPE 1.92TB SAS 12G Read Intensive SFF (2.5in) SCDigitally Signed Firmware SSD
A167: TS1L2-FC | B167: OpzFibreChannel | C167: 356 | E167: HPE 82Q 8Gb 2-port PCIe Fibre Channel Host Bus Adapter
A168: TS1L2-4ANNI | B168: OpzEstensione12 | C168: 386 | D168: 1 | E168: OpzEstensione12
A169: TS1L2-5ANNI | B169: OpzEstensione24 | C169: 724 | D169: 1 | E169: OpzEstensione24
A170: S2-E5Y34A | B170: OpzOVAdv | C170: 480 | D170: 1 | E170: HPE OneView Advanced (with HPE iLO Advanced)
A171: TS1L2-HD1800 | B171: OpzStorage2Tb | C171: 467 | D171: 1 | E171: HPE 1.8TB SAS 12G Enterprise 10K SFF (2.5in) SC 512e Digitally Signed Firmware HDD
A172: TS1L2-SSD960 | B172: OpzStorageSSD800 | C172: 1571 | D172: 1 | E172: HPE 960GB SAS 12G Read Intensive SFF (2.5in) SC Digitally Signed Firmware SSD | F172: Coppie Processori installati fisicamenti
A173: TS1L2-SSD1920 | B173: OpzStorageSSD1,6TB | C173: 2667 | D173: 1 | E173: HPE 1.92TB SAS 12G Read Intensive SFF (2.5in) SCDigitally Signed Firmware SSD
A174: S2-P9D94A | B174: OpzFibreChannel2 | C174: 584 | D174: 1 | E174: HPE StoreFabric SN1100Q 16Gb Dual Port Fibre Channel Host Bus Adapter
A175: TS1-874-006887 | B175: OpzSUSE1 | C175: 1350 | D175: 1 | E175: SUSE Linux Enterprise Server, x86 & x86-64, 1-2 Sockets or 1-2 Virtual Machines, Standard Subscription, 3 Years
A176: TS1-874-006898 | B176: OpzSUSE2 | C176: 2242.5 | D176: 1 | E176: SUSE Linux Enterprise Server, x86 & x86-64, 1-2 Sockets or 1-2 Virtual Machines, Standard Subscription, 5 Years
A177: TS1-874-006888 | B177: OpzSUSE3 | C177: 2692.5 | D177: 1 | E177: SUSE Linux Enterprise Server, x86 & x86-64, 1-2 Sockets with Unlimited Virtual Machines, Standard Subscription, 3 Years
A178: TS1-874-006902 | B178: OpzSUSE4 | C178: 4500 | D178: 1 | E178: SUSE Linux Enterprise Server, x86 & x86-64, 1-2 Sockets with Unlimited Virtual Machines, Standard Subscription, 5 Years
A179: TS1-874-006883 | B179: OpzSUSE5 | C179: 2520 | D179: 1 | E179: SUSE Linux Enterprise Server, x86 & x86-64, 1-2 Sockets or 1-2 Virtual Machines, Priority Subscription, 3 Year
A180: TS1-874-006894 | B180: OpzSUSE6 | C180: 4200 | D180: 1 | E180: SUSE Linux Enterprise Server, x86 & x86-64, 1-2 Sockets or 1-2 Virtual Machines, Priority Subscription, 5 Year
A181: TS1-874-006884 | B181: OpzSUSE7 | C181: 5100 | D181: 1 | E181: SUSE Linux Enterprise Server, x86 & x86-64, 1-2 Sockets with Unlimited Virtual Machines, Priority Subscription, 3 Year
A182: TS1-874-006895 | B182: OpzSUSE8 | C182: 8400 | D182: 1 | E182: SUSE Linux Enterprise Server, x86 & x86-64, 1-2 Sockets with Unlimited Virtual Machines, Priority Subscription, 5 Year
A183: ="" ->  | B183: ="" ->  | C183: ="" ->  | D183: ="" ->  | E183: ="" -> 
A184: 10L2-DL580G92 | B184: Server enterprise | C184: 7444.5 | D184: 1 | E184: HPE ProLiant DL580 Gen9 Server enterprise V4 (2CPU Intel® Xeon® E7-4830 v4, 64GB RDIMM, 2xHDD 300GB 15k RPM SAS 12Gbps 2.5in)
A185: 10L2-DL580G94 | B185: Server enterprise | C185: 7444.5 | D185: 1 | E185: HPE ProLiant DL580 Gen9 Server enterprise V4 (2CPU Intel® Xeon® E7-4830 v4, 64GB RDIMM, 2xHDD 300GB 15k RPM SAS 12Gbps 2.5in)
A186: 10L2-WIN1 | B186: OpzWinServ1 | C186: 540 | D186: 1 | E186: Microsoft® Windows Server 2012 R2, Standard Edition, 2 Socket, 2Vm, ROK, COA + Media
A187: 10L2-WIN2 | B187: OpzWinServ2 | C187: 540 | D187: 1 | E187: Microsoft® Windows Server 2012 R2, Standard Edition, 2 Socket, 2Vm, Additional License
A188: 10L2-WINDC1 | B188: OpzWinServ DC1 | C188: 2440 | D188: 1 | E188: Microsoft® Windows Server 2012 R2, Datacenter Edition, 2 Socket, unlimited virtualization rights, ROK, COA + Media
A189: 10L2-WINDC2 | B189: OpzWinServ DC2 | C189: 2440 | D189: 1 | E189: Microsoft® Windows Server 2012 R2, Datacenter Edition, 2 Socket, unlimited virtualization rights, Additional License
A190: 10L2-CALDEV | B190: OpzDeviceCal | C190: 22 | D190: 1 | E190: MS Windows Server 2012 R2, CAL 1 DEV (1-pack fo Windows Server 2012 R2 Device CALs (Standard or Datacenter))
A191: 10L2-CALUSER | B191: OpzUserCal | C191: 24 | D191: 1 | E191: MS Windows Server 2012 R2, CAL 1 USR (1-pack fo Windows Server 2012 R2 User CALs (Standard or Datacenter))
A192: 10L2-LINUX | B192: OpzOpenSource | C192: 45 | E192: DVD Linux Centos 7.x
A193: 10L2-CPU-E-U | B193: Opz2P | C193: 3601 | D193: 2 | E193: Kit 2 CPU Intel® Xeon® E7-4830 v4 (Intel Xeon E7-4830 v4 2.0GHz,35M Cache,8.00GT/s QPI,Turbo,HT,14 core, 28 thread)
D194: 2 | E194: HP DL580 Gen9 12 DIMMs Memory Cartridge
A195: 10L2-CPU-E4-U | B195: Opz2P | C195: 3601 | D195: 2 | E195: Kit 2 CPU Intel® Xeon® E7-4830 v4 - 4MC (Intel Xeon E7-4830 v4 2.0GHz,35M Cache,8.00GT/s QPI,Turbo,HT,14 core, 28 thread)
D196: 4 | E196: HP DL580 Gen9 12 DIMMs Memory Cartridge
A197: 10L2-CPU-E2-U | B197: Opz2P | C197: 3601 | D197: 2 | E197: Kit 2 CPU Intel® Xeon® E7-4830 v4 - 2MC (Intel Xeon E7-4830 v4 2.0GHz,35M Cache,8.00GT/s QPI,Turbo,HT,14 core, 28 thread)
D198: 2 | E198: HP DL580 Gen9 12 DIMMs Memory Cartridge
A199: 10L2-CPU-E0-U | B199: Opz2P | C199: 3601 | D199: 2 | E199: Kit 2 CPU Intel® Xeon® E7-4830 v4 (Intel Xeon E7-4830 v4 2.0GHz,35M Cache,8.00GT/s QPI,Turbo,HT,14 core, 28 thread)
D200: 0 | E200: HP DL580 Gen9 12 DIMMs Memory Cartridge
A201: 10L2-16GB-U | B201: OpzRam16 | C201: 141 | D201: 1 | E201: Kit Upgrade Ram 16GB V4 (16GB RDIMM, 2400MT/s, Dual Rank x4)
A202: 10L2-32GB-U | B202: OpzRam32 | C202: 320 | D202: 1 | E202: Kit Upgrade Ram 32GB V4 (32GB RDIMM, 2400MT/s, Dual Rank x4)
A203: 10L2B-32GB-L | B203: OpzRam32 | C203: 320 | D203: 1 | E203: Upgrade KIT RAM 32GB-L
A204: 10L2-64GB-U | B204: OpzRam64 | C204: 652 | D204: 1 | E204: Kit Upgrade Ram 64GB V4 (64GB RDIMM, 2400MT/s, Dual Rank x4)
A205: 10L2-LAN1GB | B205: OpzGigabit | C205: 35 | D205: 1 | E205: Scheda LAN Gigabit (HPE Ethernet 1Gb 2P 332T Adptr)
A206: 10L2-LAN10GB | B206: OpzGigabit 10GB | C206: 716 | D206: 1 | E206: Scheda LAN 10 Gigabit (HPE Ethernet 10Gb 2P 530SFP)
D207: 2 | E207: HP BLc 10G SFP+ SR Transceiver
A208: 10L2-CNA10 | B208: OpzGigabit 10GB CNA | C208: 778 | D208: 1 | E208: Scheda CNA (HPE StoreFabric CN1200E 10Gb CNA)
D209: 2 | E209: HPE BLc 10G SFP+ SR Transceiver
A210: 10L2-HDD300GB | B210: OpzStorage300 | C210: 140 | D210: 1 | E210: HDD 300Gb SAS (HPE HDD 300GB 12G SAS 15K 2.5" )
... 49 more rows

Sheet PCI (hidden)
A2: HDD Bay2 | C2: 0 | D2: ="" ->  | E2: ="" ->  | F2: ="" ->  | G2: 0
C3: 1 | D3: S2-872235-B21 | E3: 872235-B21 | F3: ="" ->  | G3: 230
A4: HDD Bay1 | C4: 0 | D4: ="" ->  | E4: ="" ->  | F4: ="" ->  | G4: 0
C5: 1 | D5: S2-872233-B21 | E5: 872233-B21 | F5: ="" ->  | G5: 297
A7: Secondary Riser | C7: 0 | D7: ="" ->  | E7: ="" ->  | F7: ="" ->  | G7: 0
C8: 1 | D8: S2-870548-B21 | E8: 870548-B21 | F8: ="" ->  | G8: 109
A9: Secondary Riser (for GPU) | C9: 0 | D9: ="" ->  | E9: ="" ->  | F9: ="" ->  | G9: 0
C10: 1 | D10: S2-826704-B21 | E10: 826704-B21 | F10: ="" ->  | G10: 109
A11: Tertiary riser | C11: 0 | D11: ="" ->  | E11: ="" ->  | F11: ="" ->  | G11: 0
C12: 1 | D12: S2-872253-B21 | E12: 872253-B21 | F12: ="" ->  | G12: 285
A13: 9-slot Sec Riser | C13: 0 | D13: ="" ->  | E13: ="" ->  | F13: ="" ->  | G13: 0
C14: 1 | D14: S2-9SlotRiser | E14: 872340 830272 | F14: ="" ->  | G14: 671
A15: Additional Card for PCIe Slot 1
A16: DL560
A17: HPE Ethernet 1Gb 4-port 331T Adapter | B17: 1 | E17: 647594-B21 | H17: 0
A18: HPE Ethernet 1Gb 2-port 332T Adapter | B18: 1 | C18: TS1L2-1GB | D18: TS1L2-1GB | E18: 615732-B21 | F18: 29 | H18: 0
A19: HPE Ethernet 10Gb 2-port 530SFP Adapter | B19: 1 | C19: TS1L2-10GB | D19: TS1L2-10GB | E19: 652503-B21 | F19: 259 | G19: HPE BLc 10G SFP+ SR Transceiver | H19: 2 | J19: 455883-B21
A20: HPE Ethernet 10Gb 2P 530T Adapter | B20: 1 | C20: TS1-656596 | D20: TS1-656596 | E20: 656596-B21 | I20: 298
A21: HPE Ethernet 10Gb 2-port 521T Adapter | B21: 1 | C21: TS1-867707 | D21: TS1-867707 | E21: 867707-B21 | I21: 298
A22: HPE StoreFabric CN1200E 10Gb Converged Network Adapter | B22: 1 | C22: TS1L2-CNA | D22: TS1L2-CNA | E22: E7Y06A | F22: 720 | G22: HPE BLc 10G SFP+ SR Transceiver | H22: 2 | J22: 455883-B21
A23: HPE 82Q 8Gb 2-port PCIe Fibre Channel Host Bus Adapter | B23: 1 | C23: TS1L2-FC | D23: TS1L2-FC | E23: AJ764A | F23: 356 | H23: 0
A24: HPE StoreFabric SN1100Q 16Gb Dual Port Fibre Channel Host Bus Adapter | B24: 1 | C24: S2-P9D94A | D24: S2-P9D94A | E24: P9D94A | F24: 0 | H24: 0 | I24: 584
A26: Additional Card for PCIe Slot 2/3
A27: DL560
A28: None | H28: 0
A29: HPE Ethernet 1Gb 2-port 332T Adapter | B29: 1 | C29: TS1L2-1GB | D29: TS1L2-1GB | E29: 615732-B21 | F29: 29 | H29: 0
A30: HPE Ethernet 10Gb 2-port 530SFP Adapter | B30: 1 | C30: TS1L2-10GB | D30: TS1L2-10GB | E30: 652503-B21 | F30: 259 | G30: HPE BLc 10G SFP+ SR Transceiver | H30: 2 | J30: 455883-B21
A31: HPE StoreFabric CN1200E 10Gb Converged Network Adapter | B31: 1 | C31: TS1L2-CNA | D31: TS1L2-CNA | E31: E7Y06A | F31: 720 | G31: HPE BLc 10G SFP+ SR Transceiver | H31: 2 | J31: 455883-B21
A32: HPE Ethernet 10Gb 2P 530T Adapter | B32: 1 | C32: TS1-656596 | D32: TS1-656596 | E32: 656596-B21 | I32: 298
A33: HPE Ethernet 10Gb 2-port 521T Adapter | B33: 1 | C33: TS1-867707 | D33: TS1-867707 | E33: 867707-B21 | I33: 298
A34: HPE 82Q 8Gb 2-port PCIe Fibre Channel Host Bus Adapter | B34: 1 | C34: TS1L2-FC | D34: TS1L2-FC | E34: AJ764A | F34: 356 | H34: 0
A35: HPE StoreFabric SN1100Q 16Gb Dual Port Fibre Channel Host Bus Adapter | B35: 1 | C35: S2-P9D94A | D35: S2-P9D94A | E35: P9D94A | F35: 0 | H35: 0 | I35: 584
A37: Additional Card for PCIe Slot 3
A38: DL560
A39: None | H39: 0
A40: HPE Ethernet 1Gb 2-port 332T Adapter | B40: 1 | C40: TS1L2-1GB | D40: TS1L2-1GB | E40: 615732-B21 | F40: 29 | H40: 0
A41: HPE Ethernet 10Gb 2-port 530SFP Adapter | B41: 1 | C41: TS1L2-10GB | D41: TS1L2-10GB | E41: 652503-B21 | F41: 259 | G41: HPE BLc 10G SFP+ SR Transceiver | H41: 2 | J41: 455883-B21
A42: HPE Ethernet 10Gb 2P 530T Adapter | B42: 1 | C42: TS1-656596 | D42: TS1-656596 | E42: 656596-B21 | I42: 298
A43: HPE Ethernet 10Gb 2-port 521T Adapter | B43: 1 | C43: TS1-867707 | D43: TS1-867707 | E43: 867707-B21 | I43: 298
A44: HPE StoreFabric CN1200E 10Gb Converged Network Adapter | B44: 1 | C44: TS1L2-CNA | D44: TS1L2-CNA | E44: E7Y06A | F44: 720 | G44: HPE BLc 10G SFP+ SR Transceiver | H44: 2 | J44: 455883-B21
A45: HPE 82Q 8Gb 2-port PCIe Fibre Channel Host Bus Adapter | B45: 1 | C45: TS1L2-FC | D45: TS1L2-FC | E45: AJ764A | F45: 356 | H45: 0
A46: HPE StoreFabric SN1100Q 16Gb Dual Port Fibre Channel Host Bus Adapter | B46: 1 | C46: S2-P9D94A | D46: S2-P9D94A | E46: P9D94A | F46: 0 | H46: 0 | I46: 584
A48: Additional Card for PCIe Slot 4/5/6
A49: DL560
A50: None | H50: 0
A51: HPE Ethernet 1Gb 2-port 332T Adapter | B51: 1 | C51: TS1L2-1GB | D51: TS1L2-1GB | E51: 615732-B21 | F51: 29 | H51: 0
A52: HPE Ethernet 10Gb 2-port 530SFP Adapter | B52: 1 | C52: TS1L2-10GB | D52: TS1L2-10GB | E52: 652503-B21 | F52: 259 | G52: HPE BLc 10G SFP+ SR Transceiver | H52: 2 | J52: 455883-B21
A53: HPE Ethernet 10Gb 2P 530T Adapter | B53: 1 | C53: TS1-656596 | D53: TS1-656596 | E53: 656596-B21 | I53: 298
A54: HPE Ethernet 10Gb 2-port 521T Adapter | B54: 1 | C54: TS1-867707 | D54: TS1-867707 | E54: 867707-B21 | I54: 298
A55: HPE StoreFabric CN1200E 10Gb Converged Network Adapter | B55: 1 | C55: TS1L2-CNA | D55: TS1L2-CNA | E55: E7Y06A | F55: 720 | G55: HPE BLc 10G SFP+ SR Transceiver | H55: 2 | J55: 455883-B21
A56: HPE 82Q 8Gb 2-port PCIe Fibre Channel Host Bus Adapter | B56: 1 | C56: TS1L2-FC | D56: TS1L2-FC | E56: AJ764A | F56: 356 | H56: 0
A57: HPE StoreFabric SN1100Q 16Gb Dual Port Fibre Channel Host Bus Adapter | B57: 1 | C57: S2-P9D94A | D57: S2-P9D94A | E57: P9D94A | F57: 0 | H57: 0 | I57: 584
A59: Additional Card for PCIe Slot 5
A60: DL560
A61: None | H61: 0
A62: NVIDIA Quadro P2000 GPU Module | B62: 1 | C62: TS1-Q0V77A | D62: TS1-Q0V77A | E62: Q0V77A | I62: 518
A63: HPE Ethernet 1Gb 2-port 332T Adapter | B63: 1 | C63: TS1L2-1GB | D63: TS1L2-1GB | E63: 615732-B21 | F63: 29 | H63: 0
A64: HPE Ethernet 10Gb 2-port 530SFP Adapter | B64: 1 | C64: TS1L2-10GB | D64: TS1L2-10GB | E64: 652503-B21 | F64: 259 | G64: HPE BLc 10G SFP+ SR Transceiver | H64: 2 | J64: 455883-B21
A65: HPE Ethernet 10Gb 2P 530T Adapter | B65: 1 | C65: TS1-656596 | D65: TS1-656596 | E65: 656596-B21 | I65: 298
A66: HPE Ethernet 10Gb 2-port 521T Adapter | B66: 1 | C66: TS1-867707 | D66: TS1-867707 | E66: 867707-B21 | I66: 298
A67: HPE StoreFabric CN1200E 10Gb Converged Network Adapter | B67: 1 | C67: TS1L2-CNA | D67: TS1L2-CNA | E67: E7Y06A | F67: 720 | G67: HPE BLc 10G SFP+ SR Transceiver | H67: 2 | J67: 455883-B21
A68: HPE 82Q 8Gb 2-port PCIe Fibre Channel Host Bus Adapter | B68: 1 | C68: TS1L2-FC | D68: TS1L2-FC | E68: AJ764A | F68: 356 | H68: 0
A69: HPE StoreFabric SN1100Q 16Gb Dual Port Fibre Channel Host Bus Adapter | B69: 1 | C69: S2-P9D94A | D69: S2-P9D94A | E69: P9D94A | F69: 0 | H69: 0 | I69: 584
A71: Additional Card for PCIe Slot 6
A72: DL560
A73: None | H73: 0
A74: HPE Ethernet 1Gb 2-port 332T Adapter | B74: 1 | C74: TS1L2-1GB | D74: TS1L2-1GB | E74: 615732-B21 | F74: 29 | H74: 0
A75: HPE Ethernet 10Gb 2-port 530SFP Adapter | B75: 1 | C75: TS1L2-10GB | D75: TS1L2-10GB | E75: 652503-B21 | F75: 259 | G75: HPE BLc 10G SFP+ SR Transceiver | H75: 2 | J75: 455883-B21
A76: HPE Ethernet 10Gb 2P 530T Adapter | B76: 1 | C76: TS1-656596 | D76: TS1-656596 | E76: 656596-B21 | I76: 298
A77: HPE Ethernet 10Gb 2-port 521T Adapter | B77: 1 | C77: TS1-867707 | D77: TS1-867707 | E77: 867707-B21 | I77: 298
A78: HPE StoreFabric CN1200E 10Gb Converged Network Adapter | B78: 1 | C78: TS1L2-CNA | D78: TS1L2-CNA | E78: E7Y06A | F78: 720 | G78: HPE BLc 10G SFP+ SR Transceiver | H78: 2 | J78: 455883-B21
A79: HPE 82Q 8Gb 2-port PCIe Fibre Channel Host Bus Adapter | B79: 1 | C79: TS1L2-FC | D79: TS1L2-FC | E79: AJ764A | F79: 356 | H79: 0
A80: HPE StoreFabric SN1100Q 16Gb Dual Port Fibre Channel Host Bus Adapter | B80: 1 | C80: S2-P9D94A | D80: S2-P9D94A | E80: P9D94A | F80: 0 | H80: 0 | I80: 584
A82: Additional Card for PCIe Slot 7/8
A83: DL560
A84: None | H84: 0
A85: HPE Ethernet 1Gb 2-port 332T Adapter | B85: 1 | C85: TS1L2-1GB | D85: TS1L2-1GB | E85: 615732-B21 | F85: 29 | H85: 0
A86: HPE Ethernet 10Gb 2-port 530SFP Adapter | B86: 1 | C86: TS1L2-10GB | D86: TS1L2-10GB | E86: 652503-B21 | F86: 259 | G86: HPE BLc 10G SFP+ SR Transceiver | H86: 2 | J86: 455883-B21
A87: HPE Ethernet 10Gb 2P 530T Adapter | B87: 1 | C87: TS1-656596 | D87: TS1-656596 | E87: 656596-B21 | I87: 298
A88: HPE Ethernet 10Gb 2-port 521T Adapter | B88: 1 | C88: TS1-867707 | D88: TS1-867707 | E88: 867707-B21 | I88: 298
A89: HPE StoreFabric CN1200E 10Gb Converged Network Adapter | B89: 1 | C89: TS1L2-CNA | D89: TS1L2-CNA | E89: E7Y06A | F89: 720 | G89: HPE BLc 10G SFP+ SR Transceiver | H89: 2 | J89: 455883-B21
A90: HPE 82Q 8Gb 2-port PCIe Fibre Channel Host Bus Adapter | B90: 1 | C90: TS1L2-FC | D90: TS1L2-FC | E90: AJ764A | F90: 356 | H90: 0
A91: HPE StoreFabric SN1100Q 16Gb Dual Port Fibre Channel Host Bus Adapter | B91: 1 | C91: S2-P9D94A | D91: S2-P9D94A | E91: P9D94A | F91: 0 | H91: 0 | I91: 584
A94: Additional Card for PCIe Slot 9 OCCUPATO
A95: DL580
A96: None | H96: 0
A97: HPE Ethernet 1Gb 2P 332T Adptr | B97: 1 | C97: 10L2-LAN1GB | D97: S10L1-DL560-LAN1 | E97: 615732-B21 | F97: 35 | H97: 0
A98: HPE Ethernet 10Gb 2P 530SFP+ Adptr | B98: 1 | C98: 10L2-LAN10GB | D98: S10L1-DL560-LAN10 | E98: 652503-B21 | F98: 716 | G98: HPE BLc 10G SFP+ SR Transceiver | H98: 2 | J98: 455883-B21
A99: HPE StoreFabric CN1200E 10Gb CNA | B99: 1 | C99: 10L2-CNA10 | D99: S10L1-DL560-CNA10 | E99: E7Y06A | F99: 778 | G99: HPE BLc 10G SFP+ SR Transceiver | H99: 2 | J99: 455883-B21
A100: HPE 82Q 8Gb Dual Port PCI-e FC HBA | B100: 1 | C100: 10L2-FC | D100: S10L1-DL560-FC | E100: AJ764A | F100: 889 | H100: 0
A102: Additional Card for PCIe Slot 8 | L102: 1671 | M102: =L102/100 -> 16.71 | N102: =M102*25 -> 417.75 | O102: =N102+L102 -> 2088.75 | P102: 2100
A103: DL580
A104: None | H104: 0
A105: HPE Ethernet 1Gb 2-port 332T Adapter | B105: 1 | C105: TS1L2-1GB | D105: TS1L2-1GB | E105: 615732-B21 | F105: 29 | H105: 0
A106: HPE Ethernet 10Gb 2-port 530SFP Adapter | B106: 1 | C106: TS1L2-10GB | D106: TS1L2-10GB | E106: 652503-B21 | F106: 259 | G106: HPE BLc 10G SFP+ SR Transceiver | H106: 2 | J106: 455883-B21
A107: HPE StoreFabric CN1200E 10Gb Converged Network Adapter | B107: 1 | C107: TS1L2-CNA | D107: TS1L2-CNA | E107: E7Y06A | F107: 720 | G107: HPE BLc 10G SFP+ SR Transceiver | H107: 2 | J107: 455883-B21
A108: HPE Ethernet 10Gb 2P 530T Adapter | B108: 1 | C108: TS1-656596 | D108: TS1-656596 | E108: 656596-B21 | I108: 298
A109: HPE Ethernet 10Gb 2-port 521T Adapter | B109: 1 | C109: TS1-867707 | D109: TS1-867707 | E109: 867707-B21 | I109: 298
A110: HPE 82Q 8Gb 2-port PCIe Fibre Channel Host Bus Adapter | B110: 1 | C110: TS1L2-FC | D110: TS1L2-FC | E110: AJ764A | F110: 356 | H110: 0
A111: HPE StoreFabric SN1100Q 16Gb Dual Port Fibre Channel Host Bus Adapter | B111: 1 | C111: S2-P9D94A | D111: S2-P9D94A | E111: P9D94A | F111: 0 | H111: 0 | I111: 584
A113: Additional Card for PCIe Slot 7
A114: DL580
A115: None | H115: 0
A116: HPE Ethernet 1Gb 2-port 332T Adapter | B116: 1 | C116: TS1L2-1GB | D116: TS1L2-1GB-ALT | E116: 615732-B21 | F116: 29 | H116: 0
A117: HPE Ethernet 10Gb 2-port 530SFP Adapter | B117: 1 | C117: TS1L2-10GB | D117: TS1L2-10GB-ALT | E117: 652503-B21 | F117: 259 | G117: HPE BLc 10G SFP+ SR Transceiver | H117: 2 | J117: 455883-B21
A118: HPE StoreFabric CN1200E 10Gb Converged Network Adapter | B118: 1 | C118: TS1L2-CNA | D118: TS1L2-CNA-ALT | E118: E7Y06A | F118: 720 | G118: HPE BLc 10G SFP+ SR Transceiver | H118: 2 | J118: 455883-B21
A119: HPE Ethernet 10Gb 2P 530T Adapter | B119: 1 | C119: TS1-656596 | D119: TS1-656596 | E119: 656596-B21 | I119: 298
A120: HPE Ethernet 10Gb 2-port 521T Adapter | B120: 1 | C120: TS1-867707 | D120: TS1-867707 | E120: 867707-B21 | I120: 298
A121: HPE 82Q 8Gb 2-port PCIe Fibre Channel Host Bus Adapter | B121: 1 | C121: TS1L2-FC | D121: TS1L2-FC | E121: AJ764A | F121: 356 | H121: 0
A122: HPE StoreFabric SN1100Q 16Gb Dual Port Fibre Channel Host Bus Adapter | B122: 1 | C122: S2-P9D94A | D122: S2-P9D94A-ALT | E122: P9D94A | F122: 0 | H122: 0 | I122: 584
A124: Additional Card for PCIe Slot 6
A125: DL580 Slot 48HDD
A126: None | H126: 0
A127: HPE Ethernet 1Gb 2-port 332T Adapter | B127: 1 | C127: TS1L2-1GB | D127: TS1L2-1GB-ALT | E127: 615732-B21 | F127: 29 | H127: 0
A128: HPE DL580 Gen10 12G 24-port SAS Expander | B128: 1 | E128: 881101-B21
A129: HPE Smart Array P408i-p SR Gen10 Ctrlr | B129: 1 | E129: 830824-B21
A130: HPE Ethernet 10Gb 2-port 530SFP Adapter | B130: 1 | C130: TS1L2-10GB | D130: TS1L2-10GB-ALT | E130: 652503-B21 | F130: 259 | G130: HPE BLc 10G SFP+ SR Transceiver | H130: 2 | J130: 455883-B21
A131: HPE StoreFabric CN1200E 10Gb Converged Network Adapter | B131: 1 | C131: TS1L2-CNA | D131: TS1L2-CNA-ALT | E131: E7Y06A | F131: 720 | G131: HPE BLc 10G SFP+ SR Transceiver | H131: 2 | J131: 455883-B21
A132: HPE Ethernet 10Gb 2P 530T Adapter | B132: 1 | C132: TS1-656596 | D132: TS1-656596 | E132: 656596-B21 | I132: 298
A133: HPE Ethernet 10Gb 2-port 521T Adapter | B133: 1 | C133: TS1-867707 | D133: TS1-867707 | E133: 867707-B21 | I133: 298
A134: HPE 82Q 8Gb 2-port PCIe Fibre Channel Host Bus Adapter | B134: 1 | C134: TS1L2-FC | D134: TS1L2-FC | E134: AJ764A | F134: 356 | H134: 0
A135: HPE StoreFabric SN1100Q 16Gb Dual Port Fibre Channel Host Bus Adapter | B135: 1 | C135: S2-P9D94A | D135: S2-P9D94A-ALT | E135: P9D94A | F135: 0 | H135: 0 | I135: 584
A137: Additional Card for PCIe Slot 5
A138: DL580
A139: None | H139: 0
A140: HPE Ethernet 1Gb 2-port 332T Adapter | B140: 1 | C140: TS1L2-1GB | D140: TS1L2-1GB | E140: 615732-B21 | F140: 29 | H140: 0
A141: HPE Ethernet 10Gb 2-port 530SFP Adapter | B141: 1 | C141: TS1L2-10GB | D141: TS1L2-10GB | E141: 652503-B21 | F141: 259 | G141: HPE BLc 10G SFP+ SR Transceiver | H141: 2 | J141: 455883-B21
A142: HPE StoreFabric CN1200E 10Gb Converged Network Adapter | B142: 1 | C142: TS1L2-CNA | D142: TS1L2-CNA | E142: E7Y06A | F142: 720 | G142: HPE BLc 10G SFP+ SR Transceiver | H142: 2 | J142: 455883-B21
A143: HPE Ethernet 10Gb 2P 530T Adapter | B143: 1 | C143: TS1-656596 | D143: TS1-656596 | E143: 656596-B21 | I143: 298
A144: HPE Ethernet 10Gb 2-port 521T Adapter | B144: 1 | C144: TS1-867707 | D144: TS1-867707 | E144: 867707-B21 | I144: 298
A145: HPE 82Q 8Gb 2-port PCIe Fibre Channel Host Bus Adapter | B145: 1 | C145: TS1L2-FC | D145: TS1L2-FC | E145: AJ764A | F145: 356 | H145: 0
A146: HPE StoreFabric SN1100Q 16Gb Dual Port Fibre Channel Host Bus Adapter | B146: 1 | C146: S2-P9D94A | D146: S2-P9D94A | E146: P9D94A | F146: 0 | H146: 0 | I146: 584
A148: Additional Card for PCIe Slot 4
A149: DL580
A150: None | H150: 0
A151: HPE Ethernet 1Gb 2-port 332T Adapter | B151: 1 | C151: TS1L2-1GB | D151: TS1L2-1GB | E151: 615732-B21 | F151: 29 | H151: 0
A152: HPE Ethernet 10Gb 2-port 530SFP Adapter | B152: 1 | C152: TS1L2-10GB | D152: TS1L2-10GB | E152: 652503-B21 | F152: 259 | G152: HPE BLc 10G SFP+ SR Transceiver | H152: 2 | J152: 455883-B21
A153: HPE StoreFabric CN1200E 10Gb Converged Network Adapter | B153: 1 | C153: TS1L2-CNA | D153: TS1L2-CNA | E153: E7Y06A | F153: 720 | G153: HPE BLc 10G SFP+ SR Transceiver | H153: 2 | J153: 455883-B21
A154: HPE Ethernet 10Gb 2P 530T Adapter | B154: 1 | C154: TS1-656596 | D154: TS1-656596 | E154: 656596-B21 | I154: 298
A155: HPE Ethernet 10Gb 2-port 521T Adapter | B155: 1 | C155: TS1-867707 | D155: TS1-867707 | E155: 867707-B21 | I155: 298
A156: HPE 82Q 8Gb 2-port PCIe Fibre Channel Host Bus Adapter | B156: 1 | C156: TS1L2-FC | D156: TS1L2-FC | E156: AJ764A | F156: 356 | H156: 0
A157: HPE StoreFabric SN1100Q 16Gb Dual Port Fibre Channel Host Bus Adapter | B157: 1 | C157: S2-P9D94A | D157: S2-P9D94A | E157: P9D94A | F157: 0 | H157: 0 | I157: 584
A158: NVIDIA Tesla V100 PCIe 16GB Module | B158: 1 | C158: TS1-Q2N68A | D158: TS1-Q2N68A | E158: Q2N68A | I158: 10583
A159: NVIDIA Tesla P40 24GB Module | B159: 1 | C159: TS1-Q0V80A | D159: TS1-Q0V80A | E159: Q0V80A | I159: 7552
A160: NVIDIA Quadro P6000 GPU Module | B160: 1 | C160: TS1-Q0V76A | D160: TS1-Q0V76A | E160: Q0V76A | F160: 0 | H160: 0 | I160: 5310
A162: Additional Card for PCIe Slot 3
A163: DL580
A164: None | H164: 0
A165: HPE Ethernet 1Gb 2-port 332T Adapter | B165: 1 | C165: TS1L2-1GB | D165: TS1L2-1GB-ALT | E165: 615732-B21 | F165: 29 | H165: 0
A166: HPE Ethernet 10Gb 2-port 530SFP Adapter | B166: 1 | C166: TS1L2-10GB | D166: TS1L2-10GB-ALT | E166: 652503-B21 | F166: 259 | G166: HPE BLc 10G SFP+ SR Transceiver | H166: 2 | J166: 455883-B21
A167: HPE StoreFabric CN1200E 10Gb Converged Network Adapter | B167: 1 | C167: TS1L2-CNA | D167: TS1L2-CNA-ALT | E167: E7Y06A | F167: 720 | G167: HPE BLc 10G SFP+ SR Transceiver | H167: 2 | J167: 455883-B21
A168: HPE Ethernet 10Gb 2P 530T Adapter | B168: 1 | C168: TS1-656596 | D168: TS1-656596 | E168: 656596-B21 | I168: 298
A169: HPE Ethernet 10Gb 2-port 521T Adapter | B169: 1 | C169: TS1-867707 | D169: TS1-867707 | E169: 867707-B21 | I169: 298
A170: HPE 82Q 8Gb 2-port PCIe Fibre Channel Host Bus Adapter | B170: 1 | C170: TS1L2-FC | D170: TS1L2-FC | E170: AJ764A | F170: 356 | H170: 0
A171: HPE StoreFabric SN1100Q 16Gb Dual Port Fibre Channel Host Bus Adapter | B171: 1 | C171: S2-P9D94A | D171: S2-P9D94A-ALT | E171: P9D94A | F171: 0 | H171: 0 | I171: 584
A173: Additional Card for PCIe Slot 2
A174: DL580
A175: None | H175: 0
A176: HPE Ethernet 1Gb 2-port 332T Adapter | B176: 1 | C176: TS1L2-1GB | D176: TS1L2-1GB-ALT | E176: 615732-B21 | F176: 29 | H176: 0
A177: HPE Ethernet 10Gb 2-port 530SFP Adapter | B177: 1 | C177: TS1L2-10GB | D177: TS1L2-10GB-ALT | E177: 652503-B21 | F177: 259 | G177: HPE BLc 10G SFP+ SR Transceiver | H177: 2 | J177: 455883-B21
A178: HPE StoreFabric CN1200E 10Gb Converged Network Adapter | B178: 1 | C178: TS1L2-CNA | D178: TS1L2-CNA-ALT | E178: E7Y06A | F178: 720 | G178: HPE BLc 10G SFP+ SR Transceiver | H178: 2 | J178: 455883-B21
A179: HPE Ethernet 10Gb 2P 530T Adapter | B179: 1 | C179: TS1-656596 | D179: TS1-656596 | E179: 656596-B21 | I179: 298
A180: HPE Ethernet 10Gb 2-port 521T Adapter | B180: 1 | C180: TS1-867707 | D180: TS1-867707 | E180: 867707-B21 | I180: 298
A181: HPE 82Q 8Gb 2-port PCIe Fibre Channel Host Bus Adapter | B181: 1 | C181: TS1L2-FC | D181: TS1L2-FC | E181: AJ764A | F181: 356 | H181: 0
A182: HPE StoreFabric SN1100Q 16Gb Dual Port Fibre Channel Host Bus Adapter | B182: 1 | C182: S2-P9D94A | D182: S2-P9D94A-ALT | E182: P9D94A | F182: 0 | H182: 0 | I182: 584
A184: Additional Card for PCIe Slot 1
A185: DL580
A186: None | H186: 0
A187: HPE Ethernet 1Gb 2-port 332T Adapter | B187: 1 | C187: TS1L2-1GB | D187: TS1L2-1GB-ALT | E187: 615732-B21 | F187: 29 | H187: 0
A188: HPE Ethernet 10Gb 2-port 530SFP Adapter | B188: 1 | C188: TS1L2-10GB | D188: TS1L2-10GB-ALT | E188: 652503-B21 | F188: 259 | G188: HPE BLc 10G SFP+ SR Transceiver | H188: 2 | J188: 455883-B21
A189: HPE StoreFabric CN1200E 10Gb Converged Network Adapter | B189: 1 | C189: TS1L2-CNA | D189: TS1L2-CNA-ALT | E189: E7Y06A | F189: 720 | G189: HPE BLc 10G SFP+ SR Transceiver | H189: 2 | J189: 455883-B21
A190: HPE Ethernet 10Gb 2P 530T Adapter | B190: 1 | C190: TS1-656596 | D190: TS1-656596 | E190: 656596-B21 | I190: 298
A191: HPE Ethernet 10Gb 2-port 521T Adapter | B191: 1 | C191: TS1-867707 | D191: TS1-867707 | E191: 867707-B21 | I191: 298
A192: HPE 82Q 8Gb 2-port PCIe Fibre Channel Host Bus Adapter | B192: 1 | C192: TS1L2-FC | D192: TS1L2-FC | E192: AJ764A | F192: 356 | H192: 0
A193: HPE StoreFabric SN1100Q 16Gb Dual Port Fibre Channel Host Bus Adapter | B193: 1 | C193: S2-P9D94A | D193: S2-P9D94A-ALT | E193: P9D94A | F193: 0 | H193: 0 | I193: 584
A195: Aggiungere Coppia di Processori
A197: Non Disponibile
A198: Aggiungere Secondary Riser
A199: Aggiungere Tertiary riser
A201: Aggiungere 9 slot Secondary Riser
A229: Additional Card for PCIe Slot 1 (Full height) (CPU1)
A230: T630
A231: None | B231: ="" ->  | C231: ="" ->  | D231: ="" ->  | E231: ="" ->  | F231: ="" ->  | G231: ="" ->  | H231: 0 | I231: ="" -> 
A232: Broadcom 5720 DP 1Gb Network Interface Card,Full Height,CusKit | B232: 1 | C232: 10L1-LAN1GB | D232: S10L1-T630-LAN1 | E232: [540-BBGY] | F232: 35 | H232: 0
A233: Emulex LPE 12002, Dual Port 8Gb Fibre Channel HBA,Full Height,CusKit | B233: 1 | C233: 10L1-FC | D233: S10L1-T630-FC | E233: [406-BBGR] | F233: 940 | H233: 0
A234: QLogic 57810 Dual Port 10Gb Direct Attach/SFP+ Network Adapter,Full Height,CusKit | B234: 1 | C234: 10L1-LAN10GB | D234: S10L1-T630-LAN10 | E234: [540-BBGS] | F234: 417 | G234: PowerEdge SFP+, 10GbE SR/SX, Optical Tranceiver, LC Connector, for Intel and Broadcom,CusKit | H234: 2 | I234: [407-BBOK]
A237: Additional Card for PCIe Slot 2 (Full height) (CPU1)
A238: T630
A239: None | B239: ="" ->  | C239: ="" ->  | D239: ="" ->  | E239: ="" ->  | F239: ="" ->  | G239: ="" ->  | H239: 0 | I239: ="" -> 
A240: Broadcom 5720 DP 1Gb Network Interface Card,Full Height,CusKit | B240: 1 | C240: 10L1-LAN1GB | D240: S10L1-T630-LAN1 | E240: [540-BBGY] | F240: 35 | H240: 0
A241: Emulex LPE 12002, Dual Port 8Gb Fibre Channel HBA,Full Height,CusKit | B241: 1 | C241: 10L1-FC | D241: S10L1-T630-FC | E241: [406-BBGR] | F241: 940 | H241: 0
A242: QLogic 57810 Dual Port 10Gb Direct Attach/SFP+ Network Adapter,Full Height,CusKit | B242: 1 | C242: 10L1-LAN10GB | D242: S10L1-T630-LAN10 | E242: [540-BBGS] | F242: 417 | G242: PowerEdge SFP+, 10GbE SR/SX, Optical Tranceiver, LC Connector, for Intel and Broadcom,CusKit | H242: 2 | I242: [407-BBOK]
A245: Additional Card for PCIe Slot 3 (Full height) (CPU2)
A246: T630
A247: None | B247: ="" ->  | C247: ="" ->  | D247: ="" ->  | E247: ="" ->  | F247: ="" ->  | G247: ="" ->  | H247: 0 | I247: ="" -> 
A248: Broadcom 5720 DP 1Gb Network Interface Card,Full Height,CusKit | B248: 1 | C248: 10L1-LAN1GB | D248: S10L1-T630-LAN1 | E248: [540-BBGY] | F248: 35 | H248: 0
A249: Emulex LPE 12002, Dual Port 8Gb Fibre Channel HBA,Full Height,CusKit | B249: 1 | C249: 10L1-FC | D249: S10L1-T630-FC | E249: [406-BBGR] | F249: 940 | H249: 0
A250: QLogic 57810 Dual Port 10Gb Direct Attach/SFP+ Network Adapter,Full Height,CusKit | B250: 1 | C250: 10L1-LAN10GB | D250: S10L1-T630-LAN10 | E250: [540-BBGS] | F250: 417 | G250: PowerEdge SFP+, 10GbE SR/SX, Optical Tranceiver, LC Connector, for Intel and Broadcom,CusKit | H250: 2 | I250: [407-BBOK]
A253: Additional Card for PCIe Slot 4 (Full height) (CPU2)
A254: T630
... 16 more rows

Sheet Operating System (hidden)
A1: Operating System
A2: DL560
A3: No Operating System | B3: ="" ->  | C3: ="" ->  | D3: ="" ->  | E3: ="" ->  | F3: ="" ->  | G3: None | H3: ="" ->  | I3: ="" ->  | J3: ="" ->  | K3: ="" ->  | L3: 0 | M3: None | N3: ="" ->  | O3: ="" ->  | P3: ="" ->  | Q3: ="" ->  | R3: 0 | S3: ="" ->  | T3: 0 | U3: ="" ->  | V3: ="" ->  | W3: ="" ->  | X3: 0 | Y3: ="" ->  | Z3: 0 | AA3: ="" ->  | AB3: ="" ->  | AC3: ="" ->  | AD3: 0
A4: Microsoft Windows Server 2016 Standard Edition ROK 16 Core | B4: 1 | C4: TS1L2-WIN1 | D4: TS1L2-WIN1 | E4: 871148-B21 | F4: 556 | G4: Microsoft Windows Server 2016 1 User CAL | I4: TS1L2-CALUSER | J4: TS1L2-CALUSER | K4: 871175-A21 | L4: 22 | M4: Microsoft Windows Server 2016 1 Device CAL | O4: TS1L2-CALDEV | P4: TS1L2-CALDEV | Q4: 871176-A21 | R4: 22 | S4: Microsoft Windows Server 2016 Standard Edition Additional License 2 Core | T4: 4 | U4: TS1L2-WIN2CORE | V4: TS1L2-WIN2CORE | W4: 871159-A21 | X4: 56 | Y4: ="" ->  | Z4: 0 | AA4: ="" ->  | AB4: ="" ->  | AC4: ="" ->  | AD4: 0
A5: Microsoft Windows Server 2016 Datacenter Edition ROK 16 Core | B5: 1 | C5: TS1L2-WINDC1 | D5: TS1L2-WINDC1 | E5: 871153-B21 | F5: 2174 | G5: Microsoft Windows Server 2016 1 User CAL | I5: TS1L2-CALUSER | J5: TS1L2-CALUSER | K5: 871175-A21 | L5: 22 | M5: Microsoft Windows Server 2016 1 Device CAL | O5: TS1L2-CALDEV | P5: TS1L2-CALDEV | Q5: 871176-A21 | R5: 22 | S5: Microsoft Windows Server 2016 Datacenter Edition Additional License 16 Core | T5: 1 | U5: TS1L2-WINDC2 | V5: TS1L2-WINDC2 | W5: 871166-A21 | X5: 2105 | Y5: ="" ->  | Z5: 0 | AA5: ="" ->  | AB5: ="" ->  | AC5: ="" ->  | AD5: 0
A6: CentOS 7.0 | B6: 1 | C6: TS1L2-LINUX | D6: TS1L2-LINUX | F6: 50 | G6: None | H6: ="" ->  | I6: ="" ->  | J6: ="" ->  | K6: ="" ->  | L6: 0 | M6: None | N6: ="" ->  | O6: ="" ->  | P6: ="" ->  | Q6: ="" ->  | R6: 0 | S6: ="" ->  | T6: 0 | U6: ="" ->  | V6: ="" ->  | W6: ="" ->  | X6: 0 | Y6: ="" ->  | Z6: 0 | AA6: ="" ->  | AB6: ="" ->  | AC6: ="" ->  | AD6: 0
A8: DL560 2CPU
A9: No Operating System | B9: ="" ->  | C9: ="" ->  | D9: ="" ->  | E9: ="" ->  | F9: ="" ->  | G9: None | H9: ="" ->  | I9: ="" ->  | J9: ="" ->  | K9: ="" ->  | L9: 0 | M9: None | N9: ="" ->  | O9: ="" ->  | P9: ="" ->  | Q9: ="" ->  | R9: 0 | S9: ="" ->  | T9: 0 | U9: ="" ->  | V9: ="" ->  | W9: ="" ->  | X9: 0 | Y9: ="" ->  | Z9: 0 | AA9: ="" ->  | AB9: ="" ->  | AC9: ="" ->  | AD9: 0
A10: Microsoft Windows Server 2016 Standard Edition ROK 16 Core | B10: 1 | C10: TS1L2-WIN1 | D10: TS1L2-WIN1 | E10: 871148-B21 | F10: 556 | G10: Microsoft Windows Server 2016 1 User CAL | I10: TS1L2-CALUSER | J10: TS1L2-CALUSER | K10: 871175-A21 | L10: 22 | M10: Microsoft Windows Server 2016 1 Device CAL | O10: TS1L2-CALDEV | P10: TS1L2-CALDEV | Q10: 871176-A21 | R10: 22 | S10: Microsoft Windows Server 2016 Standard Edition Additional License 16 Core | T10: 2 | U10: TS1L2-WIN2 | V10: TS1L2-WIN2 | W10: 871157-A21 | X10: 526 | Y10: ="" ->  | Z10: 0 | AA10: ="" ->  | AB10: ="" ->  | AC10: ="" ->  | AD10: 0
A11: Microsoft Windows Server 2016 Datacenter Edition ROK 16 Core | B11: 1 | C11: TS1L2-WINDC1 | D11: TS1L2-WINDC1 | E11: 871153-B21 | F11: 2174 | G11: Microsoft Windows Server 2016 1 User CAL | I11: TS1L2-CALUSER | J11: TS1L2-CALUSER | K11: 871175-A21 | L11: 22 | M11: Microsoft Windows Server 2016 1 Device CAL | O11: TS1L2-CALDEV | P11: TS1L2-CALDEV | Q11: 871176-A21 | R11: 22 | S11: Microsoft Windows Server 2016 Datacenter Edition Additional License 16 Core | T11: 2 | U11: TS1L2-WINDC2 | V11: TS1L2-WINDC2 | W11: 871166-A21 | X11: 2105 | Y11: ="" ->  | Z11: 0 | AA11: ="" ->  | AB11: ="" ->  | AC11: ="" ->  | AD11: 0
A12: CentOS 7.0 | B12: 1 | C12: TS1L2-LINUX | D12: TS1L2-LINUX | F12: 50 | G12: None | H12: ="" ->  | I12: ="" ->  | J12: ="" ->  | K12: ="" ->  | L12: 0 | M12: None | N12: ="" ->  | O12: ="" ->  | P12: ="" ->  | Q12: ="" ->  | R12: 0 | S12: ="" ->  | T12: 0 | U12: ="" ->  | V12: ="" ->  | W12: ="" ->  | X12: 0 | Y12: ="" ->  | Z12: 0 | AA12: ="" ->  | AB12: ="" ->  | AC12: ="" ->  | AD12: 0
A15: DL580 ALTERNATIVO
A16: No Operating System | B16: ="" ->  | C16: ="" ->  | D16: ="" ->  | E16: ="" ->  | F16: ="" ->  | G16: None | H16: ="" ->  | I16: ="" ->  | J16: ="" ->  | K16: ="" ->  | L16: 0 | M16: None | N16: ="" ->  | O16: ="" ->  | P16: ="" ->  | Q16: ="" ->  | R16: 0 | S16: ="" ->  | T16: 0 | U16: ="" ->  | V16: ="" ->  | W16: ="" ->  | X16: 0 | Y16: ="" ->  | Z16: 0 | AA16: ="" ->  | AB16: ="" ->  | AC16: ="" ->  | AD16: 0
A17: Microsoft Windows Server 2016 Standard Edition ROK 16 Core | B17: 1 | C17: TS1L2-WIN1 | D17: TS1L2-WIN1 | E17: 871148-B21 | F17: 556 | G17: Microsoft Windows Server 2016 1 User CAL | I17: TS1L2-CALUSER | J17: TS1L2-CALUSER | K17: 871175-A21 | L17: 22 | M17: Microsoft Windows Server 2016 1 Device CAL | O17: TS1L2-CALDEV | P17: TS1L2-CALDEV | Q17: 871176-A21 | R17: 22 | S17: Microsoft Windows Server 2016 Standard Edition Additional License 2 Core | T17: 4 | U17: TS1L2-WIN2CORE | V17: TS1L2-WIN2CORE | W17: 871159-A21 | X17: 56 | Y17: ="" ->  | Z17: 0 | AA17: ="" ->  | AB17: ="" ->  | AC17: ="" ->  | AD17: 0
A18: Microsoft Windows Server 2016 Datacenter Edition ROK 16 Core | B18: 1 | C18: TS1L2-WINDC1 | D18: TS1L2-WINDC1 | E18: 871153-B21 | F18: 2174 | G18: Microsoft Windows Server 2016 1 User CAL | I18: TS1L2-CALUSER | J18: TS1L2-CALUSER | K18: 871175-A21 | L18: 22 | M18: Microsoft Windows Server 2016 1 Device CAL | O18: TS1L2-CALDEV | P18: TS1L2-CALDEV | Q18: 871176-A21 | R18: 22 | S18: Microsoft Windows Server 2016 Datacenter Edition Additional License 16 Core | T18: 1 | U18: TS1L2-WINDC2 | V18: TS1L2-WINDC2 | W18: 871166-A21 | X18: 2105 | Y18: ="" ->  | Z18: 0 | AA18: ="" ->  | AB18: ="" ->  | AC18: ="" ->  | AD18: 0
A19: CentOS 7.0 | B19: 1 | C19: TS1L2-LINUX | D19: TS1L2-LINUX | F19: 50 | G19: None | H19: ="" ->  | I19: ="" ->  | J19: ="" ->  | K19: ="" ->  | L19: 0 | M19: None | N19: ="" ->  | O19: ="" ->  | P19: ="" ->  | Q19: ="" ->  | R19: 0 | S19: ="" ->  | T19: 0 | U19: ="" ->  | V19: ="" ->  | W19: ="" ->  | X19: 0 | Y19: ="" ->  | Z19: 0 | AA19: ="" ->  | AB19: ="" ->  | AC19: ="" ->  | AD19: 0
A21: DL580 ALTERNATIVO 2CPU
A22: No Operating System | B22: ="" ->  | C22: ="" ->  | D22: ="" ->  | E22: ="" ->  | F22: ="" ->  | G22: None | H22: ="" ->  | I22: ="" ->  | J22: ="" ->  | K22: ="" ->  | L22: 0 | M22: None | N22: ="" ->  | O22: ="" ->  | P22: ="" ->  | Q22: ="" ->  | R22: 0 | S22: ="" ->  | T22: 0 | U22: ="" ->  | V22: ="" ->  | W22: ="" ->  | X22: 0 | Y22: ="" ->  | Z22: 0 | AA22: ="" ->  | AB22: ="" ->  | AC22: ="" ->  | AD22: 0
A23: Microsoft Windows Server 2016 Standard Edition ROK 16 Core | B23: 1 | C23: TS1L2-WIN1 | D23: TS1L2-WIN1 | E23: 871148-B21 | F23: 556 | G23: Microsoft Windows Server 2016 1 User CAL | I23: TS1L2-CALUSER | J23: TS1L2-CALUSER | K23: 871175-A21 | L23: 22 | M23: Microsoft Windows Server 2016 1 Device CAL | O23: TS1L2-CALDEV | P23: TS1L2-CALDEV | Q23: 871176-A21 | R23: 22 | S23: Microsoft Windows Server 2016 Standard Edition Additional License 16 Core | T23: 2 | U23: TS1L2-WIN2 | V23: TS1L2-WIN2 | W23: 871157-A21 | X23: 526 | Y23: ="" ->  | Z23: 0 | AA23: ="" ->  | AB23: ="" ->  | AC23: ="" ->  | AD23: 0
A24: Microsoft Windows Server 2016 Datacenter Edition ROK 16 Core | B24: 1 | C24: TS1L2-WINDC1 | D24: TS1L2-WINDC1 | E24: 871153-B21 | F24: 2174 | G24: Microsoft Windows Server 2016 1 User CAL | I24: TS1L2-CALUSER | J24: TS1L2-CALUSER | K24: 871175-A21 | L24: 22 | M24: Microsoft Windows Server 2016 1 Device CAL | O24: TS1L2-CALDEV | P24: TS1L2-CALDEV | Q24: 871176-A21 | R24: 22 | S24: Microsoft Windows Server 2016 Datacenter Edition Additional License 16 Core | T24: 2 | U24: TS1L2-WINDC2 | V24: TS1L2-WINDC2 | W24: 871166-A21 | X24: 2105 | Y24: ="" ->  | Z24: 0 | AA24: ="" ->  | AB24: ="" ->  | AC24: ="" ->  | AD24: 0
A25: CentOS 7.0 | B25: 1 | C25: TS1L2-LINUX | D25: TS1L2-LINUX | F25: 50 | G25: None | H25: ="" ->  | I25: ="" ->  | J25: ="" ->  | K25: ="" ->  | L25: 0 | M25: None | N25: ="" ->  | O25: ="" ->  | P25: ="" ->  | Q25: ="" ->  | R25: 0 | S25: ="" ->  | T25: 0 | U25: ="" ->  | V25: ="" ->  | W25: ="" ->  | X25: 0 | Y25: ="" ->  | Z25: 0 | AA25: ="" ->  | AB25: ="" ->  | AC25: ="" ->  | AD25: 0
A27: Dl580 PREST
A28: No Operating System | B28: ="" ->  | C28: ="" ->  | D28: ="" ->  | E28: ="" ->  | F28: ="" ->  | G28: None | H28: ="" ->  | I28: ="" ->  | J28: ="" ->  | K28: ="" ->  | L28: 0 | M28: None | N28: ="" ->  | O28: ="" ->  | P28: ="" ->  | Q28: ="" ->  | R28: 0 | S28: ="" ->  | T28: 0 | U28: ="" ->  | V28: ="" ->  | W28: ="" ->  | X28: 0 | Y28: ="" ->  | Z28: 0 | AA28: ="" ->  | AB28: ="" ->  | AC28: ="" ->  | AD28: 0
A29: Microsoft Windows Server 2016 Standard Edition ROK 16 Core | B29: 1 | C29: TS1L2-WIN1 | D29: TS1L2-WIN1 | E29: 871148-B21 | F29: 556 | G29: Microsoft Windows Server 2016 1 User CAL | I29: TS1L2-CALUSER | J29: TS1L2-CALUSER | K29: 871175-A21 | L29: 22 | M29: Microsoft Windows Server 2016 1 Device CAL | O29: TS1L2-CALDEV | P29: TS1L2-CALDEV | Q29: 871176-A21 | R29: 22 | S29: Microsoft Windows Server 2016 Standard Edition Additional License 16 Core | T29: 1 | U29: TS1L2-WIN2 | V29: 2+Y23:AD23 | W29: 871157-A21 | X29: 526 | Y29: Microsoft Windows Server 2016 Standard Edition Additional License 2 Core | Z29: 2 | AA29: TS1L2-WIN2CORE | AB29: TS1L2-WIN2CORE | AC29: 871159-A21 | AD29: 56
A30: Microsoft Windows Server 2016 Datacenter Edition ROK 16 Core | B30: 1 | C30: TS1L2-WINDC1 | D30: TS1L2-WINDC1 | E30: 871153-B21 | F30: 2174 | G30: Microsoft Windows Server 2016 1 User CAL | I30: TS1L2-CALUSER | J30: TS1L2-CALUSER | K30: 871175-A21 | L30: 22 | M30: Microsoft Windows Server 2016 1 Device CAL | O30: TS1L2-CALDEV | P30: TS1L2-CALDEV | Q30: 871176-A21 | R30: 22 | S30: Microsoft Windows Server 2016 Datacenter Edition Additional License 16 Core | T30: 1 | U30: TS1L2-WINDC2 | V30: TS1L2-WINDC2 | W30: 871166-A21 | X30: 2105 | Y30: Microsoft Windows Server 2016 Datacenter Edition Additional License 2 Core | Z30: 2 | AA30: S2-871168-A21 | AB30: S2-871168-A21 | AC30: ="" ->  | AD30: 530
A31: CentOS 7.0 | B31: 1 | C31: TS1L2-LINUX | D31: TS1L2-LINUX | F31: 50 | G31: None | H31: ="" ->  | I31: ="" ->  | J31: ="" ->  | K31: ="" ->  | L31: 0 | M31: None | N31: ="" ->  | O31: ="" ->  | P31: ="" ->  | Q31: ="" ->  | R31: 0 | S31: ="" ->  | T31: 0 | U31: ="" ->  | V31: ="" ->  | W31: ="" ->  | X31: 0 | Y31: ="" ->  | Z31: 0 | AA31: ="" ->  | AB31: ="" ->  | AC31: ="" ->  | AD31: 0
A32: Dl580 PREST 2CPU
A33: No Operating System | B33: ="" ->  | C33: ="" ->  | D33: ="" ->  | E33: ="" ->  | F33: ="" ->  | G33: None | H33: ="" ->  | I33: ="" ->  | J33: ="" ->  | K33: ="" ->  | L33: 0 | M33: None | N33: ="" ->  | O33: ="" ->  | P33: ="" ->  | Q33: ="" ->  | R33: 0 | S33: ="" ->  | T33: 0 | U33: ="" ->  | V33: ="" ->  | W33: ="" ->  | X33: 0 | Y33: ="" ->  | Z33: 0 | AA33: ="" ->  | AB33: ="" ->  | AC33: ="" ->  | AD33: 0
A34: Microsoft Windows Server 2016 Standard Edition ROK 16 Core | B34: 1 | C34: TS1L2-WIN1 | D34: TS1L2-WIN1 | E34: 871148-B21 | F34: 556 | G34: Microsoft Windows Server 2016 1 User CAL | I34: TS1L2-CALUSER | J34: TS1L2-CALUSER | K34: 871175-A21 | L34: 22 | M34: Microsoft Windows Server 2016 1 Device CAL | O34: TS1L2-CALDEV | P34: TS1L2-CALDEV | Q34: 871176-A21 | R34: 22 | S34: Microsoft Windows Server 2016 Standard Edition Additional License 16 Core | T34: 4 | U34: TS1L2-WIN2 | V34: TS1L2-WIN2 | W34: 871157-A21 | X34: 526 | Y34: Microsoft Windows Server 2016 Standard Edition Additional License 2 Core | Z34: 4 | AA34: TS1L2-WIN2CORE | AB34: TS1L2-WIN2CORE | AC34: 871159-A21 | AD34: 56
A35: Microsoft Windows Server 2016 Datacenter Edition ROK 16 Core | B35: 1 | C35: TS1L2-WINDC1 | D35: TS1L2-WINDC1 | E35: 871153-B21 | F35: 2174 | G35: Microsoft Windows Server 2016 1 User CAL | I35: TS1L2-CALUSER | J35: TS1L2-CALUSER | K35: 871175-A21 | L35: 22 | M35: Microsoft Windows Server 2016 1 Device CAL | O35: TS1L2-CALDEV | P35: TS1L2-CALDEV | Q35: 871176-A21 | R35: 22 | S35: Microsoft Windows Server 2016 Datacenter Edition Additional License 16 Core | T35: 4 | U35: TS1L2-WINDC2 | V35: TS1L2-WINDC2 | W35: 871166-A21 | X35: 2105 | Y35: ="" ->  | Z35: 0 | AA35: ="" ->  | AB35: ="" ->  | AC35: ="" ->  | AD35: 0
A36: CentOS 7.0 | B36: 1 | C36: TS1L2-LINUX | D36: TS1L2-LINUX | F36: 50 | G36: None | H36: ="" ->  | I36: ="" ->  | J36: ="" ->  | K36: ="" ->  | L36: 0 | M36: None | N36: ="" ->  | O36: ="" ->  | P36: ="" ->  | Q36: ="" ->  | R36: 0 | S36: ="" ->  | T36: 0 | U36: ="" ->  | V36: ="" ->  | W36: ="" ->  | X36: 0 | Y36: ="" ->  | Z36: 0 | AA36: ="" ->  | AB36: ="" ->  | AC36: ="" ->  | AD36: 0
A41: Microsoft Windows Server 2016 Standard Edition ROK 16 Core | C41: TS1L2-WIN1 | D41: TS1L2-WIN1 | E41: 871148-B21 | F41: 556 | G41: Microsoft Windows Server 2016 1 User CAL | I41: TS1L2-CALUSER | J41: TS1L2-CALUSER | K41: 871175-A21 | L41: 22 | M41: Microsoft Windows Server 2016 1 Device CAL | O41: TS1L2-CALDEV | P41: TS1L2-CALDEV | Q41: 871176-A21 | R41: 22
A42: Microsoft Windows Server 2016 Standard Edition Additional License 16 Core | C42: TS1L2-WIN2 | D42: TS1L2-WIN2 | E42: 871157-A21 | F42: 526
A43: Microsoft Windows Server 2016 Standard Edition Additional License 2 Core | C43: TS1L2-WIN2CORE | D43: TS1L2-WIN2CORE | E43: 871159-A21 | F43: 56
A45: Microsoft Windows Server 2016 Datacenter Edition ROK 16 Core | C45: TS1L2-WINDC1 | D45: TS1L2-WINDC1 | E45: 871153-B21 | F45: 2174 | G45: Microsoft Windows Server 2016 1 User CAL | I45: TS1L2-CALUSER | J45: TS1L2-CALUSER | K45: 871175-A21 | L45: 22 | M45: Microsoft Windows Server 2016 1 Device CAL | O45: TS1L2-CALDEV | P45: TS1L2-CALDEV | Q45: 871176-A21 | R45: 22
A46: Microsoft Windows Server 2016 Datacenter Edition Additional License 16 Core | C46: TS1L2-WINDC2 | D46: TS1L2-WINDC2 | E46: 871166-A21 | F46: 2105
A48: CentOS 7.0 | C48: TS1L2-LINUX | D48: TS1L2-LINUX | F48: 50
A52: None | B52: 0 | F52: 0
A53: SUSE Linux Enterprise Server, x86 & x86-64, 1-2 Sockets or 1-2 Virtual Machines, Standard Subscription, 3 Years | B53: 1 | C53: TS1-874-006887 | D53: TS1-874-006887 | E53: 874-006887 | F53: 1350
A54: SUSE Linux Enterprise Server, x86 & x86-64, 1-2 Sockets or 1-2 Virtual Machines, Standard Subscription, 5 Years | B54: 1 | C54: TS1-874-006898 | D54: TS1-874-006898 | E54: 874-006898 | F54: 2242.5
A55: SUSE Linux Enterprise Server, x86 & x86-64, 1-2 Sockets with Unlimited Virtual Machines, Standard Subscription, 3 Years | B55: 1 | C55: TS1-874-006888 | D55: TS1-874-006888 | E55: 874-006888 | F55: 2692.5
A56: SUSE Linux Enterprise Server, x86 & x86-64, 1-2 Sockets with Unlimited Virtual Machines, Standard Subscription, 5 Years | B56: 1 | C56: TS1-874-006902 | D56: TS1-874-006902 | E56: 874-006902 | F56: 4500
A57: SUSE Linux Enterprise Server, x86 & x86-64, 1-2 Sockets or 1-2 Virtual Machines, Priority Subscription, 3 Year | B57: 1 | C57: TS1-874-006883 | D57: TS1-874-006883 | E57: 874-006883 | F57: 2520
A58: SUSE Linux Enterprise Server, x86 & x86-64, 1-2 Sockets or 1-2 Virtual Machines, Priority Subscription, 5 Year | B58: 1 | C58: TS1-874-006894 | D58: TS1-874-006894 | E58: 874-006894 | F58: 4200
A59: SUSE Linux Enterprise Server, x86 & x86-64, 1-2 Sockets with Unlimited Virtual Machines, Priority Subscription, 3 Year | B59: 1 | C59: TS1-874-006884 | D59: TS1-874-006884 | E59: 874-006884 | F59: 5100
A60: SUSE Linux Enterprise Server, x86 & x86-64, 1-2 Sockets with Unlimited Virtual Machines, Priority Subscription, 5 Year | B60: 1 | C60: TS1-874-006895 | D60: TS1-874-006895 | E60: 874-006895 | F60: 8400

Sheet Processor (hidden)
A1: Additional Processor
A2: Server DL560 | C2: CPU-A
A3: No Additional Processor | B3: 0 | C3: ="" ->  | E3: ="" ->  | F3: ="" ->  | G3: ="" ->  | H3: ="" -> 
A4: HPE DL560 Gen10 Intel® Xeon-Gold 5118 (2.3GHz/12-core/105W) Processor Kit | B4: 2 | C4: TS1L2-CPU-560 | D4: TS1L2-CPU-560 | E4: 840399-B21 | F4: ProLiant HPE DL5x0 Gen10 CPU Mezzanine Board Kit | G4: 1 | H4: 872222-B21 | L4: 2584
A6: Server DL580 | C6: CPU-B
A7: No Additional Processor | B7: 0 | C7: ="" ->  | E7: ="" ->  | F7: ="" ->  | G7: ="" ->  | H7: ="" ->  | L7: ="" -> 
A8: HPE DL580 Gen10 Intel® Xeon-Gold 5118 (2.3GHz/12-core/105W) FIO Processor Kit | B8: 2 | C8: TS1L2-CPU-ALT-U | D8: TS1L2-CPU-ALT-U | E8: 878126-L21 | F8: ProLiant HPE DL5x0 Gen10 CPU Mezzanine Board Kit | G8: 1 | H8: 872222-B21 | L8: 2584
A10: Server DL580 Prestazionale
A11: No Additional Processor | B11: 0 | C11: ="" ->  | F11: ="" ->  | G11: ="" ->  | H11: ="" ->  | L11: ="" -> 
A12: HPE DL580 Gen10 Intel® Xeon-Gold 6140M (2.3GHz/18-core/140W) FIO Processor Kit | B12: 2 | C12: TS1L2-CPU-580-U | D12: TS1L2-CPU-580-U | E12: 878138-L21 | F12: ProLiant HPE DL5x0 Gen10 CPU Mezzanine Board Kit | G12: 1 | H12: 872222-B21 | L12: 5056
A19: HPE OneView Advanced standalone licenses
A20: None | B20: 0 | C20: ="" ->  | D20: ="" ->  | E20: ="" ->  | F20: 0 | G20: ="" ->  | H20: ="" ->  | I20: ="" ->  | J20: ="" ->  | K20: ="" ->  | L20: ="" -> 
A21: HPE OneView Advanced with iLO Advanced incl 3yr 24x7 Supp Phys 1 Svr Lic | B21: 1 | C21: S2-E5Y34A | D21: S2-E5Y34A | E21: E5Y34A | F21: 480

Sheet Memory (hidden)
B1: Total Memory
B3: HPE 16GB (1x16GB) Dual Rank x4 DDR4-2400 Registered Memory Kit | C3: 1 | D3: TS1L2-16GB-2400 | E3: TS1L2-16GB-580 | F3: 836220-B21 | G3: 172 | H3: DL580 Gen9
B4: HP 32GB (1x32GB) Dual Rank x4 DDR4-2400 Registered Memory Kit | C4: 1 | D4: TS1L2-32GB-2400 | E4: TS1L2-32GB-580 | F4: 805351-B21 | G4: 344 | H4: DL580 Gen9
B5: HPE 64GB (1x64GB) Quad Rank x4 DDR4-2400 Load Reduced Memory Kit | C5: 1 | D5: TS1L2-64GB-2400 | E5: TS1L2-64GB-580 | F5: 805358-B21 | G5: 750 | H5: DL580 Gen9
B6: HPE 16GB (1x16GB) Single Rank x4 DDR4-2666 CAS-19-19-19 Registered Smart Memory Kit | C6: 1 | D6: TS1L2-16GB | E6: TS1L2-16GB | F6: 815098-B21 | G6: 172
B7: HPE 32GB (1x32GB) Dual Rank x4 DDR4-2666 CAS-19-19-19 Registered Smart Memory Kit | C7: 1 | D7: TS1L2-32GB | E7: TS1L2-32GB | F7: 815100-B21 | G7: 344
B8: HPE 64GB (1x64GB) Quad Rank x4 DDR4-2666 CAS-19-19-19 Load Reduced Smart Memory Kit | C8: 1 | D8: TS1L2-64GB | E8: TS1L2-64GB | F8: 815101-B21 | G8: 750
A11: 2CPU | B11: MEMORY A
A12: 64 | B12: ="" ->  | C12: ="" ->  | D12: ="" ->  | E12: ="" ->  | F12: ="" ->  | G12: ="" ->  | H12: =$B$7 -> HPE 32GB (1x32GB) Dual Rank x4 DDR4-2666 CAS-19-19-19 Registered Smart Memory Kit | I12: 2 | J12: =$F$7 -> 815100-B21 | K12: ="" ->  | L12: ="" ->  | M12: ="" ->  | N12: ="" ->  | O12: ="" ->  | P12: ="" -> 
A13: 128 | B13: HPE 32GB (1x32GB) Dual Rank x4 DDR4-2666 CAS-19-19-19 Registered Smart Memory Kit | C13: 2 | D13: TS1L2-32GB | E13: TS1L2-32GB | F13: 815100-B21 | G13: =$G$7*C13 -> 688 | H13: =$B$7 -> HPE 32GB (1x32GB) Dual Rank x4 DDR4-2666 CAS-19-19-19 Registered Smart Memory Kit | I13: 2 | J13: =$F$7 -> 815100-B21 | K13: ="" ->  | L13: ="" ->  | M13: ="" ->  | N13: ="" ->  | O13: ="" ->  | P13: ="" -> 
A14: 192 | B14: HPE 32GB (1x32GB) Dual Rank x4 DDR4-2666 CAS-19-19-19 Registered Smart Memory Kit | C14: 4 | D14: TS1L2-32GB | E14: TS1L2-32GB | F14: 815100-B21 | G14: =$G$7*C14 -> 1376 | H14: HPE 32GB (1x32GB) Dual Rank x4 DDR4-2666 CAS-19-19-19 Registered Smart Memory Kit | I14: 2 | J14: 815100-B21 | K14: ="" ->  | L14: ="" ->  | M14: ="" ->  | N14: ="" ->  | O14: ="" ->  | P14: ="" -> 
A15: 256 | B15: HPE 32GB (1x32GB) Dual Rank x4 DDR4-2666 CAS-19-19-19 Registered Smart Memory Kit | C15: 6 | D15: TS1L2-32GB | E15: TS1L2-32GB | F15: 815100-B21 | G15: 2064 | H15: HPE 32GB (1x32GB) Dual Rank x4 DDR4-2666 CAS-19-19-19 Registered Smart Memory Kit | I15: 2 | J15: 815100-B21 | K15: ="" ->  | L15: ="" ->  | M15: ="" ->  | N15: ="" ->  | O15: ="" ->  | P15: ="" -> 
A16: 384 | B16: HPE 32GB (1x32GB) Dual Rank x4 DDR4-2666 CAS-19-19-19 Registered Smart Memory Kit | C16: 10 | D16: TS1L2-32GB | E16: TS1L2-32GB | F16: 815100-B21 | G16: =$G$7*C16 -> 3440 | H16: HPE 32GB (1x32GB) Dual Rank x4 DDR4-2666 CAS-19-19-19 Registered Smart Memory Kit | I16: 2 | J16: 815100-B21 | K16: ="" ->  | L16: ="" ->  | M16: ="" ->  | N16: ="" ->  | O16: ="" ->  | P16: ="" -> 
A17: 512 | B17: HPE 32GB (1x32GB) Dual Rank x4 DDR4-2666 CAS-19-19-19 Registered Smart Memory Kit | C17: 14 | D17: TS1L2-32GB | E17: TS1L2-32GB | F17: 815100-B21 | G17: 4816 | H17: HPE 32GB (1x32GB) Dual Rank x4 DDR4-2666 CAS-19-19-19 Registered Smart Memory Kit | I17: 2 | J17: 815100-B21 | K17: ="" ->  | L17: ="" ->  | M17: ="" ->  | N17: ="" ->  | O17: ="" ->  | P17: ="" -> 
A18: 768 | B18: HPE 32GB (1x32GB) Dual Rank x4 DDR4-2666 CAS-19-19-19 Registered Smart Memory Kit | C18: 22 | D18: TS1L2-32GB | E18: TS1L2-32GB | F18: 815100-B21 | G18: 7568 | H18: HPE 32GB (1x32GB) Dual Rank x4 DDR4-2666 CAS-19-19-19 Registered Smart Memory Kit | I18: 2 | J18: 815100-B21 | K18: ="" ->  | L18: ="" ->  | M18: ="" ->  | N18: ="" ->  | O18: ="" ->  | P18: ="" -> 
A19: 1024 | B19: ="" ->  | C19: ="" ->  | D19: ="" ->  | E19: ="" ->  | F19: ="" ->  | G19: ="" ->  | H19: ="" ->  | I19: ="" ->  | J19: ="" ->  | K19: HPE 64GB (1x64GB) Quad Rank x4 DDR4-2666 CAS-19-19-19 Load Reduced Smart Memory Kit | L19: 16 | M19: TS1L2-64GB | N19: TS1L2-64GB | O19: 815101-B21 | P19: =$G$8*L19 -> 12000
A20: 1536 | B20: ="" ->  | C20: ="" ->  | D20: ="" ->  | E20: ="" ->  | F20: ="" ->  | G20: ="" ->  | H20: ="" ->  | I20: ="" ->  | J20: ="" ->  | K20: HPE 64GB (1x64GB) Quad Rank x4 DDR4-2666 CAS-19-19-19 Load Reduced Smart Memory Kit | L20: 24 | M20: TS1L2-64GB | N20: TS1L2-64GB | O20: 815101-B21 | P20: =$G$8*L20 -> 18000
A21: 4CPU
A22: 128 | B22: HPE 32GB (1x32GB) Dual Rank x4 DDR4-2666 CAS-19-19-19 Registered Smart Memory Kit | C22: 2 | D22: TS1L2-32GB | E22: TS1L2-32GB | F22: 815100-B21 | G22: =$G$7*C22 -> 688 | H22: =$B$7 -> HPE 32GB (1x32GB) Dual Rank x4 DDR4-2666 CAS-19-19-19 Registered Smart Memory Kit | I22: 2 | J22: =$F$7 -> 815100-B21 | K22: ="" ->  | L22: ="" ->  | M22: ="" ->  | N22: ="" ->  | O22: ="" ->  | P22: ="" -> 
A23: 256 | B23: HPE 32GB (1x32GB) Dual Rank x4 DDR4-2666 CAS-19-19-19 Registered Smart Memory Kit | C23: 6 | D23: TS1L2-32GB | E23: TS1L2-32GB | F23: 815100-B21 | G23: =$G$7*C23 -> 2064 | H23: =$B$7 -> HPE 32GB (1x32GB) Dual Rank x4 DDR4-2666 CAS-19-19-19 Registered Smart Memory Kit | I23: 2 | J23: =$F$7 -> 815100-B21 | K23: ="" ->  | L23: ="" ->  | M23: ="" ->  | N23: ="" ->  | O23: ="" ->  | P23: ="" -> 
A24: 384 | B24: HPE 32GB (1x32GB) Dual Rank x4 DDR4-2666 CAS-19-19-19 Registered Smart Memory Kit | C24: 10 | D24: TS1L2-32GB | E24: TS1L2-32GB | F24: 815100-B21 | G24: =$G$7*C24 -> 3440 | H24: HPE 32GB (1x32GB) Dual Rank x4 DDR4-2666 CAS-19-19-19 Registered Smart Memory Kit | I24: 2 | J24: 815100-B21 | K24: ="" ->  | L24: ="" ->  | M24: ="" ->  | N24: ="" ->  | O24: ="" ->  | P24: ="" -> 
A25: 512 | B25: HPE 32GB (1x32GB) Dual Rank x4 DDR4-2666 CAS-19-19-19 Registered Smart Memory Kit | C25: 14 | D25: TS1L2-32GB | E25: TS1L2-32GB | F25: 815100-B21 | G25: 4816 | H25: HPE 32GB (1x32GB) Dual Rank x4 DDR4-2666 CAS-19-19-19 Registered Smart Memory Kit | I25: 2 | J25: 815100-B21 | K25: ="" ->  | L25: ="" ->  | M25: ="" ->  | N25: ="" ->  | O25: ="" ->  | P25: ="" -> 
A26: 768 | B26: HPE 32GB (1x32GB) Dual Rank x4 DDR4-2666 CAS-19-19-19 Registered Smart Memory Kit | C26: 22 | D26: TS1L2-32GB | E26: TS1L2-32GB | F26: 815100-B21 | G26: 7568 | H26: HPE 32GB (1x32GB) Dual Rank x4 DDR4-2666 CAS-19-19-19 Registered Smart Memory Kit | I26: 2 | J26: 815100-B21 | K26: ="" ->  | L26: ="" ->  | M26: ="" ->  | N26: ="" ->  | O26: ="" ->  | P26: ="" -> 
A27: 1024 | B27: HPE 32GB (1x32GB) Dual Rank x4 DDR4-2666 CAS-19-19-19 Registered Smart Memory Kit | C27: 30 | D27: TS1L2-32GB | E27: TS1L2-32GB | F27: 815100-B21 | G27: 10320 | H27: HPE 32GB (1x32GB) Dual Rank x4 DDR4-2666 CAS-19-19-19 Registered Smart Memory Kit | I27: 2 | J27: 815100-B21 | K27: ="" ->  | L27: ="" ->  | M27: ="" ->  | N27: ="" ->  | O27: ="" ->  | P27: ="" -> 
A28: 1536 | B28: HPE 32GB (1x32GB) Dual Rank x4 DDR4-2666 CAS-19-19-19 Registered Smart Memory Kit | C28: 46 | D28: TS1L2-32GB | E28: TS1L2-32GB | F28: 815100-B21 | G28: 15824 | H28: HPE 32GB (1x32GB) Dual Rank x4 DDR4-2666 CAS-19-19-19 Registered Smart Memory Kit | I28: 2 | J28: 815100-B21 | K28: ="" ->  | L28: ="" ->  | M28: ="" ->  | N28: ="" ->  | O28: ="" ->  | P28: ="" -> 
A29: 2048 | B29: ="" ->  | C29: ="" ->  | D29: ="" ->  | E29: ="" ->  | F29: ="" ->  | G29: ="" ->  | H29: ="" ->  | I29: ="" ->  | J29: ="" ->  | K29: HPE 64GB (1x64GB) Quad Rank x4 DDR4-2666 CAS-19-19-19 Load Reduced Smart Memory Kit | L29: 32 | M29: TS1L2-64GB | N29: TS1L2-64GB | O29: 815101-B21 | P29: =$G$8*L29 -> 24000
A30: 3072 | B30: ="" ->  | C30: ="" ->  | D30: ="" ->  | E30: ="" ->  | F30: ="" ->  | G30: ="" ->  | H30: ="" ->  | I30: ="" ->  | J30: ="" ->  | K30: HPE 64GB (1x64GB) Quad Rank x4 DDR4-2666 CAS-19-19-19 Load Reduced Smart Memory Kit | L30: 48 | M30: TS1L2-64GB | N30: TS1L2-64GB | O30: 815101-B21 | P30: =$G$8*L30 -> 36000
B32: MEMORY B
A33: 2CPU | B33: UPGRADE 16GB | H33: MEMORIA BASE | K33: UPGRADE 32GB | T33: Memoria Totale | U33: Prezzo Totale Memorie | V33: Memory Cartridge Totali | W33: DIMM Slot | X33: 32 | Y33: 16 | Z33: 16
A34: 64 | B34: ="" ->  | C34: ="" ->  | D34: ="" ->  | E34: ="" ->  | F34: ="" ->  | G34: ="" ->  | H34: =$B$7 -> HPE 32GB (1x32GB) Dual Rank x4 DDR4-2666 CAS-19-19-19 Registered Smart Memory Kit | I34: 2 | J34: =$F$7 -> 815100-B21 | K34: ="" ->  | L34: ="" ->  | M34: ="" ->  | N34: ="" ->  | O34: ="" ->  | P34: ="" ->  | X34: =IF(L34="",0,L34) -> 0 | Y34: =IF(I34="",0,I34) -> 2 | Z34: =IF(C34="",0,C34) -> 0 | AA34: =SUM(X34:Z34) -> 0
A35: 128 | B35: HPE 32GB (1x32GB) Dual Rank x4 DDR4-2666 CAS-19-19-19 Registered Smart Memory Kit | C35: 2 | D35: TS1L2-32GB | E35: TS1L2-32GB | F35: 815100-B21 | G35: =$G$7*C35 -> 688 | H35: =$B$7 -> HPE 32GB (1x32GB) Dual Rank x4 DDR4-2666 CAS-19-19-19 Registered Smart Memory Kit | I35: 2 | J35: =$F$7 -> 815100-B21 | K35: ="" ->  | L35: ="" ->  | M35: ="" ->  | N35: ="" ->  | O35: ="" ->  | P35: ="" ->  | X35: 0 | Y35: 2 | Z35: 2 | AA35: 2
A36: 192 | B36: HPE 32GB (1x32GB) Dual Rank x4 DDR4-2666 CAS-19-19-19 Registered Smart Memory Kit | C36: 4 | D36: TS1L2-32GB | E36: TS1L2-32GB | F36: 815100-B21 | G36: =$G$7*C36 -> 1376 | H36: HPE 32GB (1x32GB) Dual Rank x4 DDR4-2666 CAS-19-19-19 Registered Smart Memory Kit | I36: 2 | J36: 815100-B21 | K36: ="" ->  | L36: ="" ->  | M36: ="" ->  | N36: ="" ->  | O36: ="" ->  | P36: ="" ->  | X36: 0 | Y36: 2 | Z36: 4 | AA36: 4
A37: 256 | B37: HPE 32GB (1x32GB) Dual Rank x4 DDR4-2666 CAS-19-19-19 Registered Smart Memory Kit | C37: 6 | D37: TS1L2-32GB | E37: TS1L2-32GB | F37: 815100-B21 | G37: 2064 | H37: HPE 32GB (1x32GB) Dual Rank x4 DDR4-2666 CAS-19-19-19 Registered Smart Memory Kit | I37: 2 | J37: 815100-B21 | K37: ="" ->  | L37: ="" ->  | M37: ="" ->  | N37: ="" ->  | O37: ="" ->  | P37: ="" ->  | X37: 0 | Y37: 2 | Z37: 6 | AA37: 6
A38: 384 | B38: HPE 32GB (1x32GB) Dual Rank x4 DDR4-2666 CAS-19-19-19 Registered Smart Memory Kit | C38: 10 | D38: TS1L2-32GB | E38: TS1L2-32GB | F38: 815100-B21 | G38: 3440 | H38: HPE 32GB (1x32GB) Dual Rank x4 DDR4-2666 CAS-19-19-19 Registered Smart Memory Kit | I38: 2 | J38: 815100-B21 | K38: ="" ->  | L38: ="" ->  | M38: ="" ->  | N38: ="" ->  | O38: ="" ->  | P38: ="" ->  | X38: 0 | Y38: 2 | Z38: 10 | AA38: 10
A39: 512 | B39: HPE 32GB (1x32GB) Dual Rank x4 DDR4-2666 CAS-19-19-19 Registered Smart Memory Kit | C39: 14 | D39: TS1L2-32GB | E39: TS1L2-32GB | F39: 815100-B21 | G39: 4816 | H39: HPE 32GB (1x32GB) Dual Rank x4 DDR4-2666 CAS-19-19-19 Registered Smart Memory Kit | I39: 2 | J39: 815100-B21 | K39: ="" ->  | L39: ="" ->  | M39: ="" ->  | N39: ="" ->  | O39: ="" ->  | P39: ="" ->  | X39: 0 | Y39: 2 | Z39: 14 | AA39: 14
A40: 768 | B40: HPE 32GB (1x32GB) Dual Rank x4 DDR4-2666 CAS-19-19-19 Registered Smart Memory Kit | C40: 22 | D40: TS1L2-32GB | E40: TS1L2-32GB | F40: 815100-B21 | G40: 7568 | H40: HPE 32GB (1x32GB) Dual Rank x4 DDR4-2666 CAS-19-19-19 Registered Smart Memory Kit | I40: 2 | J40: 815100-B21 | K40: ="" ->  | L40: ="" ->  | M40: ="" ->  | N40: ="" ->  | O40: ="" ->  | P40: ="" ->  | X40: 0 | Y40: 2 | Z40: 22 | AA40: 22
A41: 1024 | B41: ="" ->  | C41: ="" ->  | D41: ="" ->  | E41: ="" ->  | F41: ="" ->  | G41: ="" ->  | H41: ="" ->  | I41: ="" ->  | J41: ="" ->  | K41: HPE 64GB (1x64GB) Quad Rank x4 DDR4-2666 CAS-19-19-19 Load Reduced Smart Memory Kit | L41: 16 | M41: TS1L2-64GB | N41: TS1L2-64GB | O41: 815101-B21 | P41: =$G$8*L41 -> 12000 | X41: 16 | Y41: 0 | Z41: 0 | AA41: 16
A42: 1536 | B42: ="" ->  | C42: ="" ->  | D42: ="" ->  | E42: ="" ->  | F42: ="" ->  | G42: ="" ->  | H42: ="" ->  | I42: ="" ->  | J42: ="" ->  | K42: HPE 64GB (1x64GB) Quad Rank x4 DDR4-2666 CAS-19-19-19 Load Reduced Smart Memory Kit | L42: 24 | M42: TS1L2-64GB | N42: TS1L2-64GB | O42: 815101-B21 | P42: =$G$8*L42 -> 18000 | X42: 24 | Y42: 0 | Z42: 0 | AA42: 24
A43: 4CPU
A44: 128 | B44: HPE 32GB (1x32GB) Dual Rank x4 DDR4-2666 CAS-19-19-19 Registered Smart Memory Kit | C44: 2 | D44: TS1L2-32GB | E44: TS1L2-32GB | F44: 815100-B21 | G44: =$G$7*C44 -> 688 | H44: =$B$7 -> HPE 32GB (1x32GB) Dual Rank x4 DDR4-2666 CAS-19-19-19 Registered Smart Memory Kit | I44: 2 | J44: =$F$7 -> 815100-B21 | K44: ="" ->  | L44: ="" ->  | M44: ="" ->  | N44: ="" ->  | O44: ="" ->  | P44: ="" ->  | X44: =IF(L44="",0,L44) -> 0 | Y44: =IF(I44="",0,I44) -> 2 | Z44: =IF(C44="",0,C44) -> 2 | AA44: =SUM(X44:Z44) -> 2
A45: 256 | B45: HPE 32GB (1x32GB) Dual Rank x4 DDR4-2666 CAS-19-19-19 Registered Smart Memory Kit | C45: 6 | D45: TS1L2-32GB | E45: TS1L2-32GB | F45: 815100-B21 | G45: =$G$7*C45 -> 2064 | H45: =$B$7 -> HPE 32GB (1x32GB) Dual Rank x4 DDR4-2666 CAS-19-19-19 Registered Smart Memory Kit | I45: 2 | J45: =$F$7 -> 815100-B21 | K45: ="" ->  | L45: ="" ->  | M45: ="" ->  | N45: ="" ->  | O45: ="" ->  | P45: ="" ->  | X45: 0 | Y45: 2 | Z45: 6 | AA45: 6
A46: 384 | B46: HPE 32GB (1x32GB) Dual Rank x4 DDR4-2666 CAS-19-19-19 Registered Smart Memory Kit | C46: 10 | D46: TS1L2-32GB | E46: TS1L2-32GB | F46: 815100-B21 | G46: =$G$7*C46 -> 3440 | H46: HPE 32GB (1x32GB) Dual Rank x4 DDR4-2666 CAS-19-19-19 Registered Smart Memory Kit | I46: 2 | J46: 815100-B21 | K46: ="" ->  | L46: ="" ->  | M46: ="" ->  | N46: ="" ->  | O46: ="" ->  | P46: ="" ->  | X46: 0 | Y46: 2 | Z46: 10 | AA46: 10
A47: 512 | B47: HPE 32GB (1x32GB) Dual Rank x4 DDR4-2666 CAS-19-19-19 Registered Smart Memory Kit | C47: 14 | D47: TS1L2-32GB | E47: TS1L2-32GB | F47: 815100-B21 | G47: 4816 | H47: HPE 32GB (1x32GB) Dual Rank x4 DDR4-2666 CAS-19-19-19 Registered Smart Memory Kit | I47: 2 | J47: 815100-B21 | K47: ="" ->  | L47: ="" ->  | M47: ="" ->  | N47: ="" ->  | O47: ="" ->  | P47: ="" ->  | X47: 0 | Y47: 2 | Z47: 14 | AA47: 14
A48: 768 | B48: HPE 32GB (1x32GB) Dual Rank x4 DDR4-2666 CAS-19-19-19 Registered Smart Memory Kit | C48: 22 | D48: TS1L2-32GB | E48: TS1L2-32GB | F48: 815100-B21 | G48: 7568 | H48: HPE 32GB (1x32GB) Dual Rank x4 DDR4-2666 CAS-19-19-19 Registered Smart Memory Kit | I48: 2 | J48: 815100-B21 | K48: ="" ->  | L48: ="" ->  | M48: ="" ->  | N48: ="" ->  | O48: ="" ->  | P48: ="" ->  | X48: 0 | Y48: 2 | Z48: 22 | AA48: 22
A49: 1024 | B49: HPE 32GB (1x32GB) Dual Rank x4 DDR4-2666 CAS-19-19-19 Registered Smart Memory Kit | C49: 30 | D49: TS1L2-32GB | E49: TS1L2-32GB | F49: 815100-B21 | G49: 10320 | H49: HPE 32GB (1x32GB) Dual Rank x4 DDR4-2666 CAS-19-19-19 Registered Smart Memory Kit | I49: 2 | J49: 815100-B21 | K49: ="" ->  | L49: ="" ->  | M49: ="" ->  | N49: ="" ->  | O49: ="" ->  | P49: ="" ->  | X49: 0 | Y49: 2 | Z49: 30 | AA49: 30
A50: 1536 | B50: HPE 32GB (1x32GB) Dual Rank x4 DDR4-2666 CAS-19-19-19 Registered Smart Memory Kit | C50: 46 | D50: TS1L2-32GB | E50: TS1L2-32GB | F50: 815100-B21 | G50: 15824 | H50: HPE 32GB (1x32GB) Dual Rank x4 DDR4-2666 CAS-19-19-19 Registered Smart Memory Kit | I50: 2 | J50: 815100-B21 | K50: ="" ->  | L50: ="" ->  | M50: ="" ->  | N50: ="" ->  | O50: ="" ->  | P50: ="" ->  | X50: 0 | Y50: 2 | Z50: 46 | AA50: 46
A51: 2048 | B51: ="" ->  | C51: ="" ->  | D51: ="" ->  | E51: ="" ->  | F51: ="" ->  | G51: ="" ->  | H51: ="" ->  | I51: ="" ->  | J51: ="" ->  | K51: HPE 64GB (1x64GB) Quad Rank x4 DDR4-2666 CAS-19-19-19 Load Reduced Smart Memory Kit | L51: 32 | M51: TS1L2-64GB | N51: TS1L2-64GB | O51: 815101-B21 | P51: =$G$8*L51 -> 24000 | X51: 32 | Y51: 0 | Z51: 0 | AA51: 32
A52: 3072 | B52: ="" ->  | C52: ="" ->  | D52: ="" ->  | E52: ="" ->  | F52: ="" ->  | G52: ="" ->  | H52: ="" ->  | I52: ="" ->  | J52: ="" ->  | K52: HPE 64GB (1x64GB) Quad Rank x4 DDR4-2666 CAS-19-19-19 Load Reduced Smart Memory Kit | L52: 48 | M52: TS1L2-64GB | N52: TS1L2-64GB | O52: 815101-B21 | P52: =$G$8*L52 -> 36000 | X52: 48 | Y52: 0 | Z52: 0 | AA52: 48
A54: 1CPU | B54: MEMORY C | T54: Memoria Totale | U54: Prezzo Totale Memorie | V54: Memory Cartridge Totali | W54: DIMM Slot | X54: 32 | Y54: 16 | Z54: 16
A55: =32*I55 -> 128 | B55: ="" ->  | C55: ="" ->  | D55: ="" ->  | E55: ="" ->  | G55: ="" ->  | H55: HPE 32GB (1x32GB) Dual Rank x4 DDR4-2666 CAS-19-19-19 Registered Smart Memory Kit | I55: 4 | J55: 815100-B21 | K55: ="" ->  | L55: ="" ->  | M55: ="" ->  | N55: ="" ->  | O55: ="" ->  | P55: ="" ->  | X55: =IF(L55="",0,L55) -> 0 | Y55: =IF(I55="",0,I55) -> 4 | Z55: =IF(C55="",0,C55) -> 0 | AA55: =SUM(X55:Z55) -> 4
A56: =(32*I56)+(C56*32) -> 256 | B56: HPE 32GB (1x32GB) Dual Rank x4 DDR4-2666 CAS-19-19-19 Registered Smart Memory Kit | C56: 4 | D56: TS1L2-32GB | E56: TS1L2-32GB | F56: 815100-B21 | G56: =$G$4*C56 -> 1376 | H56: HPE 32GB (1x32GB) Dual Rank x4 DDR4-2666 CAS-19-19-19 Registered Smart Memory Kit | I56: 4 | J56: 815100-B21 | K56: ="" ->  | L56: ="" ->  | M56: ="" ->  | N56: ="" ->  | O56: ="" ->  | P56: ="" ->  | X56: =IF(L56="",0,L56) -> 0 | Y56: =IF(I56="",0,I56) -> 4 | Z56: =IF(C56="",0,C56) -> 4 | AA56: =SUM(X56:Z56) -> 8
A57: =(32*I57)+(C57*32) -> 512 | B57: HPE 32GB (1x32GB) Dual Rank x4 DDR4-2666 CAS-19-19-19 Registered Smart Memory Kit | C57: 12 | D57: TS1L2-32GB | E57: TS1L2-32GB | F57: 815100-B21 | G57: 4128 | H57: HPE 32GB (1x32GB) Dual Rank x4 DDR4-2666 CAS-19-19-19 Registered Smart Memory Kit | I57: 4 | J57: 815100-B21 | K57: ="" ->  | L57: ="" ->  | M57: ="" ->  | N57: ="" ->  | O57: ="" ->  | P57: ="" ->  | X57: 0 | Y57: 4 | Z57: 12 | AA57: 16
A58: =(32*I58)+(C58*32) -> 640 | B58: HPE 32GB (1x32GB) Dual Rank x4 DDR4-2666 CAS-19-19-19 Registered Smart Memory Kit | C58: 16 | D58: TS1L2-32GB | E58: TS1L2-32GB | F58: 815100-B21 | G58: 5504 | H58: HPE 32GB (1x32GB) Dual Rank x4 DDR4-2666 CAS-19-19-19 Registered Smart Memory Kit | I58: 4 | J58: 815100-B21 | K58: ="" ->  | L58: ="" ->  | M58: ="" ->  | N58: ="" ->  | O58: ="" ->  | P58: ="" ->  | X58: =IF(L58="",0,L58) -> 0 | Y58: =IF(I58="",0,I58) -> 4 | Z58: =IF(C58="",0,C58) -> 16 | AA58: =SUM(X58:Z58) -> 20
A59: 768 | B59: HPE 32GB (1x32GB) Dual Rank x4 DDR4-2666 CAS-19-19-19 Registered Smart Memory Kit | C59: 20 | D59: TS1L2-32GB | E59: TS1L2-32GB | F59: 815100-B21 | G59: 6880 | H59: HPE 32GB (1x32GB) Dual Rank x4 DDR4-2666 CAS-19-19-19 Registered Smart Memory Kit | I59: 4 | J59: 815100-B21 | K59: ="" ->  | L59: ="" ->  | M59: ="" ->  | N59: ="" ->  | O59: ="" ->  | P59: ="" ->  | X59: 0 | Y59: 4 | Z59: 20 | AA59: 24
A60: =(L60*64) -> 1024 | B60: ="" ->  | C60: ="" ->  | D60: ="" ->  | E60: ="" ->  | F60: ="" ->  | G60: ="" ->  | H60: ="" ->  | I60: ="" ->  | J60: ="" ->  | K60: HPE 64GB (1x64GB) Quad Rank x4 DDR4-2666 CAS-19-19-19 Load Reduced Smart Memory Kit | L60: 16 | M60: TS1L2-64GB | N60: TS1L2-64GB | O60: 815101-B21 | P60: =$G$8*L60 -> 12000 | X60: 16 | Y60: 0 | Z60: 0 | AA60: 16
A61: =(L61*64) -> 1280 | B61: ="" ->  | C61: ="" ->  | D61: ="" ->  | E61: ="" ->  | F61: ="" ->  | G61: ="" ->  | H61: ="" ->  | I61: ="" ->  | J61: ="" ->  | K61: HPE 64GB (1x64GB) Quad Rank x4 DDR4-2666 CAS-19-19-19 Load Reduced Smart Memory Kit | L61: 20 | M61: TS1L2-64GB | N61: TS1L2-64GB | O61: 815101-B21 | P61: =$G$8*L61 -> 15000 | X61: 20 | Y61: 0 | Z61: 0 | AA61: 20
A62: =(L62*64) -> 1536 | B62: ="" ->  | C62: ="" ->  | D62: ="" ->  | E62: ="" ->  | F62: ="" ->  | G62: ="" ->  | H62: ="" ->  | I62: ="" ->  | J62: ="" ->  | K62: HPE 64GB (1x64GB) Quad Rank x4 DDR4-2666 CAS-19-19-19 Load Reduced Smart Memory Kit | L62: 24 | M62: TS1L2-64GB | N62: TS1L2-64GB | O62: 815101-B21 | P62: =$G$8*L62 -> 18000 | X62: =IF(L62="",0,L62) -> 24 | Y62: =IF(I62="",0,I62) -> 0 | Z62: =IF(C62="",0,C62) -> 0 | AA62: =SUM(X62:Z62) -> 24
A63: 2CPU
A64: =(32*I64)+(C64*32) -> 256 | B64: HPE 32GB (1x32GB) Dual Rank x4 DDR4-2666 CAS-19-19-19 Registered Smart Memory Kit | C64: 4 | D64: TS1L2-32GB | E64: TS1L2-32GB | F64: 815100-B21 | G64: =$G$4*C64 -> 1376 | H64: HPE 32GB (1x32GB) Dual Rank x4 DDR4-2666 CAS-19-19-19 Registered Smart Memory Kit | I64: 4 | J64: 815100-B21 | K64: ="" ->  | L64: ="" ->  | M64: ="" ->  | N64: ="" ->  | O64: ="" ->  | P64: ="" ->  | X64: =IF(L64="",0,L64) -> 0 | Y64: =IF(I64="",0,I64) -> 4 | Z64: =IF(C64="",0,C64) -> 4 | AA64: =SUM(X64:Z64) -> 8
A65: =(32*I65)+(C65*32) -> 512 | B65: HPE 32GB (1x32GB) Dual Rank x4 DDR4-2666 CAS-19-19-19 Registered Smart Memory Kit | C65: 12 | D65: TS1L2-32GB | E65: TS1L2-32GB | F65: 815100-B21 | G65: 4128 | H65: HPE 32GB (1x32GB) Dual Rank x4 DDR4-2666 CAS-19-19-19 Registered Smart Memory Kit | I65: 4 | J65: 815100-B21 | K65: ="" ->  | L65: ="" ->  | M65: ="" ->  | N65: ="" ->  | O65: ="" ->  | P65: ="" ->  | X65: 0 | Y65: 4 | Z65: 12 | AA65: 16
A66: =(32*I66)+(C66*32) -> 640 | B66: HPE 32GB (1x32GB) Dual Rank x4 DDR4-2666 CAS-19-19-19 Registered Smart Memory Kit | C66: 16 | D66: TS1L2-32GB | E66: TS1L2-32GB | F66: 815100-B21 | G66: 5504 | H66: HPE 32GB (1x32GB) Dual Rank x4 DDR4-2666 CAS-19-19-19 Registered Smart Memory Kit | I66: 4 | J66: 815100-B21 | K66: ="" ->  | L66: ="" ->  | M66: ="" ->  | N66: ="" ->  | O66: ="" ->  | P66: ="" ->  | X66: 0 | Y66: 4 | Z66: 16 | AA66: 20
A67: =(32*I67)+(C67*32) -> 768 | B67: HPE 32GB (1x32GB) Dual Rank x4 DDR4-2666 CAS-19-19-19 Registered Smart Memory Kit | C67: 20 | D67: TS1L2-32GB | E67: TS1L2-32GB | F67: 815100-B21 | G67: 6880 | H67: HPE 32GB (1x32GB) Dual Rank x4 DDR4-2666 CAS-19-19-19 Registered Smart Memory Kit | I67: 4 | J67: 815100-B21 | K67: ="" ->  | L67: ="" ->  | M67: ="" ->  | N67: ="" ->  | O67: ="" ->  | P67: ="" ->  | X67: 0 | Y67: 4 | Z67: 20 | AA67: 24
A68: =(32*I68)+(C68*32) -> 1024 | B68: HPE 32GB (1x32GB) Dual Rank x4 DDR4-2666 CAS-19-19-19 Registered Smart Memory Kit | C68: 28 | D68: TS1L2-32GB | E68: TS1L2-32GB | F68: 815100-B21 | G68: =$G$4*C68 -> 9632 | H68: HPE 32GB (1x32GB) Dual Rank x4 DDR4-2666 CAS-19-19-19 Registered Smart Memory Kit | I68: 4 | J68: 815100-B21 | K68: ="" ->  | L68: ="" ->  | M68: ="" ->  | N68: ="" ->  | O68: ="" ->  | P68: ="" ->  | X68: 0 | Y68: 4 | Z68: 28 | AA68: 32
A69: 1280 | B69: HPE 32GB (1x32GB) Dual Rank x4 DDR4-2666 CAS-19-19-19 Registered Smart Memory Kit | C69: 36 | D69: TS1L2-32GB | E69: TS1L2-32GB | F69: 815100-B21 | G69: 12384 | H69: HPE 32GB (1x32GB) Dual Rank x4 DDR4-2666 CAS-19-19-19 Registered Smart Memory Kit | I69: 4 | J69: 815100-B21 | K69: ="" ->  | L69: ="" ->  | M69: ="" ->  | N69: ="" ->  | O69: ="" ->  | P69: ="" ->  | X69: 0 | Y69: 4 | Z69: 36 | AA69: 40
A70: =(32*I70)+(C70*32) -> 1536 | B70: HPE 32GB (1x32GB) Dual Rank x4 DDR4-2666 CAS-19-19-19 Registered Smart Memory Kit | C70: 44 | D70: TS1L2-32GB | E70: TS1L2-32GB | F70: 815100-B21 | G70: =$G$4*C70 -> 15136 | H70: HPE 32GB (1x32GB) Dual Rank x4 DDR4-2666 CAS-19-19-19 Registered Smart Memory Kit | I70: 4 | J70: 815100-B21 | K70: ="" ->  | L70: ="" ->  | M70: ="" ->  | N70: ="" ->  | O70: ="" ->  | P70: ="" ->  | X70: =IF(L70="",0,L70) -> 0 | Y70: =IF(I70="",0,I70) -> 4 | Z70: =IF(C70="",0,C70) -> 44 | AA70: =SUM(X70:Z70) -> 48
A71: =(L71*64) -> 2048 | B71: ="" ->  | C71: ="" ->  | D71: ="" ->  | E71: ="" ->  | F71: ="" ->  | G71: ="" ->  | H71: ="" ->  | I71: ="" ->  | J71: ="" ->  | K71: HPE 64GB (1x64GB) Quad Rank x4 DDR4-2666 CAS-19-19-19 Load Reduced Smart Memory Kit | L71: 32 | M71: TS1L2-64GB | N71: TS1L2-64GB | O71: 815101-B21 | P71: =$G$8*L71 -> 24000 | X71: =IF(L71="",0,L71) -> 32 | Y71: =IF(I71="",0,I71) -> 0 | Z71: =IF(C71="",0,C71) -> 0 | AA71: =SUM(X71:Z71) -> 32
A72: =(L72*64) -> 3072 | B72: ="" ->  | C72: ="" ->  | D72: ="" ->  | E72: ="" ->  | F72: ="" ->  | G72: ="" ->  | H72: ="" ->  | I72: ="" ->  | J72: ="" ->  | K72: HPE 64GB (1x64GB) Quad Rank x4 DDR4-2666 CAS-19-19-19 Load Reduced Smart Memory Kit | L72: 48 | M72: TS1L2-64GB | N72: TS1L2-64GB | O72: 815101-B21 | P72: =$G$8*L72 -> 36000 | X72: 48 | Y72: 0 | Z72: 0 | AA72: 48
M80: 44GB8

Sheet HDD (hidden)
A1: Hard Drives
A2: DL560
A3: HP 300GB 12G SAS 15K 2.5in SC ENT HDD | C3: 10L2-HDD300GB | D3: S10L2-DL560-HDD300 | E3: 759208-B21 | F3: 140
A4: HP 1TB 6G SAS 7.2K 2.5in SC MDL HDD | C4: 10L2-HDD1TB | D4: S10L2-DL560-HDD1000 | E4: 652749-B21 | F4: 278
B5: DL560 | C5: DL560 2 | D5: DL560 3
A6: HDD max | B6: 8 | C6: 8 | D6: 8
A7: HDD 300GB Base | B7: 2 | C7: 2 | D7: 2 | E7: Hot Spare for 300GB HDD | F7: ='Lotto2 DL560 Gen10 1'!$C$96 -> No | G7: =IF(F7="Yes",1,0) -> 0 | H7: =#REF! ->  | I7: =IF(H7="Yes",1,0) ->  | J7: =#REF! ->  | K7: =IF(J7="Yes",1,0) -> 
A8: HDD 300GB Selected | B8: ='Lotto2 DL560 Gen10 1'!#REF! ->  | C8: =#REF! ->  | D8: =#REF! -> 
A9: HP 300GB 12G SAS 15K 2.5in SC ENT HDD | B9: 0 | C9: 0 | D9: 0
B10: 1 | C10: 1 | D10: 1
B11: 2 | C11: 2 | D11: 2
B12: 3 | C12: 3 | D12: 3
B13: 4 | C13: 4 | D13: 4
B14: 5 | C14: 5 | D14: 5
B15: 6 | C15: 6 | D15: 6
A16: HDD max | B16: 8 | C16: 8 | D16: 8
A17: HDD 300GB | B17: =B7+B8 ->  | C17: =C7+C8 ->  | D17: =D7+D8 -> 
A18: HDD 1TB Selected | B18: ='Lotto2 DL560 Gen10 1'!#REF! ->  | C18: =#REF! ->  | D18: =#REF! ->  | E18: Hot Spare for 1TB HDD | F18: ='Lotto2 DL560 Gen10 1'!$C$100 -> No | G18: =IF(F18="Yes",1,0) -> 0 | H18: =#REF! ->  | I18: =IF(H18="Yes",1,0) ->  | J18: =#REF! ->  | K18: =IF(J18="Yes",1,0) -> 
A19: HP 1TB 6G SAS 7.2K 2.5in SC MDL HDD | B19: =B$6-B$7-B$8 ->  | C19: =C$6-C$7-C$8 ->  | D19: =D$6-D$7-D$8 -> 
B20: =IF(B19-1<1,0,B19-1) -> 
A29: Hot Spare | B29: Yes
B30: No
A32: RAID Configuration | D32: HDD 300GB DL560 | F32: HDD 1TB DL560 | H32: HDD 300GB DL560 2 | J32: HDD 1TB DL560 2 | L32: HDD 300GB DL560 3 | N32: HDD 1TB DL560 3
